Workbook

Sheet Order_Entry
B11: Information:
B12: Project:
B13: Date: | D13: =TODAY() -> 2021-10-01
B15: Valve Configuration:
B16: Body Style | C16: Inlet Connection | D16: Outlet Connection | E16: Valve Application | F16: Monitoring Switch
B17: Select... | C17: Select... | D17: Select... | E17: Select... | F17: Select...
B19: Operating Conditions:
B20: Static Inlet Pressure: | F20: [psig]
B21: Residual Inlet Pressure: | F21: [psig]
B22: Flow Rate:
B23: Desired Residual Outlet Pressure: | F23: [psig]
B24: Location Tag:
B26: Valve Outputs:
B27: Setting | C27: Outlet Static Pressure (psig) | D27: Outlet Residual Pressure (psig) | E27: Difference to Desired Residual (psig) | F27: Status | G27: Quantity
B28: =IFERROR(INDEX(Database!$D$37:$D$79, SMALL(IF(Database!$B$37:$B$79=Order_Entry!$B$17,ROW(Database!D$37:D$79)-ROW(Database!D$37)+1),ROWS(Database!D$37:'Database'!D37))),"") ->  | C28: =IFERROR(INDEX(Database!$G$37:$G$79, SMALL(IF(Database!$B$37:$B$79=Order_Entry!$B$17,ROW(Database!G$37:G$79)-ROW(Database!G$37)+1),ROWS(Database!G$37:'Database'!G37))),"") ->  | D28: =IFERROR(INDEX(Database!$H$37:$H$79, SMALL(IF(Database!$B$37:$B$79=Order_Entry!$B$17,ROW(Database!H$37:H$79)-ROW(Database!H$37)+1),ROWS(Database!H$37:'Database'!H37))),"") ->  | E28: =IFERROR(INDEX(Database!$N$37:$N$79, SMALL(IF(Database!$B$37:$B$79=Order_Entry!$B$17,ROW(Database!N$37:N$79)-ROW(Database!N$37)+1),ROWS(Database!N$37:'Database'!N37))),"") ->  | F28: =IFERROR(INDEX(Database!$O$37:$O$79, SMALL(IF(Database!$B$37:$B$79=Order_Entry!$B$17,ROW(Database!O$37:O$79)-ROW(Database!O$37)+1),ROWS(Database!O$37:'Database'!O37))),"") -> 
B29: =IFERROR(INDEX(Database!$D$37:$D$79, SMALL(IF(Database!$B$37:$B$79=Order_Entry!$B$17,ROW(Database!D$37:D$79)-ROW(Database!D$37)+1),ROWS(Database!D$37:'Database'!D38))),"") ->  | C29: =IFERROR(INDEX(Database!$G$37:$G$79, SMALL(IF(Database!$B$37:$B$79=Order_Entry!$B$17,ROW(Database!G$37:G$79)-ROW(Database!G$37)+1),ROWS(Database!G$37:'Database'!G38))),"") ->  | D29: =IFERROR(INDEX(Database!$H$37:$H$79, SMALL(IF(Database!$B$37:$B$79=Order_Entry!$B$17,ROW(Database!H$37:H$79)-ROW(Database!H$37)+1),ROWS(Database!H$37:'Database'!H38))),"") ->  | E29: =IFERROR(INDEX(Database!$N$37:$N$79, SMALL(IF(Database!$B$37:$B$79=Order_Entry!$B$17,ROW(Database!N$37:N$79)-ROW(Database!N$37)+1),ROWS(Database!N$37:'Database'!N38))),"") ->  | F29: =IFERROR(INDEX(Database!$O$37:$O$79, SMALL(IF(Database!$B$37:$B$79=Order_Entry!$B$17,ROW(Database!O$37:O$79)-ROW(Database!O$37)+1),ROWS(Database!O$37:'Database'!O38))),"") -> 
B30: =IFERROR(INDEX(Database!$D$37:$D$79, SMALL(IF(Database!$B$37:$B$79=Order_Entry!$B$17,ROW(Database!D$37:D$79)-ROW(Database!D$37)+1),ROWS(Database!D$37:'Database'!D39))),"") ->  | C30: =IFERROR(INDEX(Database!$G$37:$G$79, SMALL(IF(Database!$B$37:$B$79=Order_Entry!$B$17,ROW(Database!G$37:G$79)-ROW(Database!G$37)+1),ROWS(Database!G$37:'Database'!G39))),"") ->  | D30: =IFERROR(INDEX(Database!$H$37:$H$79, SMALL(IF(Database!$B$37:$B$79=Order_Entry!$B$17,ROW(Database!H$37:H$79)-ROW(Database!H$37)+1),ROWS(Database!H$37:'Database'!H39))),"") ->  | E30: =IFERROR(INDEX(Database!$N$37:$N$79, SMALL(IF(Database!$B$37:$B$79=Order_Entry!$B$17,ROW(Database!N$37:N$79)-ROW(Database!N$37)+1),ROWS(Database!N$37:'Database'!N39))),"") ->  | F30: =IFERROR(INDEX(Database!$O$37:$O$79, SMALL(IF(Database!$B$37:$B$79=Order_Entry!$B$17,ROW(Database!O$37:O$79)-ROW(Database!O$37)+1),ROWS(Database!O$37:'Database'!O39))),"") -> 
B31: =IFERROR(INDEX(Database!$D$37:$D$79, SMALL(IF(Database!$B$37:$B$79=Order_Entry!$B$17,ROW(Database!D$37:D$79)-ROW(Database!D$37)+1),ROWS(Database!D$37:'Database'!D40))),"") ->  | C31: =IFERROR(INDEX(Database!$G$37:$G$79, SMALL(IF(Database!$B$37:$B$79=Order_Entry!$B$17,ROW(Database!G$37:G$79)-ROW(Database!G$37)+1),ROWS(Database!G$37:'Database'!G40))),"") ->  | D31: =IFERROR(INDEX(Database!$H$37:$H$79, SMALL(IF(Database!$B$37:$B$79=Order_Entry!$B$17,ROW(Database!H$37:H$79)-ROW(Database!H$37)+1),ROWS(Database!H$37:'Database'!H40))),"") ->  | E31: =IFERROR(INDEX(Database!$N$37:$N$79, SMALL(IF(Database!$B$37:$B$79=Order_Entry!$B$17,ROW(Database!N$37:N$79)-ROW(Database!N$37)+1),ROWS(Database!N$37:'Database'!N40))),"") ->  | F31: =IFERROR(INDEX(Database!$O$37:$O$79, SMALL(IF(Database!$B$37:$B$79=Order_Entry!$B$17,ROW(Database!O$37:O$79)-ROW(Database!O$37)+1),ROWS(Database!O$37:'Database'!O40))),"") -> 
B32: =IFERROR(INDEX(Database!$D$37:$D$79, SMALL(IF(Database!$B$37:$B$79=Order_Entry!$B$17,ROW(Database!D$37:D$79)-ROW(Database!D$37)+1),ROWS(Database!D$37:'Database'!D41))),"") ->  | C32: =IFERROR(INDEX(Database!$G$37:$G$79, SMALL(IF(Database!$B$37:$B$79=Order_Entry!$B$17,ROW(Database!G$37:G$79)-ROW(Database!G$37)+1),ROWS(Database!G$37:'Database'!G41))),"") ->  | D32: =IFERROR(INDEX(Database!$H$37:$H$79, SMALL(IF(Database!$B$37:$B$79=Order_Entry!$B$17,ROW(Database!H$37:H$79)-ROW(Database!H$37)+1),ROWS(Database!H$37:'Database'!H41))),"") ->  | E32: =IFERROR(INDEX(Database!$N$37:$N$79, SMALL(IF(Database!$B$37:$B$79=Order_Entry!$B$17,ROW(Database!N$37:N$79)-ROW(Database!N$37)+1),ROWS(Database!N$37:'Database'!N41))),"") ->  | F32: =IFERROR(INDEX(Database!$O$37:$O$79, SMALL(IF(Database!$B$37:$B$79=Order_Entry!$B$17,ROW(Database!O$37:O$79)-ROW(Database!O$37)+1),ROWS(Database!O$37:'Database'!O41))),"") -> 
B33: =IFERROR(INDEX(Database!$D$37:$D$79, SMALL(IF(Database!$B$37:$B$79=Order_Entry!$B$17,ROW(Database!D$37:D$79)-ROW(Database!D$37)+1),ROWS(Database!D$37:'Database'!D42))),"") ->  | C33: =IFERROR(INDEX(Database!$G$37:$G$79, SMALL(IF(Database!$B$37:$B$79=Order_Entry!$B$17,ROW(Database!G$37:G$79)-ROW(Database!G$37)+1),ROWS(Database!G$37:'Database'!G42))),"") ->  | D33: =IFERROR(INDEX(Database!$H$37:$H$79, SMALL(IF(Database!$B$37:$B$79=Order_Entry!$B$17,ROW(Database!H$37:H$79)-ROW(Database!H$37)+1),ROWS(Database!H$37:'Database'!H42))),"") ->  | E33: =IFERROR(INDEX(Database!$N$37:$N$79, SMALL(IF(Database!$B$37:$B$79=Order_Entry!$B$17,ROW(Database!N$37:N$79)-ROW(Database!N$37)+1),ROWS(Database!N$37:'Database'!N42))),"") ->  | F33: =IFERROR(INDEX(Database!$O$37:$O$79, SMALL(IF(Database!$B$37:$B$79=Order_Entry!$B$17,ROW(Database!O$37:O$79)-ROW(Database!O$37)+1),ROWS(Database!O$37:'Database'!O42))),"") -> 
B34: =IFERROR(INDEX(Database!$D$37:$D$79, SMALL(IF(Database!$B$37:$B$79=Order_Entry!$B$17,ROW(Database!D$37:D$79)-ROW(Database!D$37)+1),ROWS(Database!D$37:'Database'!D43))),"") ->  | C34: =IFERROR(INDEX(Database!$G$37:$G$79, SMALL(IF(Database!$B$37:$B$79=Order_Entry!$B$17,ROW(Database!G$37:G$79)-ROW(Database!G$37)+1),ROWS(Database!G$37:'Database'!G43))),"") ->  | D34: =IFERROR(INDEX(Database!$H$37:$H$79, SMALL(IF(Database!$B$37:$B$79=Order_Entry!$B$17,ROW(Database!H$37:H$79)-ROW(Database!H$37)+1),ROWS(Database!H$37:'Database'!H43))),"") ->  | E34: =IFERROR(INDEX(Database!$N$37:$N$79, SMALL(IF(Database!$B$37:$B$79=Order_Entry!$B$17,ROW(Database!N$37:N$79)-ROW(Database!N$37)+1),ROWS(Database!N$37:'Database'!N43))),"") ->  | F34: =IFERROR(INDEX(Database!$O$37:$O$79, SMALL(IF(Database!$B$37:$B$79=Order_Entry!$B$17,ROW(Database!O$37:O$79)-ROW(Database!O$37)+1),ROWS(Database!O$37:'Database'!O43))),"") -> 

Sheet Order_Sheet
A1: Project Name: | C1: =IF(Order_Entry!$D$12="","",Order_Entry!$D$12) ->  | K1: Date: | N1: =Order_Entry!$D$13 -> 2021-10-01
A2: Order QTY | B2: Body Style | C2: Setting | D2: Inlet Connection | E2: Outlet Connection | F2: Monitoring Switch | G2: Location Tag | I2: Static Inlet [psig] | J2: Residual Inlet [psig] | K2: Flow Rate [gpm] | L2: Desired Outlet [psig] | N2: Static Outlet [psig] | O2: Residual Outlet [psig]
A23: Project Name: | C23: =IF(Order_Entry!$D$12="","",Order_Entry!$D$12) ->  | K23: Date: | N23: =Order_Entry!$D$13 -> 2021-10-01
A24: Order QTY | B24: Body Style | C24: Setting | D24: Inlet Connection | E24: Outlet Connection | F24: Monitoring Switch | G24: Location Tag | I24: Static Inlet [psig] | J24: Residual Inlet [psig] | K24: Flow Rate [gpm] | L24: Desired Outlet [psig] | N24: Static Outlet [psig] | O24: Residual Outlet [psig]
A45: Project Name: | C45: =IF(Order_Entry!$D$12="","",Order_Entry!$D$12) ->  | K45: Date: | M45: =Order_Entry!$D$13 -> 2021-10-01
A46: Order QTY | B46: Body Style | C46: Setting | D46: Inlet Connection | E46: Outlet Connection | F46: Monitoring Switch | G46: Location Tag | I46: Static Inlet [psig] | J46: Residual Inlet [psig] | K46: Flow Rate [gpm] | L46: Desired Outlet [psig] | N46: Static Outlet [psig] | O46: Residual Outlet [psig]
A67: Project Name: | C67: =IF(Order_Entry!$D$12="","",Order_Entry!$D$12) ->  | K67: Date: | M67: =Order_Entry!$D$13 -> 2021-10-01
A68: Order QTY | B68: Body Style | C68: Setting | D68: Inlet Connection | E68: Outlet Connection | F68: Monitoring Switch | G68: Location Tag | I68: Static Inlet [psig] | J68: Residual Inlet [psig] | K68: Flow Rate [gpm] | L68: Desired Outlet [psig] | N68: Static Outlet [psig] | O68: Residual Outlet [psig]

Sheet Database (hidden)
A1: Variables
B2: Static Inlet Pressure [psig]: | E2: =Order_Entry!$D$20 -> 0 | F2: Minimum Flow Rate [GPM]: | H2: =VLOOKUP(Main2,Database!$D$11:$I$12,6) -> 
B3: Residual Inlet Pressure [psig]: | E3: =Order_Entry!$D$21 -> 0 | F3: Maximum Flow Rate [GPM]: | H3: =VLOOKUP(Main,Database!$B$11:$H$13,7) -> 0
B4: Flow Rate [GPM]: | E4: =Order_Entry!$D$22 -> 0 | F4: Minimum Inlet Pressure [psig]: | H4: 50
B5: Desired Residual Outlet Pressure [psig]: | E5: =Order_Entry!$D$23 -> 0
A9: Drop-Down Options
B10: Configuration | C10: Reference | D10: Application | E10: Reference2 | F10: Sprinkler | G10: Standpipe | H10: Max Flow Rate | I10: Min Flow Rate
B11: 1.5" Angle | C11: ValveA | D11: Sprinkler System | E11: Sprinkler | F11: None | G11: None | H11: 250 | I11: 50
B12: 2.5" Angle | C12: ValveB | D12: Standpipe System | E12: Standpipe | F12: N.C. (Recom'd) | G12: N.C. (Recom'd) | H12: 500 | I12: 65
B13: 2.5" Straight | C13: ValveC | F13: N.O. | G13: N.O.
B15: ValveA_Inlet | C15: ValveA_Outlet | D15: ValveB_Inlet | E15: ValveB_Outlet | F15: ValveC_Inlet | G15: ValveC_Outlet
B16: Female NPT | C16: Female NPT | D16: Female NPT | E16: Female NPT | F16: Female NPT | G16: Female NPT
B17: Grooved Pipe | C17: Male Hose | D17: Grooved Pipe | E17: Regional Hose | F17: Grooved Pipe | G17: Grooved Pipe
C18: Grooved Pipe | E18: Grooved Pipe
A22: Error Messages
B23: Code | C23: Message
B24: SC | C24: Static Clear
B25: RC | C25: Res. Clear
B26: FC | C26: Flow Clear
B27: Err1 | C27: Static inlet too high
B28: Err2 | C28: Static inlet too low
B29: Err3 | C29: Residual inlet too high
B30: Err4 | C30: Residual inlet too low
B31: Err5 | C31: Flow rate too high
B32: Err6 | C32: Flow rate too low
A34: Calculation Table
B36: Configuration | C36: Spring Configuration | D36: Bonnet Setting | E36: Max Inlet Rating | F36: Max Flow Rating | G36: Calculated Static Outlet Pressure | H36: Calculated Residual Outlet Pressure | I36: Static Outlet Status | J36: Residual Outlet Status | K36: Flow Status | L36: Static Outlet Display | M36: Residual Outlet Display | N36: Difference to Desired Residual Outlet Pressure | O36: Status
B37: 1.5" Angle | C37: Single (Default) | D37: 1 | E37: 340 | F37: 350 | G37: ='IE2600A-150-DATA'!AK19 ->  | H37: ='IE2600A-150-DATA'!AL19 ->  | I37: =IF($E$2<$H$4,$B$28,IF($E$2>$E$37,$B$27,$B$24)) -> Err2 | J37: =IF($E$3<$H$4,$B$30,IF($E$3>$E$37,$B$29,$B$25)) -> Err4 | K37: =IF($E$4<$H$2,$B$32,IF($E$4>$F$37,$B$31,$B$26)) ->  | L37: =IF(AND($I$37="SC",$J$37="RC",$K$37="FC"),$G$37, "N/A") ->  | M37: =IF(AND($I$37="SC",$J$37="RC",$K$37="FC"),$H$37, "N/A") ->  | N37: =IF(AND($I$37="SC",$J$37="RC",$K$37="FC",$E$5>0),(ABS($E$5-$M$37)), "-") ->  | O37: =IF(AND($I$37="SC",$J$37="RC",$K$37="FC",$G$37<=176,$H$37<=175), "AVAILABLE", "NOT AS PER NFPA") -> 
B38: 1.5" Angle | C38: Single (Default) | D38: 2 | E38: 285 | F38: 350 | G38: ='IE2600A-150-DATA'!AK20 ->  | H38: ='IE2600A-150-DATA'!AL20 ->  | I38: =IF($E$2<$H$4,$B$28,IF($E$2>$E$38,$B$27,$B$24)) -> Err2 | J38: =IF($E$3<$H$4,$B$30,IF($E$3>$E$38,$B$29,$B$25)) -> Err4 | K38: =IF($E$4<$H$2,$B$32,IF($E$4>$F$38,$B$31,$B$26)) ->  | L38: =IF(AND($I$38="SC",$J$38="RC",$K$38="FC"),$G$38, "N/A") ->  | M38: =IF(AND($I$38="SC",$J$38="RC",$K$38="FC"),$H$38, "N/A") ->  | N38: =IF(AND($I$38="SC",$J$38="RC",$K$38="FC",$E$5>0),(ABS($E$5-$M$38)), "-") ->  | O38: =IF(AND($I$38="SC",$J$38="RC",$K$38="FC",$G$38<=176,$H$38<=175), "AVAILABLE", "NOT AS PER NFPA") -> 
B39: 1.5" Angle | C39: Single (Default) | D39: 3 | E39: 220 | F39: 350 | G39: ='IE2600A-150-DATA'!AK21 ->  | H39: ='IE2600A-150-DATA'!AL21 ->  | I39: =IF($E$2<$H$4,$B$28,IF($E$2>$E$39,$B$27,$B$24)) -> Err2 | J39: =IF($E$3<$H$4,$B$30,IF($E$3>$E$39,$B$29,$B$25)) -> Err4 | K39: =IF($E$4<$H$2,$B$32,IF($E$4>$F$39,$B$31,$B$26)) ->  | L39: =IF(AND($I$39="SC",$J$39="RC",$K$39="FC"),$G$39, "N/A") ->  | M39: =IF(AND($I$39="SC",$J$39="RC",$K$39="FC"),$H$39, "N/A") ->  | N39: =IF(AND($I$39="SC",$J$39="RC",$K$39="FC",$E$5>0),(ABS($E$5-$M$39)), "-") ->  | O39: =IF(AND($I$39="SC",$J$39="RC",$K$39="FC",$G$39<=176,$H$39<=175), "AVAILABLE", "NOT AS PER NFPA") -> 
B40: 1.5" Angle | C40: Single (Default) | D40: 4 | E40: 175 | F40: 350 | G40: ='IE2600A-150-DATA'!AK22 ->  | H40: ='IE2600A-150-DATA'!AL22 ->  | I40: =IF($E$2<$H$4,$B$28,IF($E$2>$E$40,$B$27,$B$24)) -> Err2 | J40: =IF($E$3<$H$4,$B$30,IF($E$3>$E$40,$B$29,$B$25)) -> Err4 | K40: =IF($E$4<$H$2,$B$32,IF($E$4>$F$40,$B$31,$B$26)) ->  | L40: =IF(AND($I$40="SC",$J$40="RC",$K$40="FC"),$G$40, "N/A") ->  | M40: =IF(AND($I$40="SC",$J$40="RC",$K$40="FC"),$H$40, "N/A") ->  | N40: =IF(AND($I$40="SC",$J$40="RC",$K$40="FC",$E$5>0),(ABS($E$5-$M$40)), "-") ->  | O40: =IF(AND($I$40="SC",$J$40="RC",$K$40="FC",$G$40<=176,$H$40<=175), "AVAILABLE", "NOT AS PER NFPA") -> 
B41: 1.5" Angle | C41: Single (Default) | D41: 5 | E41: 175 | F41: 350 | G41: ='IE2600A-150-DATA'!AK23 ->  | H41: ='IE2600A-150-DATA'!AL23 ->  | I41: =IF($E$2<$H$4,$B$28,IF($E$2>$E$41,$B$27,$B$24)) -> Err2 | J41: =IF($E$3<$H$4,$B$30,IF($E$3>$E$41,$B$29,$B$25)) -> Err4 | K41: =IF($E$4<$H$2,$B$32,IF($E$4>$F$41,$B$31,$B$26)) ->  | L41: =IF(AND($I$41="SC",$J$41="RC",$K$41="FC"),$G$41, "N/A") ->  | M41: =IF(AND($I$41="SC",$J$41="RC",$K$41="FC"),$H$41, "N/A") ->  | N41: =IF(AND($I$41="SC",$J$41="RC",$K$41="FC",$E$5>0),(ABS($E$5-$M$41)), "-") ->  | O41: =IF(AND($I$41="SC",$J$41="RC",$K$41="FC",$G$41<=176,$H$41<=175), "AVAILABLE", "NOT AS PER NFPA") -> 
B42: 1.5" Angle | C42: Single (Default) | D42: 6 | E42: 175 | F42: 350 | G42: ='IE2600A-150-DATA'!AK24 ->  | H42: ='IE2600A-150-DATA'!AL24 ->  | I42: =IF($E$2<$H$4,$B$28,IF($E$2>$E$42,$B$27,$B$24)) -> Err2 | J42: =IF($E$3<$H$4,$B$30,IF($E$3>$E$42,$B$29,$B$25)) -> Err4 | K42: =IF($E$4<$H$2,$B$32,IF($E$4>$F$42,$B$31,$B$26)) ->  | L42: =IF(AND($I$42="SC",$J$42="RC",$K$42="FC"),$G$42, "N/A") ->  | M42: =IF(AND($I$42="SC",$J$42="RC",$K$42="FC"),$H$42, "N/A") ->  | N42: =IF(AND($I$42="SC",$J$42="RC",$K$42="FC",$E$5>0),(ABS($E$5-$M$42)), "-") ->  | O42: =IF(AND($I$42="SC",$J$42="RC",$K$42="FC",$G$42<=176,$H$42<=175), "AVAILABLE", "NOT AS PER NFPA") -> 
B55: 2.5" Angle | C55: Single Small (IS) | D55: 1 | E55: 400 | F55: 500 | G55: ='IE2600A-250-Angle_DATA'!AK19 ->  | H55: ='IE2600A-250-Angle_DATA'!AL19 ->  | I55: =IF($E$2<$H$4,$B$28,IF($E$2>$E$55,$B$27,$B$24)) -> Err2 | J55: =IF($E$3<$H$4,$B$30,IF($E$3>$E$55,$B$29,$B$25)) -> Err4 | K55: =IF($E$4<$H$2,$B$32,IF($E$4>$F$55,$B$31,$B$26)) ->  | L55: =IF(AND($I$55="SC",$J$55="RC",$K$55="FC"),$G$55, "N/A") ->  | M55: =IF(AND($I$55="SC",$J$55="RC",$K$55="FC"),$H$55, "N/A") ->  | N55: =IF(AND($I$55="SC",$J$55="RC",$K$55="FC",$E$5>0),(ABS($E$5-$M$55)), "-") ->  | O55: =IF(AND($I$55="SC",$J$55="RC",$K$55="FC",$G$55<=176,$H$55<=175), "AVAILABLE", "NOT AS PER NFPA") -> 
B56: 2.5" Angle | C56: Single Small (IS) | D56: 2 | E56: 375 | F56: 500 | G56: ='IE2600A-250-Angle_DATA'!AK20 ->  | H56: ='IE2600A-250-Angle_DATA'!AL20 ->  | I56: =IF($E$2<$H$4,$B$28,IF($E$2>$E$56,$B$27,$B$24)) -> Err2 | J56: =IF($E$3<$H$4,$B$30,IF($E$3>$E$56,$B$29,$B$25)) -> Err4 | K56: =IF($E$4<$H$2,$B$32,IF($E$4>$F$56,$B$31,$B$26)) ->  | L56: =IF(AND($I$56="SC",$J$56="RC",$K$56="FC"),$G$56, "N/A") ->  | M56: =IF(AND($I$56="SC",$J$56="RC",$K$56="FC"),$H$56, "N/A") ->  | N56: =IF(AND($I$56="SC",$J$56="RC",$K$56="FC",$E$5>0),(ABS($E$5-$M$56)), "-") ->  | O56: =IF(AND($I$56="SC",$J$56="RC",$K$56="FC",$G$56<=176,$H$56<=175), "AVAILABLE", "NOT AS PER NFPA") -> 
B57: 2.5" Angle | C57: Single Small (IS) | D57: 3 | E57: 345 | F57: 500 | G57: ='IE2600A-250-Angle_DATA'!AK21 ->  | H57: ='IE2600A-250-Angle_DATA'!AL21 ->  | I57: =IF($E$2<$H$4,$B$28,IF($E$2>$E$57,$B$27,$B$24)) -> Err2 | J57: =IF($E$3<$H$4,$B$30,IF($E$3>$E$57,$B$29,$B$25)) -> Err4 | K57: =IF($E$4<$H$2,$B$32,IF($E$4>$F$57,$B$31,$B$26)) ->  | L57: =IF(AND($I$57="SC",$J$57="RC",$K$57="FC"),$G$57, "N/A") ->  | M57: =IF(AND($I$57="SC",$J$57="RC",$K$57="FC"),$H$57, "N/A") ->  | N57: =IF(AND($I$57="SC",$J$57="RC",$K$57="FC",$E$5>0),(ABS($E$5-$M$57)), "-") ->  | O57: =IF(AND($I$57="SC",$J$57="RC",$K$57="FC",$G$57<=176,$H$57<=175), "AVAILABLE", "NOT AS PER NFPA") -> 
B58: 2.5" Angle | C58: Single Small (IS) | D58: 4 | E58: 310 | F58: 500 | G58: ='IE2600A-250-Angle_DATA'!AK22 ->  | H58: ='IE2600A-250-Angle_DATA'!AL22 ->  | I58: =IF($E$2<$H$4,$B$28,IF($E$2>$E$58,$B$27,$B$24)) -> Err2 | J58: =IF($E$3<$H$4,$B$30,IF($E$3>$E$58,$B$29,$B$25)) -> Err4 | K58: =IF($E$4<$H$2,$B$32,IF($E$4>$F$58,$B$31,$B$26)) ->  | L58: =IF(AND($I$58="SC",$J$58="RC",$K$58="FC"),$G$58, "N/A") ->  | M58: =IF(AND($I$58="SC",$J$58="RC",$K$58="FC"),$H$58, "N/A") ->  | N58: =IF(AND($I$58="SC",$J$58="RC",$K$58="FC",$E$5>0),(ABS($E$5-$M$58)), "-") ->  | O58: =IF(AND($I$58="SC",$J$58="RC",$K$58="FC",$G$58<=176,$H$58<=175), "AVAILABLE", "NOT AS PER NFPA") -> 
B59: 2.5" Angle | C59: Single Small (IS) | D59: 5 | E59: 275 | F59: 500 | G59: ='IE2600A-250-Angle_DATA'!AK23 ->  | H59: ='IE2600A-250-Angle_DATA'!AL23 ->  | I59: =IF($E$2<$H$4,$B$28,IF($E$2>$E$59,$B$27,$B$24)) -> Err2 | J59: =IF($E$3<$H$4,$B$30,IF($E$3>$E$59,$B$29,$B$25)) -> Err4 | K59: =IF($E$4<$H$2,$B$32,IF($E$4>$F$59,$B$31,$B$26)) ->  | L59: =IF(AND($I$59="SC",$J$59="RC",$K$59="FC"),$G$59, "N/A") ->  | M59: =IF(AND($I$59="SC",$J$59="RC",$K$59="FC"),$H$59, "N/A") ->  | N59: =IF(AND($I$59="SC",$J$59="RC",$K$59="FC",$E$5>0),(ABS($E$5-$M$59)), "-") ->  | O59: =IF(AND($I$59="SC",$J$59="RC",$K$59="FC",$G$59<=176,$H$59<=175), "AVAILABLE", "NOT AS PER NFPA") -> 
B60: 2.5" Angle | C60: Single Small (IS) | D60: 6 | E60: 230 | F60: 500 | G60: ='IE2600A-250-Angle_DATA'!AK24 ->  | H60: ='IE2600A-250-Angle_DATA'!AL24 ->  | I60: =IF($E$2<$H$4,$B$28,IF($E$2>$E$60,$B$27,$B$24)) -> Err2 | J60: =IF($E$3<$H$4,$B$30,IF($E$3>$E$60,$B$29,$B$25)) -> Err4 | K60: =IF($E$4<$H$2,$B$32,IF($E$4>$F$60,$B$31,$B$26)) ->  | L60: =IF(AND($I$60="SC",$J$60="RC",$K$60="FC"),$G$60, "N/A") ->  | M60: =IF(AND($I$60="SC",$J$60="RC",$K$60="FC"),$H$60, "N/A") ->  | N60: =IF(AND($I$60="SC",$J$60="RC",$K$60="FC",$E$5>0),(ABS($E$5-$M$60)), "-") ->  | O60: =IF(AND($I$60="SC",$J$60="RC",$K$60="FC",$G$60<=176,$H$60<=175), "AVAILABLE", "NOT AS PER NFPA") -> 
B61: 2.5" Angle | C61: Single Small (IS) | D61: 7 | E61: 175 | F61: 500 | G61: ='IE2600A-250-Angle_DATA'!AK25 ->  | H61: ='IE2600A-250-Angle_DATA'!AL25 ->  | I61: =IF($E$2<$H$4,$B$28,IF($E$2>$E$61,$B$27,$B$24)) -> Err2 | J61: =IF($E$3<$H$4,$B$30,IF($E$3>$E$61,$B$29,$B$25)) -> Err4 | K61: =IF($E$4<$H$2,$B$32,IF($E$4>$F$61,$B$31,$B$26)) ->  | L61: =IF(AND($I$61="SC",$J$61="RC",$K$61="FC"),$G$61, "N/A") ->  | M61: =IF(AND($I$61="SC",$J$61="RC",$K$61="FC"),$H$61, "N/A") ->  | N61: =IF(AND($I$61="SC",$J$61="RC",$K$61="FC",$E$5>0),(ABS($E$5-$M$61)), "-") ->  | O61: =IF(AND($I$61="SC",$J$61="RC",$K$61="FC",$G$61<=176,$H$61<=175), "AVAILABLE", "NOT AS PER NFPA") -> 
B73: 2.5" Straight | C73: Single (Default) | D73: 1 | E73: 400 | F73: 500 | G73: ='IE2600A-250-Straight_DATA'!AK19 ->  | H73: ='IE2600A-250-Straight_DATA'!AL19 ->  | I73: =IF($E$2<$H$4,$B$28,IF($E$2>$E$73,$B$27,$B$24)) -> Err2 | J73: =IF($E$3<$H$4,$B$30,IF($E$3>$E$73,$B$29,$B$25)) -> Err4 | K73: =IF($E$4<$H$2,$B$32,IF($E$4>$F$73,$B$31,$B$26)) ->  | L73: =IF(AND($I$73="SC",$J$73="RC",$K$73="FC"),$G$73, "N/A") ->  | M73: =IF(AND($I$73="SC",$J$73="RC",$K$73="FC"),$H$73, "N/A") ->  | N73: =IF(AND($I$73="SC",$J$73="RC",$K$73="FC",$E$5>0),(ABS($E$5-$M$73)), "-") ->  | O73: =IF(AND($I$73="SC",$J$73="RC",$K$73="FC",$G$73<=176,$H$73<=175), "AVAILABLE", "NOT AS PER NFPA") -> 
B74: 2.5" Straight | C74: Single (Default) | D74: 2 | E74: 390 | F74: 500 | G74: ='IE2600A-250-Straight_DATA'!AK20 ->  | H74: ='IE2600A-250-Straight_DATA'!AL20 ->  | I74: =IF($E$2<$H$4,$B$28,IF($E$2>$E$74,$B$27,$B$24)) -> Err2 | J74: =IF($E$3<$H$4,$B$30,IF($E$3>$E$74,$B$29,$B$25)) -> Err4 | K74: =IF($E$4<$H$2,$B$32,IF($E$4>$F$74,$B$31,$B$26)) ->  | L74: =IF(AND($I$74="SC",$J$74="RC",$K$74="FC"),$G$74, "N/A") ->  | M74: =IF(AND($I$74="SC",$J$74="RC",$K$74="FC"),$H$74, "N/A") ->  | N74: =IF(AND($I$74="SC",$J$74="RC",$K$74="FC",$E$5>0),(ABS($E$5-$M$74)), "-") ->  | O74: =IF(AND($I$74="SC",$J$74="RC",$K$74="FC",$G$74<=176,$H$74<=175), "AVAILABLE", "NOT AS PER NFPA") -> 
B75: 2.5" Straight | C75: Single (Default) | D75: 3 | E75: 355 | F75: 500 | G75: ='IE2600A-250-Straight_DATA'!AK21 ->  | H75: ='IE2600A-250-Straight_DATA'!AL21 ->  | I75: =IF($E$2<$H$4,$B$28,IF($E$2>$E$75,$B$27,$B$24)) -> Err2 | J75: =IF($E$3<$H$4,$B$30,IF($E$3>$E$75,$B$29,$B$25)) -> Err4 | K75: =IF($E$4<$H$2,$B$32,IF($E$4>$F$75,$B$31,$B$26)) ->  | L75: =IF(AND($I$75="SC",$J$75="RC",$K$75="FC"),$G$75, "N/A") ->  | M75: =IF(AND($I$75="SC",$J$75="RC",$K$75="FC"),$H$75, "N/A") ->  | N75: =IF(AND($I$75="SC",$J$75="RC",$K$75="FC",$E$5>0),(ABS($E$5-$M$75)), "-") ->  | O75: =IF(AND($I$75="SC",$J$75="RC",$K$75="FC",$G$75<=176,$H$75<=175), "AVAILABLE", "NOT AS PER NFPA") -> 
B76: 2.5" Straight | C76: Single (Default) | D76: 4 | E76: 315 | F76: 500 | G76: ='IE2600A-250-Straight_DATA'!AK22 ->  | H76: ='IE2600A-250-Straight_DATA'!AL22 ->  | I76: =IF($E$2<$H$4,$B$28,IF($E$2>$E$76,$B$27,$B$24)) -> Err2 | J76: =IF($E$3<$H$4,$B$30,IF($E$3>$E$76,$B$29,$B$25)) -> Err4 | K76: =IF($E$4<$H$2,$B$32,IF($E$4>$F$76,$B$31,$B$26)) ->  | L76: =IF(AND($I$76="SC",$J$76="RC",$K$76="FC"),$G$76, "N/A") ->  | M76: =IF(AND($I$76="SC",$J$76="RC",$K$76="FC"),$H$76, "N/A") ->  | N76: =IF(AND($I$76="SC",$J$76="RC",$K$76="FC",$E$5>0),(ABS($E$5-$M$76)), "-") ->  | O76: =IF(AND($I$76="SC",$J$76="RC",$K$76="FC",$G$76<=176,$H$76<=175), "AVAILABLE", "NOT AS PER NFPA") -> 
B77: 2.5" Straight | C77: Single (Default) | D77: 5 | E77: 280 | F77: 500 | G77: ='IE2600A-250-Straight_DATA'!AK23 ->  | H77: ='IE2600A-250-Straight_DATA'!AL23 ->  | I77: =IF($E$2<$H$4,$B$28,IF($E$2>$E$77,$B$27,$B$24)) -> Err2 | J77: =IF($E$3<$H$4,$B$30,IF($E$3>$E$77,$B$29,$B$25)) -> Err4 | K77: =IF($E$4<$H$2,$B$32,IF($E$4>$F$77,$B$31,$B$26)) ->  | L77: =IF(AND($I$77="SC",$J$77="RC",$K$77="FC"),$G$77, "N/A") ->  | M77: =IF(AND($I$77="SC",$J$77="RC",$K$77="FC"),$H$77, "N/A") ->  | N77: =IF(AND($I$77="SC",$J$77="RC",$K$77="FC",$E$5>0),(ABS($E$5-$M$77)), "-") ->  | O77: =IF(AND($I$77="SC",$J$77="RC",$K$77="FC",$G$77<=176,$H$77<=175), "AVAILABLE", "NOT AS PER NFPA") -> 
B78: 2.5" Straight | C78: Single (Default) | D78: 6 | E78: 240 | F78: 500 | G78: ='IE2600A-250-Straight_DATA'!AK24 ->  | H78: ='IE2600A-250-Straight_DATA'!AL24 ->  | I78: =IF($E$2<$H$4,$B$28,IF($E$2>$E$78,$B$27,$B$24)) -> Err2 | J78: =IF($E$3<$H$4,$B$30,IF($E$3>$E$78,$B$29,$B$25)) -> Err4 | K78: =IF($E$4<$H$2,$B$32,IF($E$4>$F$78,$B$31,$B$26)) ->  | L78: =IF(AND($I$78="SC",$J$78="RC",$K$78="FC"),$G$78, "N/A") ->  | M78: =IF(AND($I$78="SC",$J$78="RC",$K$78="FC"),$H$78, "N/A") ->  | N78: =IF(AND($I$78="SC",$J$78="RC",$K$78="FC",$E$5>0),(ABS($E$5-$M$78)), "-") ->  | O78: =IF(AND($I$78="SC",$J$78="RC",$K$78="FC",$G$78<=176,$H$78<=175), "AVAILABLE", "NOT AS PER NFPA") -> 
B79: 2.5" Straight | C79: Single (Default) | D79: 7 | E79: 175 | F79: 500 | G79: ='IE2600A-250-Straight_DATA'!AK25 ->  | H79: ='IE2600A-250-Straight_DATA'!AL25 ->  | I79: =IF($E$2<$H$4,$B$28,IF($E$2>$E$79,$B$27,$B$24)) -> Err2 | J79: =IF($E$3<$H$4,$B$30,IF($E$3>$E$79,$B$29,$B$25)) -> Err4 | K79: =IF($E$4<$H$2,$B$32,IF($E$4>$F$79,$B$31,$B$26)) ->  | L79: =IF(AND($I$79="SC",$J$79="RC",$K$79="FC"),$G$79, "N/A") ->  | M79: =IF(AND($I$79="SC",$J$79="RC",$K$79="FC"),$H$79, "N/A") ->  | N79: =IF(AND($I$79="SC",$J$79="RC",$K$79="FC",$E$5>0),(ABS($E$5-$M$79)), "-") ->  | O79: =IF(AND($I$79="SC",$J$79="RC",$K$79="FC",$G$79<=176,$H$79<=175), "AVAILABLE", "NOT AS PER NFPA") -> 

Sheet IE2600A-250DS-A (hidden)
A1: Data from Project# 4788271148, Date: 2018-05-09
B3: STATIC FLOW | K3: Bonnet Setting | L3: Inlet Pressure psig | M3: OUTLET PRESSURES @ FLOW RATE, GPM | AA3: Setting # 1: Inlet vs. Outlet Pressure Over Flow Range | AI3: SETTING 1
B4: Inlet (psig) | C4: Outlet-1 (psig) | D4: Outlet-2 (psig) | E4: Outlet-3 (psig) | F4: Outlet-4 (psig) | G4: Outlet-5 (psig) | H4: Outlet-6 (psig) | M4: 0 | N4: 50 | O4: 100 | P4: 150 | Q4: 175 | R4: 200 | S4: 250 | T4: 300 | U4: 350 | V4: 400 | W4: 450 | X4: 500 | AA4: Inlet (psig) | AB4: Static | AC4: 50-200 [GPM] | AD4: 200-300 [GPM] | AE4: 300-400 [GPM] | AF4: 400-500 [GPM] | AI4: Inlet (psig) | AJ4: =CONCATENATE("Outlet Residual @ " &AX$8& " GPM") -> Outlet Residual @ 0 GPM | AK4: =CONCATENATE("Outlet Residual @ " &AX$9& " GPM") -> Outlet Residual @ 0 GPM | AN4: Const. PRI Interpolated @ Var. Flow | AT4: VARIABLES
B5: 0 | C5: =M5 -> 0 | D5: =M19 -> 0 | E5: =M33 -> 0 | F5: =M47 -> 0 | G5: =M61 -> 0 | H5: =M75 -> 0 | K5: 1 | L5: 0 | AA5: =L5 -> 0 | AT5: Static Inlet Pressure | AW5: PSI: | AX5: =Database!$E$2 -> 0
B6: 50 | C6: 50 | D6: 48 | E6: 47 | F6: =M48 -> 49 | G6: =M62 -> 50 | H6: =M76 -> 50 | L6: 50 | M6: 50 | N6: 48 | O6: 39 | P6: 35 | Q6: 29 | R6: 28 | S6: 15 | AA6: =L6 -> 50 | AB6: =M6 -> 50 | AC6: =AVERAGE(N6:R6) -> 35.8 | AD6: =AVERAGE(R6:T6) -> 21.5 | AE6: =AVERAGE(T6:V6) ->  | AF6: =AVERAGE(V6:X6) ->  | AI6: =L6 -> 50 | AJ6: =HLOOKUP($AX$8,$M$4:$X$13,3) -> 50 | AK6: =HLOOKUP($AX$9,$M$4:$X$13,3) -> 50 | AL6: PRI1: | AM6: =LARGE(L6:L13,COUNTIF(L6:L13,">" &AX6)+1) ->  | AN6: =VLOOKUP(AM6,AI6:AK13,2) ->  | AO6: =VLOOKUP(AM6,AI6:AK13,3) ->  | AP6: PRO1: | AQ6: =IF(AX8=AX9, AN6, FORECAST(AX7,$AN$6:$AO$6,$AX$8:$AX$9)) ->  | AT6: Residual Inlet Pressure | AW6: PRI: | AX6: =Database!$E$3 -> 0
B7: 100 | C7: 91 | D7: 100 | E7: 100 | F7: =M49 -> 100 | G7: =M63 -> 100 | H7: =M77 -> 100 | L7: 100 | M7: 91 | N7: 89 | O7: 72 | P7: 64 | Q7: 60 | R7: 59 | S7: 51 | T7: 44 | U7: 31 | AA7: 100 | AB7: =M7 -> 91 | AC7: =AVERAGE(N7:R7) -> 68.8 | AD7: =AVERAGE(R7:T7) -> 51.33333333 | AE7: =AVERAGE(T7:V7) -> 37.5 | AF7: =AVERAGE(V7:X7) ->  | AI7: =L7 -> 100 | AJ7: =HLOOKUP($AX$8,$M$4:$X$13,4) -> 91 | AK7: =HLOOKUP($AX$9,$M$4:$X$13,4) -> 91 | AL7: PRI2: | AM7: =SMALL(L6:L13,COUNTIF(L6:L13,"<" &AX6)+1) -> 50 | AN7: =VLOOKUP(AM7,AI6:AK13,2) -> 50 | AO7: =VLOOKUP(AM7,AI6:AK13,3) -> 50 | AP7: PRO2: | AQ7: =IF(AX8=AX9, AN7, FORECAST(AX7,$AN$7:$AO$7,$AX$8:$AX$9)) -> 50 | AT7: Flow Rate | AW7: Q0: | AX7: =IF(Database!$E$4=500,499.99,Database!$E$4) -> 0
B8: 150 | C8: 116 | D8: 140 | E8: 150 | F8: 150 | G8: 150 | H8: 150 | L8: 150 | M8: 116 | N8: 103 | O8: 96 | P8: 89 | Q8: 88 | R8: 85 | S8: 77 | T8: 70 | U8: 62 | V8: 56 | W8: 39 | AA8: 150 | AB8: 116 | AC8: 92.2 | AD8: 77.33333333 | AE8: 62.66666667 | AF8: 47.5 | AI8: 150 | AJ8: =HLOOKUP($AX$8,$M$4:$X$13,5) -> 116 | AK8: =HLOOKUP($AX$9,$M$4:$X$13,5) -> 116 | AL8: PSI1: | AM8: =LARGE(L6:L13,COUNTIF(L6:L13,">" &AX5)+1) ->  | AP8: PSO1: | AQ8: =VLOOKUP(AM8,L6:M13,2) ->  | AT8: Nearest known Flow Rate, 1 | AW8: Q1: | AX8: =LARGE(M4:X4,COUNTIF(M4:X4,">" &AX7)+1) -> 0
B9: 200 | C9: 136 | D9: 163 | E9: 193 | F9: 200 | G9: 200 | H9: 200 | L9: 200 | M9: 136 | N9: 123 | O9: 116 | P9: 114 | Q9: 111 | R9: 109 | S9: 100 | T9: 94 | U9: 89 | V9: 81 | W9: 73 | X9: 63 | AA9: 200 | AB9: 136 | AC9: 114.6 | AD9: 101 | AE9: 88 | AF9: 72.33333333 | AI9: 200 | AJ9: =HLOOKUP($AX$8,$M$4:$X$13,6) -> 136 | AK9: =HLOOKUP($AX$9,$M$4:$X$13,6) -> 136 | AL9: PSI2: | AM9: =SMALL(L6:L13,COUNTIF(L6:L13,"<" &AX5)+1) -> 50 | AP9: PSO2: | AQ9: =VLOOKUP(AM9,L6:M13,2) -> 50 | AT9: Nearest known Flow Rate, 2 | AW9: Q2: | AX9: =SMALL(M4:X4,COUNTIF(M4:X4,"<" &AX7)+1) -> 0
B10: 250 | C10: 156 | D10: 182 | E10: 214 | F10: 248 | G10: 250 | H10: 250 | L10: 250 | M10: 156 | N10: 143 | O10: 136 | P10: 132 | Q10: 130 | R10: 127 | S10: 122 | T10: 116 | U10: 111 | V10: 103 | W10: 97 | X10: 90 | AA10: 250 | AB10: 156 | AC10: 133.6 | AD10: 121.6666667 | AE10: 110 | AF10: 96.66666667 | AI10: 250 | AJ10: =HLOOKUP($AX$8,$M$4:$X$13,7) -> 156 | AK10: =HLOOKUP($AX$9,$M$4:$X$13,7) -> 156
B11: 300 | C11: 176 | D11: 203 | E11: 235 | F11: 265 | G11: 297 | H11: 300 | L11: 300 | M11: 176 | N11: 167 | O11: 157 | P11: 150 | Q11: 148 | R11: 146 | S11: 142 | T11: 136 | U11: 130 | V11: 125 | W11: 118 | X11: 111 | AA11: 300 | AB11: 176 | AC11: 153.6 | AD11: 141.3333333 | AE11: 130.3333333 | AF11: 118 | AI11: 300 | AJ11: =HLOOKUP($AX$8,$M$4:$X$13,8) -> 176 | AK11: =HLOOKUP($AX$9,$M$4:$X$13,8) -> 176
B12: 350 | C12: 194 | D12: 223 | E12: 254 | F12: 282 | G12: 320 | H12: 348 | L12: 350 | M12: 194 | N12: 185 | O12: 172 | P12: 170 | Q12: 168 | R12: 164 | S12: 161 | T12: 155 | U12: 150 | V12: 144 | W12: 138 | X12: 131 | AA12: 350 | AB12: 194 | AC12: 171.8 | AD12: 160 | AE12: 149.6666667 | AF12: 137.6666667 | AI12: 350 | AJ12: =HLOOKUP($AX$8,$M$4:$X$13,9) -> 194 | AK12: =HLOOKUP($AX$9,$M$4:$X$13,9) -> 194
B13: 400 | C13: 216 | D13: 243 | E13: 273 | F13: 305 | G13: 338 | H13: 368 | L13: 400 | M13: 216 | N13: 208 | O13: 197 | P13: 190 | Q13: 186 | R13: 186 | S13: 178 | T13: 176 | U13: 170 | V13: 164 | W13: 157 | X13: 152 | AA13: 400 | AB13: 216 | AC13: 193.4 | AD13: 180 | AE13: 170 | AF13: 157.6666667 | AI13: 400 | AJ13: =HLOOKUP($AX$8,$M$4:$X$13,10) -> 216 | AK13: =HLOOKUP($AX$9,$M$4:$X$13,10) -> 216
B17: 50 GPM FLOW RATE | K17: Bonnet Setting | L17: Inlet Pressure psig | M17: OUTLET PRESSURES @ FLOW RATE, GPM | AA17: Setting # 2: Inlet vs. Outlet Pressure Over Flow Range | AI17: SETTING 2
B18: Inlet (psig) | C18: Outlet-1 (psig) | D18: Outlet-2 (psig) | E18: Outlet-3 (psig) | F18: Outlet-4 (psig) | G18: Outlet-5 (psig) | H18: Outlet-6 (psig) | M18: 0 | N18: 50 | O18: 100 | P18: 150 | Q18: 175 | R18: 200 | S18: 250 | T18: 300 | U18: 350 | V18: 400 | W18: 450 | X18: 500 | AA18: Inlet (psig) | AB18: Static | AC18: 50-200 [GPM] | AD18: 200-300 [GPM] | AE18: 300-400 [GPM] | AF18: 400-500 [GPM] | AI18: Inlet (psig) | AJ18: =CONCATENATE("Outlet Residual @ " &AX$8& " GPM") -> Outlet Residual @ 0 GPM | AK18: =CONCATENATE("Outlet Residual @ " &AX$9& " GPM") -> Outlet Residual @ 0 GPM | AN18: Const. PRI Interpolated @ Var. Flow | AT18: 2.5" Angle Double Spring | AV18: Calculated Static Outlet Pressure | AW18: Calculated Residual Outlet Pressure | AX18: Max Flow Rate
B19: 0 | C19: =N5 -> 0 | D19: =N19 -> 0 | E19: =N33 -> 0 | F19: =N47 -> 0 | G19: =N61 -> 0 | H19: =N75 -> 0 | K19: 2 | L19: 0 | AA19: =L19 -> 0 | AT19: Setting 1 | AV19: =IF($AQ$8=$AQ$9,$AQ$8,FORECAST($AX$5,$AQ$8:$AQ$9,$AM$8:$AM$9)) ->  | AW19: =IF($AQ$6=$AQ$7,$AQ$6,FORECAST($AX$6,$AQ$6:$AQ$7,$AM$6:$AM$7)) ->  | AX19: 500
B20: 50 | C20: 48 | D20: 50 | E20: =N34 -> 47 | F20: =N48 -> 49 | G20: =N62 -> 50 | H20: =N76 -> 50 | L20: 50 | M20: 48 | N20: 50 | O20: 43 | P20: 37 | Q20: 32 | R20: 28 | S20: 14 | AA20: =L20 -> 50 | AB20: =M20 -> 48 | AC20: =AVERAGE(N20:R20) -> 38 | AD20: =AVERAGE(R20:T20) -> 21 | AE20: =AVERAGE(T20:V20) ->  | AF20: =AVERAGE(V20:X20) ->  | AI20: =L20 -> 50 | AJ20: =HLOOKUP($AX$8,$M$18:$X$27,3) -> 48 | AK20: =HLOOKUP($AX$9,$M$18:$X$27,3) -> 48 | AL20: PRI1: | AM20: =LARGE(L20:L27,COUNTIF(L20:L27,">" &AX6)+1) ->  | AN20: =VLOOKUP(AM20,AI20:AK27,2) ->  | AO20: =VLOOKUP(AM20,AI20:AK27,3) ->  | AP20: PRO1: | AQ20: =IF(AX8=AX9, AN20, FORECAST(AX7,$AN$20:$AO$20,$AX$8:$AX$9)) ->  | AT20: Setting 2 | AV20: =IF($AQ$22=$AQ$23,$AQ$22,FORECAST($AX$5,$AQ$22:$AQ$23,$AM$22:$AM$23)) ->  | AW20: =IF($AQ$20=$AQ$21,$AQ$20,FORECAST($AX$6,$AQ$20:$AQ$21,$AM$20:$AM$21)) ->  | AX20: 500
B21: 100 | C21: 89 | D21: 96 | E21: =N35 -> 100 | F21: =N49 -> 98 | G21: =N63 -> 100 | H21: =N77 -> 97 | L21: 100 | M21: 100 | N21: 96 | O21: 86 | P21: 81 | Q21: 76 | R21: 72 | S21: 62 | T21: 49 | U21: 31 | AA21: 100 | AB21: =M21 -> 100 | AC21: =AVERAGE(N21:R21) -> 82.2 | AD21: =AVERAGE(R21:T21) -> 61 | AE21: =AVERAGE(T21:V21) -> 40 | AF21: =AVERAGE(V21:X21) ->  | AI21: =L21 -> 100 | AJ21: =HLOOKUP($AX$8,$M$18:$X$27,4) -> 100 | AK21: =HLOOKUP($AX$9,$M$18:$X$27,4) -> 100 | AL21: PRI2: | AM21: =SMALL(L20:L27,COUNTIF(L20:L27,"<" &AX6)+1) -> 50 | AN21: =VLOOKUP(AM21,AI20:AK27,2) -> 48 | AO21: =VLOOKUP(AM21,AI20:AK27,3) -> 48 | AP21: PRO2: | AQ21: =IF(AX8=AX9, AN21, FORECAST(AX7,$AN$21:$AO$21,$AX$8:$AX$9)) -> 48 | AT21: Setting 3 | AV21: =IF($AQ$36=$AQ$37,$AQ$36,FORECAST($AX$5,$AQ$36:$AQ$37,$AM$36:$AM$37)) ->  | AW21: =IF($AQ$34=$AQ$35,$AQ$34,FORECAST($AX$6,$AQ$34:$AQ$35,$AM$34:$AM$35)) ->  | AX21: 500
B22: 150 | C22: 103 | D22: 131 | E22: =N36 -> 147 | F22: 148 | G22: 149 | H22: 149 | L22: 150 | M22: 140 | N22: 131 | O22: 118 | P22: 114 | Q22: 110 | R22: 104 | S22: 98 | T22: 90 | U22: 82 | V22: 61 | W22: 38 | AA22: 150 | AB22: 140 | AC22: 115.4 | AD22: 97.33333333 | AE22: 77.66666667 | AF22: 49.5 | AI22: 150 | AJ22: =HLOOKUP($AX$8,$M$18:$X$27,5) -> 140 | AK22: =HLOOKUP($AX$9,$M$18:$X$27,5) -> 140 | AL22: PSI1: | AM22: =LARGE(L20:L27,COUNTIF(L20:L27,">" &AX5)+1) ->  | AP22: PSO1: | AQ22: =VLOOKUP(AM22,L20:M27,2) ->  | AT22: Setting 4 | AV22: =IF($AQ$50=$AQ$51,$AQ$50,FORECAST($AX$5,$AQ$50:$AQ$51,$AM$50:$AM$51)) ->  | AW22: =IF($AQ$48=$AQ$49,$AQ$48,FORECAST($AX$6,$AQ$48:$AQ$49,$AM$48:$AM$49)) ->  | AX22: 500
B23: 200 | C23: 123 | D23: 153 | E23: 180 | F23: 197 | G23: 199 | H23: 199 | L23: 200 | M23: 163 | N23: 153 | O23: 147 | P23: 135 | Q23: 132 | R23: 129 | S23: 124 | T23: 117 | U23: 110 | V23: 102 | W23: 88 | X23: 65 | AA23: 200 | AB23: 163 | AC23: 139.2 | AD23: 123.3333333 | AE23: 109.6666667 | AF23: 85 | AI23: 200 | AJ23: =HLOOKUP($AX$8,$M$18:$X$27,6) -> 163 | AK23: =HLOOKUP($AX$9,$M$18:$X$27,6) -> 163 | AL23: PSI2: | AM23: =SMALL(L20:L27,COUNTIF(L20:L27,"<" &AX5)+1) -> 50 | AP23: PSO2: | AQ23: =VLOOKUP(AM23,L20:M27,2) -> 48 | AT23: Setting 5 | AV23: =IF($AQ$64=$AQ$65,$AQ$64,FORECAST($AX$5,$AQ$64:$AQ$65,$AM$64:$AM$65)) ->  | AW23: =IF($AQ$62=$AQ$63,$AQ$62,FORECAST($AX$6,$AQ$62:$AQ$63,$AM$62:$AM$63)) ->  | AX23: 500
B24: 250 | C24: 143 | D24: 171 | E24: 205 | F24: 235 | G24: 248 | H24: 248 | L24: 250 | M24: 182 | N24: 171 | O24: 164 | P24: 157 | Q24: 155 | R24: 152 | S24: 146 | T24: 140 | U24: 135 | V24: 127 | W24: 120 | X24: 110 | AA24: 250 | AB24: 182 | AC24: 159.8 | AD24: 146 | AE24: 134 | AF24: 119 | AI24: 250 | AJ24: =HLOOKUP($AX$8,$M$18:$X$27,7) -> 182 | AK24: =HLOOKUP($AX$9,$M$18:$X$27,7) -> 182 | AT24: Setting 6 | AV24: =IF($AQ$78=$AQ$79,$AQ$78,FORECAST($AX$5,$AQ$78:$AQ$79,$AM$78:$AM$79)) ->  | AW24: =IF($AQ$76=$AQ$77,$AQ$76,FORECAST($AX$6,$AQ$76:$AQ$77,$AM$76:$AM$77)) ->  | AX24: 500
B25: 300 | C25: 167 | D25: 192 | E25: 224 | F25: 254 | G25: 281 | H25: 297 | L25: 300 | M25: 203 | N25: 192 | O25: 186 | P25: 178 | Q25: 175 | R25: 173 | S25: 168 | T25: 161 | U25: 155 | V25: 149 | W25: 142 | X25: 134 | AA25: 300 | AB25: 203 | AC25: 180.8 | AD25: 167.3333333 | AE25: 155 | AF25: 141.6666667 | AI25: 300 | AJ25: =HLOOKUP($AX$8,$M$18:$X$27,8) -> 203 | AK25: =HLOOKUP($AX$9,$M$18:$X$27,8) -> 203
B26: 350 | C26: 185 | D26: 209 | E26: 240 | F26: 265 | G26: 309 | H26: 337 | L26: 350 | M26: 223 | N26: 209 | O26: 202 | P26: 198 | Q26: 194 | R26: 194 | S26: 188 | T26: 183 | U26: 176 | V26: 170 | W26: 163 | X26: 157 | AA26: 350 | AB26: 223 | AC26: 199.4 | AD26: 188.3333333 | AE26: 176.3333333 | AF26: 163.3333333 | AI26: 350 | AJ26: =HLOOKUP($AX$8,$M$18:$X$27,9) -> 223 | AK26: =HLOOKUP($AX$9,$M$18:$X$27,9) -> 223
B27: 400 | C27: 208 | D27: 229 | E27: 262 | F27: 287 | G27: 329 | H27: 362 | L27: 400 | M27: 243 | N27: 229 | O27: 223 | P27: 217 | Q27: 215 | R27: 214 | S27: 205 | T27: 203 | U27: 196 | V27: 193 | W27: 183 | X27: 175 | AA27: 400 | AB27: 243 | AC27: 219.6 | AD27: 207.3333333 | AE27: 197.3333333 | AF27: 183.6666667 | AI27: 400 | AJ27: =HLOOKUP($AX$8,$M$18:$X$27,10) -> 243 | AK27: =HLOOKUP($AX$9,$M$18:$X$27,10) -> 243
B31: 100 GPM FLOW RATE | K31: Bonnet Setting | L31: Inlet Pressure psig | M31: OUTLET PRESSURES @ FLOW RATE, GPM | AA31: Setting # 3: Inlet vs. Outlet Pressure Over Flow Range | AI31: SETTING 3
B32: Inlet (psig) | C32: Outlet-1 (psig) | D32: Outlet-2 (psig) | E32: Outlet-3 (psig) | F32: Outlet-4 (psig) | G32: Outlet-5 (psig) | H32: Outlet-6 (psig) | M32: 0 | N32: 50 | O32: 100 | P32: 150 | Q32: 175 | R32: 200 | S32: 250 | T32: 300 | U32: 350 | V32: 400 | W32: 450 | X32: 500 | AA32: Inlet (psig) | AB32: Static | AC32: 50-200 [GPM] | AD32: 200-300 [GPM] | AE32: 300-400 [GPM] | AF32: 400-500 [GPM] | AI32: Inlet (psig) | AJ32: =CONCATENATE("Outlet Residual @ " &AX$8& " GPM") -> Outlet Residual @ 0 GPM | AK32: =CONCATENATE("Outlet Residual @ " &AX$9& " GPM") -> Outlet Residual @ 0 GPM | AN32: Const. PRI Interpolated @ Var. Flow
B33: 0 | C33: =O5 -> 0 | D33: =O19 -> 0 | E33: =O33 -> 0 | F33: =O47 -> 0 | G33: =O61 -> 0 | H33: =O75 -> 0 | K33: 3 | L33: 0 | AA33: =L33 -> 0
B34: 50 | C34: 39 | D34: =O20 -> 43 | E34: =O34 -> 46 | F34: =O48 -> 43 | G34: =O62 -> 44 | H34: =O76 -> 42 | L34: 50 | M34: 47 | N34: 47 | O34: 46 | P34: 35 | Q34: 31 | R34: 26 | S34: 15 | AA34: =L34 -> 50 | AB34: =M34 -> 47 | AC34: =AVERAGE(N34:R34) -> 37 | AD34: =AVERAGE(R34:T34) -> 20.5 | AE34: =AVERAGE(T34:V34) ->  | AF34: =AVERAGE(V34:X34) ->  | AI34: =L34 -> 50 | AJ34: =HLOOKUP($AX$8,$M$32:$X$41,3) -> 47 | AK34: =HLOOKUP($AX$9,$M$32:$X$41,3) -> 47 | AL34: PRI1: | AM34: =LARGE(L34:L41,COUNTIF(L34:L41,">" &AX6)+1) ->  | AN34: =VLOOKUP(AM34,AI34:AK41,2) ->  | AO34: =VLOOKUP(AM34,AI34:AK41,3) ->  | AP34: PRO1: | AQ34: =IF(AX8=AX9, AN34, FORECAST(AX7,$AN$34:$AO$34,$AX$8:$AX$9)) -> 
B35: 100 | C35: 72 | D35: =O21 -> 86 | E35: =O35 -> 95 | F35: =O49 -> 96 | G35: =O63 -> 92 | H35: =O77 -> 95 | L35: 100 | M35: 100 | N35: 100 | O35: 95 | P35: 89 | Q35: 82 | R35: 78 | S35: 64 | T35: 48 | U35: 31 | AA35: 100 | AB35: =M35 -> 100 | AC35: =AVERAGE(N35:R35) -> 88.8 | AD35: =AVERAGE(R35:T35) -> 63.33333333 | AE35: =AVERAGE(T35:V35) -> 39.5 | AF35: =AVERAGE(V35:X35) ->  | AI35: =L35 -> 100 | AJ35: =HLOOKUP($AX$8,$M$32:$X$41,4) -> 100 | AK35: =HLOOKUP($AX$9,$M$32:$X$41,4) -> 100 | AL35: PRI2: | AM35: =SMALL(L34:L41,COUNTIF(L34:L41,"<" &AX6)+1) -> 50 | AN35: =VLOOKUP(AM35,AI34:AK41,2) -> 47 | AO35: =VLOOKUP(AM35,AI34:AK41,3) -> 47 | AP35: PRO2: | AQ35: =IF(AX8=AX9, AN35, FORECAST(AX7,$AN$35:$AO$35,$AX$8:$AX$9)) -> 47
B36: 150 | C36: 96 | D36: =O22 -> 118 | E36: =O36 -> 138 | F36: 145 | G36: 145 | H36: 144 | L36: 150 | M36: 150 | N36: 147 | O36: 138 | P36: 131 | Q36: 130 | R36: 126 | S36: 116 | T36: 99 | U36: 81 | V36: 61 | W36: 38 | AA36: 150 | AB36: 150 | AC36: 134.4 | AD36: 113.6666667 | AE36: 80.33333333 | AF36: 49.5 | AI36: 150 | AJ36: =HLOOKUP($AX$8,$M$32:$X$41,5) -> 150 | AK36: =HLOOKUP($AX$9,$M$32:$X$41,5) -> 150 | AL36: PSI1: | AM36: =LARGE(L34:L41,COUNTIF(L34:L41,">" &AX5)+1) ->  | AP36: PSO1: | AQ36: =VLOOKUP(AM36,L34:M41,2) -> 
B37: 200 | C37: 116 | D37: 147 | E37: 170 | F37: 187 | G37: 195 | H37: 194 | L37: 200 | M37: 193 | N37: 180 | O37: 170 | P37: 161 | Q37: 159 | R37: 158 | S37: 147 | T37: 142 | U37: 131 | V37: 109 | W37: 88 | X37: 61 | AA37: 200 | AB37: 193 | AC37: 165.6 | AD37: 149 | AE37: 127.3333333 | AF37: 86 | AI37: 200 | AJ37: =HLOOKUP($AX$8,$M$32:$X$41,6) -> 193 | AK37: =HLOOKUP($AX$9,$M$32:$X$41,6) -> 193 | AL37: PSI2: | AM37: =SMALL(L34:L41,COUNTIF(L34:L41,"<" &AX5)+1) -> 50 | AP37: PSO2: | AQ37: =VLOOKUP(AM37,L34:M41,2) -> 47
B38: 250 | C38: 136 | D38: 164 | E38: 193 | F38: 217 | G38: 240 | H38: 244 | L38: 250 | M38: 214 | N38: 205 | O38: 193 | P38: 187 | Q38: 183 | R38: 180 | S38: 174 | T38: 169 | U38: 160 | V38: 153 | W38: 137 | X38: 112 | AA38: 250 | AB38: 214 | AC38: 189.6 | AD38: 174.3333333 | AE38: 160.6666667 | AF38: 134 | AI38: 250 | AJ38: =HLOOKUP($AX$8,$M$32:$X$41,7) -> 214 | AK38: =HLOOKUP($AX$9,$M$32:$X$41,7) -> 214
B39: 300 | C39: 157 | D39: 186 | E39: 213 | F39: 247 | G39: 274 | H39: 289 | L39: 300 | M39: 235 | N39: 224 | O39: 213 | P39: 209 | Q39: 206 | R39: 203 | S39: 197 | T39: 191 | U39: 185 | V39: 177 | W39: 171 | X39: 160 | AA39: 300 | AB39: 235 | AC39: 211 | AD39: 197 | AE39: 184.3333333 | AF39: 169.3333333 | AI39: 300 | AJ39: =HLOOKUP($AX$8,$M$32:$X$41,8) -> 235 | AK39: =HLOOKUP($AX$9,$M$32:$X$41,8) -> 235
B40: 350 | C40: 172 | D40: 202 | E40: 234 | F40: 261 | G40: 301 | H40: 325 | L40: 350 | M40: 254 | N40: 240 | O40: 234 | P40: 229 | Q40: 228 | R40: 228 | S40: 220 | T40: 212 | U40: 206 | V40: 198 | W40: 193 | X40: 185 | AA40: 350 | AB40: 254 | AC40: 231.8 | AD40: 220 | AE40: 205.3333333 | AF40: 192 | AI40: 350 | AJ40: =HLOOKUP($AX$8,$M$32:$X$41,9) -> 254 | AK40: =HLOOKUP($AX$9,$M$32:$X$41,9) -> 254
B41: 400 | C41: 197 | D41: 223 | E41: 254 | F41: 282 | G41: 318 | H41: 348 | L41: 400 | M41: 273 | N41: 262 | O41: 254 | P41: 247 | Q41: 245 | R41: 241 | S41: 238 | T41: 231 | U41: 227 | V41: 221 | W41: 216 | X41: 208 | AA41: 400 | AB41: 273 | AC41: 249.8 | AD41: 236.6666667 | AE41: 226.3333333 | AF41: 215 | AI41: 400 | AJ41: =HLOOKUP($AX$8,$M$32:$X$41,10) -> 273 | AK41: =HLOOKUP($AX$9,$M$32:$X$41,10) -> 273
B45: 150 GPM FLOW RATE | K45: Bonnet Setting | L45: Inlet Pressure psig | M45: OUTLET PRESSURES @ FLOW RATE, GPM | AA45: Setting # 4: Inlet vs. Outlet Pressure Over Flow Range | AI45: SETTING 4
B46: Inlet (psig) | C46: Outlet-1 (psig) | D46: Outlet-2 (psig) | E46: Outlet-3 (psig) | F46: Outlet-4 (psig) | G46: Outlet-5 (psig) | H46: Outlet-6 (psig) | M46: 0 | N46: 50 | O46: 100 | P46: 150 | Q46: 175 | R46: 200 | S46: 250 | T46: 300 | U46: 350 | V46: 400 | W46: 450 | X46: 500 | AA46: Inlet (psig) | AB46: Static | AC46: 50-200 [GPM] | AD46: 200-300 [GPM] | AE46: 300-400 [GPM] | AF46: 400-500 [GPM] | AI46: Inlet (psig) | AJ46: =CONCATENATE("Outlet Residual @ " &AX$8& " GPM") -> Outlet Residual @ 0 GPM | AK46: =CONCATENATE("Outlet Residual @ " &AX$9& " GPM") -> Outlet Residual @ 0 GPM | AN46: Const. PRI Interpolated @ Var. Flow
B47: 0 | C47: =P5 -> 0 | D47: =P19 -> 0 | E47: =P33 -> 0 | F47: =P47 -> 0 | G47: =P61 -> 0 | H47: =P75 -> 0 | K47: 4 | L47: 0 | AA47: =L47 -> 0
B48: 50 | C48: 35 | D48: =P20 -> 37 | E48: =P34 -> 35 | F48: =P48 -> 38 | G48: =P62 -> 39 | H48: =P76 -> 36 | L48: 50 | M48: 49 | N48: 49 | O48: 43 | P48: 38 | Q48: 34 | R48: 27 | S48: 15 | AA48: =L48 -> 50 | AB48: =M48 -> 49 | AC48: =AVERAGE(N48:R48) -> 38.2 | AD48: =AVERAGE(R48:T48) -> 21 | AE48: =AVERAGE(T48:V48) ->  | AF48: =AVERAGE(V48:X48) ->  | AI48: =L48 -> 50 | AJ48: =HLOOKUP($AX$8,$M$46:$X$55,3) -> 49 | AK48: =HLOOKUP($AX$9,$M$46:$X$55,3) -> 49 | AL48: PRI1: | AM48: =LARGE(L48:L55,COUNTIF(L48:L55,">" &AX6)+1) ->  | AN48: =VLOOKUP(AM48,AI48:AK55,2) ->  | AO48: =VLOOKUP(AM48,AI48:AK55,3) ->  | AP48: PRO1: | AQ48: =IF(AX8=AX9, AN48, FORECAST(AX7,$AN$48:$AO$48,$AX$8:$AX$9)) -> 
B49: 100 | C49: 64 | D49: =P21 -> 81 | E49: =P35 -> 89 | F49: =P49 -> 88 | G49: =P63 -> 86 | H49: =P77 -> 88 | L49: 100 | M49: 100 | N49: 98 | O49: 96 | P49: 88 | Q49: 82 | R49: 77 | S49: 64 | T49: 50 | U49: 32 | AA49: 100 | AB49: =M49 -> 100 | AC49: =AVERAGE(N49:R49) -> 88.2 | AD49: =AVERAGE(R49:T49) -> 63.66666667 | AE49: =AVERAGE(T49:V49) -> 41 | AF49: =AVERAGE(V49:X49) ->  | AI49: =L49 -> 100 | AJ49: =HLOOKUP($AX$8,$M$46:$X$55,4) -> 100 | AK49: =HLOOKUP($AX$9,$M$46:$X$55,4) -> 100 | AL49: PRI2: | AM49: =SMALL(L48:L55,COUNTIF(L48:L55,"<" &AX6)+1) -> 50 | AN49: =VLOOKUP(AM49,AI48:AK55,2) -> 49 | AO49: =VLOOKUP(AM49,AI48:AK55,3) -> 49 | AP49: PRO2: | AQ49: =IF(AX8=AX9, AN49, FORECAST(AX7,$AN$49:$AO$49,$AX$8:$AX$9)) -> 49
B50: 150 | C50: 89 | D50: =P22 -> 114 | E50: 131 | F50: 138 | G50: 138 | H50: 137 | L50: 150 | M50: 150 | N50: 148 | O50: 145 | P50: 138 | Q50: 132 | R50: 127 | S50: 114 | T50: 100 | U50: 82 | V50: 61 | W50: 41 | AA50: 150 | AB50: 150 | AC50: 138 | AD50: 113.6666667 | AE50: 81 | AF50: 51 | AI50: 150 | AJ50: =HLOOKUP($AX$8,$M$46:$X$55,5) -> 150 | AK50: =HLOOKUP($AX$9,$M$46:$X$55,5) -> 150 | AL50: PSI1: | AM50: =LARGE(L48:L55,COUNTIF(L48:L55,">" &AX5)+1) ->  | AP50: PSO1: | AQ50: =VLOOKUP(AM50,L48:M55,2) -> 
B51: 200 | C51: 114 | D51: 135 | E51: 161 | F51: 180 | G51: 188 | H51: 184 | L51: 200 | M51: 200 | N51: 197 | O51: 187 | P51: 180 | Q51: 176 | R51: 171 | S51: 164 | T51: 147 | U51: 132 | V51: 109 | W51: 88 | X51: 61 | AA51: 200 | AB51: 200 | AC51: 182.2 | AD51: 160.6666667 | AE51: 129.3333333 | AF51: 86 | AI51: 200 | AJ51: =HLOOKUP($AX$8,$M$46:$X$55,6) -> 200 | AK51: =HLOOKUP($AX$9,$M$46:$X$55,6) -> 200 | AL51: PSI2: | AM51: =SMALL(L48:L55,COUNTIF(L48:L55,"<" &AX5)+1) -> 50 | AP51: PSO2: | AQ51: =VLOOKUP(AM51,L48:M55,2) -> 49
B52: 250 | C52: 132 | D52: 157 | E52: 187 | F52: 212 | G52: 233 | H52: 237 | L52: 250 | M52: 248 | N52: 235 | O52: 217 | P52: 212 | Q52: 214 | R52: 205 | S52: 198 | T52: 188 | U52: 180 | V52: 160 | W52: 138 | X52: 111 | AA52: 250 | AB52: 248 | AC52: 216.6 | AD52: 197 | AE52: 176 | AF52: 136.3333333 | AI52: 250 | AJ52: =HLOOKUP($AX$8,$M$46:$X$55,7) -> 248 | AK52: =HLOOKUP($AX$9,$M$46:$X$55,7) -> 248
B53: 300 | C53: 150 | D53: 178 | E53: 209 | F53: 237 | G53: 265 | H53: 284 | L53: 300 | M53: 265 | N53: 254 | O53: 247 | P53: 237 | Q53: 239 | R53: 234 | S53: 222 | T53: 213 | U53: 207 | V53: 206 | W53: 185 | X53: 164 | AA53: 300 | AB53: 265 | AC53: 242.2 | AD53: 223 | AE53: 208.6666667 | AF53: 185 | AI53: 300 | AJ53: =HLOOKUP($AX$8,$M$46:$X$55,8) -> 265 | AK53: =HLOOKUP($AX$9,$M$46:$X$55,8) -> 265
B54: 350 | C54: 170 | D54: 198 | E54: 229 | F54: 259 | G54: 296 | H54: 317 | L54: 350 | M54: 282 | N54: 265 | O54: 261 | P54: 259 | Q54: 251 | R54: 262 | S54: 250 | T54: 235 | U54: 232 | V54: 226 | W54: 221 | X54: 210 | AA54: 350 | AB54: 282 | AC54: 259.6 | AD54: 249 | AE54: 231 | AF54: 219 | AI54: 350 | AJ54: =HLOOKUP($AX$8,$M$46:$X$55,9) -> 282 | AK54: =HLOOKUP($AX$9,$M$46:$X$55,9) -> 282
B55: 400 | C55: 190 | D55: 217 | E55: 247 | F55: 273 | G55: 315 | H55: 346 | L55: 400 | M55: 305 | N55: 287 | O55: 282 | P55: 273 | Q55: 275 | R55: 269 | S55: 276 | T55: 259 | U55: 253 | V55: 251 | W55: 242 | X55: 234 | AA55: 400 | AB55: 305 | AC55: 277.2 | AD55: 268 | AE55: 254.3333333 | AF55: 242.3333333 | AI55: 400 | AJ55: =HLOOKUP($AX$8,$M$46:$X$55,10) -> 305 | AK55: =HLOOKUP($AX$9,$M$46:$X$55,10) -> 305
B59: 175 GPM FLOW RATE | K59: Bonnet Setting | L59: Inlet Pressure psig | M59: OUTLET PRESSURES @ FLOW RATE, GPM | AA59: Setting # 5: Inlet vs. Outlet Pressure Over Flow Range | AI59: SETTING 5
B60: Inlet (psig) | C60: Outlet-1 (psig) | D60: Outlet-2 (psig) | E60: Outlet-3 (psig) | F60: Outlet-4 (psig) | G60: Outlet-5 (psig) | H60: Outlet-6 (psig) | M60: 0 | N60: 50 | O60: 100 | P60: 150 | Q60: 175 | R60: 200 | S60: 250 | T60: 300 | U60: 350 | V60: 400 | W60: 450 | X60: 500 | AA60: Inlet (psig) | AB60: Static | AC60: 50-200 [GPM] | AD60: 200-300 [GPM] | AE60: 300-400 [GPM] | AF60: 400-500 [GPM] | AI60: Inlet (psig) | AJ60: =CONCATENATE("Outlet Residual @ " &AX$8& " GPM") -> Outlet Residual @ 0 GPM | AK60: =CONCATENATE("Outlet Residual @ " &AX$9& " GPM") -> Outlet Residual @ 0 GPM | AN60: Const. PRI Interpolated @ Var. Flow
B61: 0 | C61: =Q5 -> 0 | D61: =Q19 -> 0 | E61: =Q33 -> 0 | F61: =Q47 -> 0 | G61: =Q61 -> 0 | H61: =Q75 -> 0 | K61: 5 | L61: 0 | AA61: =L61 -> 0
B62: 50 | C62: =Q6 -> 29 | D62: =Q20 -> 32 | E62: =Q34 -> 31 | F62: =Q48 -> 34 | G62: =Q62 -> 32 | H62: =Q76 -> 32 | L62: 50 | M62: 50 | N62: 50 | O62: 44 | P62: 39 | Q62: 32 | R62: 27 | S62: 14 | AA62: =L62 -> 50 | AB62: =M62 -> 50 | AC62: =AVERAGE(N62:R62) -> 38.4 | AD62: =AVERAGE(R62:T62) -> 20.5 | AE62: =AVERAGE(T62:V62) ->  | AF62: =AVERAGE(V62:X62) ->  | AI62: =L62 -> 50 | AJ62: =HLOOKUP($AX$8,$M$60:$X$69,3) -> 50 | AK62: =HLOOKUP($AX$9,$M$60:$X$69,3) -> 50 | AL62: PRI1: | AM62: =LARGE(L62:L69,COUNTIF(L62:L69,">" &AX6)+1) ->  | AN62: =VLOOKUP(AM62,AI62:AK69,2) ->  | AO62: =VLOOKUP(AM62,AI62:AK69,3) ->  | AP62: PRO1: | AQ62: =IF(AX8=AX9, AN62, FORECAST(AX7,$AN$62:$AO$62,$AX$8:$AX$9)) -> 
B63: 100 | C63: =Q7 -> 60 | D63: =Q21 -> 76 | E63: =Q35 -> 82 | F63: =Q49 -> 82 | G63: =Q63 -> 82 | H63: =Q77 -> 82 | L63: 100 | M63: 100 | N63: 100 | O63: 92 | P63: 86 | Q63: 82 | R63: 77 | S63: 66 | T63: 48 | U63: 31 | AA63: 100 | AB63: =M63 -> 100 | AC63: =AVERAGE(N63:R63) -> 87.4 | AD63: =AVERAGE(R63:T63) -> 63.66666667 | AE63: =AVERAGE(T63:V63) -> 39.5 | AF63: =AVERAGE(V63:X63) ->  | AI63: =L63 -> 100 | AJ63: =HLOOKUP($AX$8,$M$60:$X$69,4) -> 100 | AK63: =HLOOKUP($AX$9,$M$60:$X$69,4) -> 100 | AL63: PRI2: | AM63: =SMALL(L62:L69,COUNTIF(L62:L69,"<" &AX6)+1) -> 50 | AN63: =VLOOKUP(AM63,AI62:AK69,2) -> 50 | AO63: =VLOOKUP(AM63,AI62:AK69,3) -> 50 | AP63: PRO2: | AQ63: =IF(AX8=AX9, AN63, FORECAST(AX7,$AN$63:$AO$63,$AX$8:$AX$9)) -> 50
B64: 150 | C64: =Q8 -> 88 | D64: =Q22 -> 110 | E64: 130 | F64: 132 | G64: 133 | H64: 133 | L64: 150 | M64: 150 | N64: 149 | O64: 145 | P64: 138 | Q64: 133 | R64: 126 | S64: 115 | T64: 100 | U64: 83 | V64: 59 | W64: 41 | AA64: 150 | AB64: 150 | AC64: 138.2 | AD64: 113.6666667 | AE64: 80.66666667 | AF64: 50 | AI64: 150 | AJ64: =HLOOKUP($AX$8,$M$60:$X$69,5) -> 150 | AK64: =HLOOKUP($AX$9,$M$60:$X$69,5) -> 150 | AL64: PSI1: | AM64: =LARGE(L62:L69,COUNTIF(L62:L69,">" &AX5)+1) ->  | AP64: PSO1: | AQ64: =VLOOKUP(AM64,L62:M69,2) -> 
B65: 200 | C65: 111 | D65: 132 | E65: 159 | F65: 176 | G65: 184 | H65: 181 | L65: 200 | M65: 200 | N65: 199 | O65: 195 | P65: 188 | Q65: 184 | R65: 178 | S65: 164 | T65: 149 | U65: 132 | V65: 111 | W65: 89 | X65: 65 | AA65: 200 | AB65: 200 | AC65: 188.8 | AD65: 163.6666667 | AE65: 130.6666667 | AF65: 88.33333333 | AI65: 200 | AJ65: =HLOOKUP($AX$8,$M$60:$X$69,6) -> 200 | AK65: =HLOOKUP($AX$9,$M$60:$X$69,6) -> 200 | AL65: PSI2: | AM65: =SMALL(L62:L69,COUNTIF(L62:L69,"<" &AX5)+1) -> 50 | AP65: PSO2: | AQ65: =VLOOKUP(AM65,L62:M69,2) -> 50
B66: 250 | C66: 130 | D66: 155 | E66: 183 | F66: 214 | G66: 230 | H66: 232 | L66: 250 | M66: 250 | N66: 248 | O66: 240 | P66: 233 | Q66: 230 | R66: 226 | S66: 215 | T66: 201 | U66: 182 | V66: 168 | W66: 139 | X66: 116 | AA66: 250 | AB66: 250 | AC66: 235.4 | AD66: 214 | AE66: 183.6666667 | AF66: 141 | AI66: 250 | AJ66: =HLOOKUP($AX$8,$M$60:$X$69,7) -> 250 | AK66: =HLOOKUP($AX$9,$M$60:$X$69,7) -> 250
B67: 300 | C67: 148 | D67: 175 | E67: 206 | F67: 239 | G67: 263 | H67: 277 | L67: 300 | M67: 297 | N67: 281 | O67: 274 | P67: 265 | Q67: 263 | R67: 261 | S67: 253 | T67: 245 | U67: 232 | V67: 210 | W67: 188 | X67: 161 | AA67: 300 | AB67: 297 | AC67: 268.8 | AD67: 253 | AE67: 229 | AF67: 186.3333333 | AI67: 300 | AJ67: =HLOOKUP($AX$8,$M$60:$X$69,8) -> 297 | AK67: =HLOOKUP($AX$9,$M$60:$X$69,8) -> 297
B68: 350 | C68: 168 | D68: 194 | E68: 228 | F68: 251 | G68: 292 | H68: 312 | L68: 350 | M68: 320 | N68: 309 | O68: 301 | P68: 296 | Q68: 292 | R68: 286 | S68: 279 | T68: 271 | U68: 262 | V68: 254 | W68: 237 | X68: 214 | AA68: 350 | AB68: 320 | AC68: 296.8 | AD68: 278.6666667 | AE68: 262.3333333 | AF68: 235 | AI68: 350 | AJ68: =HLOOKUP($AX$8,$M$60:$X$69,9) -> 320 | AK68: =HLOOKUP($AX$9,$M$60:$X$69,9) -> 320
B69: 400 | C69: 186 | D69: 215 | E69: 245 | F69: 275 | G69: 312 | H69: 340 | L69: 400 | M69: 338 | N69: 329 | O69: 318 | P69: 315 | Q69: 312 | R69: 310 | S69: 303 | T69: 293 | U69: 288 | V69: 279 | W69: 274 | X69: 263 | AA69: 400 | AB69: 338 | AC69: 316.8 | AD69: 302 | AE69: 286.6666667 | AF69: 272 | AI69: 400 | AJ69: =HLOOKUP($AX$8,$M$60:$X$69,10) -> 338 | AK69: =HLOOKUP($AX$9,$M$60:$X$69,10) -> 338
B73: 200 GPM FLOW RATE | K73: Bonnet Setting | L73: Inlet Pressure psig | M73: OUTLET PRESSURES @ FLOW RATE, GPM | AA73: Setting # 6: Inlet vs. Outlet Pressure Over Flow Range | AI73: SETTING 6
B74: Inlet (psig) | C74: Outlet-1 (psig) | D74: Outlet-2 (psig) | E74: Outlet-3 (psig) | F74: Outlet-4 (psig) | G74: Outlet-5 (psig) | H74: Outlet-6 (psig) | M74: 0 | N74: 50 | O74: 100 | P74: 150 | Q74: 175 | R74: 200 | S74: 250 | T74: 300 | U74: 350 | V74: 400 | W74: 450 | X74: 500 | AA74: Inlet (psig) | AB74: Static | AC74: 50-200 [GPM] | AD74: 200-300 [GPM] | AE74: 300-400 [GPM] | AF74: 400-500 [GPM] | AI74: Inlet (psig) | AJ74: =CONCATENATE("Outlet Residual @ " &AX$8& " GPM") -> Outlet Residual @ 0 GPM | AK74: =CONCATENATE("Outlet Residual @ " &AX$9& " GPM") -> Outlet Residual @ 0 GPM | AN74: Const. PRI Interpolated @ Var. Flow
B75: 0 | C75: =R5 -> 0 | D75: =R19 -> 0 | E75: =R33 -> 0 | F75: =R47 -> 0 | G75: =R61 -> 0 | H75: =R75 -> 0 | K75: 6 | L75: 0 | AA75: =L75 -> 0
B76: 50 | C76: 28 | D76: =R20 -> 28 | E76: =R34 -> 26 | F76: =R48 -> 27 | G76: =R62 -> 27 | H76: =R76 -> 25 | L76: 50 | M76: 50 | N76: 50 | O76: 42 | P76: 36 | Q76: 32 | R76: 25 | S76: 15 | AA76: =L76 -> 50 | AB76: =M76 -> 50 | AC76: =AVERAGE(N76:R76) -> 37 | AD76: =AVERAGE(R76:T76) -> 20 | AE76: =AVERAGE(T76:V76) ->  | AF76: =AVERAGE(V76:X76) ->  | AI76: =L76 -> 50 | AJ76: =HLOOKUP($AX$8,$M$74:$X$83,3) -> 50 | AK76: =HLOOKUP($AX$9,$M$74:$X$83,3) -> 50 | AL76: PRI1: | AM76: =LARGE(L76:L83,COUNTIF(L76:L83,">" &AX6)+1) ->  | AN76: =VLOOKUP(AM76,AI76:AK83,2) ->  | AO76: =VLOOKUP(AM76,AI76:AK83,3) ->  | AP76: PRO1: | AQ76: =IF(AX8=AX9, AN76, FORECAST(AX7,$AN$76:$AO$76,$AX$8:$AX$9)) -> 
B77: 100 | C77: 59 | D77: =R21 -> 72 | E77: =R35 -> 78 | F77: =R49 -> 77 | G77: =R63 -> 77 | H77: =R77 -> 78 | L77: 100 | M77: 100 | N77: 97 | O77: 95 | P77: 88 | Q77: 82 | R77: 78 | S77: 63 | T77: 49 | U77: 32 | AA77: 100 | AB77: =M77 -> 100 | AC77: =AVERAGE(N77:R77) -> 88 | AD77: =AVERAGE(R77:T77) -> 63.33333333 | AE77: =AVERAGE(T77:V77) -> 40.5 | AF77: =AVERAGE(V77:X77) ->  | AI77: =L77 -> 100 | AJ77: =HLOOKUP($AX$8,$M$74:$X$83,4) -> 100 | AK77: =HLOOKUP($AX$9,$M$74:$X$83,4) -> 100 | AL77: PRI2: | AM77: =SMALL(L76:L83,COUNTIF(L76:L83,"<" &AX6)+1) -> 50 | AN77: =VLOOKUP(AM77,AI76:AK83,2) -> 50 | AO77: =VLOOKUP(AM77,AI76:AK83,3) -> 50 | AP77: PRO2: | AQ77: =IF(AX8=AX9, AN77, FORECAST(AX7,$AN$77:$AO$77,$AX$8:$AX$9)) -> 50
B78: 150 | C78: 85 | D78: =R22 -> 104 | E78: 126 | F78: 127 | G78: 126 | H78: 126 | L78: 150 | M78: 150 | N78: 149 | O78: 144 | P78: 137 | Q78: 133 | R78: 126 | S78: 114 | T78: 99 | U78: 80 | V78: 59 | W78: 39 | AA78: 150 | AB78: 150 | AC78: 137.8 | AD78: 113 | AE78: 79.33333333 | AF78: 49 | AI78: 150 | AJ78: =HLOOKUP($AX$8,$M$74:$X$83,5) -> 150 | AK78: =HLOOKUP($AX$9,$M$74:$X$83,5) -> 150 | AL78: PSI1: | AM78: =LARGE(L76:L83,COUNTIF(L76:L83,">" &AX5)+1) ->  | AP78: PSO1: | AQ78: =VLOOKUP(AM78,L76:M83,2) -> 
B79: 200 | C79: 109 | D79: 129 | E79: 158 | F79: 171 | G79: 178 | H79: 178 | L79: 200 | M79: 200 | N79: 199 | O79: 194 | P79: 184 | Q79: 181 | R79: 178 | S79: 165 | T79: 149 | U79: 134 | V79: 111 | W79: 90 | X79: 63 | AA79: 200 | AB79: 200 | AC79: 187.2 | AD79: 164 | AE79: 131.3333333 | AF79: 88 | AI79: 200 | AJ79: =HLOOKUP($AX$8,$M$74:$X$83,6) -> 200 | AK79: =HLOOKUP($AX$9,$M$74:$X$83,6) -> 200 | AL79: PSI2: | AM79: =SMALL(L76:L83,COUNTIF(L76:L83,"<" &AX5)+1) -> 50 | AP79: PSO2: | AQ79: =VLOOKUP(AM79,L76:M83,2) -> 50
B80: 250 | C80: 127 | D80: 152 | E80: 180 | F80: 205 | G80: 226 | H80: 226 | L80: 250 | M80: 250 | N80: 248 | O80: 244 | P80: 237 | Q80: 232 | R80: 226 | S80: 213 | T80: 199 | U80: 180 | V80: 160 | W80: 138 | X80: 116 | AA80: 250 | AB80: 250 | AC80: 237.4 | AD80: 212.6666667 | AE80: 179.6666667 | AF80: 138 | AI80: 250 | AJ80: =HLOOKUP($AX$8,$M$74:$X$83,7) -> 250 | AK80: =HLOOKUP($AX$9,$M$74:$X$83,7) -> 250
B81: 300 | C81: 146 | D81: 173 | E81: 203 | F81: 234 | G81: 261 | H81: 275 | L81: 300 | M81: 300 | N81: 297 | O81: 289 | P81: 284 | Q81: 277 | R81: 275 | S81: 261 | T81: 248 | U81: 232 | V81: 210 | W81: 189 | X81: 164 | AA81: 300 | AB81: 300 | AC81: 284.4 | AD81: 261.3333333 | AE81: 230 | AF81: 187.6666667 | AI81: 300 | AJ81: =HLOOKUP($AX$8,$M$74:$X$83,8) -> 300 | AK81: =HLOOKUP($AX$9,$M$74:$X$83,8) -> 300
B82: 350 | C82: 164 | D82: 194 | E82: 228 | F82: 262 | G82: 286 | H82: 310 | L82: 350 | M82: 348 | N82: 337 | O82: 325 | P82: 317 | Q82: 312 | R82: 310 | S82: 299 | T82: 290 | U82: 281 | V82: 261 | W82: 238 | X82: 213 | AA82: 350 | AB82: 348 | AC82: 320.2 | AD82: 299.6666667 | AE82: 277.3333333 | AF82: 237.3333333 | AI82: 350 | AJ82: =HLOOKUP($AX$8,$M$74:$X$83,9) -> 348 | AK82: =HLOOKUP($AX$9,$M$74:$X$83,9) -> 348
B83: 400 | C83: 186 | D83: 214 | E83: 241 | F83: 269 | G83: 310 | H83: 337 | L83: 400 | M83: 368 | N83: 362 | O83: 348 | P83: 346 | Q83: 340 | R83: 337 | S83: 331 | T83: 321 | U83: 311 | V83: 306 | W83: 287 | X83: 260 | AA83: 400 | AB83: 368 | AC83: 346.6 | AD83: 329.6666667 | AE83: 312.6666667 | AF83: 284.3333333 | AI83: 400 | AJ83: =HLOOKUP($AX$8,$M$74:$X$83,10) -> 368 | AK83: =HLOOKUP($AX$9,$M$74:$X$83,10) -> 368
B87: 250 GPM FLOW RATE
B88: Inlet (psig) | C88: Outlet-1 (psig) | D88: Outlet-2 (psig) | E88: Outlet-3 (psig) | F88: Outlet-4 (psig) | G88: Outlet-5 (psig) | H88: Outlet-6 (psig)
B89: 0 | C89: =S5 -> 0 | D89: =S19 -> 0 | E89: =S33 -> 0 | F89: =S47 -> 0 | G89: =S61 -> 0 | H89: =S75 -> 0
B90: 50 | C90: =S6 -> 15 | D90: =S20 -> 14 | E90: =S34 -> 15 | F90: =S48 -> 15 | G90: =S62 -> 14 | H90: =S76 -> 15
B91: 100 | C91: =S7 -> 51 | D91: =S21 -> 62 | E91: =S35 -> 64 | F91: =S49 -> 64 | G91: =S63 -> 66 | H91: =S77 -> 63
B92: 150 | C92: =S8 -> 77 | D92: =S22 -> 98 | E92: 116 | F92: 114 | G92: 115 | H92: 114
B93: 200 | C93: 100 | D93: 124 | E93: 147 | F93: 164 | G93: 164 | H93: 165
B94: 250 | C94: 122 | D94: 146 | E94: 174 | F94: 198 | G94: 215 | H94: 213
B95: 300 | C95: 142 | D95: 168 | E95: 197 | F95: 222 | G95: 253 | H95: 261
B96: 350 | C96: 161 | D96: 188 | E96: 220 | F96: 250 | G96: 279 | H96: 299
B97: 400 | C97: 178 | D97: 205 | E97: 238 | F97: 276 | G97: 303 | H97: 331
B101: 300 GPM FLOW RATE
B102: Inlet (psig) | C102: Outlet-1 (psig) | D102: Outlet-2 (psig) | E102: Outlet-3 (psig) | F102: Outlet-4 (psig) | G102: Outlet-5 (psig) | H102: Outlet-6 (psig)
B103: 0 | C103: =T5 -> 0 | D103: =T19 -> 0 | E103: =T33 -> 0 | F103: =T47 -> 0 | G103: =T61 -> 0 | H103: =T75 -> 0
B104: 50 | C104: 0 | D104: 0 | E104: =T34 -> 0 | F104: =T48 -> 0 | G104: =T62 -> 0 | H104: =T76 -> 0
B105: 100 | C105: 44 | D105: 49 | E105: =T35 -> 48 | F105: =T49 -> 50 | G105: =T63 -> 48 | H105: =T77 -> 49
B106: 150 | C106: 70 | D106: 90 | E106: =T36 -> 99 | F106: =T50 -> 100 | G106: =T64 -> 100 | H106: =T78 -> 99
B107: 200 | C107: 94 | D107: 117 | E107: 142 | F107: 147 | G107: 149 | H107: 149
B108: 250 | C108: 116 | D108: 140 | E108: 169 | F108: 188 | G108: 201 | H108: 199
B109: 300 | C109: 136 | D109: 161 | E109: 191 | F109: 213 | G109: 245 | H109: 248
B110: 350 | C110: 155 | D110: 183 | E110: 212 | F110: 235 | G110: 271 | H110: 290
B111: 400 | C111: 176 | D111: 203 | E111: 231 | F111: 259 | G111: 293 | H111: 321
B115: 350 GPM FLOW RATE
B116: Inlet (psig) | C116: Outlet-1 (psig) | D116: Outlet-2 (psig) | E116: Outlet-3 (psig) | F116: Outlet-4 (psig) | G116: Outlet-5 (psig) | H116: Outlet-6 (psig)
B117: 0 | C117: =U5 -> 0 | D117: =U19 -> 0 | E117: =U33 -> 0 | F117: =U47 -> 0 | G117: =U61 -> 0 | H117: =U75 -> 0
B118: 50 | C118: 0 | D118: 0 | E118: =U34 -> 0 | F118: =U48 -> 0 | G118: =U62 -> 0 | H118: =U76 -> 0
B119: 100 | C119: 31 | D119: 31 | E119: =U35 -> 31 | F119: =U49 -> 32 | G119: =U63 -> 31 | H119: =U77 -> 32
B120: 150 | C120: 62 | D120: 82 | E120: =U36 -> 81 | F120: =U50 -> 82 | G120: =U64 -> 83 | H120: =U78 -> 80
B121: 200 | C121: 89 | D121: 110 | E121: 131 | F121: 132 | G121: 132 | H121: 134
B122: 250 | C122: 111 | D122: 135 | E122: 160 | F122: 180 | G122: 182 | H122: 180
B123: 300 | C123: 130 | D123: 155 | E123: 185 | F123: 207 | G123: 232 | H123: 232
B124: 350 | C124: 150 | D124: 176 | E124: 206 | F124: 232 | G124: 262 | H124: 281
B125: 400 | C125: 170 | D125: 196 | E125: 227 | F125: 253 | G125: 288 | H125: 311
B129: 400 GPM FLOW RATE
B130: Inlet (psig) | C130: Outlet-1 (psig) | D130: Outlet-2 (psig) | E130: Outlet-3 (psig) | F130: Outlet-4 (psig) | G130: Outlet-5 (psig) | H130: Outlet-6 (psig)
B131: 0 | C131: =V5 -> 0 | D131: =V19 -> 0 | E131: =V33 -> 0 | F131: =V47 -> 0 | G131: =V61 -> 0 | H131: =V75 -> 0
B132: 50 | C132: 0 | D132: 0 | E132: 0 | F132: 0 | G132: 0 | H132: 0
B133: 100 | C133: 0 | D133: 0 | E133: 0 | F133: 0 | G133: 0 | H133: 0
B134: 150 | C134: 56 | D134: 61 | E134: 61 | F134: 61 | G134: 59 | H134: 59
B135: 200 | C135: 81 | D135: 102 | E135: 109 | F135: 109 | G135: 111 | H135: 111
B136: 250 | C136: 103 | D136: 127 | E136: 153 | F136: 160 | G136: 168 | H136: 160
B137: 300 | C137: 125 | D137: 149 | E137: 177 | F137: 206 | G137: 210 | H137: 210
B138: 350 | C138: 144 | D138: 170 | E138: 198 | F138: 226 | G138: 254 | H138: 261
B139: 400 | C139: 164 | D139: 193 | E139: 221 | F139: 251 | G139: 279 | H139: 306
B143: 450 GPM FLOW RATE
B144: Inlet (psig) | C144: Outlet-1 (psig) | D144: Outlet-2 (psig) | E144: Outlet-3 (psig) | F144: Outlet-4 (psig) | G144: Outlet-5 (psig) | H144: Outlet-6 (psig)
B145: 0 | C145: =W5 -> 0 | D145: =W19 -> 0 | E145: =W33 -> 0 | F145: =W47 -> 0 | G145: =W61 -> 0 | H145: =W75 -> 0
B146: 50 | C146: 0 | D146: 0 | E146: 0 | F146: 0 | G146: 0 | H146: 0
B147: 100 | C147: 0 | D147: 0 | E147: 0 | F147: 0 | G147: 0 | H147: 0
B148: 150 | C148: 39 | D148: 38 | E148: 38 | F148: 41 | G148: 41 | H148: 39
B149: 200 | C149: 73 | D149: 88 | E149: 88 | F149: 88 | G149: 89 | H149: 90
B150: 250 | C150: 97 | D150: 120 | E150: 137 | F150: 138 | G150: 139 | H150: 138
B151: 300 | C151: 118 | D151: 142 | E151: 171 | F151: 185 | G151: 188 | H151: 189
B152: 350 | C152: 138 | D152: 163 | E152: 193 | F152: 221 | G152: 237 | H152: 238
B153: 400 | C153: 157 | D153: 183 | E153: 216 | F153: 242 | G153: 274 | H153: 287
B157: 500 GPM FLOW RATE
B158: Inlet (psig) | C158: Outlet-1 (psig) | D158: Outlet-2 (psig) | E158: Outlet-3 (psig) | F158: Outlet-4 (psig) | G158: Outlet-5 (psig) | H158: Outlet-6 (psig)
B159: 0 | C159: =X5 -> 0 | D159: =X19 -> 0 | E159: =X33 -> 0 | F159: =X47 -> 0 | G159: =X61 -> 0 | H159: =X75 -> 0
B160: 50 | C160: 0 | D160: 0 | E160: 0 | F160: 0 | G160: 0 | H160: 0
B161: 100 | C161: 0 | D161: 0 | E161: 0 | F161: 0 | G161: 0 | H161: 0
B162: 150 | C162: 0 | D162: 0 | E162: 0 | F162: 0 | G162: 0 | H162: 0
B163: 200 | C163: 63 | D163: 65 | E163: 61 | F163: 61 | G163: 65 | H163: 63
B164: 250 | C164: 90 | D164: 110 | E164: 112 | F164: 111 | G164: 116 | H164: 116
B165: 300 | C165: 111 | D165: 134 | E165: 160 | F165: 164 | G165: 161 | H165: 164
B166: 350 | C166: 131 | D166: 157 | E166: 185 | F166: 210 | G166: 214 | H166: 213
B167: 400 | C167: 152 | D167: 175 | E167: 208 | F167: 234 | G167: 263 | H167: 260

Sheet IE2600A-250OS-A (hidden)
A1: Data from Project# 4788271148, Date: 2018-06-05
B3: STATIC FLOW | K3: Bonnet Setting | L3: Inlet Pressure psig | M3: OUTLET PRESSURES @ FLOW RATE, GPM | AA3: Setting # 1: Inlet vs. Outlet Pressure Over Flow Range | AI3: SETTING 1
B4: Inlet (psig) | C4: Outlet-1 (psig) | D4: Outlet-2 (psig) | E4: Outlet-3 (psig) | F4: Outlet-4 (psig) | G4: Outlet-5 (psig) | H4: Outlet-6 (psig) | M4: 0 | N4: 50 | O4: 100 | P4: 150 | Q4: 175 | R4: 200 | S4: 250 | T4: 300 | U4: 350 | V4: 400 | W4: 450 | X4: 500 | AA4: Inlet (psig) | AB4: Static | AC4: 50-200 [GPM] | AD4: 200-300 [GPM] | AE4: 300-400 [GPM] | AF4: 400-500 [GPM] | AI4: Inlet (psig) | AJ4: =CONCATENATE("Outlet Residual @ " &AX$8& " GPM") -> Outlet Residual @ 0 GPM | AK4: =CONCATENATE("Outlet Residual @ " &AX$9& " GPM") -> Outlet Residual @ 0 GPM | AN4: Const. PRI Interpolated @ Var. Flow | AT4: VARIABLES
B5: 0 | C5: =M5 -> 0 | D5: =M19 -> 0 | E5: =M33 -> 0 | F5: =M47 -> 0 | G5: =M61 -> 0 | H5: =M75 -> 0 | K5: 1 | L5: 0 | AA5: =L5 -> 0 | AT5: Static Inlet Pressure | AW5: PSI: | AX5: =Database!$E$2 -> 0
B6: 50 | C6: 50 | D6: 50 | E6: 50 | F6: =M48 -> 50 | G6: =M62 -> 50 | H6: =M76 -> 50 | L6: 50 | M6: 50 | N6: 41 | O6: 31 | P6: 27 | Q6: 23 | R6: 20 | S6: 14 | AA6: =L6 -> 50 | AB6: =M6 -> 50 | AC6: =AVERAGE(N6:R6) -> 28.4 | AD6: =AVERAGE(R6:T6) -> 17 | AE6: =AVERAGE(T6:V6) ->  | AF6: =AVERAGE(V6:X6) ->  | AI6: =L6 -> 50 | AJ6: =HLOOKUP($AX$8,$M$4:$X$13,3) -> 50 | AK6: =HLOOKUP($AX$9,$M$4:$X$13,3) -> 50 | AL6: PRI1: | AM6: =LARGE(L6:L13,COUNTIF(L6:L13,">" &AX6)+1) ->  | AN6: =VLOOKUP(AM6,AI6:AK13,2) ->  | AO6: =VLOOKUP(AM6,AI6:AK13,3) ->  | AP6: PRO1: | AQ6: =IF(AX8=AX9, AN6, FORECAST(AX7,$AN$6:$AO$6,$AX$8:$AX$9)) ->  | AT6: Residual Inlet Pressure | AW6: PRI: | AX6: =Database!$E$3 -> 0
B7: 100 | C7: 70 | D7: 90 | E7: 100 | F7: =M49 -> 100 | G7: =M63 -> 100 | H7: =M77 -> 100 | L7: 100 | M7: 70 | N7: 64 | O7: 57 | P7: 52 | Q7: 47 | R7: 46 | S7: 42 | T7: 36 | U7: 31 | AA7: 100 | AB7: 70 | AC7: =AVERAGE(N7:R7) -> 53.2 | AD7: =AVERAGE(R7:T7) -> 41.33333333 | AE7: =AVERAGE(T7:V7) -> 33.5 | AF7: =AVERAGE(V7:X7) ->  | AI7: =L7 -> 100 | AJ7: =HLOOKUP($AX$8,$M$4:$X$13,4) -> 70 | AK7: =HLOOKUP($AX$9,$M$4:$X$13,4) -> 70 | AL7: PRI2: | AM7: =SMALL(L6:L13,COUNTIF(L6:L13,"<" &AX6)+1) -> 50 | AN7: =VLOOKUP(AM7,AI6:AK13,2) -> 50 | AO7: =VLOOKUP(AM7,AI6:AK13,3) -> 50 | AP7: PRO2: | AQ7: =IF(AX8=AX9, AN7, FORECAST(AX7,$AN$7:$AO$7,$AX$8:$AX$9)) -> 50 | AT7: Flow Rate | AW7: Q0: | AX7: =IF(Database!$E$4=500,499.99,Database!$E$4) -> 0
B8: 150 | C8: 90 | D8: 109 | E8: 130 | F8: 150 | G8: 150 | H8: 150 | L8: 150 | M8: 90 | N8: 85 | O8: 76 | P8: 73 | Q8: 71 | R8: 69 | S8: 64 | T8: 60 | U8: 54 | V8: 49 | W8: 41 | AA8: 150 | AB8: 90 | AC8: 74.8 | AD8: 64.33333333 | AE8: 54.33333333 | AF8: 45 | AI8: 150 | AJ8: =HLOOKUP($AX$8,$M$4:$X$13,5) -> 90 | AK8: =HLOOKUP($AX$9,$M$4:$X$13,5) -> 90 | AL8: PSI1: | AM8: =LARGE(L6:L13,COUNTIF(L6:L13,">" &AX5)+1) ->  | AP8: PSO1: | AQ8: =VLOOKUP(AM8,L6:M13,2) ->  | AT8: Nearest known Flow Rate, 1 | AW8: Q1: | AX8: =LARGE(M4:X4,COUNTIF(M4:X4,">" &AX7)+1) -> 0
B9: 200 | C9: 112 | D9: 130 | E9: 148 | F9: 173 | G9: 199 | H9: 200 | L9: 200 | M9: 112 | N9: 101 | O9: 96 | P9: 92 | Q9: 92 | R9: 90 | S9: 85 | T9: 81 | U9: 76 | V9: 71 | W9: 65 | X9: 60 | AA9: 200 | AB9: 112 | AC9: 94.2 | AD9: 85.33333333 | AE9: 76 | AF9: 65.33333333 | AI9: 200 | AJ9: =HLOOKUP($AX$8,$M$4:$X$13,6) -> 112 | AK9: =HLOOKUP($AX$9,$M$4:$X$13,6) -> 112 | AL9: PSI2: | AM9: =SMALL(L6:L13,COUNTIF(L6:L13,"<" &AX5)+1) -> 50 | AP9: PSO2: | AQ9: =VLOOKUP(AM9,L6:M13,2) -> 50 | AT9: Nearest known Flow Rate, 2 | AW9: Q2: | AX9: =SMALL(M4:X4,COUNTIF(M4:X4,"<" &AX7)+1) -> 0
B10: 250 | C10: 131 | D10: 150 | E10: 170 | F10: 192 | G10: 220 | H10: 238 | L10: 250 | M10: 131 | N10: 121 | O10: 116 | P10: 111 | Q10: 108 | R10: 111 | S10: 105 | T10: 101 | U10: 96 | V10: 91 | W10: 85 | X10: 81 | AA10: 250 | AB10: 131 | AC10: 113.4 | AD10: 105.6666667 | AE10: 96 | AF10: 85.66666667 | AI10: 250 | AJ10: =HLOOKUP($AX$8,$M$4:$X$13,7) -> 131 | AK10: =HLOOKUP($AX$9,$M$4:$X$13,7) -> 131
B11: 300 | C11: 150 | D11: 173 | E11: 191 | F11: 212 | G11: 240 | H11: 261 | L11: 300 | M11: 150 | N11: 145 | O11: 136 | P11: 130 | Q11: 128 | R11: 126 | S11: 120 | T11: 120 | U11: 116 | V11: 109 | W11: 105 | X11: 99 | AA11: 300 | AB11: 150 | AC11: 133 | AD11: 122 | AE11: 115 | AF11: 104.3333333 | AI11: 300 | AJ11: =HLOOKUP($AX$8,$M$4:$X$13,8) -> 150 | AK11: =HLOOKUP($AX$9,$M$4:$X$13,8) -> 150
B12: 350 | C12: 172 | D12: 191 | E12: 209 | F12: 225 | G12: 256 | H12: 266 | L12: 350 | M12: 172 | N12: 162 | O12: 156 | P12: 151 | Q12: 149 | R12: 147 | S12: 142 | T12: 134 | U12: 133 | V12: 128 | W12: 125 | X12: 120 | AA12: 350 | AB12: 172 | AC12: 153 | AD12: 141 | AE12: 131.6666667 | AF12: 124.3333333 | AI12: 350 | AJ12: =HLOOKUP($AX$8,$M$4:$X$13,9) -> 172 | AK12: =HLOOKUP($AX$9,$M$4:$X$13,9) -> 172
B13: 400 | C13: 191 | D13: 215 | E13: 233 | F13: 255 | G13: 278 | H13: 298 | L13: 400 | M13: 191 | N13: 184 | O13: 177 | P13: 172 | Q13: 169 | R13: 167 | S13: 162 | T13: 154 | U13: 149 | V13: 151 | W13: 148 | X13: 144 | AA13: 400 | AB13: 191 | AC13: 173.8 | AD13: 161 | AE13: 151.3333333 | AF13: 147.6666667 | AI13: 400 | AJ13: =HLOOKUP($AX$8,$M$4:$X$13,10) -> 191 | AK13: =HLOOKUP($AX$9,$M$4:$X$13,10) -> 191
B17: 50 GPM FLOW RATE | K17: Bonnet Setting | L17: Inlet Pressure psig | M17: OUTLET PRESSURES @ FLOW RATE, GPM | AA17: Setting # 2: Inlet vs. Outlet Pressure Over Flow Range | AI17: SETTING 2
B18: Inlet (psig) | C18: Outlet-1 (psig) | D18: Outlet-2 (psig) | E18: Outlet-3 (psig) | F18: Outlet-4 (psig) | G18: Outlet-5 (psig) | H18: Outlet-6 (psig) | M18: 0 | N18: 50 | O18: 100 | P18: 150 | Q18: 175 | R18: 200 | S18: 250 | T18: 300 | U18: 350 | V18: 400 | W18: 450 | X18: 500 | AA18: Inlet (psig) | AB18: Static | AC18: 50-200 [GPM] | AD18: 200-300 [GPM] | AE18: 300-400 [GPM] | AF18: 400-500 [GPM] | AI18: Inlet (psig) | AJ18: =CONCATENATE("Outlet Residual @ " &AX$8& " GPM") -> Outlet Residual @ 0 GPM | AK18: =CONCATENATE("Outlet Residual @ " &AX$9& " GPM") -> Outlet Residual @ 0 GPM | AN18: Const. PRI Interpolated @ Var. Flow | AT18: 2.5" Angle Double Spring | AV18: Calculated Static Outlet Pressure | AW18: Calculated Residual Outlet Pressure | AX18: Max Flow Rate
B19: 0 | C19: =N5 -> 0 | D19: =N19 -> 0 | E19: =N33 -> 0 | F19: =N47 -> 0 | G19: =N61 -> 0 | H19: =N75 -> 0 | K19: 2 | L19: 0 | AA19: =L19 -> 0 | AT19: Setting 1 | AV19: =IF($AQ$8=$AQ$9,$AQ$8,FORECAST($AX$5,$AQ$8:$AQ$9,$AM$8:$AM$9)) ->  | AW19: =IF($AQ$6=$AQ$7,$AQ$6,FORECAST($AX$6,$AQ$6:$AQ$7,$AM$6:$AM$7)) ->  | AX19: 500
B20: 50 | C20: 41 | D20: 48 | E20: =N34 -> 48 | F20: =N48 -> 48 | G20: =N62 -> 48 | H20: =N76 -> 49 | L20: 50 | M20: 50 | N20: 48 | O20: 43 | P20: 36 | Q20: 32 | R20: 26 | S20: 15 | AA20: =L20 -> 50 | AB20: =M20 -> 50 | AC20: =AVERAGE(N20:R20) -> 37 | AD20: =AVERAGE(R20:T20) -> 20.5 | AE20: =AVERAGE(T20:V20) ->  | AF20: =AVERAGE(V20:X20) ->  | AI20: =L20 -> 50 | AJ20: =HLOOKUP($AX$8,$M$18:$X$27,3) -> 50 | AK20: =HLOOKUP($AX$9,$M$18:$X$27,3) -> 50 | AL20: PRI1: | AM20: =LARGE(L20:L27,COUNTIF(L20:L27,">" &AX6)+1) ->  | AN20: =VLOOKUP(AM20,AI20:AK27,2) ->  | AO20: =VLOOKUP(AM20,AI20:AK27,3) ->  | AP20: PRO1: | AQ20: =IF(AX8=AX9, AN20, FORECAST(AX7,$AN$20:$AO$20,$AX$8:$AX$9)) ->  | AT20: Setting 2 | AV20: =IF($AQ$22=$AQ$23,$AQ$22,FORECAST($AX$5,$AQ$22:$AQ$23,$AM$22:$AM$23)) ->  | AW20: =IF($AQ$20=$AQ$21,$AQ$20,FORECAST($AX$6,$AQ$20:$AQ$21,$AM$20:$AM$21)) ->  | AX20: 500
B21: 100 | C21: 64 | D21: 86 | E21: =N35 -> 96 | F21: =N49 -> 99 | G21: =N63 -> 100 | H21: =N77 -> 99 | L21: 100 | M21: 90 | N21: 86 | O21: 73 | P21: 67 | Q21: 64 | R21: 62 | S21: 56 | T21: 30 | AA21: 100 | AB21: 90 | AC21: =AVERAGE(N21:R21) -> 70.4 | AD21: =AVERAGE(R21:T21) -> 49.33333333 | AE21: =AVERAGE(T21:V21) -> 30 | AF21: =AVERAGE(V21:X21) ->  | AI21: =L21 -> 100 | AJ21: =HLOOKUP($AX$8,$M$18:$X$27,4) -> 90 | AK21: =HLOOKUP($AX$9,$M$18:$X$27,4) -> 90 | AL21: PRI2: | AM21: =SMALL(L20:L27,COUNTIF(L20:L27,"<" &AX6)+1) -> 50 | AN21: =VLOOKUP(AM21,AI20:AK27,2) -> 50 | AO21: =VLOOKUP(AM21,AI20:AK27,3) -> 50 | AP21: PRO2: | AQ21: =IF(AX8=AX9, AN21, FORECAST(AX7,$AN$21:$AO$21,$AX$8:$AX$9)) -> 50 | AT21: Setting 3 | AV21: =IF($AQ$36=$AQ$37,$AQ$36,FORECAST($AX$5,$AQ$36:$AQ$37,$AM$36:$AM$37)) ->  | AW21: =IF($AQ$34=$AQ$35,$AQ$34,FORECAST($AX$6,$AQ$34:$AQ$35,$AM$34:$AM$35)) ->  | AX21: 500
B22: 150 | C22: 85 | D22: 101 | E22: =N36 -> 127 | F22: 144 | G22: 149 | H22: 149 | L22: 150 | M22: 109 | N22: 101 | O22: 96 | P22: 91 | Q22: 88 | R22: 87 | S22: 86 | T22: 77 | U22: 74 | V22: 61 | W22: 38 | AA22: 150 | AB22: 109 | AC22: 92.6 | AD22: 83.33333333 | AE22: 70.66666667 | AF22: 49.5 | AI22: 150 | AJ22: =HLOOKUP($AX$8,$M$18:$X$27,5) -> 109 | AK22: =HLOOKUP($AX$9,$M$18:$X$27,5) -> 109 | AL22: PSI1: | AM22: =LARGE(L20:L27,COUNTIF(L20:L27,">" &AX5)+1) ->  | AP22: PSO1: | AQ22: =VLOOKUP(AM22,L20:M27,2) ->  | AT22: Setting 4 | AV22: =IF($AQ$50=$AQ$51,$AQ$50,FORECAST($AX$5,$AQ$50:$AQ$51,$AM$50:$AM$51)) ->  | AW22: =IF($AQ$48=$AQ$49,$AQ$48,FORECAST($AX$6,$AQ$48:$AQ$49,$AM$48:$AM$49)) ->  | AX22: 500
B23: 200 | C23: 101 | D23: 122 | E23: 141 | F23: 169 | G23: 190 | H23: 199 | L23: 200 | M23: 130 | N23: 122 | O23: 115 | P23: 118 | Q23: 110 | R23: 113 | S23: 104 | T23: 101 | U23: 93 | V23: 88 | W23: 83 | X23: 64 | AA23: 200 | AB23: 130 | AC23: 115.6 | AD23: 106 | AE23: 94 | AF23: 78.33333333 | AI23: 200 | AJ23: =HLOOKUP($AX$8,$M$18:$X$27,6) -> 130 | AK23: =HLOOKUP($AX$9,$M$18:$X$27,6) -> 130 | AL23: PSI2: | AM23: =SMALL(L20:L27,COUNTIF(L20:L27,"<" &AX5)+1) -> 50 | AP23: PSO2: | AQ23: =VLOOKUP(AM23,L20:M27,2) -> 50 | AT23: Setting 5 | AV23: =IF($AQ$64=$AQ$65,$AQ$64,FORECAST($AX$5,$AQ$64:$AQ$65,$AM$64:$AM$65)) ->  | AW23: =IF($AQ$62=$AQ$63,$AQ$62,FORECAST($AX$6,$AQ$62:$AQ$63,$AM$62:$AM$63)) ->  | AX23: 500
B24: 250 | C24: 121 | D24: 146 | E24: 157 | F24: 185 | G24: 202 | H24: 228 | L24: 250 | M24: 150 | N24: 146 | O24: 134 | P24: 131 | Q24: 134 | R24: 130 | S24: 126 | T24: 120 | U24: 114 | V24: 109 | W24: 105 | X24: 98 | AA24: 250 | AB24: 150 | AC24: 135 | AD24: 125.3333333 | AE24: 114.3333333 | AF24: 104 | AI24: 250 | AJ24: =HLOOKUP($AX$8,$M$18:$X$27,7) -> 150 | AK24: =HLOOKUP($AX$9,$M$18:$X$27,7) -> 150 | AT24: Setting 6 | AV24: =IF($AQ$78=$AQ$79,$AQ$78,FORECAST($AX$5,$AQ$78:$AQ$79,$AM$78:$AM$79)) ->  | AW24: =IF($AQ$76=$AQ$77,$AQ$76,FORECAST($AX$6,$AQ$76:$AQ$77,$AM$76:$AM$77)) ->  | AX24: 500
B25: 300 | C25: 145 | D25: 160 | E25: 187 | F25: 202 | G25: 208 | H25: 222 | L25: 300 | M25: 173 | N25: 160 | O25: 152 | P25: 150 | Q25: 148 | R25: 146 | S25: 143 | T25: 139 | U25: 135 | V25: 130 | W25: 124 | X25: 120 | AA25: 300 | AB25: 173 | AC25: 151.2 | AD25: 142.6666667 | AE25: 134.6666667 | AF25: 124.6666667 | AI25: 300 | AJ25: =HLOOKUP($AX$8,$M$18:$X$27,8) -> 173 | AK25: =HLOOKUP($AX$9,$M$18:$X$27,8) -> 173
B26: 350 | C26: 162 | D26: 185 | E26: 204 | F26: 212 | G26: 227 | H26: 241 | L26: 350 | M26: 191 | N26: 185 | O26: 174 | P26: 170 | Q26: 168 | R26: 164 | S26: 159 | T26: 159 | U26: 154 | V26: 148 | W26: 143 | X26: 138 | AA26: 350 | AB26: 191 | AC26: 172.2 | AD26: 160.6666667 | AE26: 153.6666667 | AF26: 143 | AI26: 350 | AJ26: =HLOOKUP($AX$8,$M$18:$X$27,9) -> 191 | AK26: =HLOOKUP($AX$9,$M$18:$X$27,9) -> 191
B27: 400 | C27: 184 | D27: 201 | E27: 218 | F27: 248 | G27: 247 | H27: 264 | L27: 400 | M27: 215 | N27: 201 | O27: 197 | P27: 191 | Q27: 188 | R27: 185 | S27: 179 | T27: 173 | U27: 167 | V27: 170 | W27: 165 | X27: 159 | AA27: 400 | AB27: 215 | AC27: 192.4 | AD27: 179 | AE27: 170 | AF27: 164.6666667 | AI27: 400 | AJ27: =HLOOKUP($AX$8,$M$18:$X$27,10) -> 215 | AK27: =HLOOKUP($AX$9,$M$18:$X$27,10) -> 215
B31: 100 GPM FLOW RATE | K31: Bonnet Setting | L31: Inlet Pressure psig | M31: OUTLET PRESSURES @ FLOW RATE, GPM | AA31: Setting # 3: Inlet vs. Outlet Pressure Over Flow Range | AI31: SETTING 3
B32: Inlet (psig) | C32: Outlet-1 (psig) | D32: Outlet-2 (psig) | E32: Outlet-3 (psig) | F32: Outlet-4 (psig) | G32: Outlet-5 (psig) | H32: Outlet-6 (psig) | M32: 0 | N32: 50 | O32: 100 | P32: 150 | Q32: 175 | R32: 200 | S32: 250 | T32: 300 | U32: 350 | V32: 400 | W32: 450 | X32: 500 | AA32: Inlet (psig) | AB32: Static | AC32: 50-200 [GPM] | AD32: 200-300 [GPM] | AE32: 300-400 [GPM] | AF32: 400-500 [GPM] | AI32: Inlet (psig) | AJ32: =CONCATENATE("Outlet Residual @ " &AX$8& " GPM") -> Outlet Residual @ 0 GPM | AK32: =CONCATENATE("Outlet Residual @ " &AX$9& " GPM") -> Outlet Residual @ 0 GPM | AN32: Const. PRI Interpolated @ Var. Flow
B33: 0 | C33: =O5 -> 0 | D33: =O19 -> 0 | E33: =O33 -> 0 | F33: =O47 -> 0 | G33: =O61 -> 0 | H33: =O75 -> 0 | K33: 3 | L33: 0 | AA33: =L33 -> 0
B34: 50 | C34: 31 | D34: =O20 -> 43 | E34: =O34 -> 44 | F34: =O48 -> 44 | G34: =O62 -> 44 | H34: =O76 -> 43 | L34: 50 | M34: 50 | N34: 48 | O34: 44 | P34: 37 | Q34: 32 | R34: 27 | S34: 14 | AA34: =L34 -> 50 | AB34: =M34 -> 50 | AC34: =AVERAGE(N34:R34) -> 37.6 | AD34: =AVERAGE(R34:T34) -> 20.5 | AE34: =AVERAGE(T34:V34) ->  | AF34: =AVERAGE(V34:X34) ->  | AI34: =L34 -> 50 | AJ34: =HLOOKUP($AX$8,$M$32:$X$41,3) -> 50 | AK34: =HLOOKUP($AX$9,$M$32:$X$41,3) -> 50 | AL34: PRI1: | AM34: =LARGE(L34:L41,COUNTIF(L34:L41,">" &AX6)+1) ->  | AN34: =VLOOKUP(AM34,AI34:AK41,2) ->  | AO34: =VLOOKUP(AM34,AI34:AK41,3) ->  | AP34: PRO1: | AQ34: =IF(AX8=AX9, AN34, FORECAST(AX7,$AN$34:$AO$34,$AX$8:$AX$9)) -> 
B35: 100 | C35: 57 | D35: =O21 -> 73 | E35: =O35 -> 88 | F35: =O49 -> 94 | G35: =O63 -> 94 | H35: =O77 -> 94 | L35: 100 | M35: 100 | N35: 96 | O35: 88 | P35: 79 | Q35: 77 | R35: 73 | S35: 64 | T35: 49 | U35: 31 | AA35: 100 | AB35: 100 | AC35: =AVERAGE(N35:R35) -> 82.6 | AD35: =AVERAGE(R35:T35) -> 62 | AE35: =AVERAGE(T35:V35) -> 40 | AF35: =AVERAGE(V35:X35) ->  | AI35: =L35 -> 100 | AJ35: =HLOOKUP($AX$8,$M$32:$X$41,4) -> 100 | AK35: =HLOOKUP($AX$9,$M$32:$X$41,4) -> 100 | AL35: PRI2: | AM35: =SMALL(L34:L41,COUNTIF(L34:L41,"<" &AX6)+1) -> 50 | AN35: =VLOOKUP(AM35,AI34:AK41,2) -> 50 | AO35: =VLOOKUP(AM35,AI34:AK41,3) -> 50 | AP35: PRO2: | AQ35: =IF(AX8=AX9, AN35, FORECAST(AX7,$AN$35:$AO$35,$AX$8:$AX$9)) -> 50
B36: 150 | C36: 76 | D36: =O22 -> 96 | E36: =O36 -> 112 | F36: 125 | G36: 144 | H36: 143 | L36: 150 | M36: 130 | N36: 127 | O36: 112 | P36: 116 | Q36: 104 | R36: 99 | S36: 96 | T36: 90 | U36: 81 | V36: 62 | W36: 41 | AA36: 150 | AB36: 130 | AC36: 111.6 | AD36: 95 | AE36: 77.66666667 | AF36: 51.5 | AI36: 150 | AJ36: =HLOOKUP($AX$8,$M$32:$X$41,5) -> 130 | AK36: =HLOOKUP($AX$9,$M$32:$X$41,5) -> 130 | AL36: PSI1: | AM36: =LARGE(L34:L41,COUNTIF(L34:L41,">" &AX5)+1) ->  | AP36: PSO1: | AQ36: =VLOOKUP(AM36,L34:M41,2) -> 
B37: 200 | C37: 96 | D37: 115 | E37: 132 | F37: 146 | G37: 160 | H37: 193 | L37: 200 | M37: 148 | N37: 141 | O37: 132 | P37: 130 | Q37: 128 | R37: 124 | S37: 124 | T37: 114 | U37: 107 | V37: 103 | W37: 89 | X37: 64 | AA37: 200 | AB37: 148 | AC37: 131 | AD37: 120.6666667 | AE37: 108 | AF37: 85.33333333 | AI37: 200 | AJ37: =HLOOKUP($AX$8,$M$32:$X$41,6) -> 148 | AK37: =HLOOKUP($AX$9,$M$32:$X$41,6) -> 148 | AL37: PSI2: | AM37: =SMALL(L34:L41,COUNTIF(L34:L41,"<" &AX5)+1) -> 50 | AP37: PSO2: | AQ37: =VLOOKUP(AM37,L34:M41,2) -> 50
B38: 250 | C38: 116 | D38: 134 | E38: 152 | F38: 166 | G38: 183 | H38: 194 | L38: 250 | M38: 170 | N38: 157 | O38: 152 | P38: 147 | Q38: 146 | R38: 144 | S38: 142 | T38: 136 | U38: 133 | V38: 126 | W38: 120 | X38: 114 | AA38: 250 | AB38: 170 | AC38: 149.2 | AD38: 140.6666667 | AE38: 131.6666667 | AF38: 120 | AI38: 250 | AJ38: =HLOOKUP($AX$8,$M$32:$X$41,7) -> 170 | AK38: =HLOOKUP($AX$9,$M$32:$X$41,7) -> 170
B39: 300 | C39: 136 | D39: 152 | E39: 171 | F39: 186 | G39: 201 | H39: 216 | L39: 300 | M39: 191 | N39: 187 | O39: 171 | P39: 166 | Q39: 163 | R39: 163 | S39: 162 | T39: 157 | U39: 151 | V39: 149 | W39: 142 | X39: 137 | AA39: 300 | AB39: 191 | AC39: 170 | AD39: 160.6666667 | AE39: 152.3333333 | AF39: 142.6666667 | AI39: 300 | AJ39: =HLOOKUP($AX$8,$M$32:$X$41,8) -> 191 | AK39: =HLOOKUP($AX$9,$M$32:$X$41,8) -> 191
B40: 350 | C40: 156 | D40: 174 | E40: 191 | F40: 205 | G40: 221 | H40: 235 | L40: 350 | M40: 209 | N40: 204 | O40: 191 | P40: 191 | Q40: 193 | R40: 182 | S40: 187 | T40: 175 | U40: 172 | V40: 167 | W40: 163 | X40: 158 | AA40: 350 | AB40: 209 | AC40: 192.2 | AD40: 181.3333333 | AE40: 171.3333333 | AF40: 162.6666667 | AI40: 350 | AJ40: =HLOOKUP($AX$8,$M$32:$X$41,9) -> 209 | AK40: =HLOOKUP($AX$9,$M$32:$X$41,9) -> 209
B41: 400 | C41: 177 | D41: 197 | E41: 212 | F41: 242 | G41: 239 | H41: 257 | L41: 400 | M41: 233 | N41: 218 | O41: 212 | P41: 206 | Q41: 203 | R41: 202 | S41: 196 | T41: 193 | U41: 196 | V41: 186 | W41: 181 | X41: 175 | AA41: 400 | AB41: 233 | AC41: 208.2 | AD41: 197 | AE41: 191.6666667 | AF41: 180.6666667 | AI41: 400 | AJ41: =HLOOKUP($AX$8,$M$32:$X$41,10) -> 233 | AK41: =HLOOKUP($AX$9,$M$32:$X$41,10) -> 233
B45: 150 GPM FLOW RATE | K45: Bonnet Setting | L45: Inlet Pressure psig | M45: OUTLET PRESSURES @ FLOW RATE, GPM | AA45: Setting # 4: Inlet vs. Outlet Pressure Over Flow Range | AI45: SETTING 4
B46: Inlet (psig) | C46: Outlet-1 (psig) | D46: Outlet-2 (psig) | E46: Outlet-3 (psig) | F46: Outlet-4 (psig) | G46: Outlet-5 (psig) | H46: Outlet-6 (psig) | M46: 0 | N46: 50 | O46: 100 | P46: 150 | Q46: 175 | R46: 200 | S46: 250 | T46: 300 | U46: 350 | V46: 400 | W46: 450 | X46: 500 | AA46: Inlet (psig) | AB46: Static | AC46: 50-200 [GPM] | AD46: 200-300 [GPM] | AE46: 300-400 [GPM] | AF46: 400-500 [GPM] | AI46: Inlet (psig) | AJ46: =CONCATENATE("Outlet Residual @ " &AX$8& " GPM") -> Outlet Residual @ 0 GPM | AK46: =CONCATENATE("Outlet Residual @ " &AX$9& " GPM") -> Outlet Residual @ 0 GPM | AN46: Const. PRI Interpolated @ Var. Flow
B47: 0 | C47: =P5 -> 0 | D47: =P19 -> 0 | E47: =P33 -> 0 | F47: =P47 -> 0 | G47: =P61 -> 0 | H47: =P75 -> 0 | K47: 4 | L47: 0 | AA47: =L47 -> 0
B48: 50 | C48: 27 | D48: =P20 -> 36 | E48: =P34 -> 37 | F48: =P48 -> 37 | G48: =P62 -> 37 | H48: =P76 -> 37 | L48: 50 | M48: 50 | N48: 48 | O48: 44 | P48: 37 | Q48: 32 | R48: 27 | S48: 15 | AA48: =L48 -> 50 | AB48: =M48 -> 50 | AC48: =AVERAGE(N48:R48) -> 37.6 | AD48: =AVERAGE(R48:T48) -> 21 | AE48: =AVERAGE(T48:V48) ->  | AF48: =AVERAGE(V48:X48) ->  | AI48: =L48 -> 50 | AJ48: =HLOOKUP($AX$8,$M$46:$X$55,3) -> 50 | AK48: =HLOOKUP($AX$9,$M$46:$X$55,3) -> 50 | AL48: PRI1: | AM48: =LARGE(L48:L55,COUNTIF(L48:L55,">" &AX6)+1) ->  | AN48: =VLOOKUP(AM48,AI48:AK55,2) ->  | AO48: =VLOOKUP(AM48,AI48:AK55,3) ->  | AP48: PRO1: | AQ48: =IF(AX8=AX9, AN48, FORECAST(AX7,$AN$48:$AO$48,$AX$8:$AX$9)) -> 
B49: 100 | C49: 52 | D49: =P21 -> 67 | E49: =P35 -> 79 | F49: =P49 -> 87 | G49: =P63 -> 87 | H49: =P77 -> 87 | L49: 100 | M49: 100 | N49: 99 | O49: 94 | P49: 87 | Q49: 83 | R49: 78 | S49: 64 | T49: 50 | U49: 33 | AA49: 100 | AB49: 100 | AC49: =AVERAGE(N49:R49) -> 88.2 | AD49: =AVERAGE(R49:T49) -> 64 | AE49: =AVERAGE(T49:V49) -> 41.5 | AF49: =AVERAGE(V49:X49) ->  | AI49: =L49 -> 100 | AJ49: =HLOOKUP($AX$8,$M$46:$X$55,4) -> 100 | AK49: =HLOOKUP($AX$9,$M$46:$X$55,4) -> 100 | AL49: PRI2: | AM49: =SMALL(L48:L55,COUNTIF(L48:L55,"<" &AX6)+1) -> 50 | AN49: =VLOOKUP(AM49,AI48:AK55,2) -> 50 | AO49: =VLOOKUP(AM49,AI48:AK55,3) -> 50 | AP49: PRO2: | AQ49: =IF(AX8=AX9, AN49, FORECAST(AX7,$AN$49:$AO$49,$AX$8:$AX$9)) -> 50
B50: 150 | C50: 73 | D50: =P22 -> 91 | E50: 116 | F50: 118 | G50: 137 | H50: 136 | L50: 150 | M50: 150 | N50: 144 | O50: 125 | P50: 118 | Q50: 116 | R50: 111 | S50: 106 | T50: 100 | U50: 82 | V50: 62 | W50: 40 | AA50: 150 | AB50: 150 | AC50: 122.8 | AD50: 105.6666667 | AE50: 81.33333333 | AF50: 51 | AI50: 150 | AJ50: =HLOOKUP($AX$8,$M$46:$X$55,5) -> 150 | AK50: =HLOOKUP($AX$9,$M$46:$X$55,5) -> 150 | AL50: PSI1: | AM50: =LARGE(L48:L55,COUNTIF(L48:L55,">" &AX5)+1) ->  | AP50: PSO1: | AQ50: =VLOOKUP(AM50,L48:M55,2) -> 
B51: 200 | C51: 92 | D51: 118 | E51: 130 | F51: 146 | G51: 152 | H51: 183 | L51: 200 | M51: 173 | N51: 169 | O51: 146 | P51: 146 | Q51: 145 | R51: 139 | S51: 131 | T51: 125 | U51: 119 | V51: 112 | W51: 90 | X51: 63 | AA51: 200 | AB51: 173 | AC51: 149 | AD51: 131.6666667 | AE51: 118.6666667 | AF51: 88.33333333 | AI51: 200 | AJ51: =HLOOKUP($AX$8,$M$46:$X$55,6) -> 173 | AK51: =HLOOKUP($AX$9,$M$46:$X$55,6) -> 173 | AL51: PSI2: | AM51: =SMALL(L48:L55,COUNTIF(L48:L55,"<" &AX5)+1) -> 50 | AP51: PSO2: | AQ51: =VLOOKUP(AM51,L48:M55,2) -> 50
B52: 250 | C52: 111 | D52: 131 | E52: 147 | F52: 163 | G52: 178 | H52: 188 | L52: 250 | M52: 192 | N52: 185 | O52: 166 | P52: 163 | Q52: 162 | R52: 157 | S52: 153 | T52: 149 | U52: 144 | V52: 140 | W52: 133 | X52: 113 | AA52: 250 | AB52: 192 | AC52: 166.6 | AD52: 153 | AE52: 144.3333333 | AF52: 128.6666667 | AI52: 250 | AJ52: =HLOOKUP($AX$8,$M$46:$X$55,7) -> 192 | AK52: =HLOOKUP($AX$9,$M$46:$X$55,7) -> 192
B53: 300 | C53: 130 | D53: 150 | E53: 166 | F53: 181 | G53: 197 | H53: 212 | L53: 300 | M53: 212 | N53: 202 | O53: 186 | P53: 181 | Q53: 180 | R53: 182 | S53: 175 | T53: 172 | U53: 166 | V53: 160 | W53: 162 | X53: 151 | AA53: 300 | AB53: 212 | AC53: 186.2 | AD53: 176.3333333 | AE53: 166 | AF53: 157.6666667 | AI53: 300 | AJ53: =HLOOKUP($AX$8,$M$46:$X$55,8) -> 212 | AK53: =HLOOKUP($AX$9,$M$46:$X$55,8) -> 212
B54: 350 | C54: 151 | D54: 170 | E54: 191 | F54: 200 | G54: 215 | H54: 228 | L54: 350 | M54: 225 | N54: 212 | O54: 205 | P54: 200 | Q54: 202 | R54: 208 | S54: 195 | T54: 194 | U54: 185 | V54: 180 | W54: 175 | X54: 175 | AA54: 350 | AB54: 225 | AC54: 205.4 | AD54: 199 | AE54: 186.3333333 | AF54: 176.6666667 | AI54: 350 | AJ54: =HLOOKUP($AX$8,$M$46:$X$55,9) -> 225 | AK54: =HLOOKUP($AX$9,$M$46:$X$55,9) -> 225
B55: 400 | C55: 172 | D55: 191 | E55: 206 | F55: 219 | G55: 236 | H55: 249 | L55: 400 | M55: 255 | N55: 248 | O55: 242 | P55: 219 | Q55: 216 | R55: 224 | S55: 222 | T55: 210 | U55: 206 | V55: 200 | W55: 204 | X55: 189 | AA55: 400 | AB55: 255 | AC55: 229.8 | AD55: 218.6666667 | AE55: 205.3333333 | AF55: 197.6666667 | AI55: 400 | AJ55: =HLOOKUP($AX$8,$M$46:$X$55,10) -> 255 | AK55: =HLOOKUP($AX$9,$M$46:$X$55,10) -> 255
B59: 175 GPM FLOW RATE | K59: Bonnet Setting | L59: Inlet Pressure psig | M59: OUTLET PRESSURES @ FLOW RATE, GPM | AA59: Setting # 5: Inlet vs. Outlet Pressure Over Flow Range | AI59: SETTING 5
B60: Inlet (psig) | C60: Outlet-1 (psig) | D60: Outlet-2 (psig) | E60: Outlet-3 (psig) | F60: Outlet-4 (psig) | G60: Outlet-5 (psig) | H60: Outlet-6 (psig) | M60: 0 | N60: 50 | O60: 100 | P60: 150 | Q60: 175 | R60: 200 | S60: 250 | T60: 300 | U60: 350 | V60: 400 | W60: 450 | X60: 500 | AA60: Inlet (psig) | AB60: Static | AC60: 50-200 [GPM] | AD60: 200-300 [GPM] | AE60: 300-400 [GPM] | AF60: 400-500 [GPM] | AI60: Inlet (psig) | AJ60: =CONCATENATE("Outlet Residual @ " &AX$8& " GPM") -> Outlet Residual @ 0 GPM | AK60: =CONCATENATE("Outlet Residual @ " &AX$9& " GPM") -> Outlet Residual @ 0 GPM | AN60: Const. PRI Interpolated @ Var. Flow
B61: 0 | C61: =Q5 -> 0 | D61: =Q19 -> 0 | E61: =Q33 -> 0 | F61: =Q47 -> 0 | G61: =Q61 -> 0 | H61: =Q75 -> 0 | K61: 5 | L61: 0 | AA61: =L61 -> 0
B62: 50 | C62: =Q6 -> 23 | D62: =Q20 -> 32 | E62: =Q34 -> 32 | F62: =Q48 -> 32 | G62: =Q62 -> 32 | H62: =Q76 -> 32 | L62: 50 | M62: 50 | N62: 48 | O62: 44 | P62: 37 | Q62: 32 | R62: 26 | S62: 14 | AA62: =L62 -> 50 | AB62: =M62 -> 50 | AC62: =AVERAGE(N62:R62) -> 37.4 | AD62: =AVERAGE(R62:T62) -> 20 | AE62: =AVERAGE(T62:V62) ->  | AF62: =AVERAGE(V62:X62) ->  | AI62: =L62 -> 50 | AJ62: =HLOOKUP($AX$8,$M$60:$X$69,3) -> 50 | AK62: =HLOOKUP($AX$9,$M$60:$X$69,3) -> 50 | AL62: PRI1: | AM62: =LARGE(L62:L69,COUNTIF(L62:L69,">" &AX6)+1) ->  | AN62: =VLOOKUP(AM62,AI62:AK69,2) ->  | AO62: =VLOOKUP(AM62,AI62:AK69,3) ->  | AP62: PRO1: | AQ62: =IF(AX8=AX9, AN62, FORECAST(AX7,$AN$62:$AO$62,$AX$8:$AX$9)) -> 
B63: 100 | C63: =Q7 -> 47 | D63: =Q21 -> 64 | E63: =Q35 -> 77 | F63: =Q49 -> 83 | G63: =Q63 -> 82 | H63: =Q77 -> 83 | L63: 100 | M63: 100 | N63: 100 | O63: 94 | P63: 87 | Q63: 82 | R63: 78 | S63: 65 | T63: 51 | U63: 33 | AA63: 100 | AB63: 100 | AC63: =AVERAGE(N63:R63) -> 88.2 | AD63: =AVERAGE(R63:T63) -> 64.66666667 | AE63: =AVERAGE(T63:V63) -> 42 | AF63: =AVERAGE(V63:X63) ->  | AI63: =L63 -> 100 | AJ63: =HLOOKUP($AX$8,$M$60:$X$69,4) -> 100 | AK63: =HLOOKUP($AX$9,$M$60:$X$69,4) -> 100 | AL63: PRI2: | AM63: =SMALL(L62:L69,COUNTIF(L62:L69,"<" &AX6)+1) -> 50 | AN63: =VLOOKUP(AM63,AI62:AK69,2) -> 50 | AO63: =VLOOKUP(AM63,AI62:AK69,3) -> 50 | AP63: PRO2: | AQ63: =IF(AX8=AX9, AN63, FORECAST(AX7,$AN$63:$AO$63,$AX$8:$AX$9)) -> 50
B64: 150 | C64: =Q8 -> 71 | D64: =Q22 -> 88 | E64: 104 | F64: 116 | G64: 133 | H64: 133 | L64: 150 | M64: 150 | N64: 149 | O64: 144 | P64: 137 | Q64: 133 | R64: 127 | S64: 118 | T64: 99 | U64: 83 | V64: 62 | W64: 41 | AA64: 150 | AB64: 150 | AC64: 138 | AD64: 114.6666667 | AE64: 81.33333333 | AF64: 51.5 | AI64: 150 | AJ64: =HLOOKUP($AX$8,$M$60:$X$69,5) -> 150 | AK64: =HLOOKUP($AX$9,$M$60:$X$69,5) -> 150 | AL64: PSI1: | AM64: =LARGE(L62:L69,COUNTIF(L62:L69,">" &AX5)+1) ->  | AP64: PSO1: | AQ64: =VLOOKUP(AM64,L62:M69,2) -> 
B65: 200 | C65: 92 | D65: 110 | E65: 128 | F65: 145 | G65: 150 | H65: 175 | L65: 200 | M65: 199 | N65: 190 | O65: 160 | P65: 152 | Q65: 150 | R65: 148 | S65: 142 | T65: 146 | U65: 131 | V65: 111 | W65: 88 | X65: 65 | AA65: 200 | AB65: 199 | AC65: 160 | AD65: 145.3333333 | AE65: 129.3333333 | AF65: 88 | AI65: 200 | AJ65: =HLOOKUP($AX$8,$M$60:$X$69,6) -> 199 | AK65: =HLOOKUP($AX$9,$M$60:$X$69,6) -> 199 | AL65: PSI2: | AM65: =SMALL(L62:L69,COUNTIF(L62:L69,"<" &AX5)+1) -> 50 | AP65: PSO2: | AQ65: =VLOOKUP(AM65,L62:M69,2) -> 50
B66: 250 | C66: 108 | D66: 134 | E66: 146 | F66: 162 | G66: 172 | H66: 189 | L66: 250 | M66: 220 | N66: 202 | O66: 183 | P66: 178 | Q66: 172 | R66: 171 | S66: 165 | T66: 160 | U66: 159 | V66: 153 | W66: 139 | X66: 115 | AA66: 250 | AB66: 220 | AC66: 181.2 | AD66: 165.3333333 | AE66: 157.3333333 | AF66: 135.6666667 | AI66: 250 | AJ66: =HLOOKUP($AX$8,$M$60:$X$69,7) -> 220 | AK66: =HLOOKUP($AX$9,$M$60:$X$69,7) -> 220
B67: 300 | C67: 128 | D67: 148 | E67: 163 | F67: 180 | G67: 195 | H67: 216 | L67: 300 | M67: 240 | N67: 208 | O67: 201 | P67: 197 | Q67: 195 | R67: 191 | S67: 188 | T67: 190 | U67: 180 | V67: 175 | W67: 167 | X67: 163 | AA67: 300 | AB67: 240 | AC67: 198.4 | AD67: 189.6666667 | AE67: 181.6666667 | AF67: 168.3333333 | AI67: 300 | AJ67: =HLOOKUP($AX$8,$M$60:$X$69,8) -> 240 | AK67: =HLOOKUP($AX$9,$M$60:$X$69,8) -> 240
B68: 350 | C68: 149 | D68: 168 | E68: 193 | F68: 202 | G68: 213 | H68: 228 | L68: 350 | M68: 256 | N68: 227 | O68: 221 | P68: 215 | Q68: 213 | R68: 217 | S68: 207 | T68: 217 | U68: 198 | V68: 191 | W68: 189 | X68: 183 | AA68: 350 | AB68: 256 | AC68: 218.6 | AD68: 213.6666667 | AE68: 202 | AF68: 187.6666667 | AI68: 350 | AJ68: =HLOOKUP($AX$8,$M$60:$X$69,9) -> 256 | AK68: =HLOOKUP($AX$9,$M$60:$X$69,9) -> 256
B69: 400 | C69: 169 | D69: 188 | E69: 203 | F69: 216 | G69: 231 | H69: 247 | L69: 400 | M69: 278 | N69: 247 | O69: 239 | P69: 236 | Q69: 231 | R69: 229 | S69: 231 | T69: 222 | U69: 224 | V69: 216 | W69: 219 | X69: 201 | AA69: 400 | AB69: 278 | AC69: 236.4 | AD69: 227.3333333 | AE69: 220.6666667 | AF69: 212 | AI69: 400 | AJ69: =HLOOKUP($AX$8,$M$60:$X$69,10) -> 278 | AK69: =HLOOKUP($AX$9,$M$60:$X$69,10) -> 278
B73: 200 GPM FLOW RATE | K73: Bonnet Setting | L73: Inlet Pressure psig | M73: OUTLET PRESSURES @ FLOW RATE, GPM | AA73: Setting # 6: Inlet vs. Outlet Pressure Over Flow Range | AI73: SETTING 6
B74: Inlet (psig) | C74: Outlet-1 (psig) | D74: Outlet-2 (psig) | E74: Outlet-3 (psig) | F74: Outlet-4 (psig) | G74: Outlet-5 (psig) | H74: Outlet-6 (psig) | M74: 0 | N74: 50 | O74: 100 | P74: 150 | Q74: 175 | R74: 200 | S74: 250 | T74: 300 | U74: 350 | V74: 400 | W74: 450 | X74: 500 | AA74: Inlet (psig) | AB74: Static | AC74: 50-200 [GPM] | AD74: 200-300 [GPM] | AE74: 300-400 [GPM] | AF74: 400-500 [GPM] | AI74: Inlet (psig) | AJ74: =CONCATENATE("Outlet Residual @ " &AX$8& " GPM") -> Outlet Residual @ 0 GPM | AK74: =CONCATENATE("Outlet Residual @ " &AX$9& " GPM") -> Outlet Residual @ 0 GPM | AN74: Const. PRI Interpolated @ Var. Flow
B75: 0 | C75: =R5 -> 0 | D75: =R19 -> 0 | E75: =R33 -> 0 | F75: =R47 -> 0 | G75: =R61 -> 0 | H75: =R75 -> 0 | K75: 6 | L75: 0 | AA75: =L75 -> 0
B76: 50 | C76: 20 | D76: =R20 -> 26 | E76: =R34 -> 27 | F76: =R48 -> 27 | G76: =R62 -> 26 | H76: =R76 -> 27 | L76: 50 | M76: 50 | N76: 49 | O76: 43 | P76: 37 | Q76: 32 | R76: 27 | S76: 15 | AA76: =L76 -> 50 | AB76: =M76 -> 50 | AC76: =AVERAGE(N76:R76) -> 37.6 | AD76: =AVERAGE(R76:T76) -> 21 | AE76: =AVERAGE(T76:V76) ->  | AF76: =AVERAGE(V76:X76) ->  | AI76: =L76 -> 50 | AJ76: =HLOOKUP($AX$8,$M$74:$X$83,3) -> 50 | AK76: =HLOOKUP($AX$9,$M$74:$X$83,3) -> 50 | AL76: PRI1: | AM76: =LARGE(L76:L83,COUNTIF(L76:L83,">" &AX6)+1) ->  | AN76: =VLOOKUP(AM76,AI76:AK83,2) ->  | AO76: =VLOOKUP(AM76,AI76:AK83,3) ->  | AP76: PRO1: | AQ76: =IF(AX8=AX9, AN76, FORECAST(AX7,$AN$76:$AO$76,$AX$8:$AX$9)) -> 
B77: 100 | C77: 46 | D77: =R21 -> 62 | E77: =R35 -> 73 | F77: =R49 -> 78 | G77: =R63 -> 78 | H77: =R77 -> 77 | L77: 100 | M77: 100 | N77: 99 | O77: 94 | P77: 87 | Q77: 83 | R77: 77 | S77: 63 | T77: 50 | U77: 32 | AA77: 100 | AB77: 100 | AC77: =AVERAGE(N77:R77) -> 88 | AD77: =AVERAGE(R77:T77) -> 63.33333333 | AE77: =AVERAGE(T77:V77) -> 41 | AF77: =AVERAGE(V77:X77) ->  | AI77: =L77 -> 100 | AJ77: =HLOOKUP($AX$8,$M$74:$X$83,4) -> 100 | AK77: =HLOOKUP($AX$9,$M$74:$X$83,4) -> 100 | AL77: PRI2: | AM77: =SMALL(L76:L83,COUNTIF(L76:L83,"<" &AX6)+1) -> 50 | AN77: =VLOOKUP(AM77,AI76:AK83,2) -> 50 | AO77: =VLOOKUP(AM77,AI76:AK83,3) -> 50 | AP77: PRO2: | AQ77: =IF(AX8=AX9, AN77, FORECAST(AX7,$AN$77:$AO$77,$AX$8:$AX$9)) -> 50
B78: 150 | C78: 69 | D78: =R22 -> 87 | E78: 99 | F78: 111 | G78: 127 | H78: 126 | L78: 150 | M78: 150 | N78: 149 | O78: 143 | P78: 136 | Q78: 133 | R78: 126 | S78: 115 | T78: 99 | U78: 83 | V78: 64 | W78: 41 | AA78: 150 | AB78: 150 | AC78: 137.4 | AD78: 113.3333333 | AE78: 82 | AF78: 52.5 | AI78: 150 | AJ78: =HLOOKUP($AX$8,$M$74:$X$83,5) -> 150 | AK78: =HLOOKUP($AX$9,$M$74:$X$83,5) -> 150 | AL78: PSI1: | AM78: =LARGE(L76:L83,COUNTIF(L76:L83,">" &AX5)+1) ->  | AP78: PSO1: | AQ78: =VLOOKUP(AM78,L76:M83,2) -> 
B79: 200 | C79: 90 | D79: 113 | E79: 124 | F79: 139 | G79: 148 | H79: 166 | L79: 200 | M79: 200 | N79: 199 | O79: 193 | P79: 183 | Q79: 175 | R79: 166 | S79: 154 | T79: 145 | U79: 132 | V79: 112 | W79: 89 | X79: 66 | AA79: 200 | AB79: 200 | AC79: 183.2 | AD79: 155 | AE79: 129.6666667 | AF79: 89 | AI79: 200 | AJ79: =HLOOKUP($AX$8,$M$74:$X$83,6) -> 200 | AK79: =HLOOKUP($AX$9,$M$74:$X$83,6) -> 200 | AL79: PSI2: | AM79: =SMALL(L76:L83,COUNTIF(L76:L83,"<" &AX5)+1) -> 50 | AP79: PSO2: | AQ79: =VLOOKUP(AM79,L76:M83,2) -> 50
B80: 250 | C80: 111 | D80: 130 | E80: 144 | F80: 157 | G80: 171 | H80: 185 | L80: 250 | M80: 238 | N80: 228 | O80: 194 | P80: 188 | Q80: 189 | R80: 185 | S80: 177 | T80: 174 | U80: 165 | V80: 157 | W80: 139 | X80: 116 | AA80: 250 | AB80: 238 | AC80: 196.8 | AD80: 178.6666667 | AE80: 165.3333333 | AF80: 137.3333333 | AI80: 250 | AJ80: =HLOOKUP($AX$8,$M$74:$X$83,7) -> 238 | AK80: =HLOOKUP($AX$9,$M$74:$X$83,7) -> 238
B81: 300 | C81: 126 | D81: 146 | E81: 163 | F81: 182 | G81: 191 | H81: 206 | L81: 300 | M81: 261 | N81: 222 | O81: 216 | P81: 212 | Q81: 216 | R81: 206 | S81: 201 | T81: 197 | U81: 198 | V81: 207 | W81: 184 | X81: 164 | AA81: 300 | AB81: 261 | AC81: 214.4 | AD81: 201.3333333 | AE81: 200.6666667 | AF81: 185 | AI81: 300 | AJ81: =HLOOKUP($AX$8,$M$74:$X$83,8) -> 261 | AK81: =HLOOKUP($AX$9,$M$74:$X$83,8) -> 261
B82: 350 | C82: 147 | D82: 164 | E82: 182 | F82: 208 | G82: 217 | H82: 227 | L82: 350 | M82: 266 | N82: 241 | O82: 235 | P82: 228 | Q82: 228 | R82: 227 | S82: 230 | T82: 218 | U82: 210 | V82: 207 | W82: 200 | X82: 194 | AA82: 350 | AB82: 266 | AC82: 231.8 | AD82: 225 | AE82: 211.6666667 | AF82: 200.3333333 | AI82: 350 | AJ82: =HLOOKUP($AX$8,$M$74:$X$83,9) -> 266 | AK82: =HLOOKUP($AX$9,$M$74:$X$83,9) -> 266
B83: 400 | C83: 167 | D83: 185 | E83: 202 | F83: 224 | G83: 229 | H83: 244 | L83: 400 | M83: 298 | N83: 264 | O83: 257 | P83: 249 | Q83: 247 | R83: 244 | S83: 242 | T83: 238 | U83: 232 | V83: 228 | W83: 222 | X83: 216 | AA83: 400 | AB83: 298 | AC83: 252.2 | AD83: 241.3333333 | AE83: 232.6666667 | AF83: 222 | AI83: 400 | AJ83: =HLOOKUP($AX$8,$M$74:$X$83,10) -> 298 | AK83: =HLOOKUP($AX$9,$M$74:$X$83,10) -> 298
B87: 250 GPM FLOW RATE
B88: Inlet (psig) | C88: Outlet-1 (psig) | D88: Outlet-2 (psig) | E88: Outlet-3 (psig) | F88: Outlet-4 (psig) | G88: Outlet-5 (psig) | H88: Outlet-6 (psig)
B89: 0 | C89: =S5 -> 0 | D89: =S19 -> 0 | E89: =S33 -> 0 | F89: =S47 -> 0 | G89: =S61 -> 0 | H89: =S75 -> 0
B90: 50 | C90: =S6 -> 14 | D90: =S20 -> 15 | E90: =S34 -> 14 | F90: =S48 -> 15 | G90: =S62 -> 14 | H90: =S76 -> 15
B91: 100 | C91: =S7 -> 42 | D91: =S21 -> 56 | E91: =S35 -> 64 | F91: =S49 -> 64 | G91: =S63 -> 65 | H91: =S77 -> 63
B92: 150 | C92: =S8 -> 64 | D92: =S22 -> 86 | E92: 96 | F92: 106 | G92: 118 | H92: 115
B93: 200 | C93: 85 | D93: 104 | E93: 124 | F93: 131 | G93: 142 | H93: 154
B94: 250 | C94: 105 | D94: 126 | E94: 142 | F94: 153 | G94: 165 | H94: 177
B95: 300 | C95: 120 | D95: 143 | E95: 162 | F95: 175 | G95: 188 | H95: 201
B96: 350 | C96: 142 | D96: 159 | E96: 187 | F96: 195 | G96: 207 | H96: 230
B97: 400 | C97: 162 | D97: 179 | E97: 196 | F97: 222 | G97: 231 | H97: 242
B101: 300 GPM FLOW RATE
B102: Inlet (psig) | C102: Outlet-1 (psig) | D102: Outlet-2 (psig) | E102: Outlet-3 (psig) | F102: Outlet-4 (psig) | G102: Outlet-5 (psig) | H102: Outlet-6 (psig)
B103: 0 | C103: =T5 -> 0 | D103: =T19 -> 0 | E103: =T33 -> 0 | F103: =T47 -> 0 | G103: =T61 -> 0 | H103: =T75 -> 0
B104: 50 | C104: 0 | D104: 0 | E104: =T34 -> 0 | F104: =T48 -> 0 | G104: =T62 -> 0 | H104: =T76 -> 0
B105: 100 | C105: 36 | D105: 30 | E105: =T35 -> 49 | F105: =T49 -> 50 | G105: =T63 -> 51 | H105: =T77 -> 50
B106: 150 | C106: 60 | D106: 77 | E106: =T36 -> 90 | F106: =T50 -> 100 | G106: =T64 -> 99 | H106: =T78 -> 99
B107: 200 | C107: 81 | D107: 101 | E107: 114 | F107: 125 | G107: 146 | H107: 145
B108: 250 | C108: 101 | D108: 120 | E108: 136 | F108: 149 | G108: 160 | H108: 174
B109: 300 | C109: 120 | D109: 139 | E109: 157 | F109: 172 | G109: 190 | H109: 197
B110: 350 | C110: 134 | D110: 159 | E110: 175 | F110: 194 | G110: 217 | H110: 218
B111: 400 | C111: 154 | D111: 173 | E111: 193 | F111: 210 | G111: 222 | H111: 238
B115: 350 GPM FLOW RATE
B116: Inlet (psig) | C116: Outlet-1 (psig) | D116: Outlet-2 (psig) | E116: Outlet-3 (psig) | F116: Outlet-4 (psig) | G116: Outlet-5 (psig) | H116: Outlet-6 (psig)
B117: 0 | C117: =U5 -> 0 | D117: =U19 -> 0 | E117: =U33 -> 0 | F117: =U47 -> 0 | G117: =U61 -> 0 | H117: =U75 -> 0
B118: 50 | C118: 0 | D118: 0 | E118: =U34 -> 0 | F118: =U48 -> 0 | G118: =U62 -> 0 | H118: =U76 -> 0
B119: 100 | C119: 31 | D119: 0 | E119: =U35 -> 31 | F119: =U49 -> 33 | G119: =U63 -> 33 | H119: =U77 -> 32
B120: 150 | C120: 54 | D120: 74 | E120: =U36 -> 81 | F120: =U50 -> 82 | G120: =U64 -> 83 | H120: =U78 -> 83
B121: 200 | C121: 76 | D121: 93 | E121: 107 | F121: 119 | G121: 131 | H121: 132
B122: 250 | C122: 96 | D122: 114 | E122: 133 | F122: 144 | G122: 159 | H122: 165
B123: 300 | C123: 116 | D123: 135 | E123: 151 | F123: 166 | G123: 180 | H123: 198
B124: 350 | C124: 133 | D124: 154 | E124: 172 | F124: 185 | G124: 198 | H124: 210
B125: 400 | C125: 149 | D125: 167 | E125: 196 | F125: 206 | G125: 224 | H125: 232
B129: 400 GPM FLOW RATE
B130: Inlet (psig) | C130: Outlet-1 (psig) | D130: Outlet-2 (psig) | E130: Outlet-3 (psig) | F130: Outlet-4 (psig) | G130: Outlet-5 (psig) | H130: Outlet-6 (psig)
B131: 0 | C131: =V5 -> 0 | D131: =V19 -> 0 | E131: =V33 -> 0 | F131: =V47 -> 0 | G131: =V61 -> 0 | H131: =V75 -> 0
B132: 50 | C132: 0 | D132: 0 | E132: 0 | F132: 0 | G132: 0 | H132: 0
B133: 100 | C133: 0 | D133: 0 | E133: 0 | F133: 0 | G133: 0 | H133: 0
B134: 150 | C134: 49 | D134: 61 | E134: 62 | F134: 62 | G134: 62 | H134: 64
B135: 200 | C135: 71 | D135: 88 | E135: 103 | F135: 112 | G135: 111 | H135: 112
B136: 250 | C136: 91 | D136: 109 | E136: 126 | F136: 140 | G136: 153 | H136: 157
B137: 300 | C137: 109 | D137: 130 | E137: 149 | F137: 160 | G137: 175 | H137: 207
B138: 350 | C138: 128 | D138: 148 | E138: 167 | F138: 180 | G138: 191 | H138: 207
B139: 400 | C139: 151 | D139: 170 | E139: 186 | F139: 200 | G139: 216 | H139: 228
B143: 450 GPM FLOW RATE
B144: Inlet (psig) | C144: Outlet-1 (psig) | D144: Outlet-2 (psig) | E144: Outlet-3 (psig) | F144: Outlet-4 (psig) | G144: Outlet-5 (psig) | H144: Outlet-6 (psig)
B145: 0 | C145: =W5 -> 0 | D145: =W19 -> 0 | E145: =W33 -> 0 | F145: =W47 -> 0 | G145: =W61 -> 0 | H145: =W75 -> 0
B146: 50 | C146: 0 | D146: 0 | E146: 0 | F146: 0 | G146: 0 | H146: 0
B147: 100 | C147: 0 | D147: 0 | E147: 0 | F147: 0 | G147: 0 | H147: 0
B148: 150 | C148: 41 | D148: 38 | E148: 41 | F148: 40 | G148: 41 | H148: 41
B149: 200 | C149: 65 | D149: 83 | E149: 89 | F149: 90 | G149: 88 | H149: 89
B150: 250 | C150: 85 | D150: 105 | E150: 120 | F150: 133 | G150: 139 | H150: 139
B151: 300 | C151: 105 | D151: 124 | E151: 142 | F151: 162 | G151: 167 | H151: 184
B152: 350 | C152: 125 | D152: 143 | E152: 163 | F152: 175 | G152: 189 | H152: 200
B153: 400 | C153: 148 | D153: 165 | E153: 181 | F153: 204 | G153: 219 | H153: 222
B157: 500 GPM FLOW RATE
B158: Inlet (psig) | C158: Outlet-1 (psig) | D158: Outlet-2 (psig) | E158: Outlet-3 (psig) | F158: Outlet-4 (psig) | G158: Outlet-5 (psig) | H158: Outlet-6 (psig)
B159: 0 | C159: =X5 -> 0 | D159: =X19 -> 0 | E159: =X33 -> 0 | F159: =X47 -> 0 | G159: =X61 -> 0 | H159: =X75 -> 0
B160: 50 | C160: 0 | D160: 0 | E160: 0 | F160: 0 | G160: 0 | H160: 0
B161: 100 | C161: 0 | D161: 0 | E161: 0 | F161: 0 | G161: 0 | H161: 0
B162: 150 | C162: 0 | D162: 0 | E162: 0 | F162: 0 | G162: 0 | H162: 0
B163: 200 | C163: 60 | D163: 64 | E163: 64 | F163: 63 | G163: 65 | H163: 66
B164: 250 | C164: 81 | D164: 98 | E164: 114 | F164: 113 | G164: 115 | H164: 116
B165: 300 | C165: 99 | D165: 120 | E165: 137 | F165: 151 | G165: 163 | H165: 164
B166: 350 | C166: 120 | D166: 138 | E166: 158 | F166: 175 | G166: 183 | H166: 194
B167: 400 | C167: 144 | D167: 159 | E167: 175 | F167: 189 | G167: 201 | H167: 216

Sheet Charts 2.5" Angle
B2: 2.5" ANGLE

Sheet IE2600A-250-Angle_DATA (hidden)
A1: Data from Project#x4789893180, Date: 2021-04-07 | R1: Double click this icon to open UL results
E2: Residual | F2: Static
D3: Bonnet Setting | E3: Inlet Pressure psig | F3: OUTLET PRESSURES @ FLOW RATE, GPM | T3: Setting # 1: Inlet Pressure | X3: SETTING 1
F4: 0 | G4: 50 | H4: 100 | I4: 150 | J4: 175 | K4: 200 | L4: 250 | M4: 300 | N4: 350 | O4: 400 | P4: 450 | Q4: 500 | T4: Inlet (psig) | U4: Static | X4: Inlet (psig) | Y4: =CONCATENATE("Outlet Residual @ " &AM$8& " GPM") -> Outlet Residual @ 0 GPM | Z4: =CONCATENATE("Outlet Residual @ " &AM$9& " GPM") -> Outlet Residual @ 0 GPM | AC4: Const. PRI Interpolated @ Var. Flow | AI4: VARIABLES
D5: 1 | E5: 0 | F5: 0 | G5: 0 | H5: 0 | I5: 0 | J5: 0 | K5: 0 | L5: 0 | M5: 0 | N5: 0 | O5: 0 | P5: 0 | Q5: 0 | T5: =E5 -> 0 | U5: =F5 -> 0 | AI5: Static Inlet Pressure | AL5: PSI: | AM5: =Database!$E$2 -> 0
E6: 50 | F6: 21 | G6: 17 | H6: 16 | I6: 19 | J6: 15 | K6: 15 | L6: 16 | T6: =E6 -> 50 | U6: =F6 -> 21 | X6: =E6 -> 50 | Y6: =HLOOKUP($AM$8,$F$4:$Q$13,3) -> 21 | Z6: =HLOOKUP($AM$9,$F$4:$Q$13,3) -> 21 | AA6: PRI1: | AB6: =LARGE(E6:E13,COUNTIF(E6:E13,">" &AM6)+1) ->  | AC6: =VLOOKUP(AB6,X6:Z13,2) ->  | AD6: =VLOOKUP(AB6,X6:Z13,3) ->  | AE6: PRO1: | AF6: =IF(AM8=AM9, AC6, FORECAST(AM7,$AC$6:$AD$6,$AM$8:$AM$9)) ->  | AI6: Residual Inlet Pressure | AL6: PRI: | AM6: =Database!$E$3 -> 0
E7: 100 | F7: 49 | G7: 39 | H7: 37 | I7: 33 | J7: 32 | K7: 37 | L7: 38 | M7: 34 | N7: 37 | O7: 30 | T7: 100 | U7: 49 | X7: =E7 -> 100 | Y7: =HLOOKUP($AM$8,$F$4:$Q$13,4) -> 49 | Z7: =HLOOKUP($AM$9,$F$4:$Q$13,4) -> 49 | AA7: PRI2: | AB7: =SMALL(E6:E13,COUNTIF(E6:E13,"<" &AM6)+1) -> 50 | AC7: =VLOOKUP(AB7,X6:Z13,2) -> 21 | AD7: =VLOOKUP(AB7,X6:Z13,3) -> 21 | AE7: PRO2: | AF7: =IF(AM8=AM9, AC7, FORECAST(AM7,$AC$7:$AD$7,$AM$8:$AM$9)) -> 21 | AI7: Flow Rate | AL7: Q0: | AM7: =IF(Database!$E$4=500,499.99,Database!$E$4) -> 0
E8: 150 | F8: 75 | G8: 66 | H8: 60 | I8: 62 | J8: 57 | K8: 58 | L8: 55 | M8: 55 | N8: 53 | O8: 53 | P8: 52 | Q8: 49 | T8: 150 | U8: 75 | X8: 150 | Y8: =HLOOKUP($AM$8,$F$4:$Q$13,5) -> 75 | Z8: =HLOOKUP($AM$9,$F$4:$Q$13,5) -> 75 | AA8: PSI1: | AB8: =LARGE(E6:E13,COUNTIF(E6:E13,">" &AM5)+1) ->  | AE8: PSO1: | AF8: =VLOOKUP(AB8,E6:F13,2) ->  | AI8: Nearest known Flow Rate, 1 | AL8: Q1: | AM8: =LARGE(F4:Q4,COUNTIF(F4:Q4,">" &AM7)+1) -> 0
E9: 200 | F9: 93 | G9: 79 | H9: 76 | I9: 73 | J9: 71 | K9: 69 | L9: 67 | M9: 75 | N9: 74 | O9: 74 | P9: 73 | Q9: 72 | T9: 200 | U9: 93 | X9: 200 | Y9: =HLOOKUP($AM$8,$F$4:$Q$13,6) -> 93 | Z9: =HLOOKUP($AM$9,$F$4:$Q$13,6) -> 93 | AA9: PSI2: | AB9: =SMALL(E6:E13,COUNTIF(E6:E13,"<" &AM5)+1) -> 50 | AE9: PSO2: | AF9: =VLOOKUP(AB9,E6:F13,2) -> 21 | AI9: Nearest known Flow Rate, 2 | AL9: Q2: | AM9: =SMALL(F4:Q4,COUNTIF(F4:Q4,"<" &AM7)+1) -> 0
E10: 250 | F10: 116 | G10: 100 | H10: 94 | I10: 93 | J10: 92 | K10: 92 | L10: 86 | M10: 95 | N10: 94 | O10: 93 | P10: 93 | Q10: 91 | T10: 250 | U10: 116 | X10: 250 | Y10: =HLOOKUP($AM$8,$F$4:$Q$13,7) -> 116 | Z10: =HLOOKUP($AM$9,$F$4:$Q$13,7) -> 116
E11: 300 | F11: 127 | G11: 120 | H11: 113 | I11: 112 | J11: 113 | K11: 112 | L11: 108 | M11: 105 | N11: 114 | O11: 113 | P11: 112 | Q11: 111 | T11: 300 | U11: 127 | X11: 300 | Y11: =HLOOKUP($AM$8,$F$4:$Q$13,8) -> 127 | Z11: =HLOOKUP($AM$9,$F$4:$Q$13,8) -> 127
E12: 350 | F12: 147 | G12: 141 | H12: 134 | I12: 132 | J12: 133 | K12: 131 | L12: 128 | M12: 123 | N12: 129 | O12: 132 | P12: 131 | Q12: 131 | T12: 350 | U12: =F12 -> 147 | X12: 350 | Y12: =HLOOKUP($AM$8,$F$4:$Q$13,9) -> 147 | Z12: =HLOOKUP($AM$9,$F$4:$Q$13,9) -> 147
E13: 400 | F13: 166 | G13: 160 | H13: 154 | I13: 152 | J13: 152 | K13: 154 | L13: 150 | M13: 143 | N13: 146 | O13: 152 | P13: 151 | Q13: 148 | T13: 400 | U13: 166 | X13: 400 | Y13: =HLOOKUP($AM$8,$F$4:$Q$13,10) -> 166 | Z13: =HLOOKUP($AM$9,$F$4:$Q$13,10) -> 166
E16: Residual | F16: Static
D17: Bonnet Setting | E17: Inlet Pressure psig | F17: OUTLET PRESSURES @ FLOW RATE, GPM | T17: Setting # 2: Inlet Pressure | X17: SETTING 2
F18: 0 | G18: 50 | H18: 100 | I18: 150 | J18: 175 | K18: 200 | L18: 250 | M18: 300 | N18: 350 | O18: 400 | P18: 450 | Q18: 500 | T18: Inlet (psig) | U18: Static | X18: Inlet (psig) | Y18: =CONCATENATE("Outlet Residual @ " &AM$8& " GPM") -> Outlet Residual @ 0 GPM | Z18: =CONCATENATE("Outlet Residual @ " &AM$9& " GPM") -> Outlet Residual @ 0 GPM | AC18: Const. PRI Interpolated @ Var. Flow | AI18: 2.5" Angle Double Spring | AK18: Calculated Static Outlet Pressure | AL18: Calculated Residual Outlet Pressure | AM18: Max Flow Rate
D19: 2 | E19: 0 | F19: 0 | G19: 0 | H19: 0 | I19: 0 | J19: 0 | K19: 0 | L19: 0 | M19: 0 | N19: 0 | O19: 0 | P19: 0 | Q19: 0 | T19: =E19 -> 0 | U19: =F19 -> 0 | AI19: Setting 1 | AK19: =IF($AF$8=$AF$9,$AF$8,FORECAST($AM$5,$AF$8:$AF$9,$AB$8:$AB$9)) ->  | AL19: =IF($AF$6=$AF$7,$AF$6,FORECAST($AM$6,$AF$6:$AF$7,$AB$6:$AB$7)) ->  | AM19: 500
E20: 50 | F20: 37 | G20: 32 | H20: 26 | I20: 21 | J20: 19 | K20: 20 | L20: 16 | M20: 14 | T20: =E20 -> 50 | U20: =F20 -> 37 | X20: =E20 -> 50 | Y20: =HLOOKUP($AM$8,$F$18:$Q$27,3) -> 37 | Z20: =HLOOKUP($AM$9,$F$18:$Q$27,3) -> 37 | AA20: PRI1: | AB20: =LARGE(X20:X28,COUNTIF(X20:X28,">" &AM6)+1) ->  | AC20: =VLOOKUP(AB20,X20:Z27,2) ->  | AD20: =VLOOKUP(AB20,X20:Z27,3) ->  | AE20: PRO1: | AF20: =IF(AM8=AM9, AC20, FORECAST(AM7,$AC$20:$AD$20,$AM$8:$AM$9)) ->  | AI20: Setting 2 | AK20: =IF($AF$22=$AF$23,$AF$22,FORECAST($AM$5,$AF$22:$AF$23,$AB$22:$AB$23)) ->  | AL20: =IF($AF$20=$AF$21,$AF$20,FORECAST($AM$6,$AF$20:$AF$21,$AB$20:$AB$21)) ->  | AM20: 500
E21: 100 | F21: 60 | G21: 54 | H21: 48 | I21: 49 | J21: 46 | K21: 44 | L21: 40 | M21: 35 | N21: 36 | O21: 34 | T21: 100 | U21: 60 | X21: =E21 -> 100 | Y21: =HLOOKUP($AM$8,$F$18:$Q$27,4) -> 60 | Z21: =HLOOKUP($AM$9,$F$18:$Q$27,4) -> 60 | AA21: PRI2: | AB21: =SMALL(X20:X28,COUNTIF(X20:X28,"<" &AM6)+1) -> 50 | AC21: =VLOOKUP(AB21,X20:Z27,2) -> 37 | AD21: =VLOOKUP(AB21,X20:Z27,3) -> 37 | AE21: PRO2: | AF21: =IF(AM8=AM9, AC21, FORECAST(AM7,$AC$21:$AD$21,$AM$8:$AM$9)) -> 37 | AI21: Setting 3 | AK21: =IF($AF$36=$AF$37,$AF$36,FORECAST($AM$5,$AF$36:$AF$37,$AB$36:$AB$37)) ->  | AL21: =IF($AF$34=$AF$35,$AF$34,FORECAST($AM$6,$AF$34:$AF$35,$AB$34:$AB$35)) ->  | AM21: 500
E22: 150 | F22: 78 | G22: 76 | H22: 73 | I22: 69 | J22: 67 | K22: 67 | L22: 66 | M22: 62 | N22: 58 | O22: 54 | P22: 52 | Q22: 49 | T22: 150 | U22: 78 | X22: 150 | Y22: =HLOOKUP($AM$8,$F$18:$Q$27,5) -> 78 | Z22: =HLOOKUP($AM$9,$F$18:$Q$27,5) -> 78 | AA22: PSI1: | AB22: =LARGE(X20:X28,COUNTIF(X20:X28,">" &AM5)+1) ->  | AE22: PSO1: | AF22: =VLOOKUP(AB22,T20:U28,2) ->  | AI22: Setting 4 | AK22: =IF($AF$50=$AF$51,$AF$50,FORECAST($AM$5,$AF$50:$AF$51,$AB$50:$AB$51)) ->  | AL22: =IF($AF$48=$AF$49,$AF$48,FORECAST($AM$6,$AF$48:$AF$49,$AB$48:$AB$49)) ->  | AM22: 500
E23: 200 | F23: 102 | G23: 95 | H23: 89 | I23: 88 | J23: 87 | K23: 84 | L23: 84 | M23: 83 | N23: 80 | O23: 76 | P23: 73 | Q23: 71 | T23: 200 | U23: 102 | X23: 200 | Y23: =HLOOKUP($AM$8,$F$18:$Q$27,6) -> 102 | Z23: =HLOOKUP($AM$9,$F$18:$Q$27,6) -> 102 | AA23: PSI2: | AB23: =SMALL(X20:X28,COUNTIF(X20:X28,"<" &AM5)+1) -> 50 | AE23: PSO2: | AF23: =VLOOKUP(AB23,T20:U28,2) -> 37 | AI23: Setting 5 | AK23: =IF($AF$64=$AF$65,$AF$64,FORECAST($AM$5,$AF$64:$AF$65,$AB$64:$AB$65)) ->  | AL23: =IF($AF$62=$AF$63,$AF$62,FORECAST($AM$6,$AF$62:$AF$63,$AB$62:$AB$63)) ->  | AM23: 500
E24: 250 | F24: 123 | G24: 116 | H24: 111 | I24: 108 | J24: 111 | K24: 106 | L24: 104 | M24: 105 | N24: 103 | O24: 99 | P24: 94 | Q24: 93 | T24: 250 | U24: 123 | X24: 250 | Y24: =HLOOKUP($AM$8,$F$18:$Q$27,7) -> 123 | Z24: =HLOOKUP($AM$9,$F$18:$Q$27,7) -> 123 | AI24: Setting 6 | AK24: =IF($AF$78=$AF$79,$AF$78,FORECAST($AM$5,$AF$78:$AF$79,$AB$78:$AB$79)) ->  | AL24: =IF($AF$76=$AF$77,$AF$76,FORECAST($AM$6,$AF$76:$AF$77,$AB$76:$AB$77)) ->  | AM24: 500
E25: 300 | F25: 143 | G25: 135 | H25: 130 | I25: 130 | J25: 130 | K25: 127 | L25: 123 | M25: 123 | N25: 123 | O25: 121 | P25: 118 | Q25: 115 | T25: 300 | U25: 143 | X25: 300 | Y25: =HLOOKUP($AM$8,$F$18:$Q$27,8) -> 143 | Z25: =HLOOKUP($AM$9,$F$18:$Q$27,8) -> 143 | AI25: Setting 7 | AK25: =IF($AF$92=$AF$93,$AF$92,FORECAST($AM$5,$AF$92:$AF$93,$AB$92:$AB$93)) ->  | AL25: =IF($AF$90=$AF$91,$AF$90,FORECAST($AM$6,$AF$90:$AF$91,$AB$90:$AB$91)) ->  | AM25: 500
E26: 350 | F26: 163 | G26: 156 | H26: 156 | I26: 148 | J26: 150 | K26: 145 | L26: 143 | M26: 140 | N26: 144 | O26: 142 | P26: 137 | Q26: 135 | T26: =E26 -> 350 | U26: =F26 -> 163 | X26: 350 | Y26: =HLOOKUP($AM$8,$F$18:$Q$27,9) -> 163 | Z26: =HLOOKUP($AM$9,$F$18:$Q$27,9) -> 163
E27: 375 | F27: 174 | G27: 167 | H27: 161 | I27: 160 | J27: 157 | K27: 155 | L27: 152 | M27: 148 | N27: 151 | O27: 151 | P27: 150 | Q27: 146 | T27: =E27 -> 375 | U27: =F27 -> 174 | X27: 375 | Y27: =HLOOKUP($AM$8,$F$18:$Q$27,10) -> 174 | Z27: =HLOOKUP($AM$9,$F$18:$Q$27,10) -> 174
T28: 400 | U28: =U26+(((U27-U26)/(T27-T26))*(T28-T26)) -> 185 | X28: 400 | Y28: =Y26+(((Y27-Y26)/(X27-X26))*(X28-X26)) -> 185 | Z28: =Z26+(((Z27-Z26)/(X27-X26))*(X28-X26)) -> 185
E30: Residual | F30: Static
D31: Bonnet Setting | E31: Inlet Pressure psig | F31: OUTLET PRESSURES @ FLOW RATE, GPM | T31: Setting # 3: Inlet Pressure | X31: SETTING 3
F32: 0 | G32: 50 | H32: 100 | I32: 150 | J32: 175 | K32: 200 | L32: 250 | M32: 300 | N32: 350 | O32: 400 | P32: 450 | Q32: 500 | T32: Inlet (psig) | U32: Static | X32: Inlet (psig) | Y32: =CONCATENATE("Outlet Residual @ " &AM$8& " GPM") -> Outlet Residual @ 0 GPM | Z32: =CONCATENATE("Outlet Residual @ " &AM$9& " GPM") -> Outlet Residual @ 0 GPM | AC32: Const. PRI Interpolated @ Var. Flow
D33: 3 | E33: 0 | F33: 0 | G33: 0 | H33: 0 | I33: 0 | J33: 0 | K33: 0 | L33: 0 | M33: 0 | N33: 0 | O33: 0 | P33: 0 | Q33: 0 | T33: =E33 -> 0 | U33: =F33 -> 0
E34: 50 | F34: 49 | G34: 44 | H34: 38 | I34: 31 | J34: 32 | K34: 27 | L34: 22 | M34: 18 | T34: =E34 -> 50 | U34: 49 | X34: =E34 -> 50 | Y34: =HLOOKUP($AM$8,$F$32:$Q$41,3) -> 49 | Z34: =HLOOKUP($AM$9,$F$32:$Q$41,3) -> 49 | AA34: PRI1: | AB34: =LARGE(X34:X41,COUNTIF(X34:X41,">" &AM6)+1) ->  | AC34: =VLOOKUP(AB34,X34:Z41,2) ->  | AD34: =VLOOKUP(AB34,X34:Z41,3) ->  | AE34: PRO1: | AF34: =IF(AM8=AM9, AC34, FORECAST(AM7,$AC$34:$AD$34,$AM$8:$AM$9)) -> 
E35: 100 | F35: 72 | G35: 70 | H35: 64 | I35: 60 | J35: 60 | K35: 56 | L35: 50 | M35: 48 | N35: 43 | O35: 38 | P35: 31 | T35: 100 | U35: 72 | X35: =E35 -> 100 | Y35: =HLOOKUP($AM$8,$F$32:$Q$41,4) -> 72 | Z35: =HLOOKUP($AM$9,$F$32:$Q$41,4) -> 72 | AA35: PRI2: | AB35: =SMALL(X34:X41,COUNTIF(X34:X41,"<" &AM6)+1) -> 50 | AC35: =VLOOKUP(AB35,X34:Z41,2) -> 49 | AD35: =VLOOKUP(AB35,X34:Z41,3) -> 49 | AE35: PRO2: | AF35: =IF(AM8=AM9, AC35, FORECAST(AM7,$AC$35:$AD$35,$AM$8:$AM$9)) -> 49
E36: 150 | F36: 94 | G36: 88 | H36: 86 | I36: 85 | J36: 83 | K36: 79 | L36: 77 | M36: 75 | N36: 69 | O36: 65 | P36: 62 | Q36: 56 | T36: 150 | U36: 94 | X36: 150 | Y36: =HLOOKUP($AM$8,$F$32:$Q$41,5) -> 94 | Z36: =HLOOKUP($AM$9,$F$32:$Q$41,5) -> 94 | AA36: PSI1: | AB36: =LARGE(X34:X41,COUNTIF(X34:X41,">" &AM5)+1) ->  | AE36: PSO1: | AF36: =VLOOKUP(AB36,T34:U41,2) -> 
E37: 200 | F37: 115 | G37: 109 | H37: 104 | I37: 102 | J37: 102 | K37: 101 | L37: 100 | M37: 96 | N37: 94 | O37: 89 | P37: 85 | Q37: 81 | T37: 200 | U37: 115 | X37: 200 | Y37: =HLOOKUP($AM$8,$F$32:$Q$41,6) -> 115 | Z37: =HLOOKUP($AM$9,$F$32:$Q$41,6) -> 115 | AA37: PSI2: | AB37: =SMALL(X34:X41,COUNTIF(X34:X41,"<" &AM5)+1) -> 50 | AE37: PSO2: | AF37: =VLOOKUP(AB37,T34:U41,2) -> 49
E38: 250 | F38: 134 | G38: 130 | H38: 123 | I38: 123 | J38: 122 | K38: 122 | L38: 120 | M38: 119 | N38: 114 | O38: 112 | P38: 108 | Q38: 104 | T38: =E38 -> 250 | U38: 134 | X38: 250 | Y38: =HLOOKUP($AM$8,$F$32:$Q$41,7) -> 134 | Z38: =HLOOKUP($AM$9,$F$32:$Q$41,7) -> 134
E39: 300 | F39: 156 | G39: 149 | H39: 144 | I39: 143 | J39: 142 | K39: 141 | L39: 141 | M39: 139 | N39: 136 | O39: 134 | P39: 131 | Q39: 126 | T39: =E39 -> 300 | U39: =F39 -> 156 | X39: 300 | Y39: =HLOOKUP($AM$8,$F$32:$Q$41,8) -> 156 | Z39: =HLOOKUP($AM$9,$F$32:$Q$41,8) -> 156
E40: 345 | F40: 174 | G40: 166 | H40: 162 | I40: 160 | J40: 159 | K40: 158 | L40: 156 | M40: 156 | N40: 155 | O40: 152 | P40: 150 | Q40: 146 | T40: =E40 -> 345 | U40: 174 | X40: 345 | Y40: =HLOOKUP($AM$8,$F$32:$Q$41,9) -> 174 | Z40: =HLOOKUP($AM$9,$F$32:$Q$41,9) -> 174
T41: 400 | U41: =U39+(((U40-U39)/(T40-T39))*(T41-T39)) -> 196 | X41: 400 | Y41: =Y39+(((Y40-Y39)/(X40-X39))*(X41-X39)) -> 196 | Z41: =Z39+(((Z40-Z39)/(X40-X39))*(X41-X39)) -> 196
E44: Residual | F44: Static
D45: Bonnet Setting | E45: Inlet Pressure psig | F45: OUTLET PRESSURES @ FLOW RATE, GPM | T45: Setting # 4: Inlet Pressure | X45: SETTING 4
F46: 0 | G46: 50 | H46: 100 | I46: 150 | J46: 175 | K46: 200 | L46: 250 | M46: 300 | N46: 350 | O46: 400 | P46: 450 | Q46: 500 | T46: Inlet (psig) | U46: Static | X46: Inlet (psig) | Y46: =CONCATENATE("Outlet Residual @ " &AM$8& " GPM") -> Outlet Residual @ 0 GPM | Z46: =CONCATENATE("Outlet Residual @ " &AM$9& " GPM") -> Outlet Residual @ 0 GPM | AC46: Const. PRI Interpolated @ Var. Flow
D47: 4 | E47: 0 | F47: 0 | G47: 0 | H47: 0 | I47: 0 | J47: 0 | K47: 0 | L47: 0 | M47: 0 | N47: 0 | O47: 0 | P47: 0 | Q47: 0 | T47: =E47 -> 0 | U47: =F47 -> 0
E48: 50 | F48: 50 | G48: 49 | H48: 43 | I48: 39 | J48: 38 | K48: 35 | L48: 27 | M48: 19 | T48: =E48 -> 50 | U48: 50 | X48: =E48 -> 50 | Y48: =HLOOKUP($AM$8,$F$46:$Q$55,3) -> 50 | Z48: =HLOOKUP($AM$9,$F$46:$Q$55,3) -> 50 | AA48: PRI1: | AB48: =LARGE(X48:X55,COUNTIF(X48:X55,">" &AM6)+1) ->  | AC48: =VLOOKUP(AB48,X48:Z55,2) ->  | AD48: =VLOOKUP(AB48,X48:Z55,3) ->  | AE48: PRO1: | AF48: =IF(AM8=AM9, AC48, FORECAST(AM7,$AC$48:$AD$48,$AM$8:$AM$9)) -> 
E49: 100 | F49: 84 | G49: 82 | H49: 79 | I49: 73 | J49: 69 | K49: 66 | L49: 61 | M49: 58 | N49: 52 | O49: 44 | P49: 32 | T49: 100 | U49: 84 | X49: =E49 -> 100 | Y49: =HLOOKUP($AM$8,$F$46:$Q$55,4) -> 84 | Z49: =HLOOKUP($AM$9,$F$46:$Q$55,4) -> 84 | AA49: PRI2: | AB49: =SMALL(X48:X55,COUNTIF(X48:X55,"<" &AM6)+1) -> 50 | AC49: =VLOOKUP(AB49,X48:Z55,2) -> 50 | AD49: =VLOOKUP(AB49,X48:Z55,3) -> 50 | AE49: PRO2: | AF49: =IF(AM8=AM9, AC49, FORECAST(AM7,$AC$49:$AD$49,$AM$8:$AM$9)) -> 50
E50: 150 | F50: 106 | G50: 104 | H50: 98 | I50: 98 | J50: 96 | K50: 92 | L50: 88 | M50: 84 | N50: 79 | O50: 77 | P50: 71 | Q50: 64 | T50: 150 | U50: 106 | X50: 150 | Y50: =HLOOKUP($AM$8,$F$46:$Q$55,5) -> 106 | Z50: =HLOOKUP($AM$9,$F$46:$Q$55,5) -> 106 | AA50: PSI1: | AB50: =LARGE(X48:X55,COUNTIF(X48:X55,">" &AM5)+1) ->  | AE50: PSO1: | AF50: =VLOOKUP(AB50,T48:U55,2) -> 
E51: 200 | F51: 128 | G51: 124 | H51: 118 | I51: 116 | J51: 119 | K51: 115 | L51: 113 | M51: 109 | N51: 104 | O51: 102 | P51: 98 | Q51: 91 | T51: 200 | U51: 128 | X51: 200 | Y51: =HLOOKUP($AM$8,$F$46:$Q$55,6) -> 128 | Z51: =HLOOKUP($AM$9,$F$46:$Q$55,6) -> 128 | AA51: PSI2: | AB51: =SMALL(X48:X55,COUNTIF(X48:X55,"<" &AM5)+1) -> 50 | AE51: PSO2: | AF51: =VLOOKUP(AB51,T48:U55,2) -> 50
E52: 250 | F52: 149 | G52: 144 | H52: 137 | I52: 137 | J52: 137 | K52: 134 | L52: 134 | M52: 131 | N52: 128 | O52: 124 | P52: 121 | Q52: 118 | T52: =E52 -> 250 | U52: =F52 -> 149 | X52: 250 | Y52: =HLOOKUP($AM$8,$F$46:$Q$55,7) -> 149 | Z52: =HLOOKUP($AM$9,$F$46:$Q$55,7) -> 149
E53: 300 | F53: 170 | G53: 162 | H53: 157 | I53: 156 | J53: 155 | K53: 156 | L53: 154 | M53: 152 | N53: 149 | O53: 146 | P53: 144 | Q53: 140 | T53: =E53 -> 300 | U53: =F53 -> 170 | X53: 300 | Y53: =HLOOKUP($AM$8,$F$46:$Q$55,8) -> 170 | Z53: =HLOOKUP($AM$9,$F$46:$Q$55,8) -> 170
E54: 310 | F54: 173 | G54: 168 | H54: 162 | I54: 161 | J54: 160 | K54: 158 | L54: 157 | M54: 155 | N54: 150 | O54: 150 | P54: 149 | Q54: 144 | T54: 310 | U54: =F54 -> 173 | X54: 310 | Y54: =HLOOKUP($AM$8,$F$46:$Q$55,9) -> 173 | Z54: =HLOOKUP($AM$9,$F$46:$Q$55,9) -> 173
T55: 400 | U55: =U53+(((U54-U53)/(T54-T53))*(T55-T53)) -> 200 | X55: 400 | Y55: =Y53+(((Y54-Y53)/(X54-X53))*(X55-X53)) -> 200 | Z55: =Z53+(((Z54-Z53)/(X54-X53))*(X55-X53)) -> 200
E58: Residual | F58: Static
D59: Bonnet Setting | E59: Inlet Pressure psig | F59: OUTLET PRESSURES @ FLOW RATE, GPM | T59: Setting # 5: Inlet Pressure | X59: SETTING 5
F60: 0 | G60: 50 | H60: 100 | I60: 150 | J60: 175 | K60: 200 | L60: 250 | M60: 300 | N60: 350 | O60: 400 | P60: 450 | Q60: 500 | T60: Inlet (psig) | U60: Static | X60: Inlet (psig) | Y60: =CONCATENATE("Outlet Residual @ " &AM$8& " GPM") -> Outlet Residual @ 0 GPM | Z60: =CONCATENATE("Outlet Residual @ " &AM$9& " GPM") -> Outlet Residual @ 0 GPM | AC60: Const. PRI Interpolated @ Var. Flow
D61: 5 | E61: 0 | F61: 0 | G61: 0 | H61: 0 | I61: 0 | J61: 0 | K61: 0 | L61: 0 | M61: 0 | N61: 0 | O61: 0 | P61: 0 | Q61: 0 | T61: =E61 -> 0 | U61: =F61 -> 0
E62: 50 | F62: 49 | G62: 48 | H62: 45 | I62: 42 | J62: 38 | K62: 35 | L62: 28 | M62: 19 | T62: =E62 -> 50 | U62: =F62 -> 49 | X62: =E62 -> 50 | Y62: =HLOOKUP($AM$8,$F$60:$Q$69,3) -> 49 | Z62: =HLOOKUP($AM$9,$F$60:$Q$69,3) -> 49 | AA62: PRI1: | AB62: =LARGE(X62:X69,COUNTIF(X62:X69,">" &AM6)+1) ->  | AC62: =VLOOKUP(AB62,X62:Z69,2) ->  | AD62: =VLOOKUP(AB62,X62:Z69,3) ->  | AE62: PRO1: | AF62: =IF(AM8=AM9, AC62, FORECAST(AM7,$AC$62:$AD$62,$AM$8:$AM$9)) -> 
E63: 100 | F63: 98 | G63: 93 | H63: 87 | I63: 80 | J63: 80 | K63: 75 | L63: 71 | M63: 67 | N63: 57 | O63: 45 | P63: 31 | T63: 100 | U63: 98 | X63: 100 | Y63: =HLOOKUP($AM$8,$F$60:$Q$69,4) -> 98 | Z63: =HLOOKUP($AM$9,$F$60:$Q$69,4) -> 98 | AA63: PRI2: | AB63: =SMALL(X62:X69,COUNTIF(X62:X69,"<" &AM6)+1) -> 50 | AC63: =VLOOKUP(AB63,X62:Z69,2) -> 49 | AD63: =VLOOKUP(AB63,X62:Z69,3) -> 49 | AE63: PRO2: | AF63: =IF(AM8=AM9, AC63, FORECAST(AM7,$AC$63:$AD$63,$AM$8:$AM$9)) -> 49
E64: 150 | F64: 122 | G64: 118 | H64: 112 | I64: 108 | J64: 108 | K64: 104 | L64: 103 | M64: 95 | N64: 91 | O64: 88 | P64: 80 | Q64: 65 | T64: 150 | U64: 122 | X64: 150 | Y64: =HLOOKUP($AM$8,$F$60:$Q$69,5) -> 122 | Z64: =HLOOKUP($AM$9,$F$60:$Q$69,5) -> 122 | AA64: PSI1: | AB64: =LARGE(X62:X69,COUNTIF(X62:X69,">" &AM5)+1) ->  | AE64: PSO1: | AF64: =VLOOKUP(AB64,T62:U69,2) -> 
E65: 200 | F65: 143 | G65: 137 | H65: 135 | I65: 133 | J65: 130 | K65: 130 | L65: 125 | M65: 121 | N65: 119 | O65: 115 | P65: 109 | Q65: 104 | T65: 200 | U65: 143 | X65: 200 | Y65: =HLOOKUP($AM$8,$F$60:$Q$69,6) -> 143 | Z65: =HLOOKUP($AM$9,$F$60:$Q$69,6) -> 143 | AA65: PSI2: | AB65: =SMALL(X62:X69,COUNTIF(X62:X69,"<" &AM5)+1) -> 50 | AE65: PSO2: | AF65: =VLOOKUP(AB65,T62:U69,2) -> 49
E66: 250 | F66: 163 | G66: 157 | H66: 151 | I66: 149 | J66: 149 | K66: 148 | L66: 147 | M66: 144 | N66: 140 | O66: 137 | P66: 133 | Q66: 128 | T66: =E66 -> 250 | U66: =F66 -> 163 | X66: 250 | Y66: =HLOOKUP($AM$8,$F$60:$Q$69,7) -> 163 | Z66: =HLOOKUP($AM$9,$F$60:$Q$69,7) -> 163
E67: 275 | F67: 174 | G67: 168 | H67: 163 | I67: 160 | J67: 159 | K67: 157 | L67: 155 | M67: 154 | N67: 151 | O67: 148 | P67: 143 | Q67: 140 | T67: =E67 -> 275 | U67: =F67 -> 174 | X67: 275 | Y67: =HLOOKUP($AM$8,$F$60:$Q$69,8) -> 174 | Z67: =HLOOKUP($AM$9,$F$60:$Q$69,8) -> 174
T68: 300 | U68: =U66+(((U67-U66)/(T67-T66))*(T68-T66)) -> 185 | X68: 300 | Y68: =Y66+(((Y67-Y66)/(X67-X66))*(X68-X66)) -> 185 | Z68: =Z66+(((Z67-Z66)/(X67-X66))*(X68-X66)) -> 185
T69: 400 | U69: =U67+(((U68-U67)/(T68-T67))*(T69-T67)) -> 229 | X69: 400 | Y69: =Y67+(((Y68-Y67)/(X68-X67))*(X69-X67)) -> 229 | Z69: =Z67+(((Z68-Z67)/(X68-X67))*(X69-X67)) -> 229
E72: Residual | F72: Static
D73: Bonnet Setting | E73: Inlet Pressure psig | F73: OUTLET PRESSURES @ FLOW RATE, GPM | T73: Setting # 6: Inlet Pressure | X73: SETTING 6
F74: 0 | G74: 50 | H74: 100 | I74: 150 | J74: 175 | K74: 200 | L74: 250 | M74: 300 | N74: 350 | O74: 400 | P74: 450 | Q74: 500 | T74: Inlet (psig) | U74: Static | X74: Inlet (psig) | Y74: =CONCATENATE("Outlet Residual @ " &AM$8& " GPM") -> Outlet Residual @ 0 GPM | Z74: =CONCATENATE("Outlet Residual @ " &AM$9& " GPM") -> Outlet Residual @ 0 GPM | AC74: Const. PRI Interpolated @ Var. Flow
D75: 6 | E75: 0 | F75: 0 | G75: 0 | H75: 0 | I75: 0 | J75: 0 | K75: 0 | L75: 0 | M75: 0 | N75: 0 | O75: 0 | P75: 0 | Q75: 0 | T75: =E75 -> 0 | U75: =F75 -> 0
E76: 50 | F76: 49 | G76: 49 | H76: 47 | I76: 42 | J76: 38 | K76: 36 | L76: 27 | M76: 19 | T76: =E76 -> 50 | U76: =F76 -> 49 | X76: =E76 -> 50 | Y76: =HLOOKUP($AM$8,$F$74:$Q$83,3) -> 49 | Z76: =HLOOKUP($AM$9,$F$74:$Q$83,3) -> 49 | AA76: PRI1: | AB76: =LARGE(X76:X83,COUNTIF(X76:X83,">" &AM6)+1) ->  | AC76: =VLOOKUP(AB76,X76:Z83,2) ->  | AD76: =VLOOKUP(AB76,X76:Z83,3) ->  | AE76: PRO1: | AF76: =IF(AM8=AM9, AC76, FORECAST(AM7,$AC$76:$AD$76,$AM$8:$AM$9)) -> 
E77: 100 | F77: 100 | G77: 98 | H77: 95 | I77: 91 | J77: 88 | K77: 85 | L77: 77 | M77: 67 | N77: 58 | O77: 45 | P77: 33 | T77: 100 | U77: 100 | X77: =E77 -> 100 | Y77: =HLOOKUP($AM$8,$F$74:$Q$83,4) -> 100 | Z77: =HLOOKUP($AM$9,$F$74:$Q$83,4) -> 100 | AA77: PRI2: | AB77: =SMALL(X76:X83,COUNTIF(X76:X83,"<" &AM6)+1) -> 50 | AC77: =VLOOKUP(AB77,X76:Z83,2) -> 49 | AD77: =VLOOKUP(AB77,X76:Z83,3) -> 49 | AE77: PRO2: | AF77: =IF(AM8=AM9, AC77, FORECAST(AM7,$AC$77:$AD$77,$AM$8:$AM$9)) -> 49
E78: 150 | F78: 139 | G78: 136 | H78: 127 | I78: 122 | J78: 121 | K78: 118 | L78: 113 | M78: 110 | N78: 105 | O78: 95 | P78: 81 | Q78: 66 | T78: 150 | U78: 139 | X78: =E78 -> 150 | Y78: =HLOOKUP($AM$8,$F$74:$Q$83,5) -> 139 | Z78: =HLOOKUP($AM$9,$F$74:$Q$83,5) -> 139 | AA78: PSI1: | AB78: =LARGE(X76:X83,COUNTIF(X76:X83,">" &AM5)+1) ->  | AE78: PSO1: | AF78: =VLOOKUP(AB78,T76:U83,2) -> 
E79: 200 | F79: 160 | G79: 158 | H79: 150 | I79: 149 | J79: 145 | K79: 144 | L79: 140 | M79: 137 | N79: 131 | O79: 127 | P79: 121 | Q79: 117 | T79: 200 | U79: =F79 -> 160 | X79: =E79 -> 200 | Y79: =HLOOKUP($AM$8,$F$74:$Q$83,6) -> 160 | Z79: =HLOOKUP($AM$9,$F$74:$Q$83,6) -> 160 | AA79: PSI2: | AB79: =SMALL(X76:X83,COUNTIF(X76:X83,"<" &AM5)+1) -> 50 | AE79: PSO2: | AF79: =VLOOKUP(AB79,T76:U83,2) -> 49
E80: 230 | F80: 174 | G80: 167 | H80: 161 | I80: 160 | J80: 160 | K80: 158 | L80: 154 | M80: 151 | N80: 146 | O80: 142 | P80: 138 | Q80: 138 | T80: 230 | U80: 174 | X80: =E80 -> 230 | Y80: =HLOOKUP($AM$8,$F$74:$Q$83,7) -> 174 | Z80: =HLOOKUP($AM$9,$F$74:$Q$83,7) -> 174
T81: 300 | U81: =U79+(((U80-U79)/(T80-T79))*(T81-T79)) -> 206.6666667 | X81: 300 | Y81: =Y79+(((Y80-Y79)/(X80-X79))*(X81-X79)) -> 206.6666667 | Z81: =Z79+(((Z80-Z79)/(X80-X79))*(X81-X79)) -> 206.6666667
T82: 350 | U82: =U80+(((U81-U80)/(T81-T80))*(T82-T80)) -> 230 | X82: 350 | Y82: =Y80+(((Y81-Y80)/(X81-X80))*(X82-X80)) -> 230 | Z82: =Z80+(((Z81-Z80)/(X81-X80))*(X82-X80)) -> 230
T83: 400 | U83: =U81+(((U82-U81)/(T82-T81))*(T83-T81)) -> 253.3333333 | X83: 400 | Y83: =Y81+(((Y82-Y81)/(X82-X81))*(X83-X81)) -> 253.3333333 | Z83: =Z81+(((Z82-Z81)/(X82-X81))*(X83-X81)) -> 253.3333333
E86: Residual | F86: Static
D87: Bonnet Setting | E87: Inlet Pressure psig | F87: OUTLET PRESSURES @ FLOW RATE, GPM | T87: Setting # 7: Inlet Pressure | X87: SETTING 7
F88: 0 | G88: 50 | H88: 100 | I88: 150 | J88: 175 | K88: 200 | L88: 250 | M88: 300 | N88: 350 | O88: 400 | P88: 450 | Q88: 500 | T88: Inlet (psig) | U88: Static | X88: Inlet (psig) | Y88: =CONCATENATE("Outlet Residual @ " &AM$8& " GPM") -> Outlet Residual @ 0 GPM | Z88: =CONCATENATE("Outlet Residual @ " &AM$9& " GPM") -> Outlet Residual @ 0 GPM | AC88: Const. PRI Interpolated @ Var. Flow
D89: 7 | E89: 0 | F89: 0 | G89: 0 | H89: 0 | I89: 0 | J89: 0 | K89: 0 | L89: 0 | M89: 0 | N89: 0 | O89: 0 | P89: 0 | Q89: 0 | T89: =E89 -> 0 | U89: 0
E90: 50 | F90: 50 | G90: 49 | H90: 46 | I90: 41 | J90: 40 | K90: 36 | L90: 30 | M90: 23 | T90: 50 | U90: 50 | X90: =E90 -> 50 | Y90: =HLOOKUP($AM$8,$F$88:$Q$96,3) -> 50 | Z90: =HLOOKUP($AM$9,$F$88:$Q$96,3) -> 50 | AA90: PRI1: | AB90: =LARGE(X90:X97,COUNTIF(X90:X97,">" &AM6)+1) ->  | AC90: =VLOOKUP(AB90,X90:Z97,2) ->  | AD90: =VLOOKUP(AB90,X90:Z97,3) ->  | AE90: PRO1: | AF90: =IF(AM22=AM23, AC90, FORECAST(AM21,$AC$90:$AD$90,$AM$8:$AM$9)) -> 
E91: 100 | F91: 100 | G91: 99 | H91: 96 | I91: 93 | J91: 89 | K91: 87 | L91: 80 | M91: 74 | N91: 62 | O91: 52 | P91: 40 | T91: 100 | U91: 100 | X91: =E91 -> 100 | Y91: =HLOOKUP($AM$8,$F$88:$Q$96,4) -> 100 | Z91: =HLOOKUP($AM$9,$F$88:$Q$96,4) -> 100 | AA91: PRI2: | AB91: =SMALL(X90:X97,COUNTIF(X90:X97,"<" &AM6)+1) -> 50 | AC91: =VLOOKUP(AB91,X90:Z97,2) -> 50 | AD91: =VLOOKUP(AB91,X90:Z97,3) -> 50 | AE91: PRO2: | AF91: =IF(AM22=AM23, AC91, FORECAST(AM21,$AC$91:$AD$91,$AM$8:$AM$9)) -> 50
E92: 150 | F92: 149 | G92: 146 | H92: 134 | I92: 126 | J92: 125 | K92: 123 | L92: 120 | M92: 115 | N92: 111 | O92: 102 | P92: 92 | Q92: 79 | T92: 150 | U92: 149 | X92: =E92 -> 150 | Y92: =HLOOKUP($AM$8,$F$88:$Q$96,5) -> 149 | Z92: =HLOOKUP($AM$9,$F$88:$Q$96,5) -> 149 | AA92: PSI1: | AB92: =LARGE(X90:X97,COUNTIF(X90:X97,">" &AM5)+1) ->  | AE92: PSO1: | AF92: =VLOOKUP(AB92,T90:U97,2) -> 
E93: 175 | F93: 174 | G93: 169 | H93: 153 | I93: 142 | J93: 139 | K93: 137 | L93: 134 | M93: 130 | N93: 125 | O93: 120 | P93: 114 | Q93: 100 | T93: 175 | U93: =F93 -> 174 | X93: =E93 -> 175 | Y93: =HLOOKUP($AM$8,$F$88:$Q$96,6) -> 174 | Z93: =HLOOKUP($AM$9,$F$88:$Q$96,6) -> 174 | AA93: PSI2: | AB93: =SMALL(X90:X97,COUNTIF(X90:X97,"<" &AM5)+1) -> 50 | AE93: PSO2: | AF93: =VLOOKUP(AB93,T90:U97,2) -> 50
T94: 200 | U94: =U92+(((U93-U92)/(T93-T92))*(T94-T92)) -> 199 | X94: 200 | Y94: =Y92+(((Y93-Y92)/(X93-X92))*(X94-X92)) -> 199 | Z94: =Z92+(((Z93-Z92)/(X93-X92))*(X94-X92)) -> 199
T95: 250 | U95: =U93+(((U94-U93)/(T94-T93))*(T95-T93)) -> 249 | X95: 250 | Y95: =Y93+(((Y94-Y93)/(X94-X93))*(X95-X93)) -> 249 | Z95: =Z93+(((Z94-Z93)/(X94-X93))*(X95-X93)) -> 249
T96: 350 | U96: =U94+(((U95-U94)/(T95-T94))*(T96-T94)) -> 349 | X96: 350 | Y96: =Y94+(((Y95-Y94)/(X95-X94))*(X96-X94)) -> 349 | Z96: =Z94+(((Z95-Z94)/(X95-X94))*(X96-X94)) -> 349
T97: 400 | U97: =U95+(((U96-U95)/(T96-T95))*(T97-T95)) -> 399 | X97: 400 | Y97: =Y95+(((Y96-Y95)/(X96-X95))*(X97-X95)) -> 399 | Z97: =Z95+(((Z96-Z95)/(X96-X95))*(X97-X95)) -> 399
AB102: Pri 2 | AC102: =SMALL(E90:E97,COUNTIF(E90:E97,"<" &AM6)+1) -> 50
X103: 400 | Y103: =FORECAST(X103,$Y$92:$Y$93,$X$92:$X$93) -> 399 | Z103: =FORECAST(X103,$Z$92:$Z$93,$X$92:$X$93) -> 399
X107: 200 | Y107: =FORECAST(X107,$Y$90:$Y$93,$X$90:$X$93) -> 198.7288136 | AB107: 50 | AC107: 30
X108: 250 | Y108: =FORECAST(X108,$Y$90:$Y$94,$X$90:$X$94) -> 248.4482759 | AB108: 100 | AC108: 80
X109: 350 | Y109: =FORECAST(X109,$Y$90:$Y$93,$X$90:$X$93) -> 347.3050847 | AA109: x1 | AB109: 150 | AC109: 120
X110: 400 | Y110: =FORECAST(X110,$Y$90:$Y$93,$X$90:$X$93) -> 396.8305085 | AA110: x2 | AB110: 175 | AC110: 134 | AE110: =$AC$109+((($AC$110-$AC$109)/($AB$110-$AB$109))*($AB$111-$AB$109)) -> 176
AA111: x | AB111: 250 | AC111: =$AC$109+((($AC$110-$AC$109)/($AB$110-$AB$109))*($AB$111-$AB$109)) -> 176 | AD111: y
AB112: 300 | AC112: =$AC$110+((($AC$111-$AC$110)/($AB$111-$AB$110))*($AB$112-$AB$110)) -> 204 | AE112: =AB110+(AB111-AB109)/(AB110-AB109)*(AC110-AC109) -> 231
AB113: 350 | AC113: =$AC$111+((($AC$112-$AC$111)/($AB$112-$AB$111))*($AB$113-$AB$111)) -> 232
AB114: 400 | AC114: =$AC$112+((($AC$113-$AC$112)/($AB$113-$AB$112))*($AB$114-$AB$112)) -> 260

Sheet IE2600A-250DS-ST (hidden)
A1: Data from Project# 4788271148, Date: 2018-05-09
B3: STATIC FLOW | K3: Bonnet Setting | L3: Inlet Pressure psig | M3: OUTLET PRESSURES @ FLOW RATE, GPM | AA3: Setting # 1: Inlet vs. Outlet Pressure Over Flow Range | AI3: SETTING 1
B4: Inlet (psig) | C4: Outlet-1 (psig) | D4: Outlet-2 (psig) | E4: Outlet-3 (psig) | F4: Outlet-4 (psig) | G4: Outlet-5 (psig) | H4: Outlet-6 (psig) | M4: 0 | N4: 50 | O4: 100 | P4: 150 | Q4: 175 | R4: 200 | S4: 250 | T4: 300 | U4: 350 | V4: 400 | W4: 450 | X4: 500 | AA4: Inlet (psig) | AB4: Static | AC4: 50-200 [GPM] | AD4: 200-300 [GPM] | AE4: 300-400 [GPM] | AF4: 400-500 [GPM] | AI4: Inlet (psig) | AJ4: =CONCATENATE("Outlet Residual @ " &AX$8& " GPM") -> Outlet Residual @ 0 GPM | AK4: =CONCATENATE("Outlet Residual @ " &AX$9& " GPM") -> Outlet Residual @ 0 GPM | AN4: Const. PRI Interpolated @ Var. Flow | AT4: VARIABLES
B5: 0 | C5: =M5 -> 0 | D5: =M19 -> 0 | E5: =M33 -> 0 | F5: =M47 -> 0 | G5: =M61 -> 0 | H5: =M75 -> 0 | K5: 1 | L5: 0 | AA5: =L5 -> 0 | AT5: Static Inlet Pressure | AW5: PSI: | AX5: =Database!$E$2 -> 0
B6: 50 | C6: 48 | D6: 50 | E6: 52 | F6: =M48 -> 48 | G6: =M62 -> 50 | H6: =M76 -> 50 | L6: 50 | M6: 48 | N6: 47 | O6: 39 | P6: 31 | Q6: 27 | R6: 22 | S6: 16 | AA6: =L6 -> 50 | AB6: =M6 -> 48 | AC6: =AVERAGE(N6:R6) -> 33.2 | AD6: =AVERAGE(R6:T6) -> 19 | AE6: =AVERAGE(T6:V6) ->  | AF6: =AVERAGE(V6:X6) ->  | AI6: =L6 -> 50 | AJ6: =HLOOKUP($AX$8,$M$4:$X$13,3) -> 48 | AK6: =HLOOKUP($AX$9,$M$4:$X$13,3) -> 48 | AL6: PRI1: | AM6: =LARGE(L6:L13,COUNTIF(L6:L13,">" &AX6)+1) ->  | AN6: =VLOOKUP(AM6,AI6:AK13,2) ->  | AO6: =VLOOKUP(AM6,AI6:AK13,3) ->  | AP6: PRO1: | AQ6: =IF(AX8=AX9, AN6, FORECAST(AX7,$AN$6:$AO$6,$AX$8:$AX$9)) ->  | AT6: Residual Inlet Pressure | AW6: PRI: | AX6: =Database!$E$3 -> 0
B7: 100 | C7: 82 | D7: 101 | E7: 100 | F7: =M49 -> 100 | G7: =M63 -> 98 | H7: =M77 -> 100 | L7: 100 | M7: 82 | N7: 77 | O7: 69 | P7: 62 | Q7: 57 | R7: 55 | S7: 45 | T7: 36 | U7: 25 | AA7: 100 | AB7: 82 | AC7: =AVERAGE(N7:R7) -> 64 | AD7: =AVERAGE(R7:T7) -> 45.33333333 | AE7: =AVERAGE(T7:V7) -> 30.5 | AF7: =AVERAGE(V7:X7) ->  | AI7: =L7 -> 100 | AJ7: =HLOOKUP($AX$8,$M$4:$X$13,4) -> 82 | AK7: =HLOOKUP($AX$9,$M$4:$X$13,4) -> 82 | AL7: PRI2: | AM7: =SMALL(L6:L13,COUNTIF(L6:L13,"<" &AX6)+1) -> 50 | AN7: =VLOOKUP(AM7,AI6:AK13,2) -> 48 | AO7: =VLOOKUP(AM7,AI6:AK13,3) -> 48 | AP7: PRO2: | AQ7: =IF(AX8=AX9, AN7, FORECAST(AX7,$AN$7:$AO$7,$AX$8:$AX$9)) -> 48 | AT7: Flow Rate | AW7: Q0: | AX7: =IF(Database!$E$4=500,499.99,Database!$E$4) -> 0
B8: 150 | C8: 105 | D8: 140 | E8: 150 | F8: 150 | G8: 150 | H8: 150 | L8: 150 | M8: 105 | N8: 101 | O8: 93 | P8: 89 | Q8: 83 | R8: 81 | S8: 72 | T8: 62 | U8: 53 | V8: 42 | W8: 28 | AA8: 150 | AB8: 105 | AC8: 89.4 | AD8: 71.66666667 | AE8: 52.33333333 | AF8: 35 | AI8: 150 | AJ8: =HLOOKUP($AX$8,$M$4:$X$13,5) -> 105 | AK8: =HLOOKUP($AX$9,$M$4:$X$13,5) -> 105 | AL8: PSI1: | AM8: =LARGE(L6:L13,COUNTIF(L6:L13,">" &AX5)+1) ->  | AP8: PSO1: | AQ8: =VLOOKUP(AM8,L6:M13,2) ->  | AT8: Nearest known Flow Rate, 1 | AW8: Q1: | AX8: =LARGE(M4:X4,COUNTIF(M4:X4,">" &AX7)+1) -> 0
B9: 200 | C9: 123 | D9: 168 | E9: 194 | F9: 201 | G9: 200 | H9: 200 | L9: 200 | M9: 123 | N9: 121 | O9: 114 | P9: 110 | Q9: 105 | R9: 104 | S9: 98 | T9: 86 | U9: 78 | V9: 68 | W9: 57 | X9: 41 | AA9: 200 | AB9: 123 | AC9: 110.8 | AD9: 96 | AE9: 77.33333333 | AF9: 55.33333333 | AI9: 200 | AJ9: =HLOOKUP($AX$8,$M$4:$X$13,6) -> 123 | AK9: =HLOOKUP($AX$9,$M$4:$X$13,6) -> 123 | AL9: PSI2: | AM9: =SMALL(L6:L13,COUNTIF(L6:L13,"<" &AX5)+1) -> 50 | AP9: PSO2: | AQ9: =VLOOKUP(AM9,L6:M13,2) -> 48 | AT9: Nearest known Flow Rate, 2 | AW9: Q2: | AX9: =SMALL(M4:X4,COUNTIF(M4:X4,"<" &AX7)+1) -> 0
B10: 250 | C10: 146 | D10: 188 | E10: 215 | F10: 244 | G10: 250 | H10: 250 | L10: 250 | M10: 146 | N10: 138 | O10: 133 | P10: 129 | Q10: 126 | R10: 123 | S10: 118 | T10: 109 | U10: 100 | V10: 92 | W10: 83 | X10: 69 | AA10: 250 | AB10: 146 | AC10: 129.8 | AD10: 116.6666667 | AE10: 100.3333333 | AF10: 81.33333333 | AI10: 250 | AJ10: =HLOOKUP($AX$8,$M$4:$X$13,7) -> 146 | AK10: =HLOOKUP($AX$9,$M$4:$X$13,7) -> 146
B11: 300 | C11: 173 | D11: 203 | E11: 233 | F11: 266 | G11: 299 | H11: 300 | L11: 300 | M11: 173 | N11: 162 | O11: 155 | P11: 150 | Q11: 150 | R11: 142 | S11: 136 | T11: 131 | U11: 122 | V11: 113 | W11: 105 | X11: 94 | AA11: 300 | AB11: 173 | AC11: 151.8 | AD11: 136.3333333 | AE11: 122 | AF11: 104 | AI11: 300 | AJ11: =HLOOKUP($AX$8,$M$4:$X$13,8) -> 173 | AK11: =HLOOKUP($AX$9,$M$4:$X$13,8) -> 173
B12: 350 | C12: 194 | D12: 229 | E12: 255 | F12: 288 | G12: 319 | H12: 350 | L12: 350 | M12: 194 | N12: 183 | O12: 175 | P12: 173 | Q12: 168 | R12: 167 | S12: 155 | T12: 150 | U12: 144 | V12: 135 | W12: 124 | X12: 114 | AA12: 350 | AB12: 194 | AC12: 173.2 | AD12: 157.3333333 | AE12: 143 | AF12: 124.3333333 | AI12: 350 | AJ12: =HLOOKUP($AX$8,$M$4:$X$13,9) -> 194 | AK12: =HLOOKUP($AX$9,$M$4:$X$13,9) -> 194
B13: 400 | C13: 210 | D13: 248 | E13: 276 | F13: 307 | G13: 341 | H13: 372 | L13: 400 | M13: 210 | N13: 200 | O13: 193 | P13: 192 | Q13: 186 | R13: 183 | S13: 177 | T13: 170 | U13: 162 | V13: 157 | W13: 142 | X13: 136 | AA13: 400 | AB13: 210 | AC13: 190.8 | AD13: 176.6666667 | AE13: 163 | AF13: 145 | AI13: 400 | AJ13: =HLOOKUP($AX$8,$M$4:$X$13,10) -> 210 | AK13: =HLOOKUP($AX$9,$M$4:$X$13,10) -> 210
B17: 50 GPM FLOW RATE | K17: Bonnet Setting | L17: Inlet Pressure psig | M17: OUTLET PRESSURES @ FLOW RATE, GPM | AA17: Setting # 2: Inlet vs. Outlet Pressure Over Flow Range | AI17: SETTING 2
B18: Inlet (psig) | C18: Outlet-1 (psig) | D18: Outlet-2 (psig) | E18: Outlet-3 (psig) | F18: Outlet-4 (psig) | G18: Outlet-5 (psig) | H18: Outlet-6 (psig) | M18: 0 | N18: 50 | O18: 100 | P18: 150 | Q18: 175 | R18: 200 | S18: 250 | T18: 300 | U18: 350 | V18: 400 | W18: 450 | X18: 500 | AA18: Inlet (psig) | AB18: Static | AC18: 50-200 [GPM] | AD18: 200-300 [GPM] | AE18: 300-400 [GPM] | AF18: 400-500 [GPM] | AI18: Inlet (psig) | AJ18: =CONCATENATE("Outlet Residual @ " &AX$8& " GPM") -> Outlet Residual @ 0 GPM | AK18: =CONCATENATE("Outlet Residual @ " &AX$9& " GPM") -> Outlet Residual @ 0 GPM | AN18: Const. PRI Interpolated @ Var. Flow | AT18: 2.5" Angle Double Spring | AV18: Calculated Static Outlet Pressure | AW18: Calculated Residual Outlet Pressure | AX18: Max Flow Rate
B19: 0 | C19: =N5 -> 0 | D19: =N19 -> 0 | E19: =N33 -> 0 | F19: =N47 -> 0 | G19: =N61 -> 0 | H19: =N75 -> 0 | K19: 2 | L19: 0 | AA19: =L19 -> 0 | AT19: Setting 1 | AV19: =IF($AQ$8=$AQ$9,$AQ$8,FORECAST($AX$5,$AQ$8:$AQ$9,$AM$8:$AM$9)) ->  | AW19: =IF($AQ$6=$AQ$7,$AQ$6,FORECAST($AX$6,$AQ$6:$AQ$7,$AM$6:$AM$7)) ->  | AX19: 500
B20: 50 | C20: 47 | D20: 50 | E20: =N34 -> 47 | F20: =N48 -> 48 | G20: =N62 -> 50 | H20: =N76 -> 50 | L20: 50 | M20: 50 | N20: 50 | O20: 44 | P20: 38 | Q20: 34 | R20: 27 | S20: 15 | AA20: =L20 -> 50 | AB20: =M20 -> 50 | AC20: =AVERAGE(N20:R20) -> 38.6 | AD20: =AVERAGE(R20:T20) -> 21 | AE20: =AVERAGE(T20:V20) ->  | AF20: =AVERAGE(V20:X20) ->  | AI20: =L20 -> 50 | AJ20: =HLOOKUP($AX$8,$M$18:$X$27,3) -> 50 | AK20: =HLOOKUP($AX$9,$M$18:$X$27,3) -> 50 | AL20: PRI1: | AM20: =LARGE(L20:L27,COUNTIF(L20:L27,">" &AX6)+1) ->  | AN20: =VLOOKUP(AM20,AI20:AK27,2) ->  | AO20: =VLOOKUP(AM20,AI20:AK27,3) ->  | AP20: PRO1: | AQ20: =IF(AX8=AX9, AN20, FORECAST(AX7,$AN$20:$AO$20,$AX$8:$AX$9)) ->  | AT20: Setting 2 | AV20: =IF($AQ$22=$AQ$23,$AQ$22,FORECAST($AX$5,$AQ$22:$AQ$23,$AM$22:$AM$23)) ->  | AW20: =IF($AQ$20=$AQ$21,$AQ$20,FORECAST($AX$6,$AQ$20:$AQ$21,$AM$20:$AM$21)) ->  | AX20: 500
B21: 100 | C21: 77 | D21: 97 | E21: =N35 -> 100 | F21: =N49 -> 100 | G21: =N63 -> 101 | H21: =N77 -> 100 | L21: 100 | M21: 101 | N21: 97 | O21: 87 | P21: 80 | Q21: 75 | R21: 72 | S21: 62 | T21: 49 | U21: 30 | AA21: 100 | AB21: 101 | AC21: =AVERAGE(N21:R21) -> 82.2 | AD21: =AVERAGE(R21:T21) -> 61 | AE21: =AVERAGE(T21:V21) -> 39.5 | AF21: =AVERAGE(V21:X21) ->  | AI21: =L21 -> 100 | AJ21: =HLOOKUP($AX$8,$M$18:$X$27,4) -> 101 | AK21: =HLOOKUP($AX$9,$M$18:$X$27,4) -> 101 | AL21: PRI2: | AM21: =SMALL(L20:L27,COUNTIF(L20:L27,"<" &AX6)+1) -> 50 | AN21: =VLOOKUP(AM21,AI20:AK27,2) -> 50 | AO21: =VLOOKUP(AM21,AI20:AK27,3) -> 50 | AP21: PRO2: | AQ21: =IF(AX8=AX9, AN21, FORECAST(AX7,$AN$21:$AO$21,$AX$8:$AX$9)) -> 50 | AT21: Setting 3 | AV21: =IF($AQ$36=$AQ$37,$AQ$36,FORECAST($AX$5,$AQ$36:$AQ$37,$AM$36:$AM$37)) ->  | AW21: =IF($AQ$34=$AQ$35,$AQ$34,FORECAST($AX$6,$AQ$34:$AQ$35,$AM$34:$AM$35)) ->  | AX21: 500
B22: 150 | C22: 101 | D22: 129 | E22: =N36 -> 146 | F22: 150 | G22: 150 | H22: 150 | L22: 150 | M22: 140 | N22: 129 | O22: 118 | P22: 110 | Q22: 106 | R22: 102 | S22: 94 | T22: 85 | U22: 76 | V22: 62 | W22: 38 | AA22: 150 | AB22: 140 | AC22: 113 | AD22: 93.66666667 | AE22: 74.33333333 | AF22: 50 | AI22: 150 | AJ22: =HLOOKUP($AX$8,$M$18:$X$27,5) -> 140 | AK22: =HLOOKUP($AX$9,$M$18:$X$27,5) -> 140 | AL22: PSI1: | AM22: =LARGE(L20:L27,COUNTIF(L20:L27,">" &AX5)+1) ->  | AP22: PSO1: | AQ22: =VLOOKUP(AM22,L20:M27,2) ->  | AT22: Setting 4 | AV22: =IF($AQ$50=$AQ$51,$AQ$50,FORECAST($AX$5,$AQ$50:$AQ$51,$AM$50:$AM$51)) ->  | AW22: =IF($AQ$48=$AQ$49,$AQ$48,FORECAST($AX$6,$AQ$48:$AQ$49,$AM$48:$AM$49)) ->  | AX22: 500
B23: 200 | C23: 121 | D23: 151 | E23: 183 | F23: 195 | G23: 200 | H23: 200 | L23: 200 | M23: 168 | N23: 151 | O23: 141 | P23: 139 | Q23: 132 | R23: 128 | S23: 120 | T23: 112 | U23: 104 | V23: 92 | W23: 82 | X23: 65 | AA23: 200 | AB23: 168 | AC23: 138.2 | AD23: 120 | AE23: 102.6666667 | AF23: 79.66666667 | AI23: 200 | AJ23: =HLOOKUP($AX$8,$M$18:$X$27,6) -> 168 | AK23: =HLOOKUP($AX$9,$M$18:$X$27,6) -> 168 | AL23: PSI2: | AM23: =SMALL(L20:L27,COUNTIF(L20:L27,"<" &AX5)+1) -> 50 | AP23: PSO2: | AQ23: =VLOOKUP(AM23,L20:M27,2) -> 50 | AT23: Setting 5 | AV23: =IF($AQ$64=$AQ$65,$AQ$64,FORECAST($AX$5,$AQ$64:$AQ$65,$AM$64:$AM$65)) ->  | AW23: =IF($AQ$62=$AQ$63,$AQ$62,FORECAST($AX$6,$AQ$62:$AQ$63,$AM$62:$AM$63)) ->  | AX23: 500
B24: 250 | C24: 138 | D24: 168 | E24: 204 | F24: 230 | G24: 247 | H24: 250 | L24: 250 | M24: 188 | N24: 168 | O24: 162 | P24: 157 | Q24: 155 | R24: 151 | S24: 144 | T24: 138 | U24: 129 | V24: 118 | W24: 107 | X24: 97 | AA24: 250 | AB24: 188 | AC24: 158.6 | AD24: 144.3333333 | AE24: 128.3333333 | AF24: 107.3333333 | AI24: 250 | AJ24: =HLOOKUP($AX$8,$M$18:$X$27,7) -> 188 | AK24: =HLOOKUP($AX$9,$M$18:$X$27,7) -> 188 | AT24: Setting 6 | AV24: =IF($AQ$78=$AQ$79,$AQ$78,FORECAST($AX$5,$AQ$78:$AQ$79,$AM$78:$AM$79)) ->  | AW24: =IF($AQ$76=$AQ$77,$AQ$76,FORECAST($AX$6,$AQ$76:$AQ$77,$AM$76:$AM$77)) ->  | AX24: 500
B25: 300 | C25: 162 | D25: 189 | E25: 220 | F25: 256 | G25: 287 | H25: 300 | L25: 300 | M25: 203 | N25: 189 | O25: 183 | P25: 176 | Q25: 174 | R25: 172 | S25: 166 | T25: 160 | U25: 151 | V25: 139 | W25: 131 | X25: 120 | AA25: 300 | AB25: 203 | AC25: 178.8 | AD25: 166 | AE25: 150 | AF25: 130 | AI25: 300 | AJ25: =HLOOKUP($AX$8,$M$18:$X$27,8) -> 203 | AK25: =HLOOKUP($AX$9,$M$18:$X$27,8) -> 203
B26: 350 | C26: 183 | D26: 208 | E26: 240 | F26: 276 | G26: 310 | H26: 335 | L26: 350 | M26: 229 | N26: 208 | O26: 201 | P26: 196 | Q26: 194 | R26: 191 | S26: 186 | T26: 180 | U26: 171 | V26: 161 | W26: 153 | X26: 141 | AA26: 350 | AB26: 229 | AC26: 198 | AD26: 185.6666667 | AE26: 170.6666667 | AF26: 151.6666667 | AI26: 350 | AJ26: =HLOOKUP($AX$8,$M$18:$X$27,9) -> 229 | AK26: =HLOOKUP($AX$9,$M$18:$X$27,9) -> 229
B27: 400 | C27: 200 | D27: 227 | E27: 262 | F27: 297 | G27: 333 | H27: 362 | L27: 400 | M27: 248 | N27: 227 | O27: 223 | P27: 217 | Q27: 220 | R27: 212 | S27: 205 | T27: 199 | U27: 192 | V27: 185 | W27: 176 | X27: 162 | AA27: 400 | AB27: 248 | AC27: 219.8 | AD27: 205.3333333 | AE27: 192 | AF27: 174.3333333 | AI27: 400 | AJ27: =HLOOKUP($AX$8,$M$18:$X$27,10) -> 248 | AK27: =HLOOKUP($AX$9,$M$18:$X$27,10) -> 248
B31: 100 GPM FLOW RATE | K31: Bonnet Setting | L31: Inlet Pressure psig | M31: OUTLET PRESSURES @ FLOW RATE, GPM | AA31: Setting # 3: Inlet vs. Outlet Pressure Over Flow Range | AI31: SETTING 3
B32: Inlet (psig) | C32: Outlet-1 (psig) | D32: Outlet-2 (psig) | E32: Outlet-3 (psig) | F32: Outlet-4 (psig) | G32: Outlet-5 (psig) | H32: Outlet-6 (psig) | M32: 0 | N32: 50 | O32: 100 | P32: 150 | Q32: 175 | R32: 200 | S32: 250 | T32: 300 | U32: 350 | V32: 400 | W32: 450 | X32: 500 | AA32: Inlet (psig) | AB32: Static | AC32: 50-200 [GPM] | AD32: 200-300 [GPM] | AE32: 300-400 [GPM] | AF32: 400-500 [GPM] | AI32: Inlet (psig) | AJ32: =CONCATENATE("Outlet Residual @ " &AX$8& " GPM") -> Outlet Residual @ 0 GPM | AK32: =CONCATENATE("Outlet Residual @ " &AX$9& " GPM") -> Outlet Residual @ 0 GPM | AN32: Const. PRI Interpolated @ Var. Flow
B33: 0 | C33: =O5 -> 0 | D33: =O19 -> 0 | E33: =O33 -> 0 | F33: =O47 -> 0 | G33: =O61 -> 0 | H33: =O75 -> 0 | K33: 3 | L33: 0 | AA33: =L33 -> 0
B34: 50 | C34: 39 | D34: =O20 -> 44 | E34: =O34 -> 47 | F34: =O48 -> 45 | G34: =O62 -> 44 | H34: =O76 -> 42 | L34: 50 | M34: 52 | N34: 47 | O34: 47 | P34: 38 | Q34: 32 | R34: 27 | S34: 14 | AA34: =L34 -> 50 | AB34: =M34 -> 52 | AC34: =AVERAGE(N34:R34) -> 38.2 | AD34: =AVERAGE(R34:T34) -> 20.5 | AE34: =AVERAGE(T34:V34) ->  | AF34: =AVERAGE(V34:X34) ->  | AI34: =L34 -> 50 | AJ34: =HLOOKUP($AX$8,$M$32:$X$41,3) -> 52 | AK34: =HLOOKUP($AX$9,$M$32:$X$41,3) -> 52 | AL34: PRI1: | AM34: =LARGE(L34:L41,COUNTIF(L34:L41,">" &AX6)+1) ->  | AN34: =VLOOKUP(AM34,AI34:AK41,2) ->  | AO34: =VLOOKUP(AM34,AI34:AK41,3) ->  | AP34: PRO1: | AQ34: =IF(AX8=AX9, AN34, FORECAST(AX7,$AN$34:$AO$34,$AX$8:$AX$9)) -> 
B35: 100 | C35: 69 | D35: =O21 -> 87 | E35: =O35 -> 94 | F35: =O49 -> 96 | G35: =O63 -> 95 | H35: =O77 -> 93 | L35: 100 | M35: 100 | N35: 100 | O35: 94 | P35: 88 | Q35: 84 | R35: 79 | S35: 67 | T35: 51 | U35: 31 | AA35: 100 | AB35: 100 | AC35: =AVERAGE(N35:R35) -> 89 | AD35: =AVERAGE(R35:T35) -> 65.66666667 | AE35: =AVERAGE(T35:V35) -> 41 | AF35: =AVERAGE(V35:X35) ->  | AI35: =L35 -> 100 | AJ35: =HLOOKUP($AX$8,$M$32:$X$41,4) -> 100 | AK35: =HLOOKUP($AX$9,$M$32:$X$41,4) -> 100 | AL35: PRI2: | AM35: =SMALL(L34:L41,COUNTIF(L34:L41,"<" &AX6)+1) -> 50 | AN35: =VLOOKUP(AM35,AI34:AK41,2) -> 52 | AO35: =VLOOKUP(AM35,AI34:AK41,3) -> 52 | AP35: PRO2: | AQ35: =IF(AX8=AX9, AN35, FORECAST(AX7,$AN$35:$AO$35,$AX$8:$AX$9)) -> 52
B36: 150 | C36: 93 | D36: =O22 -> 118 | E36: =O36 -> 140 | F36: 145 | G36: 145 | H36: 144 | L36: 150 | M36: 150 | N36: 146 | O36: 140 | P36: 130 | Q36: 127 | R36: 123 | S36: 115 | T36: 102 | U36: 86 | V36: 63 | W36: 38 | AA36: 150 | AB36: 150 | AC36: 133.2 | AD36: 113.3333333 | AE36: 83.66666667 | AF36: 50.5 | AI36: 150 | AJ36: =HLOOKUP($AX$8,$M$32:$X$41,5) -> 150 | AK36: =HLOOKUP($AX$9,$M$32:$X$41,5) -> 150 | AL36: PSI1: | AM36: =LARGE(L34:L41,COUNTIF(L34:L41,">" &AX5)+1) ->  | AP36: PSO1: | AQ36: =VLOOKUP(AM36,L34:M41,2) -> 
B37: 200 | C37: 114 | D37: 141 | E37: 169 | F37: 189 | G37: 196 | H37: 196 | L37: 200 | M37: 194 | N37: 183 | O37: 169 | P37: 165 | Q37: 157 | R37: 156 | S37: 147 | T37: 137 | U37: 127 | V37: 113 | W37: 88 | X37: 65 | AA37: 200 | AB37: 194 | AC37: 166 | AD37: 146.6666667 | AE37: 125.6666667 | AF37: 88.66666667 | AI37: 200 | AJ37: =HLOOKUP($AX$8,$M$32:$X$41,6) -> 194 | AK37: =HLOOKUP($AX$9,$M$32:$X$41,6) -> 194 | AL37: PSI2: | AM37: =SMALL(L34:L41,COUNTIF(L34:L41,"<" &AX5)+1) -> 50 | AP37: PSO2: | AQ37: =VLOOKUP(AM37,L34:M41,2) -> 52
B38: 250 | C38: 133 | D38: 162 | E38: 200 | F38: 224 | G38: 241 | H38: 245 | L38: 250 | M38: 215 | N38: 204 | O38: 200 | P38: 191 | Q38: 187 | R38: 183 | S38: 176 | T38: 165 | U38: 156 | V38: 145 | W38: 134 | X38: 114 | AA38: 250 | AB38: 215 | AC38: 193 | AD38: 174.6666667 | AE38: 155.3333333 | AF38: 131 | AI38: 250 | AJ38: =HLOOKUP($AX$8,$M$32:$X$41,7) -> 215 | AK38: =HLOOKUP($AX$9,$M$32:$X$41,7) -> 215
B39: 300 | C39: 155 | D39: 183 | E39: 214 | F39: 249 | G39: 279 | H39: 289 | L39: 300 | M39: 233 | N39: 220 | O39: 214 | P39: 209 | Q39: 205 | R39: 203 | S39: 194 | T39: 186 | U39: 180 | V39: 171 | W39: 161 | X39: 147 | AA39: 300 | AB39: 233 | AC39: 210.2 | AD39: 194.3333333 | AE39: 179 | AF39: 159.6666667 | AI39: 300 | AJ39: =HLOOKUP($AX$8,$M$32:$X$41,8) -> 233 | AK39: =HLOOKUP($AX$9,$M$32:$X$41,8) -> 233
B40: 350 | C40: 175 | D40: 201 | E40: 233 | F40: 266 | G40: 304 | H40: 326 | L40: 350 | M40: 255 | N40: 240 | O40: 233 | P40: 227 | Q40: 227 | R40: 224 | S40: 217 | T40: 210 | U40: 201 | V40: 195 | W40: 187 | X40: 173 | AA40: 350 | AB40: 255 | AC40: 230.2 | AD40: 217 | AE40: 202 | AF40: 185 | AI40: 350 | AJ40: =HLOOKUP($AX$8,$M$32:$X$41,9) -> 255 | AK40: =HLOOKUP($AX$9,$M$32:$X$41,9) -> 255
B41: 400 | C41: 193 | D41: 223 | E41: 254 | F41: 288 | G41: 320 | H41: 348 | L41: 400 | M41: 276 | N41: 262 | O41: 254 | P41: 249 | Q41: 246 | R41: 242 | S41: 237 | T41: 230 | U41: 224 | V41: 214 | W41: 204 | X41: 192 | AA41: 400 | AB41: 276 | AC41: 250.6 | AD41: 236.3333333 | AE41: 222.6666667 | AF41: 203.3333333 | AI41: 400 | AJ41: =HLOOKUP($AX$8,$M$32:$X$41,10) -> 276 | AK41: =HLOOKUP($AX$9,$M$32:$X$41,10) -> 276
B45: 150 GPM FLOW RATE | K45: Bonnet Setting | L45: Inlet Pressure psig | M45: OUTLET PRESSURES @ FLOW RATE, GPM | AA45: Setting # 4: Inlet vs. Outlet Pressure Over Flow Range | AI45: SETTING 4
B46: Inlet (psig) | C46: Outlet-1 (psig) | D46: Outlet-2 (psig) | E46: Outlet-3 (psig) | F46: Outlet-4 (psig) | G46: Outlet-5 (psig) | H46: Outlet-6 (psig) | M46: 0 | N46: 50 | O46: 100 | P46: 150 | Q46: 175 | R46: 200 | S46: 250 | T46: 300 | U46: 350 | V46: 400 | W46: 450 | X46: 500 | AA46: Inlet (psig) | AB46: Static | AC46: 50-200 [GPM] | AD46: 200-300 [GPM] | AE46: 300-400 [GPM] | AF46: 400-500 [GPM] | AI46: Inlet (psig) | AJ46: =CONCATENATE("Outlet Residual @ " &AX$8& " GPM") -> Outlet Residual @ 0 GPM | AK46: =CONCATENATE("Outlet Residual @ " &AX$9& " GPM") -> Outlet Residual @ 0 GPM | AN46: Const. PRI Interpolated @ Var. Flow
B47: 0 | C47: =P5 -> 0 | D47: =P19 -> 0 | E47: =P33 -> 0 | F47: =P47 -> 0 | G47: =P61 -> 0 | H47: =P75 -> 0 | K47: 4 | L47: 0 | AA47: =L47 -> 0
B48: 50 | C48: 31 | D48: =P20 -> 38 | E48: =P34 -> 38 | F48: =P48 -> 38 | G48: =P62 -> 38 | H48: =P76 -> 40 | L48: 50 | M48: 48 | N48: 48 | O48: 45 | P48: 38 | Q48: 33 | R48: 28 | S48: 15 | AA48: =L48 -> 50 | AB48: =M48 -> 48 | AC48: =AVERAGE(N48:R48) -> 38.4 | AD48: =AVERAGE(R48:T48) -> 21.5 | AE48: =AVERAGE(T48:V48) ->  | AF48: =AVERAGE(V48:X48) ->  | AI48: =L48 -> 50 | AJ48: =HLOOKUP($AX$8,$M$46:$X$55,3) -> 48 | AK48: =HLOOKUP($AX$9,$M$46:$X$55,3) -> 48 | AL48: PRI1: | AM48: =LARGE(L48:L55,COUNTIF(L48:L55,">" &AX6)+1) ->  | AN48: =VLOOKUP(AM48,AI48:AK55,2) ->  | AO48: =VLOOKUP(AM48,AI48:AK55,3) ->  | AP48: PRO1: | AQ48: =IF(AX8=AX9, AN48, FORECAST(AX7,$AN$48:$AO$48,$AX$8:$AX$9)) -> 
B49: 100 | C49: 62 | D49: =P21 -> 80 | E49: =P35 -> 88 | F49: =P49 -> 88 | G49: =P63 -> 88 | H49: =P77 -> 87 | L49: 100 | M49: 100 | N49: 100 | O49: 96 | P49: 88 | Q49: 84 | R49: 80 | S49: 68 | T49: 50 | U49: 33 | AA49: 100 | AB49: 100 | AC49: =AVERAGE(N49:R49) -> 89.6 | AD49: =AVERAGE(R49:T49) -> 66 | AE49: =AVERAGE(T49:V49) -> 41.5 | AF49: =AVERAGE(V49:X49) ->  | AI49: =L49 -> 100 | AJ49: =HLOOKUP($AX$8,$M$46:$X$55,4) -> 100 | AK49: =HLOOKUP($AX$9,$M$46:$X$55,4) -> 100 | AL49: PRI2: | AM49: =SMALL(L48:L55,COUNTIF(L48:L55,"<" &AX6)+1) -> 50 | AN49: =VLOOKUP(AM49,AI48:AK55,2) -> 48 | AO49: =VLOOKUP(AM49,AI48:AK55,3) -> 48 | AP49: PRO2: | AQ49: =IF(AX8=AX9, AN49, FORECAST(AX7,$AN$49:$AO$49,$AX$8:$AX$9)) -> 48
B50: 150 | C50: 89 | D50: =P22 -> 110 | E50: 130 | F50: 138 | G50: 138 | H50: 138 | L50: 150 | M50: 150 | N50: 150 | O50: 145 | P50: 138 | Q50: 135 | R50: 129 | S50: 116 | T50: 100 | U50: 85 | V50: 64 | W50: 38 | AA50: 150 | AB50: 150 | AC50: 139.4 | AD50: 115 | AE50: 83 | AF50: 51 | AI50: 150 | AJ50: =HLOOKUP($AX$8,$M$46:$X$55,5) -> 150 | AK50: =HLOOKUP($AX$9,$M$46:$X$55,5) -> 150 | AL50: PSI1: | AM50: =LARGE(L48:L55,COUNTIF(L48:L55,">" &AX5)+1) ->  | AP50: PSO1: | AQ50: =VLOOKUP(AM50,L48:M55,2) -> 
B51: 200 | C51: 110 | D51: 139 | E51: 165 | F51: 182 | G51: 188 | H51: 187 | L51: 200 | M51: 201 | N51: 195 | O51: 189 | P51: 182 | Q51: 180 | R51: 173 | S51: 164 | T51: 151 | U51: 134 | V51: 113 | W51: 88 | X51: 63 | AA51: 200 | AB51: 201 | AC51: 183.8 | AD51: 162.6666667 | AE51: 132.6666667 | AF51: 88 | AI51: 200 | AJ51: =HLOOKUP($AX$8,$M$46:$X$55,6) -> 201 | AK51: =HLOOKUP($AX$9,$M$46:$X$55,6) -> 201 | AL51: PSI2: | AM51: =SMALL(L48:L55,COUNTIF(L48:L55,"<" &AX5)+1) -> 50 | AP51: PSO2: | AQ51: =VLOOKUP(AM51,L48:M55,2) -> 48
B52: 250 | C52: 129 | D52: 157 | E52: 191 | F52: 214 | G52: 233 | H52: 239 | L52: 250 | M52: 244 | N52: 230 | O52: 224 | P52: 214 | Q52: 211 | R52: 204 | S52: 196 | T52: 187 | U52: 176 | V52: 162 | W52: 139 | X52: 112 | AA52: 250 | AB52: 244 | AC52: 216.6 | AD52: 195.6666667 | AE52: 175 | AF52: 137.6666667 | AI52: 250 | AJ52: =HLOOKUP($AX$8,$M$46:$X$55,7) -> 244 | AK52: =HLOOKUP($AX$9,$M$46:$X$55,7) -> 244
B53: 300 | C53: 150 | D53: 176 | E53: 209 | F53: 241 | G53: 265 | H53: 280 | L53: 300 | M53: 266 | N53: 256 | O53: 249 | P53: 241 | Q53: 235 | R53: 232 | S53: 223 | T53: 218 | U53: 207 | V53: 193 | W53: 183 | X53: 163 | AA53: 300 | AB53: 266 | AC53: 242.6 | AD53: 224.3333333 | AE53: 206 | AF53: 179.6666667 | AI53: 300 | AJ53: =HLOOKUP($AX$8,$M$46:$X$55,8) -> 266 | AK53: =HLOOKUP($AX$9,$M$46:$X$55,8) -> 266
B54: 350 | C54: 173 | D54: 196 | E54: 227 | F54: 266 | G54: 294 | H54: 316 | L54: 350 | M54: 288 | N54: 276 | O54: 266 | P54: 266 | Q54: 258 | R54: 256 | S54: 250 | T54: 240 | U54: 229 | V54: 220 | W54: 210 | X54: 197 | AA54: 350 | AB54: 288 | AC54: 264.4 | AD54: 248.6666667 | AE54: 229.6666667 | AF54: 209 | AI54: 350 | AJ54: =HLOOKUP($AX$8,$M$46:$X$55,9) -> 288 | AK54: =HLOOKUP($AX$9,$M$46:$X$55,9) -> 288
B55: 400 | C55: 192 | D55: 217 | E55: 249 | F55: 283 | G55: 314 | H55: 341 | L55: 400 | M55: 307 | N55: 297 | O55: 288 | P55: 283 | Q55: 278 | R55: 278 | S55: 266 | T55: 260 | U55: 253 | V55: 247 | W55: 235 | X55: 222 | AA55: 400 | AB55: 307 | AC55: 284.8 | AD55: 268 | AE55: 253.3333333 | AF55: 234.6666667 | AI55: 400 | AJ55: =HLOOKUP($AX$8,$M$46:$X$55,10) -> 307 | AK55: =HLOOKUP($AX$9,$M$46:$X$55,10) -> 307
B59: 175 GPM FLOW RATE | K59: Bonnet Setting | L59: Inlet Pressure psig | M59: OUTLET PRESSURES @ FLOW RATE, GPM | AA59: Setting # 5: Inlet vs. Outlet Pressure Over Flow Range | AI59: SETTING 5
B60: Inlet (psig) | C60: Outlet-1 (psig) | D60: Outlet-2 (psig) | E60: Outlet-3 (psig) | F60: Outlet-4 (psig) | G60: Outlet-5 (psig) | H60: Outlet-6 (psig) | M60: 0 | N60: 50 | O60: 100 | P60: 150 | Q60: 175 | R60: 200 | S60: 250 | T60: 300 | U60: 350 | V60: 400 | W60: 450 | X60: 500 | AA60: Inlet (psig) | AB60: Static | AC60: 50-200 [GPM] | AD60: 200-300 [GPM] | AE60: 300-400 [GPM] | AF60: 400-500 [GPM] | AI60: Inlet (psig) | AJ60: =CONCATENATE("Outlet Residual @ " &AX$8& " GPM") -> Outlet Residual @ 0 GPM | AK60: =CONCATENATE("Outlet Residual @ " &AX$9& " GPM") -> Outlet Residual @ 0 GPM | AN60: Const. PRI Interpolated @ Var. Flow
B61: 0 | C61: =Q5 -> 0 | D61: =Q19 -> 0 | E61: =Q33 -> 0 | F61: =Q47 -> 0 | G61: =Q61 -> 0 | H61: =Q75 -> 0 | K61: 5 | L61: 0 | AA61: =L61 -> 0
B62: 50 | C62: =Q6 -> 27 | D62: =Q20 -> 34 | E62: =Q34 -> 32 | F62: =Q48 -> 33 | G62: =Q62 -> 33 | H62: =Q76 -> 33 | L62: 50 | M62: 50 | N62: 50 | O62: 44 | P62: 38 | Q62: 33 | R62: 26 | S62: 12 | AA62: =L62 -> 50 | AB62: =M62 -> 50 | AC62: =AVERAGE(N62:R62) -> 38.2 | AD62: =AVERAGE(R62:T62) -> 19 | AE62: =AVERAGE(T62:V62) ->  | AF62: =AVERAGE(V62:X62) ->  | AI62: =L62 -> 50 | AJ62: =HLOOKUP($AX$8,$M$60:$X$69,3) -> 50 | AK62: =HLOOKUP($AX$9,$M$60:$X$69,3) -> 50 | AL62: PRI1: | AM62: =LARGE(L62:L69,COUNTIF(L62:L69,">" &AX6)+1) ->  | AN62: =VLOOKUP(AM62,AI62:AK69,2) ->  | AO62: =VLOOKUP(AM62,AI62:AK69,3) ->  | AP62: PRO1: | AQ62: =IF(AX8=AX9, AN62, FORECAST(AX7,$AN$62:$AO$62,$AX$8:$AX$9)) -> 
B63: 100 | C63: =Q7 -> 57 | D63: =Q21 -> 75 | E63: =Q35 -> 84 | F63: =Q49 -> 84 | G63: =Q63 -> 84 | H63: =Q77 -> 84 | L63: 100 | M63: 98 | N63: 101 | O63: 95 | P63: 88 | Q63: 84 | R63: 79 | S63: 65 | T63: 50 | U63: 32 | AA63: 100 | AB63: 98 | AC63: =AVERAGE(N63:R63) -> 89.4 | AD63: =AVERAGE(R63:T63) -> 64.66666667 | AE63: =AVERAGE(T63:V63) -> 41 | AF63: =AVERAGE(V63:X63) ->  | AI63: =L63 -> 100 | AJ63: =HLOOKUP($AX$8,$M$60:$X$69,4) -> 98 | AK63: =HLOOKUP($AX$9,$M$60:$X$69,4) -> 98 | AL63: PRI2: | AM63: =SMALL(L62:L69,COUNTIF(L62:L69,"<" &AX6)+1) -> 50 | AN63: =VLOOKUP(AM63,AI62:AK69,2) -> 50 | AO63: =VLOOKUP(AM63,AI62:AK69,3) -> 50 | AP63: PRO2: | AQ63: =IF(AX8=AX9, AN63, FORECAST(AX7,$AN$63:$AO$63,$AX$8:$AX$9)) -> 50
B64: 150 | C64: =Q8 -> 83 | D64: =Q22 -> 106 | E64: 127 | F64: 135 | G64: 133 | H64: 135 | L64: 150 | M64: 150 | N64: 150 | O64: 145 | P64: 138 | Q64: 133 | R64: 129 | S64: 116 | T64: 100 | U64: 86 | V64: 64 | W64: 36 | AA64: 150 | AB64: 150 | AC64: 139 | AD64: 115 | AE64: 83.33333333 | AF64: 50 | AI64: 150 | AJ64: =HLOOKUP($AX$8,$M$60:$X$69,5) -> 150 | AK64: =HLOOKUP($AX$9,$M$60:$X$69,5) -> 150 | AL64: PSI1: | AM64: =LARGE(L62:L69,COUNTIF(L62:L69,">" &AX5)+1) ->  | AP64: PSO1: | AQ64: =VLOOKUP(AM64,L62:M69,2) -> 
B65: 200 | C65: 105 | D65: 132 | E65: 157 | F65: 180 | G65: 184 | H65: 184 | L65: 200 | M65: 200 | N65: 200 | O65: 196 | P65: 188 | Q65: 184 | R65: 178 | S65: 167 | T65: 149 | U65: 133 | V65: 113 | W65: 90 | X65: 63 | AA65: 200 | AB65: 200 | AC65: 189.2 | AD65: 164.6666667 | AE65: 131.6666667 | AF65: 88.66666667 | AI65: 200 | AJ65: =HLOOKUP($AX$8,$M$60:$X$69,6) -> 200 | AK65: =HLOOKUP($AX$9,$M$60:$X$69,6) -> 200 | AL65: PSI2: | AM65: =SMALL(L62:L69,COUNTIF(L62:L69,"<" &AX5)+1) -> 50 | AP65: PSO2: | AQ65: =VLOOKUP(AM65,L62:M69,2) -> 50
B66: 250 | C66: 126 | D66: 155 | E66: 187 | F66: 211 | G66: 229 | H66: 233 | L66: 250 | M66: 250 | N66: 247 | O66: 241 | P66: 233 | Q66: 229 | R66: 224 | S66: 215 | T66: 202 | U66: 183 | V66: 163 | W66: 140 | X66: 114 | AA66: 250 | AB66: 250 | AC66: 234.8 | AD66: 213.6666667 | AE66: 182.6666667 | AF66: 139 | AI66: 250 | AJ66: =HLOOKUP($AX$8,$M$60:$X$69,7) -> 250 | AK66: =HLOOKUP($AX$9,$M$60:$X$69,7) -> 250
B67: 300 | C67: 150 | D67: 174 | E67: 205 | F67: 235 | G67: 261 | H67: 277 | L67: 300 | M67: 299 | N67: 287 | O67: 279 | P67: 265 | Q67: 261 | R67: 258 | S67: 249 | T67: 240 | U67: 227 | V67: 212 | W67: 191 | X67: 163 | AA67: 300 | AB67: 299 | AC67: 270 | AD67: 249 | AE67: 226.3333333 | AF67: 188.6666667 | AI67: 300 | AJ67: =HLOOKUP($AX$8,$M$60:$X$69,8) -> 299 | AK67: =HLOOKUP($AX$9,$M$60:$X$69,8) -> 299
B68: 350 | C68: 168 | D68: 194 | E68: 227 | F68: 258 | G68: 289 | H68: 312 | L68: 350 | M68: 319 | N68: 310 | O68: 304 | P68: 294 | Q68: 289 | R68: 286 | S68: 276 | T68: 270 | U68: 255 | V68: 249 | W68: 236 | X68: 216 | AA68: 350 | AB68: 319 | AC68: 296.6 | AD68: 277.3333333 | AE68: 258 | AF68: 233.6666667 | AI68: 350 | AJ68: =HLOOKUP($AX$8,$M$60:$X$69,9) -> 319 | AK68: =HLOOKUP($AX$9,$M$60:$X$69,9) -> 319
B69: 400 | C69: 186 | D69: 220 | E69: 246 | F69: 278 | G69: 311 | H69: 337 | L69: 400 | M69: 341 | N69: 333 | O69: 320 | P69: 314 | Q69: 311 | R69: 306 | S69: 299 | T69: 293 | U69: 284 | V69: 274 | W69: 262 | X69: 251 | AA69: 400 | AB69: 341 | AC69: 316.8 | AD69: 299.3333333 | AE69: 283.6666667 | AF69: 262.3333333 | AI69: 400 | AJ69: =HLOOKUP($AX$8,$M$60:$X$69,10) -> 341 | AK69: =HLOOKUP($AX$9,$M$60:$X$69,10) -> 341
B73: 200 GPM FLOW RATE | K73: Bonnet Setting | L73: Inlet Pressure psig | M73: OUTLET PRESSURES @ FLOW RATE, GPM | AA73: Setting # 6: Inlet vs. Outlet Pressure Over Flow Range | AI73: SETTING 6
B74: Inlet (psig) | C74: Outlet-1 (psig) | D74: Outlet-2 (psig) | E74: Outlet-3 (psig) | F74: Outlet-4 (psig) | G74: Outlet-5 (psig) | H74: Outlet-6 (psig) | M74: 0 | N74: 50 | O74: 100 | P74: 150 | Q74: 175 | R74: 200 | S74: 250 | T74: 300 | U74: 350 | V74: 400 | W74: 450 | X74: 500 | AA74: Inlet (psig) | AB74: Static | AC74: 50-200 [GPM] | AD74: 200-300 [GPM] | AE74: 300-400 [GPM] | AF74: 400-500 [GPM] | AI74: Inlet (psig) | AJ74: =CONCATENATE("Outlet Residual @ " &AX$8& " GPM") -> Outlet Residual @ 0 GPM | AK74: =CONCATENATE("Outlet Residual @ " &AX$9& " GPM") -> Outlet Residual @ 0 GPM | AN74: Const. PRI Interpolated @ Var. Flow
B75: 0 | C75: =R5 -> 0 | D75: =R19 -> 0 | E75: =R33 -> 0 | F75: =R47 -> 0 | G75: =R61 -> 0 | H75: =R75 -> 0 | K75: 6 | L75: 0 | AA75: =L75 -> 0
B76: 50 | C76: 22 | D76: =R20 -> 27 | E76: =R34 -> 27 | F76: =R48 -> 28 | G76: =R62 -> 26 | H76: =R76 -> 24 | L76: 50 | M76: 50 | N76: 50 | O76: 42 | P76: 40 | Q76: 33 | R76: 24 | S76: 18 | AA76: =L76 -> 50 | AB76: =M76 -> 50 | AC76: =AVERAGE(N76:R76) -> 37.8 | AD76: =AVERAGE(R76:T76) -> 21 | AE76: =AVERAGE(T76:V76) ->  | AF76: =AVERAGE(V76:X76) ->  | AI76: =L76 -> 50 | AJ76: =HLOOKUP($AX$8,$M$74:$X$83,3) -> 50 | AK76: =HLOOKUP($AX$9,$M$74:$X$83,3) -> 50 | AL76: PRI1: | AM76: =LARGE(L76:L83,COUNTIF(L76:L83,">" &AX6)+1) ->  | AN76: =VLOOKUP(AM76,AI76:AK83,2) ->  | AO76: =VLOOKUP(AM76,AI76:AK83,3) ->  | AP76: PRO1: | AQ76: =IF(AX8=AX9, AN76, FORECAST(AX7,$AN$76:$AO$76,$AX$8:$AX$9)) -> 
B77: 100 | C77: 55 | D77: =R21 -> 72 | E77: =R35 -> 79 | F77: =R49 -> 80 | G77: =R63 -> 79 | H77: =R77 -> 79 | L77: 100 | M77: 100 | N77: 100 | O77: 93 | P77: 87 | Q77: 84 | R77: 79 | S77: 67 | T77: 50 | U77: 35 | AA77: 100 | AB77: 100 | AC77: =AVERAGE(N77:R77) -> 88.6 | AD77: =AVERAGE(R77:T77) -> 65.33333333 | AE77: =AVERAGE(T77:V77) -> 42.5 | AF77: =AVERAGE(V77:X77) ->  | AI77: =L77 -> 100 | AJ77: =HLOOKUP($AX$8,$M$74:$X$83,4) -> 100 | AK77: =HLOOKUP($AX$9,$M$74:$X$83,4) -> 100 | AL77: PRI2: | AM77: =SMALL(L76:L83,COUNTIF(L76:L83,"<" &AX6)+1) -> 50 | AN77: =VLOOKUP(AM77,AI76:AK83,2) -> 50 | AO77: =VLOOKUP(AM77,AI76:AK83,3) -> 50 | AP77: PRO2: | AQ77: =IF(AX8=AX9, AN77, FORECAST(AX7,$AN$77:$AO$77,$AX$8:$AX$9)) -> 50
B78: 150 | C78: 81 | D78: =R22 -> 102 | E78: 123 | F78: 129 | G78: 129 | H78: 129 | L78: 150 | M78: 150 | N78: 150 | O78: 144 | P78: 138 | Q78: 135 | R78: 129 | S78: 117 | T78: 102 | U78: 84 | V78: 66 | W78: 39 | AA78: 150 | AB78: 150 | AC78: 139.2 | AD78: 116 | AE78: 84 | AF78: 52.5 | AI78: 150 | AJ78: =HLOOKUP($AX$8,$M$74:$X$83,5) -> 150 | AK78: =HLOOKUP($AX$9,$M$74:$X$83,5) -> 150 | AL78: PSI1: | AM78: =LARGE(L76:L83,COUNTIF(L76:L83,">" &AX5)+1) ->  | AP78: PSO1: | AQ78: =VLOOKUP(AM78,L76:M83,2) -> 
B79: 200 | C79: 104 | D79: 128 | E79: 156 | F79: 173 | G79: 178 | H79: 179 | L79: 200 | M79: 200 | N79: 200 | O79: 196 | P79: 187 | Q79: 184 | R79: 179 | S79: 166 | T79: 154 | U79: 134 | V79: 113 | W79: 90 | X79: 65 | AA79: 200 | AB79: 200 | AC79: 189.2 | AD79: 166.3333333 | AE79: 133.6666667 | AF79: 89.33333333 | AI79: 200 | AJ79: =HLOOKUP($AX$8,$M$74:$X$83,6) -> 200 | AK79: =HLOOKUP($AX$9,$M$74:$X$83,6) -> 200 | AL79: PSI2: | AM79: =SMALL(L76:L83,COUNTIF(L76:L83,"<" &AX5)+1) -> 50 | AP79: PSO2: | AQ79: =VLOOKUP(AM79,L76:M83,2) -> 50
B80: 250 | C80: 123 | D80: 151 | E80: 183 | F80: 204 | G80: 224 | H80: 228 | L80: 250 | M80: 250 | N80: 250 | O80: 245 | P80: 239 | Q80: 233 | R80: 228 | S80: 217 | T80: 199 | U80: 183 | V80: 164 | W80: 144 | X80: 115 | AA80: 250 | AB80: 250 | AC80: 239 | AD80: 214.6666667 | AE80: 182 | AF80: 141 | AI80: 250 | AJ80: =HLOOKUP($AX$8,$M$74:$X$83,7) -> 250 | AK80: =HLOOKUP($AX$9,$M$74:$X$83,7) -> 250
B81: 300 | C81: 142 | D81: 172 | E81: 203 | F81: 232 | G81: 258 | H81: 271 | L81: 300 | M81: 300 | N81: 300 | O81: 289 | P81: 280 | Q81: 277 | R81: 271 | S81: 264 | T81: 249 | U81: 233 | V81: 213 | W81: 192 | X81: 163 | AA81: 300 | AB81: 300 | AC81: 283.4 | AD81: 261.3333333 | AE81: 231.6666667 | AF81: 189.3333333 | AI81: 300 | AJ81: =HLOOKUP($AX$8,$M$74:$X$83,8) -> 300 | AK81: =HLOOKUP($AX$9,$M$74:$X$83,8) -> 300
B82: 350 | C82: 167 | D82: 191 | E82: 224 | F82: 256 | G82: 286 | H82: 305 | L82: 350 | M82: 350 | N82: 335 | O82: 326 | P82: 316 | Q82: 312 | R82: 305 | S82: 295 | T82: 286 | U82: 277 | V82: 263 | W82: 240 | X82: 217 | AA82: 350 | AB82: 350 | AC82: 318.8 | AD82: 295.3333333 | AE82: 275.3333333 | AF82: 240 | AI82: 350 | AJ82: =HLOOKUP($AX$8,$M$74:$X$83,9) -> 350 | AK82: =HLOOKUP($AX$9,$M$74:$X$83,9) -> 350
B83: 400 | C83: 183 | D83: 212 | E83: 242 | F83: 278 | G83: 306 | H83: 332 | L83: 400 | M83: 372 | N83: 362 | O83: 348 | P83: 341 | Q83: 337 | R83: 332 | S83: 322 | T83: 318 | U83: 304 | V83: 294 | W83: 281 | X83: 261 | AA83: 400 | AB83: 372 | AC83: 344 | AD83: 324 | AE83: 305.3333333 | AF83: 278.6666667 | AI83: 400 | AJ83: =HLOOKUP($AX$8,$M$74:$X$83,10) -> 372 | AK83: =HLOOKUP($AX$9,$M$74:$X$83,10) -> 372
B87: 250 GPM FLOW RATE
B88: Inlet (psig) | C88: Outlet-1 (psig) | D88: Outlet-2 (psig) | E88: Outlet-3 (psig) | F88: Outlet-4 (psig) | G88: Outlet-5 (psig) | H88: Outlet-6 (psig)
B89: 0 | C89: =S5 -> 0 | D89: =S19 -> 0 | E89: =S33 -> 0 | F89: =S47 -> 0 | G89: =S61 -> 0 | H89: =S75 -> 0
B90: 50 | C90: =S6 -> 16 | D90: =S20 -> 15 | E90: =S34 -> 14 | F90: =S48 -> 15 | G90: =S62 -> 12 | H90: =S76 -> 18
B91: 100 | C91: =S7 -> 45 | D91: =S21 -> 62 | E91: =S35 -> 67 | F91: =S49 -> 68 | G91: =S63 -> 65 | H91: =S77 -> 67
B92: 150 | C92: =S8 -> 72 | D92: =S22 -> 94 | E92: 115 | F92: 116 | G92: 116 | H92: 117
B93: 200 | C93: 98 | D93: 120 | E93: 147 | F93: 164 | G93: 167 | H93: 166
B94: 250 | C94: 118 | D94: 144 | E94: 176 | F94: 196 | G94: 215 | H94: 217
B95: 300 | C95: 136 | D95: 166 | E95: 194 | F95: 223 | G95: 249 | H95: 264
B96: 350 | C96: 155 | D96: 186 | E96: 217 | F96: 250 | G96: 276 | H96: 295
B97: 400 | C97: 177 | D97: 205 | E97: 237 | F97: 266 | G97: 299 | H97: 322
B101: 300 GPM FLOW RATE
B102: Inlet (psig) | C102: Outlet-1 (psig) | D102: Outlet-2 (psig) | E102: Outlet-3 (psig) | F102: Outlet-4 (psig) | G102: Outlet-5 (psig) | H102: Outlet-6 (psig)
B103: 0 | C103: =T5 -> 0 | D103: =T19 -> 0 | E103: =T33 -> 0 | F103: =T47 -> 0 | G103: =T61 -> 0 | H103: =T75 -> 0
B104: 50 | C104: 0 | D104: 0 | E104: =T34 -> 0 | F104: =T48 -> 0 | G104: =T62 -> 0 | H104: =T76 -> 0
B105: 100 | C105: 36 | D105: 49 | E105: =T35 -> 51 | F105: =T49 -> 50 | G105: =T63 -> 50 | H105: =T77 -> 50
B106: 150 | C106: 62 | D106: 85 | E106: =T36 -> 102 | F106: =T50 -> 100 | G106: =T64 -> 100 | H106: =T78 -> 102
B107: 200 | C107: 86 | D107: 112 | E107: 137 | F107: 151 | G107: 149 | H107: 154
B108: 250 | C108: 109 | D108: 138 | E108: 165 | F108: 187 | G108: 202 | H108: 199
B109: 300 | C109: 131 | D109: 160 | E109: 186 | F109: 218 | G109: 240 | H109: 249
B110: 350 | C110: 150 | D110: 180 | E110: 210 | F110: 240 | G110: 270 | H110: 286
B111: 400 | C111: 170 | D111: 199 | E111: 230 | F111: 260 | G111: 293 | H111: 318
B115: 350 GPM FLOW RATE
B116: Inlet (psig) | C116: Outlet-1 (psig) | D116: Outlet-2 (psig) | E116: Outlet-3 (psig) | F116: Outlet-4 (psig) | G116: Outlet-5 (psig) | H116: Outlet-6 (psig)
B117: 0 | C117: =U5 -> 0 | D117: =U19 -> 0 | E117: =U33 -> 0 | F117: =U47 -> 0 | G117: =U61 -> 0 | H117: =U75 -> 0
B118: 50 | C118: 0 | D118: 0 | E118: =U34 -> 0 | F118: =U48 -> 0 | G118: =U62 -> 0 | H118: =U76 -> 0
B119: 100 | C119: 25 | D119: 30 | E119: =U35 -> 31 | F119: =U49 -> 33 | G119: =U63 -> 32 | H119: =U77 -> 35
B120: 150 | C120: 53 | D120: 76 | E120: =U36 -> 86 | F120: =U50 -> 85 | G120: =U64 -> 86 | H120: =U78 -> 84
B121: 200 | C121: 78 | D121: 104 | E121: 127 | F121: 134 | G121: 133 | H121: 134
B122: 250 | C122: 100 | D122: 129 | E122: 156 | F122: 176 | G122: 183 | H122: 183
B123: 300 | C123: 122 | D123: 151 | E123: 180 | F123: 207 | G123: 227 | H123: 233
B124: 350 | C124: 144 | D124: 171 | E124: 201 | F124: 229 | G124: 255 | H124: 277
B125: 400 | C125: 162 | D125: 192 | E125: 224 | F125: 253 | G125: 284 | H125: 304
B129: 400 GPM FLOW RATE
B130: Inlet (psig) | C130: Outlet-1 (psig) | D130: Outlet-2 (psig) | E130: Outlet-3 (psig) | F130: Outlet-4 (psig) | G130: Outlet-5 (psig) | H130: Outlet-6 (psig)
B131: 0 | C131: =V5 -> 0 | D131: =V19 -> 0 | E131: =V33 -> 0 | F131: =V47 -> 0 | G131: =V61 -> 0 | H131: =V75 -> 0
B132: 50 | C132: 0 | D132: 0 | E132: 0 | F132: 0 | G132: 0 | H132: 0
B133: 100 | C133: 0 | D133: 0 | E133: 0 | F133: 0 | G133: 0 | H133: 0
B134: 150 | C134: 42 | D134: 62 | E134: 63 | F134: 64 | G134: 64 | H134: 66
B135: 200 | C135: 68 | D135: 92 | E135: 113 | F135: 113 | G135: 113 | H135: 113
B136: 250 | C136: 92 | D136: 118 | E136: 145 | F136: 162 | G136: 163 | H136: 164
B137: 300 | C137: 113 | D137: 139 | E137: 171 | F137: 193 | G137: 212 | H137: 213
B138: 350 | C138: 135 | D138: 161 | E138: 195 | F138: 220 | G138: 249 | H138: 263
B139: 400 | C139: 157 | D139: 185 | E139: 214 | F139: 247 | G139: 274 | H139: 294
B143: 450 GPM FLOW RATE
B144: Inlet (psig) | C144: Outlet-1 (psig) | D144: Outlet-2 (psig) | E144: Outlet-3 (psig) | F144: Outlet-4 (psig) | G144: Outlet-5 (psig) | H144: Outlet-6 (psig)
B145: 0 | C145: =W5 -> 0 | D145: =W19 -> 0 | E145: =W33 -> 0 | F145: =W47 -> 0 | G145: =W61 -> 0 | H145: =W75 -> 0
B146: 50 | C146: 0 | D146: 0 | E146: 0 | F146: 0 | G146: 0 | H146: 0
B147: 100 | C147: 0 | D147: 0 | E147: 0 | F147: 0 | G147: 0 | H147: 0
B148: 150 | C148: 28 | D148: 38 | E148: 38 | F148: 38 | G148: 36 | H148: 39
B149: 200 | C149: 57 | D149: 82 | E149: 88 | F149: 88 | G149: 90 | H149: 90
B150: 250 | C150: 83 | D150: 107 | E150: 134 | F150: 139 | G150: 140 | H150: 144
B151: 300 | C151: 105 | D151: 131 | E151: 161 | F151: 183 | G151: 191 | H151: 192
B152: 350 | C152: 124 | D152: 153 | E152: 187 | F152: 210 | G152: 236 | H152: 240
B153: 400 | C153: 142 | D153: 176 | E153: 204 | F153: 235 | G153: 262 | H153: 281
B157: 500 GPM FLOW RATE
B158: Inlet (psig) | C158: Outlet-1 (psig) | D158: Outlet-2 (psig) | E158: Outlet-3 (psig) | F158: Outlet-4 (psig) | G158: Outlet-5 (psig) | H158: Outlet-6 (psig)
B159: 0 | C159: =X5 -> 0 | D159: =X19 -> 0 | E159: =X33 -> 0 | F159: =X47 -> 0 | G159: =X61 -> 0 | H159: =X75 -> 0
B160: 50 | C160: 0 | D160: 0 | E160: 0 | F160: 0 | G160: 0 | H160: 0
B161: 100 | C161: 0 | D161: 0 | E161: 0 | F161: 0 | G161: 0 | H161: 0
B162: 150 | C162: 0 | D162: 0 | E162: 0 | F162: 0 | G162: 0 | H162: 0
B163: 200 | C163: 41 | D163: 65 | E163: 65 | F163: 63 | G163: 63 | H163: 65
B164: 250 | C164: 69 | D164: 97 | E164: 114 | F164: 112 | G164: 114 | H164: 115
B165: 300 | C165: 94 | D165: 120 | E165: 147 | F165: 163 | G165: 163 | H165: 163
B166: 350 | C166: 114 | D166: 141 | E166: 173 | F166: 197 | G166: 216 | H166: 217
B167: 400 | C167: 136 | D167: 162 | E167: 192 | F167: 222 | G167: 251 | H167: 261

Sheet IE2600A-250OS-ST (hidden)
A1: Data from Project# 4788271148, Date: 2018-05-09
B3: STATIC FLOW | K3: Bonnet Setting | L3: Inlet Pressure psig | M3: OUTLET PRESSURES @ FLOW RATE, GPM | AA3: Setting # 1: Inlet vs. Outlet Pressure Over Flow Range | AI3: SETTING 1
B4: Inlet (psig) | C4: Outlet-1 (psig) | D4: Outlet-2 (psig) | E4: Outlet-3 (psig) | F4: Outlet-4 (psig) | G4: Outlet-5 (psig) | H4: Outlet-6 (psig) | M4: 0 | N4: 50 | O4: 100 | P4: 150 | Q4: 175 | R4: 200 | S4: 250 | T4: 300 | U4: 350 | V4: 400 | W4: 450 | X4: 500 | AA4: Inlet (psig) | AB4: Static | AC4: 50-200 [GPM] | AD4: 200-300 [GPM] | AE4: 300-400 [GPM] | AF4: 400-500 [GPM] | AI4: Inlet (psig) | AJ4: =CONCATENATE("Outlet Residual @ " &AX$8& " GPM") -> Outlet Residual @ 0 GPM | AK4: =CONCATENATE("Outlet Residual @ " &AX$9& " GPM") -> Outlet Residual @ 0 GPM | AN4: Const. PRI Interpolated @ Var. Flow | AT4: VARIABLES
B5: 0 | C5: =M5 -> 0 | D5: =M19 -> 0 | E5: =M33 -> 0 | F5: =M47 -> 0 | G5: =M61 -> 0 | H5: =M75 -> 0 | K5: 1 | L5: 0 | AA5: =L5 -> 0 | AT5: Static Inlet Pressure | AW5: PSI: | AX5: =Database!$E$2 -> 0
B6: 50 | C6: 48 | D6: 50 | E6: 52 | F6: =M48 -> 48 | G6: =M62 -> 50 | H6: =M76 -> 50 | L6: 50 | M6: 48 | N6: 47 | O6: 39 | P6: 31 | Q6: 27 | R6: 22 | S6: 16 | AA6: =L6 -> 50 | AB6: =M6 -> 48 | AC6: =AVERAGE(N6:R6) -> 33.2 | AD6: =AVERAGE(R6:T6) -> 19 | AE6: =AVERAGE(T6:V6) ->  | AF6: =AVERAGE(V6:X6) ->  | AI6: =L6 -> 50 | AJ6: =HLOOKUP($AX$8,$M$4:$X$13,3) -> 48 | AK6: =HLOOKUP($AX$9,$M$4:$X$13,3) -> 48 | AL6: PRI1: | AM6: =LARGE(L6:L13,COUNTIF(L6:L13,">" &AX6)+1) ->  | AN6: =VLOOKUP(AM6,AI6:AK13,2) ->  | AO6: =VLOOKUP(AM6,AI6:AK13,3) ->  | AP6: PRO1: | AQ6: =IF(AX8=AX9, AN6, FORECAST(AX7,$AN$6:$AO$6,$AX$8:$AX$9)) ->  | AT6: Residual Inlet Pressure | AW6: PRI: | AX6: =Database!$E$3 -> 0
B7: 100 | C7: 82 | D7: 101 | E7: 100 | F7: =M49 -> 100 | G7: =M63 -> 98 | H7: =M77 -> 100 | L7: 100 | M7: 82 | N7: 77 | O7: 69 | P7: 62 | Q7: 57 | R7: 55 | S7: 45 | T7: 36 | U7: 25 | AA7: 100 | AB7: 82 | AC7: =AVERAGE(N7:R7) -> 64 | AD7: =AVERAGE(R7:T7) -> 45.33333333 | AE7: =AVERAGE(T7:V7) -> 30.5 | AF7: =AVERAGE(V7:X7) ->  | AI7: =L7 -> 100 | AJ7: =HLOOKUP($AX$8,$M$4:$X$13,4) -> 82 | AK7: =HLOOKUP($AX$9,$M$4:$X$13,4) -> 82 | AL7: PRI2: | AM7: =SMALL(L6:L13,COUNTIF(L6:L13,"<" &AX6)+1) -> 50 | AN7: =VLOOKUP(AM7,AI6:AK13,2) -> 48 | AO7: =VLOOKUP(AM7,AI6:AK13,3) -> 48 | AP7: PRO2: | AQ7: =IF(AX8=AX9, AN7, FORECAST(AX7,$AN$7:$AO$7,$AX$8:$AX$9)) -> 48 | AT7: Flow Rate | AW7: Q0: | AX7: =IF(Database!$E$4=500,499.99,Database!$E$4) -> 0
B8: 150 | C8: 105 | D8: 140 | E8: 150 | F8: 150 | G8: 150 | H8: 150 | L8: 150 | M8: 105 | N8: 101 | O8: 93 | P8: 89 | Q8: 83 | R8: 81 | S8: 72 | T8: 62 | U8: 53 | V8: 42 | W8: 28 | AA8: 150 | AB8: 105 | AC8: 89.4 | AD8: 71.66666667 | AE8: 52.33333333 | AF8: 35 | AI8: 150 | AJ8: =HLOOKUP($AX$8,$M$4:$X$13,5) -> 105 | AK8: =HLOOKUP($AX$9,$M$4:$X$13,5) -> 105 | AL8: PSI1: | AM8: =LARGE(L6:L13,COUNTIF(L6:L13,">" &AX5)+1) ->  | AP8: PSO1: | AQ8: =VLOOKUP(AM8,L6:M13,2) ->  | AT8: Nearest known Flow Rate, 1 | AW8: Q1: | AX8: =LARGE(M4:X4,COUNTIF(M4:X4,">" &AX7)+1) -> 0
B9: 200 | C9: 123 | D9: 168 | E9: 194 | F9: 201 | G9: 200 | H9: 200 | L9: 200 | M9: 123 | N9: 121 | O9: 114 | P9: 110 | Q9: 105 | R9: 104 | S9: 98 | T9: 86 | U9: 78 | V9: 68 | W9: 57 | X9: 41 | AA9: 200 | AB9: 123 | AC9: 110.8 | AD9: 96 | AE9: 77.33333333 | AF9: 55.33333333 | AI9: 200 | AJ9: =HLOOKUP($AX$8,$M$4:$X$13,6) -> 123 | AK9: =HLOOKUP($AX$9,$M$4:$X$13,6) -> 123 | AL9: PSI2: | AM9: =SMALL(L6:L13,COUNTIF(L6:L13,"<" &AX5)+1) -> 50 | AP9: PSO2: | AQ9: =VLOOKUP(AM9,L6:M13,2) -> 48 | AT9: Nearest known Flow Rate, 2 | AW9: Q2: | AX9: =SMALL(M4:X4,COUNTIF(M4:X4,"<" &AX7)+1) -> 0
B10: 250 | C10: 146 | D10: 188 | E10: 215 | F10: 244 | G10: 250 | H10: 250 | L10: 250 | M10: 146 | N10: 138 | O10: 133 | P10: 129 | Q10: 126 | R10: 123 | S10: 118 | T10: 109 | U10: 100 | V10: 92 | W10: 83 | X10: 69 | AA10: 250 | AB10: 146 | AC10: 129.8 | AD10: 116.6666667 | AE10: 100.3333333 | AF10: 81.33333333 | AI10: 250 | AJ10: =HLOOKUP($AX$8,$M$4:$X$13,7) -> 146 | AK10: =HLOOKUP($AX$9,$M$4:$X$13,7) -> 146
B11: 300 | C11: 173 | D11: 203 | E11: 233 | F11: 266 | G11: 299 | H11: 300 | L11: 300 | M11: 173 | N11: 162 | O11: 155 | P11: 150 | Q11: 150 | R11: 142 | S11: 136 | T11: 131 | U11: 122 | V11: 113 | W11: 105 | X11: 94 | AA11: 300 | AB11: 173 | AC11: 151.8 | AD11: 136.3333333 | AE11: 122 | AF11: 104 | AI11: 300 | AJ11: =HLOOKUP($AX$8,$M$4:$X$13,8) -> 173 | AK11: =HLOOKUP($AX$9,$M$4:$X$13,8) -> 173
B12: 350 | C12: 194 | D12: 229 | E12: 255 | F12: 288 | G12: 319 | H12: 350 | L12: 350 | M12: 194 | N12: 183 | O12: 175 | P12: 173 | Q12: 168 | R12: 167 | S12: 155 | T12: 150 | U12: 144 | V12: 135 | W12: 124 | X12: 114 | AA12: 350 | AB12: 194 | AC12: 173.2 | AD12: 157.3333333 | AE12: 143 | AF12: 124.3333333 | AI12: 350 | AJ12: =HLOOKUP($AX$8,$M$4:$X$13,9) -> 194 | AK12: =HLOOKUP($AX$9,$M$4:$X$13,9) -> 194
B13: 400 | C13: 210 | D13: 248 | E13: 276 | F13: 307 | G13: 341 | H13: 372 | L13: 400 | M13: 210 | N13: 200 | O13: 193 | P13: 192 | Q13: 186 | R13: 183 | S13: 177 | T13: 170 | U13: 162 | V13: 157 | W13: 142 | X13: 136 | AA13: 400 | AB13: 210 | AC13: 190.8 | AD13: 176.6666667 | AE13: 163 | AF13: 145 | AI13: 400 | AJ13: =HLOOKUP($AX$8,$M$4:$X$13,10) -> 210 | AK13: =HLOOKUP($AX$9,$M$4:$X$13,10) -> 210
B17: 50 GPM FLOW RATE | K17: Bonnet Setting | L17: Inlet Pressure psig | M17: OUTLET PRESSURES @ FLOW RATE, GPM | AA17: Setting # 2: Inlet vs. Outlet Pressure Over Flow Range | AI17: SETTING 2
B18: Inlet (psig) | C18: Outlet-1 (psig) | D18: Outlet-2 (psig) | E18: Outlet-3 (psig) | F18: Outlet-4 (psig) | G18: Outlet-5 (psig) | H18: Outlet-6 (psig) | M18: 0 | N18: 50 | O18: 100 | P18: 150 | Q18: 175 | R18: 200 | S18: 250 | T18: 300 | U18: 350 | V18: 400 | W18: 450 | X18: 500 | AA18: Inlet (psig) | AB18: Static | AC18: 50-200 [GPM] | AD18: 200-300 [GPM] | AE18: 300-400 [GPM] | AF18: 400-500 [GPM] | AI18: Inlet (psig) | AJ18: =CONCATENATE("Outlet Residual @ " &AX$8& " GPM") -> Outlet Residual @ 0 GPM | AK18: =CONCATENATE("Outlet Residual @ " &AX$9& " GPM") -> Outlet Residual @ 0 GPM | AN18: Const. PRI Interpolated @ Var. Flow | AT18: 2.5" Angle Double Spring | AV18: Calculated Static Outlet Pressure | AW18: Calculated Residual Outlet Pressure | AX18: Max Flow Rate
B19: 0 | C19: =N5 -> 0 | D19: =N19 -> 0 | E19: =N33 -> 0 | F19: =N47 -> 0 | G19: =N61 -> 0 | H19: =N75 -> 0 | K19: 2 | L19: 0 | AA19: =L19 -> 0 | AT19: Setting 1 | AV19: =IF($AQ$8=$AQ$9,$AQ$8,FORECAST($AX$5,$AQ$8:$AQ$9,$AM$8:$AM$9)) ->  | AW19: =IF($AQ$6=$AQ$7,$AQ$6,FORECAST($AX$6,$AQ$6:$AQ$7,$AM$6:$AM$7)) ->  | AX19: 500
B20: 50 | C20: 47 | D20: 50 | E20: =N34 -> 47 | F20: =N48 -> 48 | G20: =N62 -> 50 | H20: =N76 -> 50 | L20: 50 | M20: 50 | N20: 50 | O20: 44 | P20: 38 | Q20: 34 | R20: 27 | S20: 15 | AA20: =L20 -> 50 | AB20: =M20 -> 50 | AC20: =AVERAGE(N20:R20) -> 38.6 | AD20: =AVERAGE(R20:T20) -> 21 | AE20: =AVERAGE(T20:V20) ->  | AF20: =AVERAGE(V20:X20) ->  | AI20: =L20 -> 50 | AJ20: =HLOOKUP($AX$8,$M$18:$X$27,3) -> 50 | AK20: =HLOOKUP($AX$9,$M$18:$X$27,3) -> 50 | AL20: PRI1: | AM20: =LARGE(L20:L27,COUNTIF(L20:L27,">" &AX6)+1) ->  | AN20: =VLOOKUP(AM20,AI20:AK27,2) ->  | AO20: =VLOOKUP(AM20,AI20:AK27,3) ->  | AP20: PRO1: | AQ20: =IF(AX8=AX9, AN20, FORECAST(AX7,$AN$20:$AO$20,$AX$8:$AX$9)) ->  | AT20: Setting 2 | AV20: =IF($AQ$22=$AQ$23,$AQ$22,FORECAST($AX$5,$AQ$22:$AQ$23,$AM$22:$AM$23)) ->  | AW20: =IF($AQ$20=$AQ$21,$AQ$20,FORECAST($AX$6,$AQ$20:$AQ$21,$AM$20:$AM$21)) ->  | AX20: 500
B21: 100 | C21: 77 | D21: 97 | E21: =N35 -> 100 | F21: =N49 -> 100 | G21: =N63 -> 101 | H21: =N77 -> 100 | L21: 100 | M21: 101 | N21: 97 | O21: 87 | P21: 80 | Q21: 75 | R21: 72 | S21: 62 | T21: 49 | U21: 30 | AA21: 100 | AB21: 101 | AC21: =AVERAGE(N21:R21) -> 82.2 | AD21: =AVERAGE(R21:T21) -> 61 | AE21: =AVERAGE(T21:V21) -> 39.5 | AF21: =AVERAGE(V21:X21) ->  | AI21: =L21 -> 100 | AJ21: =HLOOKUP($AX$8,$M$18:$X$27,4) -> 101 | AK21: =HLOOKUP($AX$9,$M$18:$X$27,4) -> 101 | AL21: PRI2: | AM21: =SMALL(L20:L27,COUNTIF(L20:L27,"<" &AX6)+1) -> 50 | AN21: =VLOOKUP(AM21,AI20:AK27,2) -> 50 | AO21: =VLOOKUP(AM21,AI20:AK27,3) -> 50 | AP21: PRO2: | AQ21: =IF(AX8=AX9, AN21, FORECAST(AX7,$AN$21:$AO$21,$AX$8:$AX$9)) -> 50 | AT21: Setting 3 | AV21: =IF($AQ$36=$AQ$37,$AQ$36,FORECAST($AX$5,$AQ$36:$AQ$37,$AM$36:$AM$37)) ->  | AW21: =IF($AQ$34=$AQ$35,$AQ$34,FORECAST($AX$6,$AQ$34:$AQ$35,$AM$34:$AM$35)) ->  | AX21: 500
B22: 150 | C22: 101 | D22: 129 | E22: =N36 -> 146 | F22: 150 | G22: 150 | H22: 150 | L22: 150 | M22: 140 | N22: 129 | O22: 118 | P22: 110 | Q22: 106 | R22: 102 | S22: 94 | T22: 85 | U22: 76 | V22: 62 | W22: 38 | AA22: 150 | AB22: 140 | AC22: 113 | AD22: 93.66666667 | AE22: 74.33333333 | AF22: 50 | AI22: 150 | AJ22: =HLOOKUP($AX$8,$M$18:$X$27,5) -> 140 | AK22: =HLOOKUP($AX$9,$M$18:$X$27,5) -> 140 | AL22: PSI1: | AM22: =LARGE(L20:L27,COUNTIF(L20:L27,">" &AX5)+1) ->  | AP22: PSO1: | AQ22: =VLOOKUP(AM22,L20:M27,2) ->  | AT22: Setting 4 | AV22: =IF($AQ$50=$AQ$51,$AQ$50,FORECAST($AX$5,$AQ$50:$AQ$51,$AM$50:$AM$51)) ->  | AW22: =IF($AQ$48=$AQ$49,$AQ$48,FORECAST($AX$6,$AQ$48:$AQ$49,$AM$48:$AM$49)) ->  | AX22: 500
B23: 200 | C23: 121 | D23: 151 | E23: 183 | F23: 195 | G23: 200 | H23: 200 | L23: 200 | M23: 168 | N23: 151 | O23: 141 | P23: 139 | Q23: 132 | R23: 128 | S23: 120 | T23: 112 | U23: 104 | V23: 92 | W23: 82 | X23: 65 | AA23: 200 | AB23: 168 | AC23: 138.2 | AD23: 120 | AE23: 102.6666667 | AF23: 79.66666667 | AI23: 200 | AJ23: =HLOOKUP($AX$8,$M$18:$X$27,6) -> 168 | AK23: =HLOOKUP($AX$9,$M$18:$X$27,6) -> 168 | AL23: PSI2: | AM23: =SMALL(L20:L27,COUNTIF(L20:L27,"<" &AX5)+1) -> 50 | AP23: PSO2: | AQ23: =VLOOKUP(AM23,L20:M27,2) -> 50 | AT23: Setting 5 | AV23: =IF($AQ$64=$AQ$65,$AQ$64,FORECAST($AX$5,$AQ$64:$AQ$65,$AM$64:$AM$65)) ->  | AW23: =IF($AQ$62=$AQ$63,$AQ$62,FORECAST($AX$6,$AQ$62:$AQ$63,$AM$62:$AM$63)) ->  | AX23: 500
B24: 250 | C24: 138 | D24: 168 | E24: 204 | F24: 230 | G24: 247 | H24: 250 | L24: 250 | M24: 188 | N24: 168 | O24: 162 | P24: 157 | Q24: 155 | R24: 151 | S24: 144 | T24: 138 | U24: 129 | V24: 118 | W24: 107 | X24: 97 | AA24: 250 | AB24: 188 | AC24: 158.6 | AD24: 144.3333333 | AE24: 128.3333333 | AF24: 107.3333333 | AI24: 250 | AJ24: =HLOOKUP($AX$8,$M$18:$X$27,7) -> 188 | AK24: =HLOOKUP($AX$9,$M$18:$X$27,7) -> 188 | AT24: Setting 6 | AV24: =IF($AQ$78=$AQ$79,$AQ$78,FORECAST($AX$5,$AQ$78:$AQ$79,$AM$78:$AM$79)) ->  | AW24: =IF($AQ$76=$AQ$77,$AQ$76,FORECAST($AX$6,$AQ$76:$AQ$77,$AM$76:$AM$77)) ->  | AX24: 500
B25: 300 | C25: 162 | D25: 189 | E25: 220 | F25: 256 | G25: 287 | H25: 300 | L25: 300 | M25: 203 | N25: 189 | O25: 183 | P25: 176 | Q25: 174 | R25: 172 | S25: 166 | T25: 160 | U25: 151 | V25: 139 | W25: 131 | X25: 120 | AA25: 300 | AB25: 203 | AC25: 178.8 | AD25: 166 | AE25: 150 | AF25: 130 | AI25: 300 | AJ25: =HLOOKUP($AX$8,$M$18:$X$27,8) -> 203 | AK25: =HLOOKUP($AX$9,$M$18:$X$27,8) -> 203
B26: 350 | C26: 183 | D26: 208 | E26: 240 | F26: 276 | G26: 310 | H26: 335 | L26: 350 | M26: 229 | N26: 208 | O26: 201 | P26: 196 | Q26: 194 | R26: 191 | S26: 186 | T26: 180 | U26: 171 | V26: 161 | W26: 153 | X26: 141 | AA26: 350 | AB26: 229 | AC26: 198 | AD26: 185.6666667 | AE26: 170.6666667 | AF26: 151.6666667 | AI26: 350 | AJ26: =HLOOKUP($AX$8,$M$18:$X$27,9) -> 229 | AK26: =HLOOKUP($AX$9,$M$18:$X$27,9) -> 229
B27: 400 | C27: 200 | D27: 227 | E27: 262 | F27: 297 | G27: 333 | H27: 362 | L27: 400 | M27: 248 | N27: 227 | O27: 223 | P27: 217 | Q27: 220 | R27: 212 | S27: 205 | T27: 199 | U27: 192 | V27: 185 | W27: 176 | X27: 162 | AA27: 400 | AB27: 248 | AC27: 219.8 | AD27: 205.3333333 | AE27: 192 | AF27: 174.3333333 | AI27: 400 | AJ27: =HLOOKUP($AX$8,$M$18:$X$27,10) -> 248 | AK27: =HLOOKUP($AX$9,$M$18:$X$27,10) -> 248
B31: 100 GPM FLOW RATE | K31: Bonnet Setting | L31: Inlet Pressure psig | M31: OUTLET PRESSURES @ FLOW RATE, GPM | AA31: Setting # 3: Inlet vs. Outlet Pressure Over Flow Range | AI31: SETTING 3
B32: Inlet (psig) | C32: Outlet-1 (psig) | D32: Outlet-2 (psig) | E32: Outlet-3 (psig) | F32: Outlet-4 (psig) | G32: Outlet-5 (psig) | H32: Outlet-6 (psig) | M32: 0 | N32: 50 | O32: 100 | P32: 150 | Q32: 175 | R32: 200 | S32: 250 | T32: 300 | U32: 350 | V32: 400 | W32: 450 | X32: 500 | AA32: Inlet (psig) | AB32: Static | AC32: 50-200 [GPM] | AD32: 200-300 [GPM] | AE32: 300-400 [GPM] | AF32: 400-500 [GPM] | AI32: Inlet (psig) | AJ32: =CONCATENATE("Outlet Residual @ " &AX$8& " GPM") -> Outlet Residual @ 0 GPM | AK32: =CONCATENATE("Outlet Residual @ " &AX$9& " GPM") -> Outlet Residual @ 0 GPM | AN32: Const. PRI Interpolated @ Var. Flow
B33: 0 | C33: =O5 -> 0 | D33: =O19 -> 0 | E33: =O33 -> 0 | F33: =O47 -> 0 | G33: =O61 -> 0 | H33: =O75 -> 0 | K33: 3 | L33: 0 | AA33: =L33 -> 0
B34: 50 | C34: 39 | D34: =O20 -> 44 | E34: =O34 -> 47 | F34: =O48 -> 45 | G34: =O62 -> 44 | H34: =O76 -> 42 | L34: 50 | M34: 52 | N34: 47 | O34: 47 | P34: 38 | Q34: 32 | R34: 27 | S34: 14 | AA34: =L34 -> 50 | AB34: =M34 -> 52 | AC34: =AVERAGE(N34:R34) -> 38.2 | AD34: =AVERAGE(R34:T34) -> 20.5 | AE34: =AVERAGE(T34:V34) ->  | AF34: =AVERAGE(V34:X34) ->  | AI34: =L34 -> 50 | AJ34: =HLOOKUP($AX$8,$M$32:$X$41,3) -> 52 | AK34: =HLOOKUP($AX$9,$M$32:$X$41,3) -> 52 | AL34: PRI1: | AM34: =LARGE(L34:L41,COUNTIF(L34:L41,">" &AX6)+1) ->  | AN34: =VLOOKUP(AM34,AI34:AK41,2) ->  | AO34: =VLOOKUP(AM34,AI34:AK41,3) ->  | AP34: PRO1: | AQ34: =IF(AX8=AX9, AN34, FORECAST(AX7,$AN$34:$AO$34,$AX$8:$AX$9)) -> 
B35: 100 | C35: 69 | D35: =O21 -> 87 | E35: =O35 -> 94 | F35: =O49 -> 96 | G35: =O63 -> 95 | H35: =O77 -> 93 | L35: 100 | M35: 100 | N35: 100 | O35: 94 | P35: 88 | Q35: 84 | R35: 79 | S35: 67 | T35: 51 | U35: 31 | AA35: 100 | AB35: 100 | AC35: =AVERAGE(N35:R35) -> 89 | AD35: =AVERAGE(R35:T35) -> 65.66666667 | AE35: =AVERAGE(T35:V35) -> 41 | AF35: =AVERAGE(V35:X35) ->  | AI35: =L35 -> 100 | AJ35: =HLOOKUP($AX$8,$M$32:$X$41,4) -> 100 | AK35: =HLOOKUP($AX$9,$M$32:$X$41,4) -> 100 | AL35: PRI2: | AM35: =SMALL(L34:L41,COUNTIF(L34:L41,"<" &AX6)+1) -> 50 | AN35: =VLOOKUP(AM35,AI34:AK41,2) -> 52 | AO35: =VLOOKUP(AM35,AI34:AK41,3) -> 52 | AP35: PRO2: | AQ35: =IF(AX8=AX9, AN35, FORECAST(AX7,$AN$35:$AO$35,$AX$8:$AX$9)) -> 52
B36: 150 | C36: 93 | D36: =O22 -> 118 | E36: =O36 -> 140 | F36: 145 | G36: 145 | H36: 144 | L36: 150 | M36: 150 | N36: 146 | O36: 140 | P36: 130 | Q36: 127 | R36: 123 | S36: 115 | T36: 102 | U36: 86 | V36: 63 | W36: 38 | AA36: 150 | AB36: 150 | AC36: 133.2 | AD36: 113.3333333 | AE36: 83.66666667 | AF36: 50.5 | AI36: 150 | AJ36: =HLOOKUP($AX$8,$M$32:$X$41,5) -> 150 | AK36: =HLOOKUP($AX$9,$M$32:$X$41,5) -> 150 | AL36: PSI1: | AM36: =LARGE(L34:L41,COUNTIF(L34:L41,">" &AX5)+1) ->  | AP36: PSO1: | AQ36: =VLOOKUP(AM36,L34:M41,2) -> 
B37: 200 | C37: 114 | D37: 141 | E37: 169 | F37: 189 | G37: 196 | H37: 196 | L37: 200 | M37: 194 | N37: 183 | O37: 169 | P37: 165 | Q37: 157 | R37: 156 | S37: 147 | T37: 137 | U37: 127 | V37: 113 | W37: 88 | X37: 65 | AA37: 200 | AB37: 194 | AC37: 166 | AD37: 146.6666667 | AE37: 125.6666667 | AF37: 88.66666667 | AI37: 200 | AJ37: =HLOOKUP($AX$8,$M$32:$X$41,6) -> 194 | AK37: =HLOOKUP($AX$9,$M$32:$X$41,6) -> 194 | AL37: PSI2: | AM37: =SMALL(L34:L41,COUNTIF(L34:L41,"<" &AX5)+1) -> 50 | AP37: PSO2: | AQ37: =VLOOKUP(AM37,L34:M41,2) -> 52
B38: 250 | C38: 133 | D38: 162 | E38: 200 | F38: 224 | G38: 241 | H38: 245 | L38: 250 | M38: 215 | N38: 204 | O38: 200 | P38: 191 | Q38: 187 | R38: 183 | S38: 176 | T38: 165 | U38: 156 | V38: 145 | W38: 134 | X38: 114 | AA38: 250 | AB38: 215 | AC38: 193 | AD38: 174.6666667 | AE38: 155.3333333 | AF38: 131 | AI38: 250 | AJ38: =HLOOKUP($AX$8,$M$32:$X$41,7) -> 215 | AK38: =HLOOKUP($AX$9,$M$32:$X$41,7) -> 215
B39: 300 | C39: 155 | D39: 183 | E39: 214 | F39: 249 | G39: 279 | H39: 289 | L39: 300 | M39: 233 | N39: 220 | O39: 214 | P39: 209 | Q39: 205 | R39: 203 | S39: 194 | T39: 186 | U39: 180 | V39: 171 | W39: 161 | X39: 147 | AA39: 300 | AB39: 233 | AC39: 210.2 | AD39: 194.3333333 | AE39: 179 | AF39: 159.6666667 | AI39: 300 | AJ39: =HLOOKUP($AX$8,$M$32:$X$41,8) -> 233 | AK39: =HLOOKUP($AX$9,$M$32:$X$41,8) -> 233
B40: 350 | C40: 175 | D40: 201 | E40: 233 | F40: 266 | G40: 304 | H40: 326 | L40: 350 | M40: 255 | N40: 240 | O40: 233 | P40: 227 | Q40: 227 | R40: 224 | S40: 217 | T40: 210 | U40: 201 | V40: 195 | W40: 187 | X40: 173 | AA40: 350 | AB40: 255 | AC40: 230.2 | AD40: 217 | AE40: 202 | AF40: 185 | AI40: 350 | AJ40: =HLOOKUP($AX$8,$M$32:$X$41,9) -> 255 | AK40: =HLOOKUP($AX$9,$M$32:$X$41,9) -> 255
B41: 400 | C41: 193 | D41: 223 | E41: 254 | F41: 288 | G41: 320 | H41: 348 | L41: 400 | M41: 276 | N41: 262 | O41: 254 | P41: 249 | Q41: 246 | R41: 242 | S41: 237 | T41: 230 | U41: 224 | V41: 214 | W41: 204 | X41: 192 | AA41: 400 | AB41: 276 | AC41: 250.6 | AD41: 236.3333333 | AE41: 222.6666667 | AF41: 203.3333333 | AI41: 400 | AJ41: =HLOOKUP($AX$8,$M$32:$X$41,10) -> 276 | AK41: =HLOOKUP($AX$9,$M$32:$X$41,10) -> 276
B45: 150 GPM FLOW RATE | K45: Bonnet Setting | L45: Inlet Pressure psig | M45: OUTLET PRESSURES @ FLOW RATE, GPM | AA45: Setting # 4: Inlet vs. Outlet Pressure Over Flow Range | AI45: SETTING 4
B46: Inlet (psig) | C46: Outlet-1 (psig) | D46: Outlet-2 (psig) | E46: Outlet-3 (psig) | F46: Outlet-4 (psig) | G46: Outlet-5 (psig) | H46: Outlet-6 (psig) | M46: 0 | N46: 50 | O46: 100 | P46: 150 | Q46: 175 | R46: 200 | S46: 250 | T46: 300 | U46: 350 | V46: 400 | W46: 450 | X46: 500 | AA46: Inlet (psig) | AB46: Static | AC46: 50-200 [GPM] | AD46: 200-300 [GPM] | AE46: 300-400 [GPM] | AF46: 400-500 [GPM] | AI46: Inlet (psig) | AJ46: =CONCATENATE("Outlet Residual @ " &AX$8& " GPM") -> Outlet Residual @ 0 GPM | AK46: =CONCATENATE("Outlet Residual @ " &AX$9& " GPM") -> Outlet Residual @ 0 GPM | AN46: Const. PRI Interpolated @ Var. Flow
B47: 0 | C47: =P5 -> 0 | D47: =P19 -> 0 | E47: =P33 -> 0 | F47: =P47 -> 0 | G47: =P61 -> 0 | H47: =P75 -> 0 | K47: 4 | L47: 0 | AA47: =L47 -> 0
B48: 50 | C48: 31 | D48: =P20 -> 38 | E48: =P34 -> 38 | F48: =P48 -> 38 | G48: =P62 -> 38 | H48: =P76 -> 40 | L48: 50 | M48: 48 | N48: 48 | O48: 45 | P48: 38 | Q48: 33 | R48: 28 | S48: 15 | AA48: =L48 -> 50 | AB48: =M48 -> 48 | AC48: =AVERAGE(N48:R48) -> 38.4 | AD48: =AVERAGE(R48:T48) -> 21.5 | AE48: =AVERAGE(T48:V48) ->  | AF48: =AVERAGE(V48:X48) ->  | AI48: =L48 -> 50 | AJ48: =HLOOKUP($AX$8,$M$46:$X$55,3) -> 48 | AK48: =HLOOKUP($AX$9,$M$46:$X$55,3) -> 48 | AL48: PRI1: | AM48: =LARGE(L48:L55,COUNTIF(L48:L55,">" &AX6)+1) ->  | AN48: =VLOOKUP(AM48,AI48:AK55,2) ->  | AO48: =VLOOKUP(AM48,AI48:AK55,3) ->  | AP48: PRO1: | AQ48: =IF(AX8=AX9, AN48, FORECAST(AX7,$AN$48:$AO$48,$AX$8:$AX$9)) -> 
B49: 100 | C49: 62 | D49: =P21 -> 80 | E49: =P35 -> 88 | F49: =P49 -> 88 | G49: =P63 -> 88 | H49: =P77 -> 87 | L49: 100 | M49: 100 | N49: 100 | O49: 96 | P49: 88 | Q49: 84 | R49: 80 | S49: 68 | T49: 50 | U49: 33 | AA49: 100 | AB49: 100 | AC49: =AVERAGE(N49:R49) -> 89.6 | AD49: =AVERAGE(R49:T49) -> 66 | AE49: =AVERAGE(T49:V49) -> 41.5 | AF49: =AVERAGE(V49:X49) ->  | AI49: =L49 -> 100 | AJ49: =HLOOKUP($AX$8,$M$46:$X$55,4) -> 100 | AK49: =HLOOKUP($AX$9,$M$46:$X$55,4) -> 100 | AL49: PRI2: | AM49: =SMALL(L48:L55,COUNTIF(L48:L55,"<" &AX6)+1) -> 50 | AN49: =VLOOKUP(AM49,AI48:AK55,2) -> 48 | AO49: =VLOOKUP(AM49,AI48:AK55,3) -> 48 | AP49: PRO2: | AQ49: =IF(AX8=AX9, AN49, FORECAST(AX7,$AN$49:$AO$49,$AX$8:$AX$9)) -> 48
B50: 150 | C50: 89 | D50: =P22 -> 110 | E50: 130 | F50: 138 | G50: 138 | H50: 138 | L50: 150 | M50: 150 | N50: 150 | O50: 145 | P50: 138 | Q50: 135 | R50: 129 | S50: 116 | T50: 100 | U50: 85 | V50: 64 | W50: 38 | AA50: 150 | AB50: 150 | AC50: 139.4 | AD50: 115 | AE50: 83 | AF50: 51 | AI50: 150 | AJ50: =HLOOKUP($AX$8,$M$46:$X$55,5) -> 150 | AK50: =HLOOKUP($AX$9,$M$46:$X$55,5) -> 150 | AL50: PSI1: | AM50: =LARGE(L48:L55,COUNTIF(L48:L55,">" &AX5)+1) ->  | AP50: PSO1: | AQ50: =VLOOKUP(AM50,L48:M55,2) -> 
B51: 200 | C51: 110 | D51: 139 | E51: 165 | F51: 182 | G51: 188 | H51: 187 | L51: 200 | M51: 201 | N51: 195 | O51: 189 | P51: 182 | Q51: 180 | R51: 173 | S51: 164 | T51: 151 | U51: 134 | V51: 113 | W51: 88 | X51: 63 | AA51: 200 | AB51: 201 | AC51: 183.8 | AD51: 162.6666667 | AE51: 132.6666667 | AF51: 88 | AI51: 200 | AJ51: =HLOOKUP($AX$8,$M$46:$X$55,6) -> 201 | AK51: =HLOOKUP($AX$9,$M$46:$X$55,6) -> 201 | AL51: PSI2: | AM51: =SMALL(L48:L55,COUNTIF(L48:L55,"<" &AX5)+1) -> 50 | AP51: PSO2: | AQ51: =VLOOKUP(AM51,L48:M55,2) -> 48
B52: 250 | C52: 129 | D52: 157 | E52: 191 | F52: 214 | G52: 233 | H52: 239 | L52: 250 | M52: 244 | N52: 230 | O52: 224 | P52: 214 | Q52: 211 | R52: 204 | S52: 196 | T52: 187 | U52: 176 | V52: 162 | W52: 139 | X52: 112 | AA52: 250 | AB52: 244 | AC52: 216.6 | AD52: 195.6666667 | AE52: 175 | AF52: 137.6666667 | AI52: 250 | AJ52: =HLOOKUP($AX$8,$M$46:$X$55,7) -> 244 | AK52: =HLOOKUP($AX$9,$M$46:$X$55,7) -> 244
B53: 300 | C53: 150 | D53: 176 | E53: 209 | F53: 241 | G53: 265 | H53: 280 | L53: 300 | M53: 266 | N53: 256 | O53: 249 | P53: 241 | Q53: 235 | R53: 232 | S53: 223 | T53: 218 | U53: 207 | V53: 193 | W53: 183 | X53: 163 | AA53: 300 | AB53: 266 | AC53: 242.6 | AD53: 224.3333333 | AE53: 206 | AF53: 179.6666667 | AI53: 300 | AJ53: =HLOOKUP($AX$8,$M$46:$X$55,8) -> 266 | AK53: =HLOOKUP($AX$9,$M$46:$X$55,8) -> 266
B54: 350 | C54: 173 | D54: 196 | E54: 227 | F54: 266 | G54: 294 | H54: 316 | L54: 350 | M54: 288 | N54: 276 | O54: 266 | P54: 266 | Q54: 258 | R54: 256 | S54: 250 | T54: 240 | U54: 229 | V54: 220 | W54: 210 | X54: 197 | AA54: 350 | AB54: 288 | AC54: 264.4 | AD54: 248.6666667 | AE54: 229.6666667 | AF54: 209 | AI54: 350 | AJ54: =HLOOKUP($AX$8,$M$46:$X$55,9) -> 288 | AK54: =HLOOKUP($AX$9,$M$46:$X$55,9) -> 288
B55: 400 | C55: 192 | D55: 217 | E55: 249 | F55: 283 | G55: 314 | H55: 341 | L55: 400 | M55: 307 | N55: 297 | O55: 288 | P55: 283 | Q55: 278 | R55: 278 | S55: 266 | T55: 260 | U55: 253 | V55: 247 | W55: 235 | X55: 222 | AA55: 400 | AB55: 307 | AC55: 284.8 | AD55: 268 | AE55: 253.3333333 | AF55: 234.6666667 | AI55: 400 | AJ55: =HLOOKUP($AX$8,$M$46:$X$55,10) -> 307 | AK55: =HLOOKUP($AX$9,$M$46:$X$55,10) -> 307
B59: 175 GPM FLOW RATE | K59: Bonnet Setting | L59: Inlet Pressure psig | M59: OUTLET PRESSURES @ FLOW RATE, GPM | AA59: Setting # 5: Inlet vs. Outlet Pressure Over Flow Range | AI59: SETTING 5
B60: Inlet (psig) | C60: Outlet-1 (psig) | D60: Outlet-2 (psig) | E60: Outlet-3 (psig) | F60: Outlet-4 (psig) | G60: Outlet-5 (psig) | H60: Outlet-6 (psig) | M60: 0 | N60: 50 | O60: 100 | P60: 150 | Q60: 175 | R60: 200 | S60: 250 | T60: 300 | U60: 350 | V60: 400 | W60: 450 | X60: 500 | AA60: Inlet (psig) | AB60: Static | AC60: 50-200 [GPM] | AD60: 200-300 [GPM] | AE60: 300-400 [GPM] | AF60: 400-500 [GPM] | AI60: Inlet (psig) | AJ60: =CONCATENATE("Outlet Residual @ " &AX$8& " GPM") -> Outlet Residual @ 0 GPM | AK60: =CONCATENATE("Outlet Residual @ " &AX$9& " GPM") -> Outlet Residual @ 0 GPM | AN60: Const. PRI Interpolated @ Var. Flow
B61: 0 | C61: =Q5 -> 0 | D61: =Q19 -> 0 | E61: =Q33 -> 0 | F61: =Q47 -> 0 | G61: =Q61 -> 0 | H61: =Q75 -> 0 | K61: 5 | L61: 0 | AA61: =L61 -> 0
B62: 50 | C62: =Q6 -> 27 | D62: =Q20 -> 34 | E62: =Q34 -> 32 | F62: =Q48 -> 33 | G62: =Q62 -> 33 | H62: =Q76 -> 33 | L62: 50 | M62: 50 | N62: 50 | O62: 44 | P62: 38 | Q62: 33 | R62: 26 | S62: 12 | AA62: =L62 -> 50 | AB62: =M62 -> 50 | AC62: =AVERAGE(N62:R62) -> 38.2 | AD62: =AVERAGE(R62:T62) -> 19 | AE62: =AVERAGE(T62:V62) ->  | AF62: =AVERAGE(V62:X62) ->  | AI62: =L62 -> 50 | AJ62: =HLOOKUP($AX$8,$M$60:$X$69,3) -> 50 | AK62: =HLOOKUP($AX$9,$M$60:$X$69,3) -> 50 | AL62: PRI1: | AM62: =LARGE(L62:L69,COUNTIF(L62:L69,">" &AX6)+1) ->  | AN62: =VLOOKUP(AM62,AI62:AK69,2) ->  | AO62: =VLOOKUP(AM62,AI62:AK69,3) ->  | AP62: PRO1: | AQ62: =IF(AX8=AX9, AN62, FORECAST(AX7,$AN$62:$AO$62,$AX$8:$AX$9)) -> 
B63: 100 | C63: =Q7 -> 57 | D63: =Q21 -> 75 | E63: =Q35 -> 84 | F63: =Q49 -> 84 | G63: =Q63 -> 84 | H63: =Q77 -> 84 | L63: 100 | M63: 98 | N63: 101 | O63: 95 | P63: 88 | Q63: 84 | R63: 79 | S63: 65 | T63: 50 | U63: 32 | AA63: 100 | AB63: 98 | AC63: =AVERAGE(N63:R63) -> 89.4 | AD63: =AVERAGE(R63:T63) -> 64.66666667 | AE63: =AVERAGE(T63:V63) -> 41 | AF63: =AVERAGE(V63:X63) ->  | AI63: =L63 -> 100 | AJ63: =HLOOKUP($AX$8,$M$60:$X$69,4) -> 98 | AK63: =HLOOKUP($AX$9,$M$60:$X$69,4) -> 98 | AL63: PRI2: | AM63: =SMALL(L62:L69,COUNTIF(L62:L69,"<" &AX6)+1) -> 50 | AN63: =VLOOKUP(AM63,AI62:AK69,2) -> 50 | AO63: =VLOOKUP(AM63,AI62:AK69,3) -> 50 | AP63: PRO2: | AQ63: =IF(AX8=AX9, AN63, FORECAST(AX7,$AN$63:$AO$63,$AX$8:$AX$9)) -> 50
B64: 150 | C64: =Q8 -> 83 | D64: =Q22 -> 106 | E64: 127 | F64: 135 | G64: 133 | H64: 135 | L64: 150 | M64: 150 | N64: 150 | O64: 145 | P64: 138 | Q64: 133 | R64: 129 | S64: 116 | T64: 100 | U64: 86 | V64: 64 | W64: 36 | AA64: 150 | AB64: 150 | AC64: 139 | AD64: 115 | AE64: 83.33333333 | AF64: 50 | AI64: 150 | AJ64: =HLOOKUP($AX$8,$M$60:$X$69,5) -> 150 | AK64: =HLOOKUP($AX$9,$M$60:$X$69,5) -> 150 | AL64: PSI1: | AM64: =LARGE(L62:L69,COUNTIF(L62:L69,">" &AX5)+1) ->  | AP64: PSO1: | AQ64: =VLOOKUP(AM64,L62:M69,2) -> 
B65: 200 | C65: 105 | D65: 132 | E65: 157 | F65: 180 | G65: 184 | H65: 184 | L65: 200 | M65: 200 | N65: 200 | O65: 196 | P65: 188 | Q65: 184 | R65: 178 | S65: 167 | T65: 149 | U65: 133 | V65: 113 | W65: 90 | X65: 63 | AA65: 200 | AB65: 200 | AC65: 189.2 | AD65: 164.6666667 | AE65: 131.6666667 | AF65: 88.66666667 | AI65: 200 | AJ65: =HLOOKUP($AX$8,$M$60:$X$69,6) -> 200 | AK65: =HLOOKUP($AX$9,$M$60:$X$69,6) -> 200 | AL65: PSI2: | AM65: =SMALL(L62:L69,COUNTIF(L62:L69,"<" &AX5)+1) -> 50 | AP65: PSO2: | AQ65: =VLOOKUP(AM65,L62:M69,2) -> 50
B66: 250 | C66: 126 | D66: 155 | E66: 187 | F66: 211 | G66: 229 | H66: 233 | L66: 250 | M66: 250 | N66: 247 | O66: 241 | P66: 233 | Q66: 229 | R66: 224 | S66: 215 | T66: 202 | U66: 183 | V66: 163 | W66: 140 | X66: 114 | AA66: 250 | AB66: 250 | AC66: 234.8 | AD66: 213.6666667 | AE66: 182.6666667 | AF66: 139 | AI66: 250 | AJ66: =HLOOKUP($AX$8,$M$60:$X$69,7) -> 250 | AK66: =HLOOKUP($AX$9,$M$60:$X$69,7) -> 250
B67: 300 | C67: 150 | D67: 174 | E67: 205 | F67: 235 | G67: 261 | H67: 277 | L67: 300 | M67: 299 | N67: 287 | O67: 279 | P67: 265 | Q67: 261 | R67: 258 | S67: 249 | T67: 240 | U67: 227 | V67: 212 | W67: 191 | X67: 163 | AA67: 300 | AB67: 299 | AC67: 270 | AD67: 249 | AE67: 226.3333333 | AF67: 188.6666667 | AI67: 300 | AJ67: =HLOOKUP($AX$8,$M$60:$X$69,8) -> 299 | AK67: =HLOOKUP($AX$9,$M$60:$X$69,8) -> 299
B68: 350 | C68: 168 | D68: 194 | E68: 227 | F68: 258 | G68: 289 | H68: 312 | L68: 350 | M68: 319 | N68: 310 | O68: 304 | P68: 294 | Q68: 289 | R68: 286 | S68: 276 | T68: 270 | U68: 255 | V68: 249 | W68: 236 | X68: 216 | AA68: 350 | AB68: 319 | AC68: 296.6 | AD68: 277.3333333 | AE68: 258 | AF68: 233.6666667 | AI68: 350 | AJ68: =HLOOKUP($AX$8,$M$60:$X$69,9) -> 319 | AK68: =HLOOKUP($AX$9,$M$60:$X$69,9) -> 319
B69: 400 | C69: 186 | D69: 220 | E69: 246 | F69: 278 | G69: 311 | H69: 337 | L69: 400 | M69: 341 | N69: 333 | O69: 320 | P69: 314 | Q69: 311 | R69: 306 | S69: 299 | T69: 293 | U69: 284 | V69: 274 | W69: 262 | X69: 251 | AA69: 400 | AB69: 341 | AC69: 316.8 | AD69: 299.3333333 | AE69: 283.6666667 | AF69: 262.3333333 | AI69: 400 | AJ69: =HLOOKUP($AX$8,$M$60:$X$69,10) -> 341 | AK69: =HLOOKUP($AX$9,$M$60:$X$69,10) -> 341
B73: 200 GPM FLOW RATE | K73: Bonnet Setting | L73: Inlet Pressure psig | M73: OUTLET PRESSURES @ FLOW RATE, GPM | AA73: Setting # 6: Inlet vs. Outlet Pressure Over Flow Range | AI73: SETTING 6
B74: Inlet (psig) | C74: Outlet-1 (psig) | D74: Outlet-2 (psig) | E74: Outlet-3 (psig) | F74: Outlet-4 (psig) | G74: Outlet-5 (psig) | H74: Outlet-6 (psig) | M74: 0 | N74: 50 | O74: 100 | P74: 150 | Q74: 175 | R74: 200 | S74: 250 | T74: 300 | U74: 350 | V74: 400 | W74: 450 | X74: 500 | AA74: Inlet (psig) | AB74: Static | AC74: 50-200 [GPM] | AD74: 200-300 [GPM] | AE74: 300-400 [GPM] | AF74: 400-500 [GPM] | AI74: Inlet (psig) | AJ74: =CONCATENATE("Outlet Residual @ " &AX$8& " GPM") -> Outlet Residual @ 0 GPM | AK74: =CONCATENATE("Outlet Residual @ " &AX$9& " GPM") -> Outlet Residual @ 0 GPM | AN74: Const. PRI Interpolated @ Var. Flow
B75: 0 | C75: =R5 -> 0 | D75: =R19 -> 0 | E75: =R33 -> 0 | F75: =R47 -> 0 | G75: =R61 -> 0 | H75: =R75 -> 0 | K75: 6 | L75: 0 | AA75: =L75 -> 0
B76: 50 | C76: 22 | D76: =R20 -> 27 | E76: =R34 -> 27 | F76: =R48 -> 28 | G76: =R62 -> 26 | H76: =R76 -> 24 | L76: 50 | M76: 50 | N76: 50 | O76: 42 | P76: 40 | Q76: 33 | R76: 24 | S76: 18 | AA76: =L76 -> 50 | AB76: =M76 -> 50 | AC76: =AVERAGE(N76:R76) -> 37.8 | AD76: =AVERAGE(R76:T76) -> 21 | AE76: =AVERAGE(T76:V76) ->  | AF76: =AVERAGE(V76:X76) ->  | AI76: =L76 -> 50 | AJ76: =HLOOKUP($AX$8,$M$74:$X$83,3) -> 50 | AK76: =HLOOKUP($AX$9,$M$74:$X$83,3) -> 50 | AL76: PRI1: | AM76: =LARGE(L76:L83,COUNTIF(L76:L83,">" &AX6)+1) ->  | AN76: =VLOOKUP(AM76,AI76:AK83,2) ->  | AO76: =VLOOKUP(AM76,AI76:AK83,3) ->  | AP76: PRO1: | AQ76: =IF(AX8=AX9, AN76, FORECAST(AX7,$AN$76:$AO$76,$AX$8:$AX$9)) -> 
B77: 100 | C77: 55 | D77: =R21 -> 72 | E77: =R35 -> 79 | F77: =R49 -> 80 | G77: =R63 -> 79 | H77: =R77 -> 79 | L77: 100 | M77: 100 | N77: 100 | O77: 93 | P77: 87 | Q77: 84 | R77: 79 | S77: 67 | T77: 50 | U77: 35 | AA77: 100 | AB77: 100 | AC77: =AVERAGE(N77:R77) -> 88.6 | AD77: =AVERAGE(R77:T77) -> 65.33333333 | AE77: =AVERAGE(T77:V77) -> 42.5 | AF77: =AVERAGE(V77:X77) ->  | AI77: =L77 -> 100 | AJ77: =HLOOKUP($AX$8,$M$74:$X$83,4) -> 100 | AK77: =HLOOKUP($AX$9,$M$74:$X$83,4) -> 100 | AL77: PRI2: | AM77: =SMALL(L76:L83,COUNTIF(L76:L83,"<" &AX6)+1) -> 50 | AN77: =VLOOKUP(AM77,AI76:AK83,2) -> 50 | AO77: =VLOOKUP(AM77,AI76:AK83,3) -> 50 | AP77: PRO2: | AQ77: =IF(AX8=AX9, AN77, FORECAST(AX7,$AN$77:$AO$77,$AX$8:$AX$9)) -> 50
B78: 150 | C78: 81 | D78: =R22 -> 102 | E78: 123 | F78: 129 | G78: 129 | H78: 129 | L78: 150 | M78: 150 | N78: 150 | O78: 144 | P78: 138 | Q78: 135 | R78: 129 | S78: 117 | T78: 102 | U78: 84 | V78: 66 | W78: 39 | AA78: 150 | AB78: 150 | AC78: 139.2 | AD78: 116 | AE78: 84 | AF78: 52.5 | AI78: 150 | AJ78: =HLOOKUP($AX$8,$M$74:$X$83,5) -> 150 | AK78: =HLOOKUP($AX$9,$M$74:$X$83,5) -> 150 | AL78: PSI1: | AM78: =LARGE(L76:L83,COUNTIF(L76:L83,">" &AX5)+1) ->  | AP78: PSO1: | AQ78: =VLOOKUP(AM78,L76:M83,2) -> 
B79: 200 | C79: 104 | D79: 128 | E79: 156 | F79: 173 | G79: 178 | H79: 179 | L79: 200 | M79: 200 | N79: 200 | O79: 196 | P79: 187 | Q79: 184 | R79: 179 | S79: 166 | T79: 154 | U79: 134 | V79: 113 | W79: 90 | X79: 65 | AA79: 200 | AB79: 200 | AC79: 189.2 | AD79: 166.3333333 | AE79: 133.6666667 | AF79: 89.33333333 | AI79: 200 | AJ79: =HLOOKUP($AX$8,$M$74:$X$83,6) -> 200 | AK79: =HLOOKUP($AX$9,$M$74:$X$83,6) -> 200 | AL79: PSI2: | AM79: =SMALL(L76:L83,COUNTIF(L76:L83,"<" &AX5)+1) -> 50 | AP79: PSO2: | AQ79: =VLOOKUP(AM79,L76:M83,2) -> 50
B80: 250 | C80: 123 | D80: 151 | E80: 183 | F80: 204 | G80: 224 | H80: 228 | L80: 250 | M80: 250 | N80: 250 | O80: 245 | P80: 239 | Q80: 233 | R80: 228 | S80: 217 | T80: 199 | U80: 183 | V80: 164 | W80: 144 | X80: 115 | AA80: 250 | AB80: 250 | AC80: 239 | AD80: 214.6666667 | AE80: 182 | AF80: 141 | AI80: 250 | AJ80: =HLOOKUP($AX$8,$M$74:$X$83,7) -> 250 | AK80: =HLOOKUP($AX$9,$M$74:$X$83,7) -> 250
B81: 300 | C81: 142 | D81: 172 | E81: 203 | F81: 232 | G81: 258 | H81: 271 | L81: 300 | M81: 300 | N81: 300 | O81: 289 | P81: 280 | Q81: 277 | R81: 271 | S81: 264 | T81: 249 | U81: 233 | V81: 213 | W81: 192 | X81: 163 | AA81: 300 | AB81: 300 | AC81: 283.4 | AD81: 261.3333333 | AE81: 231.6666667 | AF81: 189.3333333 | AI81: 300 | AJ81: =HLOOKUP($AX$8,$M$74:$X$83,8) -> 300 | AK81: =HLOOKUP($AX$9,$M$74:$X$83,8) -> 300
B82: 350 | C82: 167 | D82: 191 | E82: 224 | F82: 256 | G82: 286 | H82: 305 | L82: 350 | M82: 350 | N82: 335 | O82: 326 | P82: 316 | Q82: 312 | R82: 305 | S82: 295 | T82: 286 | U82: 277 | V82: 263 | W82: 240 | X82: 217 | AA82: 350 | AB82: 350 | AC82: 318.8 | AD82: 295.3333333 | AE82: 275.3333333 | AF82: 240 | AI82: 350 | AJ82: =HLOOKUP($AX$8,$M$74:$X$83,9) -> 350 | AK82: =HLOOKUP($AX$9,$M$74:$X$83,9) -> 350
B83: 400 | C83: 183 | D83: 212 | E83: 242 | F83: 278 | G83: 306 | H83: 332 | L83: 400 | M83: 372 | N83: 362 | O83: 348 | P83: 341 | Q83: 337 | R83: 332 | S83: 322 | T83: 318 | U83: 304 | V83: 294 | W83: 281 | X83: 261 | AA83: 400 | AB83: 372 | AC83: 344 | AD83: 324 | AE83: 305.3333333 | AF83: 278.6666667 | AI83: 400 | AJ83: =HLOOKUP($AX$8,$M$74:$X$83,10) -> 372 | AK83: =HLOOKUP($AX$9,$M$74:$X$83,10) -> 372
B87: 250 GPM FLOW RATE
B88: Inlet (psig) | C88: Outlet-1 (psig) | D88: Outlet-2 (psig) | E88: Outlet-3 (psig) | F88: Outlet-4 (psig) | G88: Outlet-5 (psig) | H88: Outlet-6 (psig)
B89: 0 | C89: =S5 -> 0 | D89: =S19 -> 0 | E89: =S33 -> 0 | F89: =S47 -> 0 | G89: =S61 -> 0 | H89: =S75 -> 0
B90: 50 | C90: =S6 -> 16 | D90: =S20 -> 15 | E90: =S34 -> 14 | F90: =S48 -> 15 | G90: =S62 -> 12 | H90: =S76 -> 18
B91: 100 | C91: =S7 -> 45 | D91: =S21 -> 62 | E91: =S35 -> 67 | F91: =S49 -> 68 | G91: =S63 -> 65 | H91: =S77 -> 67
B92: 150 | C92: =S8 -> 72 | D92: =S22 -> 94 | E92: 115 | F92: 116 | G92: 116 | H92: 117
B93: 200 | C93: 98 | D93: 120 | E93: 147 | F93: 164 | G93: 167 | H93: 166
B94: 250 | C94: 118 | D94: 144 | E94: 176 | F94: 196 | G94: 215 | H94: 217
B95: 300 | C95: 136 | D95: 166 | E95: 194 | F95: 223 | G95: 249 | H95: 264
B96: 350 | C96: 155 | D96: 186 | E96: 217 | F96: 250 | G96: 276 | H96: 295
B97: 400 | C97: 177 | D97: 205 | E97: 237 | F97: 266 | G97: 299 | H97: 322
B101: 300 GPM FLOW RATE
B102: Inlet (psig) | C102: Outlet-1 (psig) | D102: Outlet-2 (psig) | E102: Outlet-3 (psig) | F102: Outlet-4 (psig) | G102: Outlet-5 (psig) | H102: Outlet-6 (psig)
B103: 0 | C103: =T5 -> 0 | D103: =T19 -> 0 | E103: =T33 -> 0 | F103: =T47 -> 0 | G103: =T61 -> 0 | H103: =T75 -> 0
B104: 50 | C104: 0 | D104: 0 | E104: =T34 -> 0 | F104: =T48 -> 0 | G104: =T62 -> 0 | H104: =T76 -> 0
B105: 100 | C105: 36 | D105: 49 | E105: =T35 -> 51 | F105: =T49 -> 50 | G105: =T63 -> 50 | H105: =T77 -> 50
B106: 150 | C106: 62 | D106: 85 | E106: =T36 -> 102 | F106: =T50 -> 100 | G106: =T64 -> 100 | H106: =T78 -> 102
B107: 200 | C107: 86 | D107: 112 | E107: 137 | F107: 151 | G107: 149 | H107: 154
B108: 250 | C108: 109 | D108: 138 | E108: 165 | F108: 187 | G108: 202 | H108: 199
B109: 300 | C109: 131 | D109: 160 | E109: 186 | F109: 218 | G109: 240 | H109: 249
B110: 350 | C110: 150 | D110: 180 | E110: 210 | F110: 240 | G110: 270 | H110: 286
B111: 400 | C111: 170 | D111: 199 | E111: 230 | F111: 260 | G111: 293 | H111: 318
B115: 350 GPM FLOW RATE
B116: Inlet (psig) | C116: Outlet-1 (psig) | D116: Outlet-2 (psig) | E116: Outlet-3 (psig) | F116: Outlet-4 (psig) | G116: Outlet-5 (psig) | H116: Outlet-6 (psig)
B117: 0 | C117: =U5 -> 0 | D117: =U19 -> 0 | E117: =U33 -> 0 | F117: =U47 -> 0 | G117: =U61 -> 0 | H117: =U75 -> 0
B118: 50 | C118: 0 | D118: 0 | E118: =U34 -> 0 | F118: =U48 -> 0 | G118: =U62 -> 0 | H118: =U76 -> 0
B119: 100 | C119: 25 | D119: 30 | E119: =U35 -> 31 | F119: =U49 -> 33 | G119: =U63 -> 32 | H119: =U77 -> 35
B120: 150 | C120: 53 | D120: 76 | E120: =U36 -> 86 | F120: =U50 -> 85 | G120: =U64 -> 86 | H120: =U78 -> 84
B121: 200 | C121: 78 | D121: 104 | E121: 127 | F121: 134 | G121: 133 | H121: 134
B122: 250 | C122: 100 | D122: 129 | E122: 156 | F122: 176 | G122: 183 | H122: 183
B123: 300 | C123: 122 | D123: 151 | E123: 180 | F123: 207 | G123: 227 | H123: 233
B124: 350 | C124: 144 | D124: 171 | E124: 201 | F124: 229 | G124: 255 | H124: 277
B125: 400 | C125: 162 | D125: 192 | E125: 224 | F125: 253 | G125: 284 | H125: 304
B129: 400 GPM FLOW RATE
B130: Inlet (psig) | C130: Outlet-1 (psig) | D130: Outlet-2 (psig) | E130: Outlet-3 (psig) | F130: Outlet-4 (psig) | G130: Outlet-5 (psig) | H130: Outlet-6 (psig)
B131: 0 | C131: =V5 -> 0 | D131: =V19 -> 0 | E131: =V33 -> 0 | F131: =V47 -> 0 | G131: =V61 -> 0 | H131: =V75 -> 0
B132: 50 | C132: 0 | D132: 0 | E132: 0 | F132: 0 | G132: 0 | H132: 0
B133: 100 | C133: 0 | D133: 0 | E133: 0 | F133: 0 | G133: 0 | H133: 0
B134: 150 | C134: 42 | D134: 62 | E134: 63 | F134: 64 | G134: 64 | H134: 66
B135: 200 | C135: 68 | D135: 92 | E135: 113 | F135: 113 | G135: 113 | H135: 113
B136: 250 | C136: 92 | D136: 118 | E136: 145 | F136: 162 | G136: 163 | H136: 164
B137: 300 | C137: 113 | D137: 139 | E137: 171 | F137: 193 | G137: 212 | H137: 213
B138: 350 | C138: 135 | D138: 161 | E138: 195 | F138: 220 | G138: 249 | H138: 263
B139: 400 | C139: 157 | D139: 185 | E139: 214 | F139: 247 | G139: 274 | H139: 294
B143: 450 GPM FLOW RATE
B144: Inlet (psig) | C144: Outlet-1 (psig) | D144: Outlet-2 (psig) | E144: Outlet-3 (psig) | F144: Outlet-4 (psig) | G144: Outlet-5 (psig) | H144: Outlet-6 (psig)
B145: 0 | C145: =W5 -> 0 | D145: =W19 -> 0 | E145: =W33 -> 0 | F145: =W47 -> 0 | G145: =W61 -> 0 | H145: =W75 -> 0
B146: 50 | C146: 0 | D146: 0 | E146: 0 | F146: 0 | G146: 0 | H146: 0
B147: 100 | C147: 0 | D147: 0 | E147: 0 | F147: 0 | G147: 0 | H147: 0
B148: 150 | C148: 28 | D148: 38 | E148: 38 | F148: 38 | G148: 36 | H148: 39
B149: 200 | C149: 57 | D149: 82 | E149: 88 | F149: 88 | G149: 90 | H149: 90
B150: 250 | C150: 83 | D150: 107 | E150: 134 | F150: 139 | G150: 140 | H150: 144
B151: 300 | C151: 105 | D151: 131 | E151: 161 | F151: 183 | G151: 191 | H151: 192
B152: 350 | C152: 124 | D152: 153 | E152: 187 | F152: 210 | G152: 236 | H152: 240
B153: 400 | C153: 142 | D153: 176 | E153: 204 | F153: 235 | G153: 262 | H153: 281
B157: 500 GPM FLOW RATE
B158: Inlet (psig) | C158: Outlet-1 (psig) | D158: Outlet-2 (psig) | E158: Outlet-3 (psig) | F158: Outlet-4 (psig) | G158: Outlet-5 (psig) | H158: Outlet-6 (psig)
B159: 0 | C159: =X5 -> 0 | D159: =X19 -> 0 | E159: =X33 -> 0 | F159: =X47 -> 0 | G159: =X61 -> 0 | H159: =X75 -> 0
B160: 50 | C160: 0 | D160: 0 | E160: 0 | F160: 0 | G160: 0 | H160: 0
B161: 100 | C161: 0 | D161: 0 | E161: 0 | F161: 0 | G161: 0 | H161: 0
B162: 150 | C162: 0 | D162: 0 | E162: 0 | F162: 0 | G162: 0 | H162: 0
B163: 200 | C163: 41 | D163: 65 | E163: 65 | F163: 63 | G163: 63 | H163: 65
B164: 250 | C164: 69 | D164: 97 | E164: 114 | F164: 112 | G164: 114 | H164: 115
B165: 300 | C165: 94 | D165: 120 | E165: 147 | F165: 163 | G165: 163 | H165: 163
B166: 350 | C166: 114 | D166: 141 | E166: 173 | F166: 197 | G166: 216 | H166: 217
B167: 400 | C167: 136 | D167: 162 | E167: 192 | F167: 222 | G167: 251 | H167: 261

Sheet Charts- Each GPM (hidden)
A1: IE2600A-2.5" ANGLE- DOUBLE SPRING CONFIGURATION | AG1: IE2600A-2.5" INLINE- DOUBLE SPRING CONFIGURATION | BN1: IE2600A-1.5" ANGLE
A61: IE2600A-2.5" ANGLE- SINGLE BIG SPRING CONFIGURATION | AG61: IE2600A-2.5" INLINE- BIG SPRING CONFIGURATION
A120: IE2600A-2.5" ANGLE- SINGLE SMALL SPRING CONFIGURATION | AG120: IE2600A-2.5" INLINE- SMALL SPRING CONFIGURATION

Sheet IE2600A-250-Straight_DATA (hidden)
A1: Data from Project# 4789893180, Date: 2021-05-26 | R1: Double click this icon to open UL results
E2: Residual | F2: Static
D3: Bonnet Setting | E3: Inlet Pressure psig | F3: OUTLET PRESSURES @ FLOW RATE, GPM | T3: Setting # 1: Inlet Pressure | X3: SETTING 1
F4: 0 | G4: 50 | H4: 100 | I4: 150 | J4: 175 | K4: 200 | L4: 250 | M4: 300 | N4: 350 | O4: 400 | P4: 450 | Q4: 500 | T4: Inlet (psig) | U4: Static | X4: Inlet (psig) | Y4: =CONCATENATE("Outlet Residual @ " &AM$8& " GPM") -> Outlet Residual @ 0 GPM | Z4: =CONCATENATE("Outlet Residual @ " &AM$9& " GPM") -> Outlet Residual @ 0 GPM | AC4: Const. PRI Interpolated @ Var. Flow | AI4: VARIABLES
D5: 1 | E5: 0 | F5: 0 | G5: 0 | H5: 0 | I5: 0 | J5: 0 | K5: 0 | L5: 0 | M5: 0 | N5: 0 | O5: 0 | P5: 0 | Q5: 0 | T5: =E5 -> 0 | U5: =F5 -> 0 | AI5: Static Inlet Pressure | AL5: PSI: | AM5: =Database!$E$2 -> 0
E6: 50 | F6: 25 | G6: 16 | H6: 14 | I6: 15 | J6: 17 | K6: 16 | L6: 12 | T6: =E6 -> 50 | U6: =F6 -> 25 | X6: =E6 -> 50 | Y6: =HLOOKUP($AM$8,$F$4:$Q$13,3) -> 25 | Z6: =HLOOKUP($AM$9,$F$4:$Q$13,3) -> 25 | AA6: PRI1: | AB6: =LARGE(E6:E13,COUNTIF(E6:E13,">" &AM6)+1) ->  | AC6: =VLOOKUP(AB6,X6:Z13,2) ->  | AD6: =VLOOKUP(AB6,X6:Z13,3) ->  | AE6: PRO1: | AF6: =IF(AM8=AM9, AC6, FORECAST(AM7,$AC$6:$AD$6,$AM$8:$AM$9)) ->  | AI6: Residual Inlet Pressure | AL6: PRI: | AM6: =Database!$E$3 -> 0
E7: 100 | F7: 43 | G7: 38 | H7: 33 | I7: 31 | J7: 31 | K7: 32 | L7: 30 | M7: 29 | N7: 27 | O7: 22 | T7: 100 | U7: 43 | X7: =E7 -> 100 | Y7: =HLOOKUP($AM$8,$F$4:$Q$13,4) -> 43 | Z7: =HLOOKUP($AM$9,$F$4:$Q$13,4) -> 43 | AA7: PRI2: | AB7: =SMALL(E6:E13,COUNTIF(E6:E13,"<" &AM6)+1) -> 50 | AC7: =VLOOKUP(AB7,X6:Z13,2) -> 25 | AD7: =VLOOKUP(AB7,X6:Z13,3) -> 25 | AE7: PRO2: | AF7: =IF(AM8=AM9, AC7, FORECAST(AM7,$AC$7:$AD$7,$AM$8:$AM$9)) -> 25 | AI7: Flow Rate | AL7: Q0: | AM7: =IF(Database!$E$4=500,499.99,Database!$E$4) -> 0
E8: 150 | F8: 65 | G8: 58 | H8: 53 | I8: 49 | J8: 48 | K8: 51 | L8: 49 | M8: 48 | N8: 45 | O8: 41 | P8: 37 | T8: 150 | U8: 65 | X8: 150 | Y8: =HLOOKUP($AM$8,$F$4:$Q$13,5) -> 65 | Z8: =HLOOKUP($AM$9,$F$4:$Q$13,5) -> 65 | AA8: PSI1: | AB8: =LARGE(E6:E13,COUNTIF(E6:E13,">" &AM5)+1) ->  | AE8: PSO1: | AF8: =VLOOKUP(AB8,E6:F13,2) ->  | AI8: Nearest known Flow Rate, 1 | AL8: Q1: | AM8: =LARGE(F4:Q4,COUNTIF(F4:Q4,">" &AM7)+1) -> 0
E9: 200 | F9: 96 | G9: 78 | H9: 75 | I9: 74 | J9: 73 | K9: 69 | L9: 66 | M9: 64 | N9: 63 | O9: 61 | P9: 56 | Q9: 52 | T9: 200 | U9: 96 | X9: 200 | Y9: =HLOOKUP($AM$8,$F$4:$Q$13,6) -> 96 | Z9: =HLOOKUP($AM$9,$F$4:$Q$13,6) -> 96 | AA9: PSI2: | AB9: =SMALL(E6:E13,COUNTIF(E6:E13,"<" &AM5)+1) -> 50 | AE9: PSO2: | AF9: =VLOOKUP(AB9,E6:F13,2) -> 25 | AI9: Nearest known Flow Rate, 2 | AL9: Q2: | AM9: =SMALL(F4:Q4,COUNTIF(F4:Q4,"<" &AM7)+1) -> 0
E10: 250 | F10: 116 | G10: 108 | H10: 106 | I10: 104 | J10: 100 | K10: 101 | L10: 93 | M10: 89 | N10: 88 | O10: 84 | P10: 79 | Q10: 72 | T10: 250 | U10: 116 | X10: 250 | Y10: =HLOOKUP($AM$8,$F$4:$Q$13,7) -> 116 | Z10: =HLOOKUP($AM$9,$F$4:$Q$13,7) -> 116
E11: 300 | F11: 136 | G11: 128 | H11: 125 | I11: 123 | J11: 122 | K11: 119 | L11: 111 | M11: 107 | N11: 106 | O11: 104 | P11: 99 | Q11: 92 | T11: 300 | U11: 136 | X11: 300 | Y11: =HLOOKUP($AM$8,$F$4:$Q$13,8) -> 136 | Z11: =HLOOKUP($AM$9,$F$4:$Q$13,8) -> 136
E12: 350 | F12: 156 | G12: 145 | H12: 143 | I12: 141 | J12: 139 | K12: 138 | L12: 137 | M12: 126 | N12: 124 | O12: 125 | P12: 120 | Q12: 115 | T12: =E12 -> 350 | U12: 156 | X12: 350 | Y12: =HLOOKUP($AM$8,$F$4:$Q$13,9) -> 156 | Z12: =HLOOKUP($AM$9,$F$4:$Q$13,9) -> 156
E13: 400 | F13: 169 | G13: 154 | H13: 150 | I13: 145 | J13: 146 | K13: 144 | L13: 143 | M13: 135 | N13: 132 | O13: 135 | P13: 133 | Q13: 127 | T13: 400 | U13: 169 | X13: 400 | Y13: =HLOOKUP($AM$8,$F$4:$Q$13,10) -> 169 | Z13: =HLOOKUP($AM$9,$F$4:$Q$13,10) -> 169
E16: Residual | F16: Static
D17: Bonnet Setting | E17: Inlet Pressure psig | F17: OUTLET PRESSURES @ FLOW RATE, GPM | T17: Setting # 2: Inlet Pressure | X17: SETTING 2
F18: 0 | G18: 50 | H18: 100 | I18: 150 | J18: 175 | K18: 200 | L18: 250 | M18: 300 | N18: 350 | O18: 400 | P18: 450 | Q18: 500 | T18: Inlet (psig) | U18: Static | X18: Inlet (psig) | Y18: =CONCATENATE("Outlet Residual @ " &AM$8& " GPM") -> Outlet Residual @ 0 GPM | Z18: =CONCATENATE("Outlet Residual @ " &AM$9& " GPM") -> Outlet Residual @ 0 GPM | AC18: Const. PRI Interpolated @ Var. Flow | AI18: 2.5" Straight Single Spring | AK18: Calculated Static Outlet Pressure | AL18: Calculated Residual Outlet Pressure | AM18: Max Flow Rate
D19: 2 | E19: 0 | F19: 0 | G19: 0 | H19: 0 | I19: 0 | J19: 0 | K19: 0 | L19: 0 | M19: 0 | N19: 0 | O19: 0 | P19: 0 | Q19: 0 | T19: =E19 -> 0 | U19: =F19 -> 0 | AI19: Setting 1 | AK19: =IF($AF$8=$AF$9,$AF$8,FORECAST($AM$5,$AF$8:$AF$9,$AB$8:$AB$9)) ->  | AL19: =IF($AF$6=$AF$7,$AF$6,FORECAST($AM$6,$AF$6:$AF$7,$AB$6:$AB$7)) ->  | AM19: 500
E20: 50 | F20: 41 | G20: 34 | H20: 36 | I20: 23 | J20: 22 | K20: 19 | L20: 13 | T20: =E20 -> 50 | U20: =F20 -> 41 | X20: =E20 -> 50 | Y20: =HLOOKUP($AM$8,$F$18:$Q$27,3) -> 41 | Z20: =HLOOKUP($AM$9,$F$18:$Q$27,3) -> 41 | AA20: PRI1: | AB20: =LARGE(X20:X28,COUNTIF(X20:X28,">" &AM6)+1) ->  | AC20: =VLOOKUP(AB20,X20:Z27,2) ->  | AD20: =VLOOKUP(AB20,X20:Z27,3) ->  | AE20: PRO1: | AF20: =IF(AM8=AM9, AC20, FORECAST(AM7,$AC$20:$AD$20,$AM$8:$AM$9)) ->  | AI20: Setting 2 | AK20: =IF($AF$22=$AF$23,$AF$22,FORECAST($AM$5,$AF$22:$AF$23,$AB$22:$AB$23)) ->  | AL20: =IF($AF$20=$AF$21,$AF$20,FORECAST($AM$6,$AF$20:$AF$21,$AB$20:$AB$21)) ->  | AM20: 500
E21: 100 | F21: 61 | G21: 55 | H21: 50 | I21: 48 | J21: 46 | K21: 42 | L21: 38 | M21: 33 | N21: 29 | O21: 21 | T21: 100 | U21: 61 | X21: =E21 -> 100 | Y21: =HLOOKUP($AM$8,$F$18:$Q$27,4) -> 61 | Z21: =HLOOKUP($AM$9,$F$18:$Q$27,4) -> 61 | AA21: PRI2: | AB21: =SMALL(X20:X28,COUNTIF(X20:X28,"<" &AM6)+1) -> 50 | AC21: =VLOOKUP(AB21,X20:Z27,2) -> 41 | AD21: =VLOOKUP(AB21,X20:Z27,3) -> 41 | AE21: PRO2: | AF21: =IF(AM8=AM9, AC21, FORECAST(AM7,$AC$21:$AD$21,$AM$8:$AM$9)) -> 41 | AI21: Setting 3 | AK21: =IF($AF$36=$AF$37,$AF$36,FORECAST($AM$5,$AF$36:$AF$37,$AB$36:$AB$37)) ->  | AL21: =IF($AF$34=$AF$35,$AF$34,FORECAST($AM$6,$AF$34:$AF$35,$AB$34:$AB$35)) ->  | AM21: 500
E22: 150 | F22: 82 | G22: 75 | H22: 70 | I22: 67 | J22: 65 | K22: 64 | L22: 61 | M22: 56 | N22: 51 | O22: 44 | P22: 39 | Q22: 34 | T22: 150 | U22: 82 | X22: 150 | Y22: =HLOOKUP($AM$8,$F$18:$Q$27,5) -> 82 | Z22: =HLOOKUP($AM$9,$F$18:$Q$27,5) -> 82 | AA22: PSI1: | AB22: =LARGE(X20:X28,COUNTIF(X20:X28,">" &AM5)+1) ->  | AE22: PSO1: | AF22: =VLOOKUP(AB22,T20:U28,2) ->  | AI22: Setting 4 | AK22: =IF($AF$50=$AF$51,$AF$50,FORECAST($AM$5,$AF$50:$AF$51,$AB$50:$AB$51)) ->  | AL22: =IF($AF$48=$AF$49,$AF$48,FORECAST($AM$6,$AF$48:$AF$49,$AB$48:$AB$49)) ->  | AM22: 500
E23: 200 | F23: 98 | G23: 92 | H23: 86 | I23: 86 | J23: 82 | K23: 78 | L23: 74 | M23: 73 | N23: 71 | O23: 66 | P23: 60 | Q23: 53 | T23: 200 | U23: 98 | X23: 200 | Y23: =HLOOKUP($AM$8,$F$18:$Q$27,6) -> 98 | Z23: =HLOOKUP($AM$9,$F$18:$Q$27,6) -> 98 | AA23: PSI2: | AB23: =SMALL(X20:X28,COUNTIF(X20:X28,"<" &AM5)+1) -> 50 | AE23: PSO2: | AF23: =VLOOKUP(AB23,T20:U28,2) -> 41 | AI23: Setting 5 | AK23: =IF($AF$64=$AF$65,$AF$64,FORECAST($AM$5,$AF$64:$AF$65,$AB$64:$AB$65)) ->  | AL23: =IF($AF$62=$AF$63,$AF$62,FORECAST($AM$6,$AF$62:$AF$63,$AB$62:$AB$63)) ->  | AM23: 500
E24: 250 | F24: 117 | G24: 110 | H24: 106 | I24: 104 | J24: 103 | K24: 103 | L24: 93 | M24: 90 | N24: 89 | O24: 86 | P24: 80 | Q24: 74 | T24: 250 | U24: 117 | X24: 250 | Y24: =HLOOKUP($AM$8,$F$18:$Q$27,7) -> 117 | Z24: =HLOOKUP($AM$9,$F$18:$Q$27,7) -> 117 | AI24: Setting 6 | AK24: =IF($AF$78=$AF$79,$AF$78,FORECAST($AM$5,$AF$78:$AF$79,$AB$78:$AB$79)) ->  | AL24: =IF($AF$76=$AF$77,$AF$76,FORECAST($AM$6,$AF$76:$AF$77,$AB$76:$AB$77)) ->  | AM24: 500
E25: 300 | F25: 138 | G25: 130 | H25: 124 | I25: 122 | J25: 121 | K25: 120 | L25: 114 | M25: 110 | N25: 109 | O25: 106 | P25: 101 | Q25: 96 | T25: 300 | U25: 138 | X25: 300 | Y25: =HLOOKUP($AM$8,$F$18:$Q$27,8) -> 138 | Z25: =HLOOKUP($AM$9,$F$18:$Q$27,8) -> 138 | AI25: Setting 7 | AK25: =IF($AF$92=$AF$93,$AF$92,FORECAST($AM$5,$AF$92:$AF$93,$AB$92:$AB$93)) ->  | AL25: =IF($AF$90=$AF$91,$AF$90,FORECAST($AM$6,$AF$90:$AF$91,$AB$90:$AB$91)) ->  | AM25: 500
E26: 350 | F26: 159 | G26: 147 | H26: 143 | I26: 140 | J26: 140 | K26: 140 | L26: 137 | M26: 126 | N26: 128 | O26: 126 | P26: 121 | Q26: 115 | T26: =E26 -> 350 | U26: =F26 -> 159 | X26: 350 | Y26: =HLOOKUP($AM$8,$F$18:$Q$27,9) -> 159 | Z26: =HLOOKUP($AM$9,$F$18:$Q$27,9) -> 159
E27: 390 | F27: 174 | G27: 164 | H27: 160 | I27: 157 | J27: 155 | K27: 153 | L27: 152 | M27: 143 | N27: 141 | O27: 140 | P27: 137 | Q27: 131 | T27: =E27 -> 390 | U27: =F27 -> 174 | X27: 390 | Y27: =HLOOKUP($AM$8,$F$18:$Q$27,10) -> 174 | Z27: =HLOOKUP($AM$9,$F$18:$Q$27,10) -> 174
T28: 400 | U28: =U26+(((U27-U26)/(T27-T26))*(T28-T26)) -> 177.75 | X28: 400 | Y28: =Y26+(((Y27-Y26)/(X27-X26))*(X28-X26)) -> 177.75 | Z28: =Z26+(((Z27-Z26)/(X27-X26))*(X28-X26)) -> 177.75
E30: Residual | F30: Static
D31: Bonnet Setting | E31: Inlet Pressure psig | F31: OUTLET PRESSURES @ FLOW RATE, GPM | T31: Setting # 3: Inlet Pressure | X31: SETTING 3 | AI31: 1.5" Angle
F32: 0 | G32: 50 | H32: 100 | I32: 150 | J32: 175 | K32: 200 | L32: 250 | M32: 300 | N32: 350 | O32: 400 | P32: 450 | Q32: 500 | T32: Inlet (psig) | U32: Static | X32: Inlet (psig) | Y32: =CONCATENATE("Outlet Residual @ " &AM$8& " GPM") -> Outlet Residual @ 0 GPM | Z32: =CONCATENATE("Outlet Residual @ " &AM$9& " GPM") -> Outlet Residual @ 0 GPM | AC32: Const. PRI Interpolated @ Var. Flow | AI32: 2.5" Angle
D33: 3 | E33: 0 | F33: 0 | G33: 0 | H33: 0 | I33: 0 | J33: 0 | K33: 0 | L33: 0 | M33: 0 | N33: 0 | O33: 0 | P33: 0 | Q33: 0 | T33: =E33 -> 0 | U33: =F33 -> 0 | AI33: 2.5" Inline
E34: 50 | F34: 49 | G34: 45 | H34: 36 | I34: 32 | J34: 28 | K34: 26 | L34: 20 | M34: 10 | T34: =E34 -> 50 | U34: 49 | X34: =E34 -> 50 | Y34: =HLOOKUP($AM$8,$F$32:$Q$41,3) -> 49 | Z34: =HLOOKUP($AM$9,$F$32:$Q$41,3) -> 49 | AA34: PRI1: | AB34: =LARGE(X34:X41,COUNTIF(X34:X41,">" &AM6)+1) ->  | AC34: =VLOOKUP(AB34,X34:Z41,2) ->  | AD34: =VLOOKUP(AB34,X34:Z41,3) ->  | AE34: PRO1: | AF34: =IF(AM8=AM9, AC34, FORECAST(AM7,$AC$34:$AD$34,$AM$8:$AM$9)) -> 
E35: 100 | F35: 73 | G35: 68 | H35: 61 | I35: 57 | J35: 55 | K35: 55 | L35: 48 | M35: 42 | N35: 35 | O35: 27 | T35: 100 | U35: 73 | X35: 100 | Y35: =HLOOKUP($AM$8,$F$32:$Q$41,4) -> 73 | Z35: =HLOOKUP($AM$9,$F$32:$Q$41,4) -> 73 | AA35: PRI2: | AB35: =SMALL(X34:X41,COUNTIF(X34:X41,"<" &AM6)+1) -> 50 | AC35: =VLOOKUP(AB35,X34:Z41,2) -> 49 | AD35: =VLOOKUP(AB35,X34:Z41,3) -> 49 | AE35: PRO2: | AF35: =IF(AM8=AM9, AC35, FORECAST(AM7,$AC$35:$AD$35,$AM$8:$AM$9)) -> 49
E36: 150 | F36: 93 | G36: 88 | H36: 83 | I36: 78 | J36: 78 | K36: 75 | L36: 73 | M36: 67 | N36: 62 | O36: 56 | P36: 48 | Q36: 37 | T36: 150 | U36: 93 | X36: 150 | Y36: =HLOOKUP($AM$8,$F$32:$Q$41,5) -> 93 | Z36: =HLOOKUP($AM$9,$F$32:$Q$41,5) -> 93 | AA36: PSI1: | AB36: =LARGE(X34:X41,COUNTIF(X34:X41,">" &AM5)+1) ->  | AE36: PSO1: | AF36: =VLOOKUP(AB36,T34:U41,2) -> 
E37: 200 | F37: 113 | G37: 108 | H37: 101 | I37: 99 | J37: 98 | K37: 98 | L37: 93 | M37: 89 | N37: 84 | O37: 81 | P37: 73 | Q37: 65 | T37: 200 | U37: 113 | X37: 200 | Y37: =HLOOKUP($AM$8,$F$32:$Q$41,6) -> 113 | Z37: =HLOOKUP($AM$9,$F$32:$Q$41,6) -> 113 | AA37: PSI2: | AB37: =SMALL(X34:X41,COUNTIF(X34:X41,"<" &AM5)+1) -> 50 | AE37: PSO2: | AF37: =VLOOKUP(AB37,T34:U41,2) -> 49
E38: 250 | F38: 133 | G38: 125 | H38: 120 | I38: 118 | J38: 117 | K38: 117 | L38: 114 | M38: 109 | N38: 106 | O38: 100 | P38: 96 | Q38: 88 | T38: =E38 -> 250 | U38: 133 | X38: 250 | Y38: =HLOOKUP($AM$8,$F$32:$Q$41,7) -> 133 | Z38: =HLOOKUP($AM$9,$F$32:$Q$41,7) -> 133
E39: 300 | F39: 151 | G39: 143 | H39: 139 | I39: 137 | J39: 138 | K39: 138 | L39: 133 | M39: 128 | N39: 124 | O39: 121 | P39: 116 | Q39: 109 | T39: =E39 -> 300 | U39: =F39 -> 151 | X39: 300 | Y39: =HLOOKUP($AM$8,$F$32:$Q$41,8) -> 151 | Z39: =HLOOKUP($AM$9,$F$32:$Q$41,8) -> 151
E40: 355 | F40: 174 | G40: 164 | H40: 159 | I40: 157 | J40: 158 | K40: 158 | L40: 154 | M40: 150 | N40: 146 | O40: 143 | P40: 137 | Q40: 131 | T40: =E40 -> 355 | U40: 174 | X40: 355 | Y40: =HLOOKUP($AM$8,$F$32:$Q$41,9) -> 174 | Z40: =HLOOKUP($AM$9,$F$32:$Q$41,9) -> 174
T41: 400 | U41: =U39+(((U40-U39)/(T40-T39))*(T41-T39)) -> 192.8181818 | X41: 400 | Y41: =Y39+(((Y40-Y39)/(X40-X39))*(X41-X39)) -> 192.8181818 | Z41: =Z39+(((Z40-Z39)/(X40-X39))*(X41-X39)) -> 192.8181818
E44: Residual | F44: Static
D45: Bonnet Setting | E45: Inlet Pressure psig | F45: OUTLET PRESSURES @ FLOW RATE, GPM | T45: Setting # 4: Inlet Pressure | X45: SETTING 4
F46: 0 | G46: 50 | H46: 100 | I46: 150 | J46: 175 | K46: 200 | L46: 250 | M46: 300 | N46: 350 | O46: 400 | P46: 450 | Q46: 500 | T46: Inlet (psig) | U46: Static | X46: Inlet (psig) | Y46: =CONCATENATE("Outlet Residual @ " &AM$8& " GPM") -> Outlet Residual @ 0 GPM | Z46: =CONCATENATE("Outlet Residual @ " &AM$9& " GPM") -> Outlet Residual @ 0 GPM | AC46: Const. PRI Interpolated @ Var. Flow
D47: 4 | E47: 0 | F47: 0 | G47: 0 | H47: 0 | I47: 0 | J47: 0 | K47: 0 | L47: 0 | M47: 0 | N47: 0 | O47: 0 | P47: 0 | Q47: 0 | T47: =E47 -> 0 | U47: =F47 -> 0
E48: 50 | F48: 50 | G48: 48 | H48: 43 | I48: 40 | J48: 36 | K48: 32 | L48: 22 | M48: 10 | T48: =E48 -> 50 | U48: 50 | X48: =E48 -> 50 | Y48: =HLOOKUP($AM$8,$F$46:$Q$55,3) -> 50 | Z48: =HLOOKUP($AM$9,$F$46:$Q$55,3) -> 50 | AA48: PRI1: | AB48: =LARGE(X48:X55,COUNTIF(X48:X55,">" &AM6)+1) ->  | AC48: =VLOOKUP(AB48,X48:Z55,2) ->  | AD48: =VLOOKUP(AB48,X48:Z55,3) ->  | AE48: PRO1: | AF48: =IF(AM8=AM9, AC48, FORECAST(AM7,$AC$48:$AD$48,$AM$8:$AM$9)) -> 
E49: 100 | F49: 88 | G49: 82 | H49: 76 | I49: 72 | J49: 69 | K49: 66 | L49: 61 | M49: 56 | N49: 45 | O49: 31 | T49: 100 | U49: 88 | X49: =E49 -> 100 | Y49: =HLOOKUP($AM$8,$F$46:$Q$55,4) -> 88 | Z49: =HLOOKUP($AM$9,$F$46:$Q$55,4) -> 88 | AA49: PRI2: | AB49: =SMALL(X48:X55,COUNTIF(X48:X55,"<" &AM6)+1) -> 50 | AC49: =VLOOKUP(AB49,X48:Z55,2) -> 50 | AD49: =VLOOKUP(AB49,X48:Z55,3) -> 50 | AE49: PRO2: | AF49: =IF(AM8=AM9, AC49, FORECAST(AM7,$AC$49:$AD$49,$AM$8:$AM$9)) -> 50
E50: 150 | F50: 108 | G50: 102 | H50: 96 | I50: 93 | J50: 90 | K50: 87 | L50: 85 | M50: 79 | N50: 75 | O50: 66 | P50: 59 | Q50: 44 | T50: 150 | U50: 108 | X50: 150 | Y50: =HLOOKUP($AM$8,$F$46:$Q$55,5) -> 108 | Z50: =HLOOKUP($AM$9,$F$46:$Q$55,5) -> 108 | AA50: PSI1: | AB50: =LARGE(X48:X55,COUNTIF(X48:X55,">" &AM5)+1) ->  | AE50: PSO1: | AF50: =VLOOKUP(AB50,T48:U55,2) -> 
E51: 200 | F51: 128 | G51: 122 | H51: 116 | I51: 114 | J51: 114 | K51: 111 | L51: 108 | M51: 102 | N51: 97 | O51: 91 | P51: 85 | Q51: 76 | T51: 200 | U51: 128 | X51: 200 | Y51: =HLOOKUP($AM$8,$F$46:$Q$55,6) -> 128 | Z51: =HLOOKUP($AM$9,$F$46:$Q$55,6) -> 128 | AA51: PSI2: | AB51: =SMALL(X48:X55,COUNTIF(X48:X55,"<" &AM5)+1) -> 50 | AE51: PSO2: | AF51: =VLOOKUP(AB51,T48:U55,2) -> 50
E52: 250 | F52: 147 | G52: 141 | H52: 136 | I52: 134 | J52: 132 | K52: 131 | L52: 126 | M52: 123 | N52: 119 | O52: 115 | P52: 109 | Q52: 102 | T52: =E52 -> 250 | U52: =F52 -> 147 | X52: 250 | Y52: =HLOOKUP($AM$8,$F$46:$Q$55,7) -> 147 | Z52: =HLOOKUP($AM$9,$F$46:$Q$55,7) -> 147
E53: 300 | F53: 166 | G53: 161 | H53: 157 | I53: 155 | J53: 154 | K53: 152 | L53: 146 | M53: 142 | N53: 139 | O53: 136 | P53: 129 | Q53: 124 | T53: =E53 -> 300 | U53: =F53 -> 166 | X53: 300 | Y53: =HLOOKUP($AM$8,$F$46:$Q$55,8) -> 166 | Z53: =HLOOKUP($AM$9,$F$46:$Q$55,8) -> 166
E54: 315 | F54: 172 | G54: 164 | H54: 160 | I54: 157 | J54: 160 | K54: 155 | L54: 152 | M54: 149 | N54: 146 | O54: 142 | P54: 136 | Q54: 131 | T54: 315 | U54: =F54 -> 172 | X54: 315 | Y54: =HLOOKUP($AM$8,$F$46:$Q$55,9) -> 172 | Z54: =HLOOKUP($AM$9,$F$46:$Q$55,9) -> 172
T55: 400 | U55: =U53+(((U54-U53)/(T54-T53))*(T55-T53)) -> 206 | X55: 400 | Y55: =Y53+(((Y54-Y53)/(X54-X53))*(X55-X53)) -> 206 | Z55: =Z53+(((Z54-Z53)/(X54-X53))*(X55-X53)) -> 206
E58: Residual | F58: Static
D59: Bonnet Setting | E59: Inlet Pressure psig | F59: OUTLET PRESSURES @ FLOW RATE, GPM | T59: Setting # 5: Inlet Pressure | X59: SETTING 5
F60: 0 | G60: 50 | H60: 100 | I60: 150 | J60: 175 | K60: 200 | L60: 250 | M60: 300 | N60: 350 | O60: 400 | P60: 450 | Q60: 500 | T60: Inlet (psig) | U60: Static | X60: Inlet (psig) | Y60: =CONCATENATE("Outlet Residual @ " &AM$8& " GPM") -> Outlet Residual @ 0 GPM | Z60: =CONCATENATE("Outlet Residual @ " &AM$9& " GPM") -> Outlet Residual @ 0 GPM | AC60: Const. PRI Interpolated @ Var. Flow
D61: 5 | E61: 0 | F61: 0 | G61: 0 | H61: 0 | I61: 0 | J61: 0 | K61: 0 | L61: 0 | M61: 0 | N61: 0 | O61: 0 | P61: 0 | Q61: 0 | T61: =E61 -> 0 | U61: =F61 -> 0
E62: 50 | F62: 50 | G62: 49 | H62: 46 | I62: 40 | J62: 35 | K62: 31 | L62: 23 | M62: 13 | T62: =E62 -> 50 | U62: =F62 -> 50 | X62: =E62 -> 50 | Y62: =HLOOKUP($AM$8,$F$60:$Q$69,3) -> 50 | Z62: =HLOOKUP($AM$9,$F$60:$Q$69,3) -> 50 | AA62: PRI1: | AB62: =LARGE(X62:X69,COUNTIF(X62:X69,">" &AM6)+1) ->  | AC62: =VLOOKUP(AB62,X62:Z69,2) ->  | AD62: =VLOOKUP(AB62,X62:Z69,3) ->  | AE62: PRO1: | AF62: =IF(AM8=AM9, AC62, FORECAST(AM7,$AC$62:$AD$62,$AM$8:$AM$9)) -> 
E63: 100 | F63: 97 | G63: 93 | H63: 85 | I63: 81 | J63: 78 | K63: 75 | L63: 66 | M63: 61 | N63: 47 | O63: 34 | T63: 100 | U63: 97 | X63: =E63 -> 100 | Y63: =HLOOKUP($AM$8,$F$60:$Q$69,4) -> 97 | Z63: =HLOOKUP($AM$9,$F$60:$Q$69,4) -> 97 | AA63: PRI2: | AB63: =SMALL(X62:X69,COUNTIF(X62:X69,"<" &AM6)+1) -> 50 | AC63: =VLOOKUP(AB63,X62:Z69,2) -> 50 | AD63: =VLOOKUP(AB63,X62:Z69,3) -> 50 | AE63: PRO2: | AF63: =IF(AM8=AM9, AC63, FORECAST(AM7,$AC$63:$AD$63,$AM$8:$AM$9)) -> 50
E64: 150 | F64: 121 | G64: 115 | H64: 110 | I64: 106 | J64: 106 | K64: 102 | L64: 96 | M64: 91 | N64: 84 | O64: 76 | P64: 66 | Q64: 47 | T64: 150 | U64: 121 | X64: 150 | Y64: =HLOOKUP($AM$8,$F$60:$Q$69,5) -> 121 | Z64: =HLOOKUP($AM$9,$F$60:$Q$69,5) -> 121 | AA64: PSI1: | AB64: =LARGE(X62:X69,COUNTIF(X62:X69,">" &AM5)+1) ->  | AE64: PSO1: | AF64: =VLOOKUP(AB64,T62:U69,2) -> 
E65: 200 | F65: 141 | G65: 136 | H65: 128 | I65: 125 | J65: 125 | K65: 121 | L65: 119 | M65: 115 | N65: 110 | O65: 102 | P65: 95 | Q65: 87 | T65: 200 | U65: 141 | X65: 200 | Y65: =HLOOKUP($AM$8,$F$60:$Q$69,6) -> 141 | Z65: =HLOOKUP($AM$9,$F$60:$Q$69,6) -> 141 | AA65: PSI2: | AB65: =SMALL(X62:X69,COUNTIF(X62:X69,"<" &AM5)+1) -> 50 | AE65: PSO2: | AF65: =VLOOKUP(AB65,T62:U69,2) -> 50
E66: 250 | F66: 162 | G66: 155 | H66: 149 | I66: 147 | J66: 144 | K66: 148 | L66: 141 | M66: 136 | N66: 131 | O66: 127 | P66: 122 | Q66: 115 | T66: =E66 -> 250 | U66: =F66 -> 162 | X66: 250 | Y66: =HLOOKUP($AM$8,$F$60:$Q$69,7) -> 162 | Z66: =HLOOKUP($AM$9,$F$60:$Q$69,7) -> 162
E67: 280 | F67: 174 | G67: 167 | H67: 160 | I67: 159 | J67: 156 | K67: 158 | L67: 152 | M67: 148 | N67: 144 | O67: 140 | P67: 134 | Q67: 128 | T67: =E67 -> 280 | U67: =F67 -> 174 | X67: 280 | Y67: =HLOOKUP($AM$8,$F$60:$Q$69,8) -> 174 | Z67: =HLOOKUP($AM$9,$F$60:$Q$69,8) -> 174
T68: 300 | U68: =U66+(((U67-U66)/(T67-T66))*(T68-T66)) -> 182 | X68: 350 | Y68: =Y66+(((Y67-Y66)/(X67-X66))*(X68-X66)) -> 202 | Z68: =Z66+(((Z67-Z66)/(X67-X66))*(X68-X66)) -> 202
T69: 400 | U69: =U67+(((U68-U67)/(T68-T67))*(T69-T67)) -> 222 | X69: 400 | Y69: =Y67+(((Y68-Y67)/(X68-X67))*(X69-X67)) -> 222 | Z69: =Z67+(((Z68-Z67)/(X68-X67))*(X69-X67)) -> 222
E72: Residual | F72: Static
D73: Bonnet Setting | E73: Inlet Pressure psig | F73: OUTLET PRESSURES @ FLOW RATE, GPM | T73: Setting # 6: Inlet Pressure | X73: SETTING 6
F74: 0 | G74: 50 | H74: 100 | I74: 150 | J74: 175 | K74: 200 | L74: 250 | M74: 300 | N74: 350 | O74: 400 | P74: 450 | Q74: 500 | T74: Inlet (psig) | U74: Static | X74: Inlet (psig) | Y74: =CONCATENATE("Outlet Residual @ " &AM$8& " GPM") -> Outlet Residual @ 0 GPM | Z74: =CONCATENATE("Outlet Residual @ " &AM$9& " GPM") -> Outlet Residual @ 0 GPM | AC74: Const. PRI Interpolated @ Var. Flow
D75: 6 | E75: 0 | F75: 0 | G75: 0 | H75: 0 | I75: 0 | J75: 0 | K75: 0 | L75: 0 | M75: 0 | N75: 0 | O75: 0 | P75: 0 | Q75: 0 | T75: =E75 -> 0 | U75: =F75 -> 0
E76: 50 | F76: 50 | G76: 48 | H76: 45 | I76: 40 | J76: 38 | K76: 32 | L76: 24 | M76: 11 | T76: =E76 -> 50 | U76: =F76 -> 50 | X76: =E76 -> 50 | Y76: =HLOOKUP($AM$8,$F$74:$Q$83,3) -> 50 | Z76: =HLOOKUP($AM$9,$F$74:$Q$83,3) -> 50 | AA76: PRI1: | AB76: =LARGE(X76:X83,COUNTIF(X76:X83,">" &AM6)+1) ->  | AC76: =VLOOKUP(AB76,X76:Z83,2) ->  | AD76: =VLOOKUP(AB76,X76:Z83,3) ->  | AE76: PRO1: | AF76: =IF(AM8=AM9, AC76, FORECAST(AM7,$AC$76:$AD$76,$AM$8:$AM$9)) -> 
E77: 100 | F77: 100 | G77: 98 | H77: 94 | I77: 90 | J77: 85 | K77: 82 | L77: 74 | M77: 63 | N77: 47 | O77: 34 | T77: 100 | U77: 100 | X77: =E77 -> 100 | Y77: =HLOOKUP($AM$8,$F$74:$Q$83,4) -> 100 | Z77: =HLOOKUP($AM$9,$F$74:$Q$83,4) -> 100 | AA77: PRI2: | AB77: =SMALL(X76:X83,COUNTIF(X76:X83,"<" &AM6)+1) -> 50 | AC77: =VLOOKUP(AB77,X76:Z83,2) -> 50 | AD77: =VLOOKUP(AB77,X76:Z83,3) -> 50 | AE77: PRO2: | AF77: =IF(AM8=AM9, AC77, FORECAST(AM7,$AC$77:$AD$77,$AM$8:$AM$9)) -> 50
E78: 150 | F78: 138 | G78: 130 | H78: 124 | I78: 121 | J78: 119 | K78: 116 | L78: 110 | M78: 102 | N78: 95 | O78: 82 | P78: 65 | Q78: 47 | T78: 150 | U78: 138 | X78: 150 | Y78: =HLOOKUP($AM$8,$F$74:$Q$83,5) -> 138 | Z78: =HLOOKUP($AM$9,$F$74:$Q$83,5) -> 138 | AA78: PSI1: | AB78: =LARGE(X76:X83,COUNTIF(X76:X83,">" &AM5)+1) ->  | AE78: PSO1: | AF78: =VLOOKUP(AB78,T76:U83,2) -> 
E79: 200 | F79: 155 | G79: 152 | H79: 145 | I79: 144 | J79: 141 | K79: 140 | L79: 133 | M79: 129 | N79: 123 | O79: 116 | P79: 106 | Q79: 95 | T79: 200 | U79: =F79 -> 155 | X79: 200 | Y79: =HLOOKUP($AM$8,$F$74:$Q$83,6) -> 155 | Z79: =HLOOKUP($AM$9,$F$74:$Q$83,6) -> 155 | AA79: PSI2: | AB79: =SMALL(X76:X83,COUNTIF(X76:X83,"<" &AM5)+1) -> 50 | AE79: PSO2: | AF79: =VLOOKUP(AB79,T76:U83,2) -> 50
E80: 240 | F80: 174 | G80: 167 | H80: 161 | I80: 158 | J80: 157 | K80: 157 | L80: 153 | M80: 148 | N80: 142 | O80: 136 | P80: 129 | Q80: 120 | T80: =E80 -> 240 | U80: =F80 -> 174 | X80: 240 | Y80: =HLOOKUP($AM$8,$F$74:$Q$83,7) -> 174 | Z80: =HLOOKUP($AM$9,$F$74:$Q$83,7) -> 174
T81: 300 | U81: =U79+(((U80-U79)/(T80-T79))*(T81-T79)) -> 202.5 | X81: 300 | Y81: =Y79+(((Y80-Y79)/(X80-X79))*(X81-X79)) -> 202.5 | Z81: =Z79+(((Z80-Z79)/(X80-X79))*(X81-X79)) -> 202.5
T82: 350 | U82: =U80+(((U81-U80)/(T81-T80))*(T82-T80)) -> 226.25 | X82: 350 | Y82: =Y80+(((Y81-Y80)/(X81-X80))*(X82-X80)) -> 226.25 | Z82: =Z80+(((Z81-Z80)/(X81-X80))*(X82-X80)) -> 226.25
T83: 400 | U83: =U81+(((U82-U81)/(T82-T81))*(T83-T81)) -> 250 | X83: 400 | Y83: 250 | Z83: 250
E86: Residual | F86: Static
D87: Bonnet Setting | E87: Inlet Pressure psig | F87: OUTLET PRESSURES @ FLOW RATE, GPM | T87: Setting # 7: Inlet Pressure | X87: SETTING 7
F88: 0 | G88: 50 | H88: 100 | I88: 150 | J88: 175 | K88: 200 | L88: 250 | M88: 300 | N88: 350 | O88: 400 | P88: 450 | Q88: 500 | T88: Inlet (psig) | U88: Static | X88: Inlet (psig) | Y88: =CONCATENATE("Outlet Residual @ " &AM$8& " GPM") -> Outlet Residual @ 0 GPM | Z88: =CONCATENATE("Outlet Residual @ " &AM$9& " GPM") -> Outlet Residual @ 0 GPM | AC88: Const. PRI Interpolated @ Var. Flow
D89: 7 | E89: 0 | F89: 0 | G89: 0 | H89: 0 | I89: 0 | J89: 0 | K89: 0 | L89: 0 | M89: 0 | N89: 0 | O89: 0 | P89: 0 | Q89: 0 | T89: =E89 -> 0 | U89: 0
E90: 50 | F90: 49 | G90: 48 | H90: 44 | I90: 41 | J90: 37 | K90: 34 | L90: 25 | M90: 16 | T90: 50 | U90: 49 | X90: =E90 -> 50 | Y90: =HLOOKUP($AM$8,$F$74:$Q$83,3) -> 50 | Z90: =HLOOKUP($AM$9,$F$74:$Q$83,3) -> 50 | AA90: PRI1: | AB90: =LARGE(X90:X97,COUNTIF(X90:X97,">" &AM6)+1) ->  | AC90: =VLOOKUP(AB90,X90:Z97,2) ->  | AD90: =VLOOKUP(AB90,X90:Z97,3) ->  | AE90: PRO1: | AF90: =IF(AM22=AM23, AC90, FORECAST(AM21,$AC$90:$AD$90,$AM$8:$AM$9)) -> 
E91: 100 | F91: 98 | G91: 97 | H91: 95 | I91: 88 | J91: 87 | K91: 83 | L91: 73 | M91: 66 | N91: 54 | O91: 42 | P91: 29 | T91: 100 | U91: 98 | X91: =E91 -> 100 | Y91: =HLOOKUP($AM$8,$F$74:$Q$83,4) -> 100 | Z91: =HLOOKUP($AM$9,$F$74:$Q$83,4) -> 100 | AA91: PRI2: | AB91: =SMALL(X90:X97,COUNTIF(X90:X97,"<" &AM6)+1) -> 50 | AC91: =VLOOKUP(AB91,X90:Z97,2) -> 50 | AD91: =VLOOKUP(AB91,X90:Z97,3) -> 50 | AE91: PRO2: | AF91: =IF(AM22=AM23, AC91, FORECAST(AM21,$AC$91:$AD$91,$AM$8:$AM$9)) -> 50
E92: 150 | F92: 143 | G92: 138 | H92: 125 | I92: 122 | J92: 118 | K92: 114 | L92: 107 | M92: 105 | N92: 96 | O92: 89 | P92: 77 | Q92: 60 | T92: =E92 -> 150 | U92: 143 | X92: 150 | Y92: =HLOOKUP($AM$8,$F$74:$Q$83,5) -> 138 | Z92: =HLOOKUP($AM$9,$F$74:$Q$83,5) -> 138 | AA92: PSI1: | AB92: =LARGE(X90:X97,COUNTIF(X90:X97,">" &AM5)+1) ->  | AE92: PSO1: | AF92: =VLOOKUP(AB92,T90:U97,2) -> 
E93: 175 | F93: 158 | G93: 150 | H93: 138 | I93: 136 | J93: 130 | K93: 127 | L93: 128 | M93: 118 | N93: 113 | O93: 100 | P93: 94 | Q93: 83 | T93: =E93 -> 175 | U93: =F93 -> 158 | X93: 175 | Y93: =HLOOKUP($AM$8,$F$74:$Q$83,6) -> 155 | Z93: =HLOOKUP($AM$9,$F$74:$Q$83,6) -> 155 | AA93: PSI2: | AB93: =SMALL(X90:X97,COUNTIF(X90:X97,"<" &AM5)+1) -> 50 | AE93: PSO2: | AF93: =VLOOKUP(AB93,T90:U97,2) -> 49
T94: 200 | U94: =U92+(((U93-U92)/(T93-T92))*(T94-T92)) -> 173 | X94: 250 | Y94: =Y92+(((Y93-Y92)/(X93-X92))*(X94-X92)) -> 206 | Z94: =Z92+(((Z93-Z92)/(X93-X92))*(X94-X92)) -> 206
T95: 250 | U95: =U93+(((U94-U93)/(T94-T93))*(T95-T93)) -> 203 | X95: 300 | Y95: =Y93+(((Y94-Y93)/(X94-X93))*(X95-X93)) -> 240 | Z95: =Z93+(((Z94-Z93)/(X94-X93))*(X95-X93)) -> 240
T96: 350 | U96: =U94+(((U95-U94)/(T95-T94))*(T96-T94)) -> 263 | X96: 350 | Y96: 274 | Z96: 274
T97: 400 | U97: =U95+(((U96-U95)/(T96-T95))*(T97-T95)) -> 293 | X97: 400 | Y97: 308 | Z97: 308

Sheet Charts 2.5" Straight
B2: 2.5" STRAIGHT

Sheet Charts 1.5 Angle (hidden)
B2: 1.5" ANGLE

Sheet Conditions (hidden)
B3: Conditions applied to the "Order_Entry" sheet
A5: 1 | B5: Any changes to "Flow Rate" clears all other operating conditions
A6: 2 | B6: Static Inlet Pressure can't be less than Residual Inlet Pressure
A7: 3 | B7: Static Inlet Pressure can't be equal to Residual Inlet Pressure
A8: 4 | B8: When static outlet status, residual outlet status and flow status conditions are met, the result is "Available"
A9: 5 | B9: Valve outputs with "Not As Per NFPA" status can still be added to the order sheet with pop-up and selecting "Yes"
A10: 6 | B10: Any changes to operating conditions clears location tags
A11: 7 | B11: Any changes to "Static Inlet Pressure" will clear Residual Inlet Pressure, Desired Residual Outlet Pressure and Location Tag
A12: 8 | B12: If one attempts to enter in a second quantity line, the previous entry is removed.
B16: Conditions for DATA Chart
A17: 1 | B17: cannot have a blank cell between other bits of data. Must extrapolate

Sheet Old 2.5" Charts (hidden)
T3: STRAIGHT - 2.5"
E4: ANGLE - 2.5"

Sheet 1.5" Data (25psi increment) (hidden)
B1: 1.5" DATA AT 50 PSI INCRIMENT
B3: Bonnet Setting | C3: Inlet Pressure psig | D3: OUTLET PRESSURES @ FLOW RATE, GPM
D4: 0 | E4: 50 | F4: 100 | G4: 150 | H4: 175 | I4: 200 | J4: 250 | K4: 300 | L4: 350 | M4: 400 | N4: 450 | O4: 500
B5: 1 | C5: 50 | D5: 52 | E5: 47 | F5: 38 | G5: 25 | H5: 18 | I5: 14
C6: 75 | D6: 76 | E6: 70 | F6: 56 | G6: 41 | H6: 33 | I6: 24
C7: 100 | D7: 99 | E7: 85 | F7: 67 | G7: 55 | H7: 45 | I7: 35 | J7: 20
C8: 125 | D8: 112 | E8: 91 | F8: 75 | G8: 58 | H8: 57 | I8: 43 | J8: 25
C9: 150 | D9: 117 | E9: 99 | F9: 83 | G9: 71 | H9: 60 | I9: 54 | J9: 31
C10: 175 | D10: 122 | E10: 109 | F10: 91 | G10: 74 | H10: 70 | I10: 61 | J10: 38
C11: 200 | D11: 129 | E11: 122 | F11: 97 | G11: 80 | H11: 72 | I11: 63 | J11: 47 | K11: 28
C12: 225 | D12: 142 | E12: 124 | F12: 105 | G12: 88 | H12: 83 | I12: 72 | J12: 54 | K12: 33
C13: 250 | D13: 150 | E13: 133 | F13: 112 | G13: 95 | H13: 87 | I13: 80 | J13: 62 | K13: 42
C14: 275 | D14: 153 | E14: 143 | F14: 125 | G14: 101 | H14: 98 | I14: 86 | J14: 72 | K14: 50
C15: 300 | D15: 158 | E15: 150 | F15: 127 | G15: 107 | H15: 100 | I15: 93 | J15: 76 | K15: 57 | L15: 36
C16: 325 | D16: 173 | E16: 157 | F16: 134 | G16: 115 | H16: 107 | I16: 98 | J16: 82 | K16: 64 | L16: 41
C17: 350 | D17: 174 | E17: 165 | F17: 140 | G17: 121 | H17: 118 | I17: 109 | J17: 89 | K17: 68 | L17: 48
C18: 375 | D18: 182 | E18: 166 | F18: 148 | G18: 128 | H18: 120 | I18: 115 | J18: 95 | K18: 76 | L18: 52
C19: 400 | D19: 187 | E19: 179 | F19: 152 | G19: 133 | H19: 128 | I19: 119 | J19: 102 | K19: 84 | L19: 63
B22: Bonnet Setting | C22: Inlet Pressure psig | D22: OUTLET PRESSURES @ FLOW RATE, GPM
D23: 0 | E23: 50 | F23: 100 | G23: 150 | H23: 175 | I23: 200 | J23: 250 | K23: 300 | L23: 350 | M23: 400 | N23: 450 | O23: 500
B24: 2 | C24: 50 | D24: 53 | E24: 49 | F24: 42 | G24: 30 | H24: 23 | I24: 14
C25: 75 | D25: 77 | E25: 72 | F25: 62 | G25: 50 | H25: 42 | I25: 34 | J25: 18
C26: 100 | D26: 102 | E26: 93 | F26: 79 | G26: 65 | H26: 55 | I26: 47 | J26: 31
C27: 125 | D27: 126 | E27: 107 | F27: 89 | G27: 73 | H27: 72 | I27: 62 | J27: 39
C28: 150 | D28: 130 | E28: 115 | F28: 97 | G28: 82 | H28: 74 | I28: 65 | J28: 46 | K28: 27
C29: 175 | D29: 140 | E29: 122 | F29: 104 | G29: 90 | H29: 80 | I29: 72 | J29: 51 | K29: 32
C30: 200 | D30: 150 | E30: 136 | F30: 113 | G30: 96 | H30: 93 | I30: 79 | J30: 60 | K30: 38
C31: 225 | D31: 151 | E31: 142 | F31: 118 | G31: 103 | H31: 95 | I31: 86 | J31: 68 | K31: 45
C32: 250 | D32: 165 | E32: 150 | F32: 132 | G32: 109 | H32: 101 | I32: 93 | J32: 74 | K32: 53
C33: 275 | D33: 170 | E33: 157 | F33: 135 | G33: 117 | H33: 108 | I33: 99 | J33: 82 | K33: 63 | L33: 40
C34: 300 | D34: 179 | E34: 159 | F34: 141 | G34: 122 | H34: 114 | I34: 104 | J34: 88 | K34: 70 | L34: 45
C35: 325 | D35: 186 | E35: 172 | F35: 147 | G35: 130 | H35: 120 | I35: 111 | J35: 94 | K35: 76 | L35: 51
C36: 350 | D36: 189 | E36: 175 | F36: 156 | G36: 135 | H36: 126 | I36: 119 | J36: 100 | K36: 82 | L36: 58
C37: 375 | D37: 203 | E37: 184 | F37: 161 | G37: 142 | H37: 134 | I37: 128 | J37: 108 | K37: 87 | L37: 66
C38: 400 | D38: 208 | E38: 193 | F38: 168 | G38: 154 | H38: 144 | I38: 135 | J38: 115 | K38: 95 | L38: 72 | M38: 50
B41: Bonnet Setting | C41: Inlet Pressure psig | D41: OUTLET PRESSURES @ FLOW RATE, GPM
D42: 0 | E42: 50 | F42: 100 | G42: 150 | H42: 175 | I42: 200 | J42: 250 | K42: 300 | L42: 350 | M42: 400 | N42: 450 | O42: 500
B43: 3 | C43: 50 | D43: 52 | E43: 49 | F43: 42 | G43: 29 | H43: 22 | I43: 15
C44: 75 | D44: 77 | E44: 74 | F44: 67 | G44: 55 | H44: 47 | I44: 38 | J44: 19
C45: 100 | D45: 102 | E45: 99 | F45: 89 | G45: 76 | H45: 68 | I45: 60 | J45: 43 | K45: 23
C46: 125 | D46: 128 | E46: 120 | F46: 107 | G46: 90 | H46: 84 | I46: 74 | J46: 57 | K46: 40
C47: 150 | D47: 148 | E47: 134 | F47: 118 | G47: 101 | H47: 95 | I47: 85 | J47: 68 | K47: 50
C48: 175 | D48: 163 | E48: 147 | F48: 128 | G48: 116 | H48: 107 | I48: 93 | J48: 75 | K48: 54 | L48: 36
C49: 200 | D49: 171 | E49: 150 | F49: 134 | G49: 118 | H49: 110 | I49: 101 | J49: 82 | K49: 61 | L49: 41
C50: 225 | D50: 177 | E50: 166 | F50: 142 | G50: 125 | H50: 118 | I50: 107 | J50: 88 | K50: 64 | L50: 44
C51: 250 | D51: 188 | E51: 167 | F51: 155 | G51: 132 | H51: 123 | I51: 121 | J51: 94 | K51: 72 | L51: 51
C52: 275 | D52: 194 | E52: 180 | F52: 156 | G52: 138 | H52: 130 | I52: 122 | J52: 101 | K52: 78 | L52: 55
C53: 300 | D53: 203 | E53: 181 | F53: 162 | G53: 146 | H53: 136 | I53: 134 | J53: 109 | K53: 91 | L53: 63
C54: 325 | D54: 207 | E54: 194 | F54: 170 | G54: 153 | H54: 149 | I54: 135 | J54: 115 | K54: 97 | L54: 72 | M54: 50
C55: 350 | D55: 215 | E55: 201 | F55: 178 | G55: 165 | H55: 150 | I55: 141 | J55: 120 | K55: 104 | L55: 79 | M55: 56
C56: 375 | D56: 224 | E56: 208 | F56: 186 | G56: 171 | H56: 158 | I56: 147 | J56: 129 | K56: 110 | L56: 85 | M56: 64
C57: 400 | D57: 247 | E57: 210 | F57: 192 | G57: 172 | H57: 162 | I57: 155 | J57: 136 | K57: 115 | L57: 94 | M57: 85
B60: Bonnet Setting | C60: Inlet Pressure psig | D60: OUTLET PRESSURES @ FLOW RATE, GPM
D61: 0 | E61: 50 | F61: 100 | G61: 150 | H61: 175 | I61: 200 | J61: 250 | K61: 300 | L61: 350 | M61: 400 | N61: 450 | O61: 500
B62: 4 | C62: 50 | D62: 52 | E62: 49 | F62: 41 | G62: 29 | H62: 23 | I62: 14
C63: 75 | D63: 77 | E63: 75 | F63: 67 | G63: 54 | H63: 46 | I63: 39 | J63: 20
C64: 100 | D64: 102 | E64: 100 | F64: 92 | G64: 78 | H64: 72 | I64: 62 | J64: 42 | K64: 24
C65: 125 | D65: 126 | E65: 124 | F65: 115 | G65: 102 | H65: 96 | I65: 87 | J65: 65 | K65: 42
C66: 150 | D66: 152 | E66: 146 | F66: 133 | G66: 121 | H66: 110 | I66: 103 | J66: 83 | K66: 64 | L66: 38
C67: 175 | D67: 175 | E67: 166 | F67: 152 | G67: 131 | H67: 128 | I67: 113 | J67: 95 | K67: 78 | L67: 56 | M67: 41
C68: 200 | D68: 193 | E68: 176 | F68: 157 | G68: 141 | H68: 131 | I68: 123 | J68: 105 | K68: 82 | L68: 64 | M68: 45
C69: 225 | D69: 203 | E69: 184 | F69: 164 | G69: 149 | H69: 141 | I69: 129 | J69: 116 | K69: 90 | L69: 70 | M69: 47
C70: 250 | D70: 210 | E70: 192 | F70: 172 | G70: 156 | H70: 152 | I70: 145 | J70: 115 | K70: 96 | L70: 73 | M70: 50
C71: 275 | D71: 215 | E71: 198 | F71: 180 | G71: 164 | H71: 159 | I71: 147 | J71: 125 | K71: 101 | L71: 78 | M71: 56
C72: 300 | D72: 219 | E72: 212 | F72: 194 | G72: 172 | H72: 168 | I72: 151 | J72: 131 | K72: 111 | L72: 85 | M72: 59
C73: 325 | D73: 230 | E73: 215 | F73: 195 | G73: 175 | H73: 169 | I73: 165 | J73: 140 | K73: 117 | L73: 90 | M73: 67
C74: 350 | D74: 237 | E74: 226 | F74: 202 | G74: 182 | H74: 175 | I74: 166 | J74: 145 | K74: 123 | L74: 97 | M74: 72
C75: 375 | D75: 246 | E75: 227 | F75: 209 | G75: 189 | H75: 179 | I75: 170 | J75: 152 | K75: 131 | L75: 106 | M75: 77 | N75: 56
C76: 400 | D76: 252 | E76: 234 | F76: 218 | G76: 197 | H76: 193 | I76: 175 | J76: 155 | K76: 135 | L76: 108 | M76: 83 | N76: 62
B79: Bonnet Setting | C79: Inlet Pressure psig | D79: OUTLET PRESSURES @ FLOW RATE, GPM
D80: 0 | E80: 50 | F80: 100 | G80: 150 | H80: 175 | I80: 200 | J80: 250 | K80: 300 | L80: 350 | M80: 400 | N80: 450 | O80: 500
B81: 5 | C81: 50 | D81: 52 | E81: 49 | F81: 42 | G81: 30 | H81: 23 | I81: 15
C82: 75 | D82: 77 | E82: 74 | F82: 67 | G82: 55 | H82: 46 | I82: 38 | J82: 18
C83: 100 | D83: 101 | E83: 100 | F83: 92 | G83: 80 | H83: 71 | I83: 61 | J83: 42
C84: 125 | D84: 126 | E84: 124 | F84: 116 | G84: 105 | H84: 96 | I84: 87 | J84: 67 | K84: 42
C85: 150 | D85: 151 | E85: 149 | F85: 141 | G85: 129 | H85: 123 | I85: 113 | J85: 90 | K85: 62 | L85: 38
C86: 175 | D86: 177 | E86: 173 | F86: 163 | G86: 146 | H86: 143 | I86: 129 | J86: 109 | K86: 86 | L86: 60
C87: 200 | D87: 200 | E87: 194 | F87: 174 | G87: 158 | H87: 150 | I87: 141 | J87: 123 | K87: 104 | L87: 84 | M87: 53
C88: 225 | D88: 226 | E88: 205 | F88: 187 | G88: 171 | H88: 162 | I88: 153 | J88: 131 | K88: 114 | L88: 95 | M88: 75
C89: 250 | D89: 251 | E89: 224 | F89: 195 | G89: 178 | H89: 168 | I89: 164 | J89: 138 | K89: 119 | L89: 99 | M89: 82 | N89: 56
C90: 275 | D90: 274 | E90: 231 | F90: 208 | G90: 184 | H90: 174 | I90: 171 | J90: 145 | K90: 125 | L90: 115 | M90: 83 | N90: 60
C91: 300 | D91: 299 | E91: 250 | F91: 209 | G91: 192 | H91: 183 | I91: 177 | J91: 155 | K91: 130 | L91: 109 | M91: 85 | N91: 62
C92: 325 | D92: 326 | E92: 265 | F92: 219 | G92: 200 | H92: 190 | I92: 182 | J92: 158 | K92: 143 | L92: 110 | M92: 89 | N92: 65
C93: 350 | D93: 343 | E93: 284 | F93: 224 | G93: 205 | H93: 196 | I93: 186 | J93: 169 | K93: 144 | L93: 121 | M93: 98 | N93: 67
C94: 375 | D94: 370 | E94: 314 | F94: 233 | G94: 213 | H94: 211 | I94: 192 | J94: 172 | K94: 151 | L94: 123 | M94: 99 | N94: 82
C95: 400 | D95: 379 | E95: 330 | F95: 239 | G95: 218 | H95: 213 | I95: 211 | J95: 178 | K95: 158 | L95: 130 | M95: 102 | N95: 77
B98: Bonnet Setting | C98: Inlet Pressure psig | D98: OUTLET PRESSURES @ FLOW RATE, GPM
D99: 0 | E99: 50 | F99: 100 | G99: 150 | H99: 175 | I99: 200 | J99: 250 | K99: 300 | L99: 350 | M99: 400 | N99: 450 | O99: 500
B100: 6 | C100: 50 | D100: 53 | E100: 50 | F100: 42 | G100: 30 | H100: 24 | I100: 15
C101: 75 | D101: 77 | E101: 74 | F101: 67 | G101: 55 | H101: 47 | I101: 38 | J101: 20
C102: 100 | D102: 101 | E102: 99 | F102: 92 | G102: 79 | H102: 72 | I102: 63 | J102: 43
C103: 125 | D103: 127 | E103: 124 | F103: 117 | G103: 105 | H103: 96 | I103: 88 | J103: 67 | K103: 42
C104: 150 | D104: 152 | E104: 150 | F104: 143 | G104: 130 | H104: 123 | I104: 112 | J104: 91 | K104: 66 | L104: 35
C105: 175 | D105: 178 | E105: 174 | F105: 167 | G105: 154 | H105: 148 | I105: 138 | J105: 116 | K105: 90 | L105: 60
C106: 200 | D106: 201 | E106: 197 | F106: 185 | G106: 173 | H106: 164 | I106: 153 | J106: 138 | K106: 113 | L106: 90 | M106: 53
C107: 225 | D107: 226 | E107: 219 | F107: 202 | G107: 188 | H107: 175 | I107: 172 | J107: 147 | K107: 128 | L107: 108 | M107: 75
C108: 250 | D108: 251 | E108: 221 | F108: 203 | G108: 189 | H108: 177 | I108: 175 | J108: 148 | K108: 130 | L108: 110 | M108: 79
C109: 275 | D109: 275 | E109: 268 | F109: 247 | G109: 215 | H109: 199 | I109: 191 | J109: 165 | K109: 144 | L109: 123 | M109: 101 | N109: 72
C110: 300 | D110: 300 | E110: 291 | F110: 272 | G110: 240 | H110: 224 | I110: 200 | J110: 174 | K110: 150 | L110: 127 | M110: 105 | N110: 86
C111: 325 | D111: 326 | E111: 319 | F111: 296 | G111: 259 | H111: 240 | I111: 218 | J111: 181 | K111: 155 | L111: 132 | M111: 109 | N111: 88
C112: 350 | D112: 352 | E112: 344 | F112: 321 | G112: 284 | H112: 259 | I112: 242 | J112: 191 | K112: 162 | L112: 140 | M112: 114 | N112: 89
C113: 375 | D113: 375 | E113: 368 | F113: 345 | G113: 310 | H113: 286 | I113: 262 | J113: 206 | K113: 171 | L113: 145 | M113: 118 | N113: 94
C114: 400 | D114: 401 | E114: 391 | F114: 369 | G114: 325 | H114: 309 | I114: 275 | J114: 223 | K114: 177 | L114: 152 | M114: 123 | N114: 96 | O114: 65

Sheet IE2600A-150-DATA (hidden)
A1: Data from Project# 4789893180, Date: 2021-06-29 | R1: Double click this icon to open UL results
E2: Residual | F2: Static
D3: Bonnet Setting | E3: Inlet Pressure psig | F3: OUTLET PRESSURES @ FLOW RATE, GPM | T3: Setting # 1: Inlet Pressure | X3: SETTING 1
F4: 0 | G4: 50 | H4: 100 | I4: 150 | J4: 175 | K4: 200 | L4: 250 | M4: 300 | N4: 350 | O4: 400 | P4: 450 | Q4: 500 | T4: Inlet (psig) | U4: Static | X4: Inlet (psig) | Y4: =CONCATENATE("Outlet Residual @ " &AM$8& " GPM") -> Outlet Residual @ 0 GPM | Z4: =CONCATENATE("Outlet Residual @ " &AM$9& " GPM") -> Outlet Residual @ 0 GPM | AC4: Const. PRI Interpolated @ Var. Flow | AI4: VARIABLES
D5: 1 | E5: 0 | F5: 0 | G5: 0 | H5: 0 | I5: 0 | J5: 0 | K5: 0 | L5: 0 | M5: 0 | N5: 0 | O5: 0 | P5: 0 | Q5: 0 | T5: =E5 -> 0 | U5: 0 | AI5: Static Inlet Pressure | AL5: PSI: | AM5: =Database!$E$2 -> 0
E6: 50 | F6: 52 | G6: 47 | H6: 38 | I6: 25 | J6: 18 | K6: 14 | T6: =E6 -> 50 | U6: =F6 -> 52 | X6: =E6 -> 50 | Y6: =HLOOKUP($AM$8,$F$4:$Q$13,3) -> 52 | Z6: =HLOOKUP($AM$9,$F$4:$Q$13,3) -> 52 | AA6: PRI1: | AB6: =LARGE(E6:E13,COUNTIF(E6:E13,">" &AM6)+1) ->  | AC6: =VLOOKUP(AB6,X6:Z13,2) ->  | AD6: =VLOOKUP(AB6,X6:Z13,3) ->  | AE6: PRO1: | AF6: =IF(AM8=AM9, AC6, FORECAST(AM7,$AC$6:$AD$6,$AM$8:$AM$9)) ->  | AI6: Residual Inlet Pressure | AL6: PRI: | AM6: =Database!$E$3 -> 0
E7: 100 | F7: 99 | G7: 85 | H7: 67 | I7: 55 | J7: 45 | K7: 35 | L7: 20 | T7: 100 | U7: 99 | X7: =E7 -> 100 | Y7: =HLOOKUP($AM$8,$F$4:$Q$13,4) -> 99 | Z7: =HLOOKUP($AM$9,$F$4:$Q$13,4) -> 99 | AA7: PRI2: | AB7: =SMALL(E6:E13,COUNTIF(E6:E13,"<" &AM6)+1) -> 50 | AC7: =VLOOKUP(AB7,X6:Z13,2) -> 52 | AD7: =VLOOKUP(AB7,X6:Z13,3) -> 52 | AE7: PRO2: | AF7: =IF(AM8=AM9, AC7, FORECAST(AM7,$AC$7:$AD$7,$AM$8:$AM$9)) -> 52 | AI7: Flow Rate | AL7: Q0: | AM7: =IF(Database!$E$4=500,499.99,Database!$E$4) -> 0
E8: 150 | F8: 117 | G8: 99 | H8: 83 | I8: 71 | J8: 60 | K8: 54 | L8: 31 | T8: 150 | U8: 117 | X8: 150 | Y8: =HLOOKUP($AM$8,$F$4:$Q$13,5) -> 117 | Z8: =HLOOKUP($AM$9,$F$4:$Q$13,5) -> 117 | AA8: PSI1: | AB8: =LARGE(E6:E13,COUNTIF(E6:E13,">" &AM5)+1) ->  | AE8: PSO1: | AF8: =VLOOKUP(AB8,E6:F13,2) ->  | AI8: Nearest known Flow Rate, 1 | AL8: Q1: | AM8: =LARGE(F4:Q4,COUNTIF(F4:Q4,">" &AM7)+1) -> 0
E9: 200 | F9: 129 | G9: 122 | H9: 97 | I9: 80 | J9: 72 | K9: 63 | L9: 47 | M9: 28 | T9: 200 | U9: 129 | X9: 200 | Y9: =HLOOKUP($AM$8,$F$4:$Q$13,6) -> 129 | Z9: =HLOOKUP($AM$9,$F$4:$Q$13,6) -> 129 | AA9: PSI2: | AB9: =SMALL(E6:E13,COUNTIF(E6:E13,"<" &AM5)+1) -> 50 | AE9: PSO2: | AF9: =VLOOKUP(AB9,E6:F13,2) -> 52 | AI9: Nearest known Flow Rate, 2 | AL9: Q2: | AM9: =SMALL(F4:Q4,COUNTIF(F4:Q4,"<" &AM7)+1) -> 0
E10: 250 | F10: 150 | G10: 133 | H10: 112 | I10: 95 | J10: 87 | K10: 80 | L10: 62 | M10: 42 | T10: 250 | U10: 150 | X10: 250 | Y10: =HLOOKUP($AM$8,$F$4:$Q$13,7) -> 150 | Z10: =HLOOKUP($AM$9,$F$4:$Q$13,7) -> 150
E11: 300 | F11: 158 | G11: 150 | H11: 127 | I11: 107 | J11: 100 | K11: 93 | L11: 76 | M11: 57 | N11: 36 | T11: 300 | U11: 158 | X11: 300 | Y11: =HLOOKUP($AM$8,$F$4:$Q$13,8) -> 158 | Z11: =HLOOKUP($AM$9,$F$4:$Q$13,8) -> 158
E12: 350 | F12: 174 | G12: 165 | H12: 140 | I12: 121 | J12: 118 | K12: 109 | L12: 89 | M12: 68 | N12: 48 | T12: 340 | U12: =F12 -> 174 | X12: 350 | Y12: =HLOOKUP($AM$8,$F$4:$Q$13,9) -> 174 | Z12: =HLOOKUP($AM$9,$F$4:$Q$13,9) -> 174
E13: 400 | F13: 187 | G13: 179 | H13: 152 | I13: 133 | J13: 128 | K13: 119 | L13: 102 | M13: 84 | N13: 63 | T13: 400 | U13: =F13 -> 187 | X13: 400 | Y13: =HLOOKUP($AM$8,$F$4:$Q$13,10) -> 187 | Z13: =HLOOKUP($AM$9,$F$4:$Q$13,10) -> 187
E16: Residual | F16: Static
D17: Bonnet Setting | E17: Inlet Pressure psig | F17: OUTLET PRESSURES @ FLOW RATE, GPM | T17: Setting # 2: Inlet Pressure | X17: SETTING 2
F18: 0 | G18: 50 | H18: 100 | I18: 150 | J18: 175 | K18: 200 | L18: 250 | M18: 300 | N18: 350 | O18: 400 | P18: 450 | Q18: 500 | T18: Inlet (psig) | U18: Static | X18: Inlet (psig) | Y18: =CONCATENATE("Outlet Residual @ " &AM$8& " GPM") -> Outlet Residual @ 0 GPM | Z18: =CONCATENATE("Outlet Residual @ " &AM$9& " GPM") -> Outlet Residual @ 0 GPM | AC18: Const. PRI Interpolated @ Var. Flow | AI18: 2.5" Angle Double Spring | AK18: Calculated Static Outlet Pressure | AL18: Calculated Residual Outlet Pressure | AM18: Max Flow Rate
D19: 2 | E19: 0 | F19: 0 | G19: 0 | H19: 0 | I19: 0 | J19: 0 | K19: 0 | L19: 0 | M19: 0 | N19: 0 | O19: 0 | P19: 0 | Q19: 0 | T19: =E19 -> 0 | U19: 0 | AI19: Setting 1 | AK19: =IF($AF$8=$AF$9,$AF$8,FORECAST($AM$5,$AF$8:$AF$9,$AB$8:$AB$9)) ->  | AL19: =IF($AF$6=$AF$7,$AF$6,FORECAST($AM$6,$AF$6:$AF$7,$AB$6:$AB$7)) ->  | AM19: 300
E20: 50 | F20: 53 | G20: 49 | H20: 42 | I20: 30 | J20: 23 | K20: 14 | T20: =E20 -> 50 | U20: =F20 -> 53 | X20: =E20 -> 50 | Y20: =HLOOKUP($AM$8,$F$18:$Q$27,3) -> 53 | Z20: =HLOOKUP($AM$9,$F$18:$Q$27,3) -> 53 | AA20: PRI1: | AB20: =LARGE(E20:E27,COUNTIF(E20:E27,">" &AM6)+1) ->  | AC20: =VLOOKUP(AB20,X20:Z27,2) ->  | AD20: =VLOOKUP(AB20,X20:Z27,3) ->  | AE20: PRO1: | AF20: =IF(AM8=AM9, AC20, FORECAST(AM7,$AC$20:$AD$20,$AM$8:$AM$9)) ->  | AI20: Setting 2 | AK20: =IF($AF$22=$AF$23,$AF$22,FORECAST($AM$5,$AF$22:$AF$23,$AB$22:$AB$23)) ->  | AL20: =IF($AF$20=$AF$21,$AF$20,FORECAST($AM$6,$AF$20:$AF$21,$AB$20:$AB$21)) ->  | AM20: 300
E21: 100 | F21: 102 | G21: 93 | H21: 79 | I21: 65 | J21: 55 | K21: 47 | L21: 31 | T21: 100 | U21: 102 | X21: =E21 -> 100 | Y21: =HLOOKUP($AM$8,$F$18:$Q$27,4) -> 102 | Z21: =HLOOKUP($AM$9,$F$18:$Q$27,4) -> 102 | AA21: PRI2: | AB21: =SMALL(E20:E27,COUNTIF(E20:E27,"<" &AM6)+1) -> 50 | AC21: =VLOOKUP(AB21,X20:Z27,2) -> 53 | AD21: =VLOOKUP(AB21,X20:Z27,3) -> 53 | AE21: PRO2: | AF21: =IF(AM8=AM9, AC21, FORECAST(AM7,$AC$21:$AD$21,$AM$8:$AM$9)) -> 53 | AI21: Setting 3 | AK21: =IF($AF$36=$AF$37,$AF$36,FORECAST($AM$5,$AF$36:$AF$37,$AB$36:$AB$37)) ->  | AL21: =IF($AF$34=$AF$35,$AF$34,FORECAST($AM$6,$AF$34:$AF$35,$AB$34:$AB$35)) ->  | AM21: 300
E22: 150 | F22: 130 | G22: 115 | H22: 97 | I22: 82 | J22: 74 | K22: 65 | L22: 46 | M22: 27 | T22: 150 | U22: 130 | X22: 150 | Y22: =HLOOKUP($AM$8,$F$18:$Q$27,5) -> 130 | Z22: =HLOOKUP($AM$9,$F$18:$Q$27,5) -> 130 | AA22: PSI1: | AB22: =LARGE(E20:E27,COUNTIF(E20:E27,">" &AM5)+1) ->  | AE22: PSO1: | AF22: =VLOOKUP(AB22,E20:F27,2) ->  | AI22: Setting 4 | AK22: =IF($AF$50=$AF$51,$AF$50,FORECAST($AM$5,$AF$50:$AF$51,$AB$50:$AB$51)) ->  | AL22: =IF($AF$48=$AF$49,$AF$48,FORECAST($AM$6,$AF$48:$AF$49,$AB$48:$AB$49)) ->  | AM22: 300
E23: 200 | F23: 150 | G23: 136 | H23: 113 | I23: 96 | J23: 93 | K23: 79 | L23: 60 | M23: 38 | T23: 200 | U23: 150 | X23: 200 | Y23: =HLOOKUP($AM$8,$F$18:$Q$27,6) -> 150 | Z23: =HLOOKUP($AM$9,$F$18:$Q$27,6) -> 150 | AA23: PSI2: | AB23: =SMALL(E20:E27,COUNTIF(E20:E27,"<" &AM5)+1) -> 50 | AE23: PSO2: | AF23: =VLOOKUP(AB23,E20:F27,2) -> 53 | AI23: Setting 5 | AK23: =IF($AF$64=$AF$65,$AF$64,FORECAST($AM$5,$AF$64:$AF$65,$AB$64:$AB$65)) ->  | AL23: =IF($AF$62=$AF$63,$AF$62,FORECAST($AM$6,$AF$62:$AF$63,$AB$62:$AB$63)) ->  | AM23: 300
E24: 250 | F24: 165 | G24: 150 | H24: 132 | I24: 109 | J24: 101 | K24: 93 | L24: 74 | M24: 53 | T24: 250 | U24: 165 | X24: 250 | Y24: =HLOOKUP($AM$8,$F$18:$Q$27,7) -> 165 | Z24: =HLOOKUP($AM$9,$F$18:$Q$27,7) -> 165 | AI24: Setting 6 | AK24: =IF($AF$78=$AF$79,$AF$78,FORECAST($AM$5,$AF$78:$AF$79,$AB$78:$AB$79)) ->  | AL24: =IF($AF$76=$AF$77,$AF$76,FORECAST($AM$6,$AF$76:$AF$77,$AB$76:$AB$77)) ->  | AM24: 300
E25: 300 | F25: 179 | G25: 159 | H25: 141 | I25: 122 | J25: 114 | K25: 104 | L25: 88 | M25: 70 | N25: 45 | T25: 285 | U25: 174 | X25: 300 | Y25: =HLOOKUP($AM$8,$F$18:$Q$27,8) -> 179 | Z25: =HLOOKUP($AM$9,$F$18:$Q$27,8) -> 179
E26: 350 | F26: 189 | G26: 175 | H26: 156 | I26: 135 | J26: 126 | K26: 119 | L26: 100 | M26: 82 | N26: 58 | T26: 300 | U26: =F25 -> 179 | X26: 350 | Y26: =HLOOKUP($AM$8,$F$18:$Q$27,9) -> 189 | Z26: =HLOOKUP($AM$9,$F$18:$Q$27,9) -> 189
E27: 400 | F27: 208 | G27: 193 | H27: 168 | I27: 154 | J27: 144 | K27: 135 | L27: 115 | M27: 95 | N27: 72 | O27: 50 | T27: 400 | U27: 208 | X27: 400 | Y27: =HLOOKUP($AM$8,$F$18:$Q$27,10) -> 208 | Z27: =HLOOKUP($AM$9,$F$18:$Q$27,10) -> 208
E30: Residual | F30: Static
D31: Bonnet Setting | E31: Inlet Pressure psig | F31: OUTLET PRESSURES @ FLOW RATE, GPM | T31: Setting # 3: Inlet Pressure | X31: SETTING 3 | AI31: 1.5" Angle
F32: 0 | G32: 50 | H32: 100 | I32: 150 | J32: 175 | K32: 200 | L32: 250 | M32: 300 | N32: 350 | O32: 400 | P32: 450 | Q32: 500 | T32: Inlet (psig) | U32: Static | X32: Inlet (psig) | Y32: =CONCATENATE("Outlet Residual @ " &AM$8& " GPM") -> Outlet Residual @ 0 GPM | Z32: =CONCATENATE("Outlet Residual @ " &AM$9& " GPM") -> Outlet Residual @ 0 GPM | AC32: Const. PRI Interpolated @ Var. Flow | AI32: 2.5" Angle
D33: 3 | E33: 0 | F33: 0 | G33: 0 | H33: 0 | I33: 0 | J33: 0 | K33: 0 | L33: 0 | M33: 0 | N33: 0 | O33: 0 | P33: 0 | Q33: 0 | T33: =E33 -> 0 | U33: 0 | AI33: 2.5" Inline
E34: 50 | F34: 52 | G34: 49 | H34: 42 | I34: 29 | J34: 22 | K34: 15 | T34: =E34 -> 50 | U34: =F34 -> 52 | X34: =E34 -> 50 | Y34: =HLOOKUP($AM$8,$F$32:$Q$41,3) -> 52 | Z34: =HLOOKUP($AM$9,$F$32:$Q$41,3) -> 52 | AA34: PRI1: | AB34: =LARGE(E34:E41,COUNTIF(E34:E41,">" &AM6)+1) ->  | AC34: =VLOOKUP(AB34,X34:Z41,2) ->  | AD34: =VLOOKUP(AB34,X34:Z41,3) ->  | AE34: PRO1: | AF34: =IF(AM8=AM9, AC34, FORECAST(AM7,$AC$34:$AD$34,$AM$8:$AM$9)) -> 
E35: 100 | F35: 102 | G35: 99 | H35: 89 | I35: 76 | J35: 68 | K35: 60 | L35: 43 | M35: 23 | T35: 100 | U35: 102 | X35: =E35 -> 100 | Y35: =HLOOKUP($AM$8,$F$32:$Q$41,4) -> 102 | Z35: =HLOOKUP($AM$9,$F$32:$Q$41,4) -> 102 | AA35: PRI2: | AB35: =SMALL(E34:E41,COUNTIF(E34:E41,"<" &AM6)+1) -> 50 | AC35: =VLOOKUP(AB35,X34:Z41,2) -> 52 | AD35: =VLOOKUP(AB35,X34:Z41,3) -> 52 | AE35: PRO2: | AF35: =IF(AM8=AM9, AC35, FORECAST(AM7,$AC$35:$AD$35,$AM$8:$AM$9)) -> 52
E36: 150 | F36: 148 | G36: 134 | H36: 118 | I36: 101 | J36: 95 | K36: 85 | L36: 68 | M36: 50 | T36: 150 | U36: 148 | X36: 150 | Y36: =HLOOKUP($AM$8,$F$32:$Q$41,5) -> 148 | Z36: =HLOOKUP($AM$9,$F$32:$Q$41,5) -> 148 | AA36: PSI1: | AB36: =LARGE(E34:E41,COUNTIF(E34:E41,">" &AM5)+1) ->  | AE36: PSO1: | AF36: =VLOOKUP(AB36,E34:F41,2) -> 
E37: 200 | F37: 171 | G37: 150 | H37: 134 | I37: 118 | J37: 110 | K37: 101 | L37: 82 | M37: 61 | N37: 41 | T37: 200 | U37: 171 | X37: 200 | Y37: =HLOOKUP($AM$8,$F$32:$Q$41,6) -> 171 | Z37: =HLOOKUP($AM$9,$F$32:$Q$41,6) -> 171 | AA37: PSI2: | AB37: =SMALL(E34:E41,COUNTIF(E34:E41,"<" &AM5)+1) -> 50 | AE37: PSO2: | AF37: =VLOOKUP(AB37,E34:F41,2) -> 52
E38: 250 | F38: 188 | G38: 167 | H38: 155 | I38: 132 | J38: 123 | K38: 121 | L38: 94 | M38: 72 | N38: 51 | T38: 220 | U38: 174 | X38: 250 | Y38: =HLOOKUP($AM$8,$F$32:$Q$41,7) -> 188 | Z38: =HLOOKUP($AM$9,$F$32:$Q$41,7) -> 188
E39: 300 | F39: 203 | G39: 181 | H39: 162 | I39: 146 | J39: 136 | K39: 134 | L39: 109 | M39: 91 | N39: 63 | T39: 300 | U39: =F39 -> 203 | X39: 300 | Y39: =HLOOKUP($AM$8,$F$32:$Q$41,8) -> 203 | Z39: =HLOOKUP($AM$9,$F$32:$Q$41,8) -> 203
E40: 350 | F40: 215 | G40: 201 | H40: 178 | I40: 165 | J40: 150 | K40: 141 | L40: 120 | M40: 104 | N40: 79 | O40: 56 | T40: 350 | U40: 215 | X40: 350 | Y40: =HLOOKUP($AM$8,$F$32:$Q$41,9) -> 215 | Z40: =HLOOKUP($AM$9,$F$32:$Q$41,9) -> 215
E41: 400 | F41: 247 | G41: 210 | H41: 192 | I41: 172 | J41: 162 | K41: 155 | L41: 136 | M41: 115 | N41: 94 | O41: 85 | T41: 400 | U41: 247 | X41: 400 | Y41: =HLOOKUP($AM$8,$F$32:$Q$41,10) -> 247 | Z41: =HLOOKUP($AM$9,$F$32:$Q$41,10) -> 247
E44: Residual | F44: Static
D45: Bonnet Setting | E45: Inlet Pressure psig | F45: OUTLET PRESSURES @ FLOW RATE, GPM | T45: Setting # 4: Inlet Pressure | X45: SETTING 4
F46: 0 | G46: 50 | H46: 100 | I46: 150 | J46: 175 | K46: 200 | L46: 250 | M46: 300 | N46: 350 | O46: 400 | P46: 450 | Q46: 500 | T46: Inlet (psig) | U46: Static | X46: Inlet (psig) | Y46: =CONCATENATE("Outlet Residual @ " &AM$8& " GPM") -> Outlet Residual @ 0 GPM | Z46: =CONCATENATE("Outlet Residual @ " &AM$9& " GPM") -> Outlet Residual @ 0 GPM | AC46: Const. PRI Interpolated @ Var. Flow
D47: 4 | E47: 0 | F47: 0 | G47: 0 | H47: 0 | I47: 0 | J47: 0 | K47: 0 | L47: 0 | M47: 0 | N47: 0 | O47: 0 | P47: 0 | Q47: 0 | T47: =E47 -> 0 | U47: 0
E48: 50 | F48: 52 | G48: 49 | H48: 41 | I48: 29 | J48: 23 | K48: 14 | T48: =E48 -> 50 | U48: =F48 -> 52 | X48: =E48 -> 50 | Y48: =HLOOKUP($AM$8,$F$46:$Q$55,3) -> 52 | Z48: =HLOOKUP($AM$9,$F$46:$Q$55,3) -> 52 | AA48: PRI1: | AB48: =LARGE(E48:E55,COUNTIF(E48:E55,">" &AM6)+1) ->  | AC48: =VLOOKUP(AB48,X48:Z55,2) ->  | AD48: =VLOOKUP(AB48,X48:Z55,3) ->  | AE48: PRO1: | AF48: =IF(AM8=AM9, AC48, FORECAST(AM7,$AC$48:$AD$48,$AM$8:$AM$9)) -> 
E49: 100 | F49: 102 | G49: 100 | H49: 92 | I49: 78 | J49: 72 | K49: 62 | L49: 42 | M49: 24 | T49: 100 | U49: 102 | X49: =E49 -> 100 | Y49: =HLOOKUP($AM$8,$F$46:$Q$55,4) -> 102 | Z49: =HLOOKUP($AM$9,$F$46:$Q$55,4) -> 102 | AA49: PRI2: | AB49: =SMALL(E48:E55,COUNTIF(E48:E55,"<" &AM6)+1) -> 50 | AC49: =VLOOKUP(AB49,X48:Z55,2) -> 52 | AD49: =VLOOKUP(AB49,X48:Z55,3) -> 52 | AE49: PRO2: | AF49: =IF(AM8=AM9, AC49, FORECAST(AM7,$AC$49:$AD$49,$AM$8:$AM$9)) -> 52
E50: 150 | F50: 152 | G50: 146 | H50: 133 | I50: 121 | J50: 110 | K50: 103 | L50: 83 | M50: 64 | N50: 38 | T50: 150 | U50: 152 | X50: 150 | Y50: =HLOOKUP($AM$8,$F$46:$Q$55,5) -> 152 | Z50: =HLOOKUP($AM$9,$F$46:$Q$55,5) -> 152 | AA50: PSI1: | AB50: =LARGE(E48:E55,COUNTIF(E48:E55,">" &AM5)+1) ->  | AE50: PSO1: | AF50: =VLOOKUP(AB50,E48:F55,2) -> 
E51: 200 | F51: 193 | G51: 176 | H51: 157 | I51: 141 | J51: 131 | K51: 123 | L51: 105 | M51: 82 | N51: 64 | O51: 45 | T51: 175 | U51: 174 | X51: 200 | Y51: =HLOOKUP($AM$8,$F$46:$Q$55,6) -> 193 | Z51: =HLOOKUP($AM$9,$F$46:$Q$55,6) -> 193 | AA51: PSI2: | AB51: =SMALL(E48:E55,COUNTIF(E48:E55,"<" &AM5)+1) -> 50 | AE51: PSO2: | AF51: =VLOOKUP(AB51,E48:F55,2) -> 52
E52: 250 | F52: 210 | G52: 192 | H52: 172 | I52: 156 | J52: 152 | K52: 145 | L52: 115 | M52: 96 | N52: 73 | O52: 50 | T52: 250 | U52: 210 | X52: 250 | Y52: =HLOOKUP($AM$8,$F$46:$Q$55,7) -> 210 | Z52: =HLOOKUP($AM$9,$F$46:$Q$55,7) -> 210
E53: 300 | F53: 219 | G53: 212 | H53: 194 | I53: 172 | J53: 168 | K53: 151 | L53: 131 | M53: 111 | N53: 85 | O53: 59 | T53: 300 | U53: 219 | X53: 300 | Y53: =HLOOKUP($AM$8,$F$46:$Q$55,8) -> 219 | Z53: =HLOOKUP($AM$9,$F$46:$Q$55,8) -> 219
E54: 350 | F54: 237 | G54: 226 | H54: 202 | I54: 182 | J54: 175 | K54: 166 | L54: 145 | M54: 123 | N54: 97 | O54: 72 | T54: 350 | U54: 237 | X54: 350 | Y54: =HLOOKUP($AM$8,$F$46:$Q$55,9) -> 237 | Z54: =HLOOKUP($AM$9,$F$46:$Q$55,9) -> 237
E55: 400 | F55: 252 | G55: 234 | H55: 218 | I55: 197 | J55: 193 | K55: 175 | L55: 155 | M55: 135 | N55: 108 | O55: 83 | P55: 62 | T55: 400 | U55: 252 | X55: 400 | Y55: =HLOOKUP($AM$8,$F$46:$Q$55,10) -> 252 | Z55: =HLOOKUP($AM$9,$F$46:$Q$55,10) -> 252
E58: Residual | F58: Static
D59: Bonnet Setting | E59: Inlet Pressure psig | F59: OUTLET PRESSURES @ FLOW RATE, GPM | T59: Setting # 5: Inlet Pressure | X59: SETTING 5
F60: 0 | G60: 50 | H60: 100 | I60: 150 | J60: 175 | K60: 200 | L60: 250 | M60: 300 | N60: 350 | O60: 400 | P60: 450 | Q60: 500 | T60: Inlet (psig) | U60: Static | X60: Inlet (psig) | Y60: =CONCATENATE("Outlet Residual @ " &AM$8& " GPM") -> Outlet Residual @ 0 GPM | Z60: =CONCATENATE("Outlet Residual @ " &AM$9& " GPM") -> Outlet Residual @ 0 GPM | AC60: Const. PRI Interpolated @ Var. Flow
D61: 5 | E61: 0 | F61: 0 | G61: 0 | H61: 0 | I61: 0 | J61: 0 | K61: 0 | L61: 0 | M61: 0 | N61: 0 | O61: 0 | P61: 0 | Q61: 0 | T61: =E61 -> 0 | U61: 0
E62: 50 | F62: 52 | G62: 49 | H62: 42 | I62: 30 | J62: 23 | K62: 15 | T62: =E62 -> 50 | U62: =F62 -> 52 | X62: =E62 -> 50 | Y62: =HLOOKUP($AM$8,$F$60:$Q$69,3) -> 52 | Z62: =HLOOKUP($AM$9,$F$60:$Q$69,3) -> 52 | AA62: PRI1: | AB62: =LARGE(E62:E69,COUNTIF(E62:E69,">" &AM6)+1) ->  | AC62: =VLOOKUP(AB62,X62:Z69,2) ->  | AD62: =VLOOKUP(AB62,X62:Z69,3) ->  | AE62: PRO1: | AF62: =IF(AM8=AM9, AC62, FORECAST(AM7,$AC$62:$AD$62,$AM$8:$AM$9)) -> 
E63: 100 | F63: 101 | G63: 100 | H63: 92 | I63: 80 | J63: 71 | K63: 61 | L63: 42 | T63: 100 | U63: 101 | X63: =E63 -> 100 | Y63: =HLOOKUP($AM$8,$F$60:$Q$69,4) -> 101 | Z63: =HLOOKUP($AM$9,$F$60:$Q$69,4) -> 101 | AA63: PRI2: | AB63: =SMALL(E62:E69,COUNTIF(E62:E69,"<" &AM6)+1) -> 50 | AC63: =VLOOKUP(AB63,X62:Z69,2) -> 52 | AD63: =VLOOKUP(AB63,X62:Z69,3) -> 52 | AE63: PRO2: | AF63: =IF(AM8=AM9, AC63, FORECAST(AM7,$AC$63:$AD$63,$AM$8:$AM$9)) -> 52
E64: 150 | F64: 151 | G64: 149 | H64: 141 | I64: 129 | J64: 123 | K64: 113 | L64: 90 | M64: 62 | N64: 38 | T64: 150 | U64: 151 | X64: 150 | Y64: =HLOOKUP($AM$8,$F$60:$Q$69,5) -> 151 | Z64: =HLOOKUP($AM$9,$F$60:$Q$69,5) -> 151 | AA64: PSI1: | AB64: =LARGE(E62:E69,COUNTIF(E62:E69,">" &AM5)+1) ->  | AE64: PSO1: | AF64: =VLOOKUP(AB64,E62:F69,2) -> 
E65: 200 | F65: 200 | G65: 194 | H65: 174 | I65: 158 | J65: 150 | K65: 141 | L65: 123 | M65: 104 | N65: 84 | O65: 53 | T65: 175 | U65: 174 | X65: 200 | Y65: =HLOOKUP($AM$8,$F$60:$Q$69,6) -> 200 | Z65: =HLOOKUP($AM$9,$F$60:$Q$69,6) -> 200 | AA65: PSI2: | AB65: =SMALL(E62:E69,COUNTIF(E62:E69,"<" &AM5)+1) -> 50 | AE65: PSO2: | AF65: =VLOOKUP(AB65,E62:F69,2) -> 52
E66: 250 | F66: 251 | G66: 224 | H66: 195 | I66: 178 | J66: 168 | K66: 164 | L66: 138 | M66: 119 | N66: 99 | O66: 82 | P66: 56 | T66: 250 | U66: 251 | X66: 250 | Y66: =HLOOKUP($AM$8,$F$60:$Q$69,7) -> 251 | Z66: =HLOOKUP($AM$9,$F$60:$Q$69,7) -> 251
E67: 300 | F67: 299 | G67: 250 | H67: 209 | I67: 192 | J67: 183 | K67: 177 | L67: 155 | M67: 130 | N67: 109 | O67: 85 | P67: 62 | T67: 300 | U67: 299 | X67: 300 | Y67: =HLOOKUP($AM$8,$F$60:$Q$69,8) -> 299 | Z67: =HLOOKUP($AM$9,$F$60:$Q$69,8) -> 299
E68: 350 | F68: 343 | G68: 284 | H68: 224 | I68: 205 | J68: 196 | K68: 186 | L68: 169 | M68: 144 | N68: 121 | O68: 98 | P68: 67 | T68: 350 | U68: 343 | X68: 350 | Y68: =HLOOKUP($AM$8,$F$60:$Q$69,9) -> 343 | Z68: =HLOOKUP($AM$9,$F$60:$Q$69,9) -> 343
E69: 400 | F69: 379 | G69: 330 | H69: 239 | I69: 218 | J69: 213 | K69: 211 | L69: 178 | M69: 158 | N69: 130 | O69: 102 | P69: 77 | T69: 400 | U69: 379 | X69: 400 | Y69: =HLOOKUP($AM$8,$F$60:$Q$69,10) -> 379 | Z69: =HLOOKUP($AM$9,$F$60:$Q$69,10) -> 379
E72: Residual | F72: Static
D73: Bonnet Setting | E73: Inlet Pressure psig | F73: OUTLET PRESSURES @ FLOW RATE, GPM | T73: Setting # 6: Inlet Pressure | X73: SETTING 6
F74: 0 | G74: 50 | H74: 100 | I74: 150 | J74: 175 | K74: 200 | L74: 250 | M74: 300 | N74: 350 | O74: 400 | P74: 450 | Q74: 500 | T74: Inlet (psig) | U74: Static | X74: Inlet (psig) | Y74: =CONCATENATE("Outlet Residual @ " &AM$8& " GPM") -> Outlet Residual @ 0 GPM | Z74: =CONCATENATE("Outlet Residual @ " &AM$9& " GPM") -> Outlet Residual @ 0 GPM | AC74: Const. PRI Interpolated @ Var. Flow
D75: 6 | E75: 0 | F75: 0 | G75: 0 | H75: 0 | I75: 0 | J75: 0 | K75: 0 | L75: 0 | M75: 0 | N75: 0 | O75: 0 | P75: 0 | Q75: 0 | T75: =E75 -> 0 | U75: 0
E76: 50 | F76: 53 | G76: 50 | H76: 42 | I76: 30 | J76: 24 | K76: 15 | T76: =E76 -> 50 | U76: =F76 -> 53 | X76: =E76 -> 50 | Y76: =HLOOKUP($AM$8,$F$74:$Q$83,3) -> 53 | Z76: =HLOOKUP($AM$9,$F$74:$Q$83,3) -> 53 | AA76: PRI1: | AB76: =LARGE(E76:E83,COUNTIF(E76:E83,">" &AM6)+1) ->  | AC76: =VLOOKUP(AB76,X76:Z83,2) ->  | AD76: =VLOOKUP(AB76,X76:Z83,3) ->  | AE76: PRO1: | AF76: =IF(AM8=AM9, AC76, FORECAST(AM7,$AC$76:$AD$76,$AM$8:$AM$9)) -> 
E77: 100 | F77: 101 | G77: 99 | H77: 92 | I77: 79 | J77: 72 | K77: 63 | L77: 43 | T77: 100 | U77: 101 | X77: =E77 -> 100 | Y77: =HLOOKUP($AM$8,$F$74:$Q$83,4) -> 101 | Z77: =HLOOKUP($AM$9,$F$74:$Q$83,4) -> 101 | AA77: PRI2: | AB77: =SMALL(E76:E83,COUNTIF(E76:E83,"<" &AM6)+1) -> 50 | AC77: =VLOOKUP(AB77,X76:Z83,2) -> 53 | AD77: =VLOOKUP(AB77,X76:Z83,3) -> 53 | AE77: PRO2: | AF77: =IF(AM8=AM9, AC77, FORECAST(AM7,$AC$77:$AD$77,$AM$8:$AM$9)) -> 53
E78: 150 | F78: 152 | G78: 150 | H78: 143 | I78: 130 | J78: 123 | K78: 112 | L78: 91 | M78: 66 | N78: 35 | T78: 150 | U78: 152 | X78: 150 | Y78: =HLOOKUP($AM$8,$F$74:$Q$83,5) -> 152 | Z78: =HLOOKUP($AM$9,$F$74:$Q$83,5) -> 152 | AA78: PSI1: | AB78: =LARGE(E76:E83,COUNTIF(E76:E83,">" &AM5)+1) ->  | AE78: PSO1: | AF78: =VLOOKUP(AB78,E76:F83,2) -> 
E79: 200 | F79: 201 | G79: 197 | H79: 185 | I79: 173 | J79: 164 | K79: 153 | L79: 138 | M79: 113 | N79: 90 | O79: 53 | T79: 175 | U79: 174 | X79: 200 | Y79: =HLOOKUP($AM$8,$F$74:$Q$83,6) -> 201 | Z79: =HLOOKUP($AM$9,$F$74:$Q$83,6) -> 201 | AA79: PSI2: | AB79: =SMALL(E76:E83,COUNTIF(E76:E83,"<" &AM5)+1) -> 50 | AE79: PSO2: | AF79: =VLOOKUP(AB79,E76:F83,2) -> 53
E80: 250 | F80: 251 | G80: 221 | H80: 203 | I80: 189 | J80: 177 | K80: 175 | L80: 148 | M80: 130 | N80: 110 | O80: 79 | T80: 250 | U80: 251 | X80: 250 | Y80: =HLOOKUP($AM$8,$F$74:$Q$83,7) -> 251 | Z80: =HLOOKUP($AM$9,$F$74:$Q$83,7) -> 251
E81: 300 | F81: 300 | G81: 291 | H81: 272 | I81: 240 | J81: 224 | K81: 200 | L81: 174 | M81: 150 | N81: 127 | O81: 105 | P81: 86 | T81: 300 | U81: 300 | X81: 300 | Y81: =HLOOKUP($AM$8,$F$74:$Q$83,8) -> 300 | Z81: =HLOOKUP($AM$9,$F$74:$Q$83,8) -> 300
E82: 350 | F82: 352 | G82: 344 | H82: 321 | I82: 284 | J82: 259 | K82: 242 | L82: 191 | M82: 162 | N82: 140 | O82: 114 | P82: 89 | T82: 350 | U82: 352 | X82: 350 | Y82: =HLOOKUP($AM$8,$F$74:$Q$83,9) -> 352 | Z82: =HLOOKUP($AM$9,$F$74:$Q$83,9) -> 352
E83: 400 | F83: 401 | G83: 391 | H83: 369 | I83: 325 | J83: 309 | K83: 275 | L83: 223 | M83: 177 | N83: 152 | O83: 123 | P83: 96 | Q83: 65 | T83: 400 | U83: 401 | X83: 400 | Y83: =HLOOKUP($AM$8,$F$74:$Q$83,10) -> 401 | Z83: =HLOOKUP($AM$9,$F$74:$Q$83,10) -> 401

Sheet Charts 1.5" Angle
B2: 1.5" ANGLE
